Workbook

Sheet MAIN
A12: TIP # | I12: PLAN SHEET #
A15: COUNTY | I15: OUTLET ANALYSIS #
A18: DATE | I18: LATITUDE
A21: DESIGN FIRM | I21: LONGITUDE
A24: DESIGNER | H24: HYDROLOGY METHOD
A27: PROJECT DESCRIPTION | I27: ANALYSIS POINT
H30: =IF(K27="DOWNSTREAM PAST R/W","*ANALYSIS POINT IS ","") ->  | L30: =IF(K27="DOWNSTREAM PAST R/W", "FT. DOWNSTREAM PAST R/W","") -> 
A32: CUSTOM IDF DATA?
A37: Version 1.0 | T37: Developed by NCDOT and Kimley-Horn Associates

Sheet Case Table (hidden)
B1: CASE TABLE

Sheet Summary Table (hidden)
A1: TIP Project: | B1: =TIP_number_MAIN_tab -> 0 | AG1: Date: | AH1: 00:00:00
A2: County: | K2: SUMMARY TABLE | AG2: Design Firm: | AH2: =design_firm_MAIN_tab -> 0
A4: =MAIN!A37 -> Version 1.0
A6: OUTLET INFORMATION | G6: PRE-CONSTRUCTION SUMMARY | R6: POST-CONSTRUCTION SUMMARY | AD6: OVERALL SUMMARY
A8: OUTLET | C8: LOCATION | D8: MAPS LINK | E8: HYD. METHOD | G8: DRAINAGE AREA | H8: T.O.C (MIN) | I8: C VAL. OR CURVE # | J8: % IMP. TOTAL | K8: D/S GEOMETRY | M8: Q10 (CFS) | N8: D10 (FT) | O8: V10 (FT/S) | P8: ROUGH-NESS VAL. | R8: DRAINAGE AREA | S8: T.O.C (MIN.) | T8: C VAL. | U8: % IMP. TOTAL | V8: D/S GEOMETRY | X8: LINER TYPE | Y8: ROUGH-NESS VAL. | Z8: Q10 (CFS) | AA8: D10 (FT) | AB8: V10 (FT/S) | AD8: Q10 % CHNG. | AE8: D10 % CHNG. | AF8: V10 % CHNG. | AG8: TOTAL AREA CHNG. | AH8: IMP AREA CHNG. | AI8: % IMP CHNG. | AJ8: CASE TYPE
A9: ='Hidden Summary'!A2 -> PSH 4 OUTLET 2 | C9: ='Hidden Summary'!D2 -> INSIDE R/W | D9: Click | E9: =IF('Hidden Summary'!G2="Rational Method","Rational",IF('Hidden Summary'!G2="TR-55 Method","TR-55",IF('Hidden Summary'!G2="USGS-5030 Method","USGS-5030",IF('Hidden Summary'!G2="USGS-5158 Method","USGS-5158",IF('Hidden Summary'!G2="User Input Method","User Input",""))))) -> Rational | G9: ='Hidden Summary'!I2 -> 29.92 | H9: ='Hidden Summary'!K2 -> 10 | I9: ='Hidden Summary'!M2 -> 0.3739304813 | J9: ='Hidden Summary'!Z2 -> 0.2494490307 | K9: ='Hidden Summary'!O2 -> Trapezoidal | M9: ='Hidden Summary'!Q2 -> 57.50632 | N9: ='Hidden Summary'!U2 -> 1.731896214 | O9: ='Hidden Summary'!S2 -> 6.077142387 | P9: ='Hidden Summary'!X2 -> 0.034 | R9: ='Hidden Summary'!J2 -> 20.745 | S9: ='Hidden Summary'!L2 -> 10 | T9: ='Hidden Summary'!N2 -> 0.434736081 | U9: ='Hidden Summary'!AA2 -> 0.2870606797 | V9: ='Hidden Summary'!P2 -> Triangular | X9: ='Hidden Summary'!W2 -> Select Liner Type Above To Generate List | Y9: ='Hidden Summary'!Y2 -> 0.035 | Z9: ='Hidden Summary'!R2 -> 46.355604 | AA9: ='Hidden Summary'!V2 -> 1.87889828 | AB9: ='Hidden Summary'!T2 -> 6.565470213 | AD9: =(Z9/M9)-1 -> -0.1939041831 | AE9: =(AA9/N9)-1 -> 0.08487925816 | AF9: =(AB9/O9)-1 -> 0.0803548436 | AG9: =R9-G9 -> -9.175 | AH9: =(U9*R9)-(J9*G9) -> -1.5084412 | AI9: =U9-J9 -> 0.03761164893 | AJ9: ='Hidden Summary'!AB2 -> 0
A10: ='Hidden Summary'!A3 -> PSH 78 OUTLET 9 | C10: ='Hidden Summary'!D3 -> AT R/W | D10: Click | E10: =IF('Hidden Summary'!G3="Rational Method","Rational",IF('Hidden Summary'!G3="TR-55 Method","TR-55",IF('Hidden Summary'!G3="USGS-5030 Method","USGS-5030",IF('Hidden Summary'!G3="USGS-5158 Method","USGS-5158",IF('Hidden Summary'!G3="User Input Method","User Input",""))))) -> TR-55 | G10: ='Hidden Summary'!I3 -> 0 | H10: ='Hidden Summary'!K3 -> 0 | I10: ='Hidden Summary'!M3 -> 0 | J10: ='Hidden Summary'!Z3 -> 0 | K10: ='Hidden Summary'!O3 -> 0 | M10: ='Hidden Summary'!Q3 -> 0 | N10: ='Hidden Summary'!U3 -> 0 | O10: ='Hidden Summary'!S3 -> 0 | P10: ='Hidden Summary'!X3 -> 0 | R10: ='Hidden Summary'!J3 -> 0 | S10: ='Hidden Summary'!L3 -> 0 | T10: ='Hidden Summary'!N3 -> 0 | U10: ='Hidden Summary'!AA3 -> 0 | V10: ='Hidden Summary'!P3 -> 0 | X10: ='Hidden Summary'!W3 -> Select Liner Type Above To Generate List | Y10: ='Hidden Summary'!Y3 -> 0 | Z10: ='Hidden Summary'!R3 -> 0 | AA10: ='Hidden Summary'!V3 -> 0 | AB10: ='Hidden Summary'!T3 -> 0 | AD10: =(Z10/M10)-1 ->  | AE10: =(AA10/N10)-1 ->  | AF10: =(AB10/O10)-1 ->  | AG10: =R10-G10 -> 0 | AH10: =(U10*R10)-(J10*G10) -> 0 | AI10: =U10-J10 -> 0 | AJ10: ='Hidden Summary'!AB3 -> 0
A11: ='Hidden Summary'!A4 -> 0 | C11: ='Hidden Summary'!D4 -> 0 | D11: Click | E11: =IF('Hidden Summary'!G4="Rational Method","Rational",IF('Hidden Summary'!G4="TR-55 Method","TR-55",IF('Hidden Summary'!G4="USGS-5030 Method","USGS-5030",IF('Hidden Summary'!G4="USGS-5158 Method","USGS-5158",IF('Hidden Summary'!G4="User Input Method","User Input",""))))) ->  | G11: ='Hidden Summary'!I4 -> 0 | H11: ='Hidden Summary'!K4 -> 0 | I11: ='Hidden Summary'!M4 -> 0 | J11: ='Hidden Summary'!Z4 -> 0 | K11: ='Hidden Summary'!O4 -> 0 | M11: ='Hidden Summary'!Q4 -> 0 | N11: ='Hidden Summary'!U4 -> 0 | O11: ='Hidden Summary'!S4 -> 0 | P11: ='Hidden Summary'!X4 -> 0 | R11: ='Hidden Summary'!J4 -> 0 | S11: ='Hidden Summary'!L4 -> 0 | T11: ='Hidden Summary'!N4 -> 0 | U11: ='Hidden Summary'!AA4 -> 0 | V11: ='Hidden Summary'!P4 -> 0 | X11: ='Hidden Summary'!W4 -> 0 | Y11: ='Hidden Summary'!Y4 -> 0 | Z11: ='Hidden Summary'!R4 -> 0 | AA11: ='Hidden Summary'!V4 -> 0 | AB11: ='Hidden Summary'!T4 -> 0 | AG11: 0 | AH11: 0 | AI11: 0 | AJ11: ='Hidden Summary'!AB4 -> 0
A12: ='Hidden Summary'!A5 -> 0 | C12: ='Hidden Summary'!D5 -> 0 | D12: Click | E12: =IF('Hidden Summary'!G5="Rational Method","Rational",IF('Hidden Summary'!G5="TR-55 Method","TR-55",IF('Hidden Summary'!G5="USGS-5030 Method","USGS-5030",IF('Hidden Summary'!G5="USGS-5158 Method","USGS-5158",IF('Hidden Summary'!G5="User Input Method","User Input",""))))) ->  | G12: ='Hidden Summary'!I5 -> 0 | H12: ='Hidden Summary'!K5 -> 0 | I12: ='Hidden Summary'!M5 -> 0 | J12: ='Hidden Summary'!Z5 -> 0 | K12: ='Hidden Summary'!O5 -> 0 | M12: ='Hidden Summary'!Q5 -> 0 | N12: ='Hidden Summary'!U5 -> 0 | O12: ='Hidden Summary'!S5 -> 0 | P12: ='Hidden Summary'!X5 -> 0 | R12: ='Hidden Summary'!J5 -> 0 | S12: ='Hidden Summary'!L5 -> 0 | T12: ='Hidden Summary'!N5 -> 0 | U12: ='Hidden Summary'!AA5 -> 0 | V12: ='Hidden Summary'!P5 -> 0 | X12: ='Hidden Summary'!W5 -> 0 | Y12: ='Hidden Summary'!Y5 -> 0 | Z12: ='Hidden Summary'!R5 -> 0 | AA12: ='Hidden Summary'!V5 -> 0 | AB12: ='Hidden Summary'!T5 -> 0 | AG12: 0 | AH12: 0 | AI12: 0 | AJ12: ='Hidden Summary'!AB5 -> 0
A13: ='Hidden Summary'!A6 -> 0 | C13: ='Hidden Summary'!D6 -> 0 | D13: Click | E13: =IF('Hidden Summary'!G6="Rational Method","Rational",IF('Hidden Summary'!G6="TR-55 Method","TR-55",IF('Hidden Summary'!G6="USGS-5030 Method","USGS-5030",IF('Hidden Summary'!G6="USGS-5158 Method","USGS-5158",IF('Hidden Summary'!G6="User Input Method","User Input",""))))) ->  | G13: ='Hidden Summary'!I6 -> 0 | H13: ='Hidden Summary'!K6 -> 0 | I13: ='Hidden Summary'!M6 -> 0 | J13: ='Hidden Summary'!Z6 -> 0 | K13: ='Hidden Summary'!O6 -> 0 | M13: ='Hidden Summary'!Q6 -> 0 | N13: ='Hidden Summary'!U6 -> 0 | O13: ='Hidden Summary'!S6 -> 0 | P13: ='Hidden Summary'!X6 -> 0 | R13: ='Hidden Summary'!J6 -> 0 | S13: ='Hidden Summary'!L6 -> 0 | T13: ='Hidden Summary'!N6 -> 0 | U13: ='Hidden Summary'!AA6 -> 0 | V13: ='Hidden Summary'!P6 -> 0 | X13: ='Hidden Summary'!W6 -> 0 | Y13: ='Hidden Summary'!Y6 -> 0 | Z13: ='Hidden Summary'!R6 -> 0 | AA13: ='Hidden Summary'!V6 -> 0 | AB13: ='Hidden Summary'!T6 -> 0 | AG13: 0 | AH13: 0 | AI13: 0 | AJ13: ='Hidden Summary'!AB6 -> 0
A14: ='Hidden Summary'!A7 -> 0 | C14: ='Hidden Summary'!D7 -> 0 | E14: =IF('Hidden Summary'!G7="Rational Method","Rational",IF('Hidden Summary'!G7="TR-55 Method","TR-55",IF('Hidden Summary'!G7="USGS-5030 Method","USGS-5030",IF('Hidden Summary'!G7="USGS-5158 Method","USGS-5158",IF('Hidden Summary'!G7="User Input Method","User Input",""))))) ->  | G14: ='Hidden Summary'!I7 -> 0 | H14: ='Hidden Summary'!K7 -> 0 | I14: ='Hidden Summary'!M7 -> 0 | J14: ='Hidden Summary'!Z7 -> 0 | K14: ='Hidden Summary'!O7 -> 0 | M14: ='Hidden Summary'!Q7 -> 0 | N14: ='Hidden Summary'!U7 -> 0 | O14: ='Hidden Summary'!S7 -> 0 | P14: ='Hidden Summary'!X7 -> 0 | R14: ='Hidden Summary'!J7 -> 0 | S14: ='Hidden Summary'!L7 -> 0 | T14: ='Hidden Summary'!N7 -> 0 | U14: ='Hidden Summary'!AA7 -> 0 | V14: ='Hidden Summary'!P7 -> 0 | X14: ='Hidden Summary'!W7 -> 0 | Y14: ='Hidden Summary'!Y7 -> 0 | Z14: ='Hidden Summary'!R7 -> 0 | AA14: ='Hidden Summary'!V7 -> 0 | AB14: ='Hidden Summary'!T7 -> 0 | AG14: 0 | AH14: 0 | AI14: 0 | AJ14: ='Hidden Summary'!AB7 -> 0
A15: ='Hidden Summary'!A8 -> 0 | C15: ='Hidden Summary'!D8 -> 0 | E15: =IF('Hidden Summary'!G8="Rational Method","Rational",IF('Hidden Summary'!G8="TR-55 Method","TR-55",IF('Hidden Summary'!G8="USGS-5030 Method","USGS-5030",IF('Hidden Summary'!G8="USGS-5158 Method","USGS-5158",IF('Hidden Summary'!G8="User Input Method","User Input",""))))) ->  | G15: ='Hidden Summary'!I8 -> 0 | H15: ='Hidden Summary'!K8 -> 0 | I15: ='Hidden Summary'!M8 -> 0 | J15: ='Hidden Summary'!Z8 -> 0 | K15: ='Hidden Summary'!O8 -> 0 | M15: ='Hidden Summary'!Q8 -> 0 | N15: ='Hidden Summary'!U8 -> 0 | O15: ='Hidden Summary'!S8 -> 0 | P15: ='Hidden Summary'!X8 -> 0 | R15: ='Hidden Summary'!J8 -> 0 | S15: ='Hidden Summary'!L8 -> 0 | T15: ='Hidden Summary'!N8 -> 0 | U15: ='Hidden Summary'!AA8 -> 0 | V15: ='Hidden Summary'!P8 -> 0 | X15: ='Hidden Summary'!W8 -> 0 | Y15: ='Hidden Summary'!Y8 -> 0 | Z15: ='Hidden Summary'!R8 -> 0 | AA15: ='Hidden Summary'!V8 -> 0 | AB15: ='Hidden Summary'!T8 -> 0 | AG15: 0 | AH15: 0 | AI15: 0 | AJ15: ='Hidden Summary'!AB8 -> 0
A16: ='Hidden Summary'!A9 -> 0 | C16: ='Hidden Summary'!D9 -> 0 | E16: =IF('Hidden Summary'!G9="Rational Method","Rational",IF('Hidden Summary'!G9="TR-55 Method","TR-55",IF('Hidden Summary'!G9="USGS-5030 Method","USGS-5030",IF('Hidden Summary'!G9="USGS-5158 Method","USGS-5158",IF('Hidden Summary'!G9="User Input Method","User Input",""))))) ->  | G16: ='Hidden Summary'!I9 -> 0 | H16: ='Hidden Summary'!K9 -> 0 | I16: ='Hidden Summary'!M9 -> 0 | J16: ='Hidden Summary'!Z9 -> 0 | K16: ='Hidden Summary'!O9 -> 0 | M16: ='Hidden Summary'!Q9 -> 0 | N16: ='Hidden Summary'!U9 -> 0 | O16: ='Hidden Summary'!S9 -> 0 | P16: ='Hidden Summary'!X9 -> 0 | R16: ='Hidden Summary'!J9 -> 0 | S16: ='Hidden Summary'!L9 -> 0 | T16: ='Hidden Summary'!N9 -> 0 | U16: ='Hidden Summary'!AA9 -> 0 | V16: ='Hidden Summary'!P9 -> 0 | X16: ='Hidden Summary'!W9 -> 0 | Y16: ='Hidden Summary'!Y9 -> 0 | Z16: ='Hidden Summary'!R9 -> 0 | AA16: ='Hidden Summary'!V9 -> 0 | AB16: ='Hidden Summary'!T9 -> 0 | AG16: 0 | AH16: 0 | AI16: 0 | AJ16: ='Hidden Summary'!AB9 -> 0
A17: ='Hidden Summary'!A10 -> 0 | C17: ='Hidden Summary'!D10 -> 0 | E17: =IF('Hidden Summary'!G10="Rational Method","Rational",IF('Hidden Summary'!G10="TR-55 Method","TR-55",IF('Hidden Summary'!G10="USGS-5030 Method","USGS-5030",IF('Hidden Summary'!G10="USGS-5158 Method","USGS-5158",IF('Hidden Summary'!G10="User Input Method","User Input",""))))) ->  | G17: ='Hidden Summary'!I10 -> 0 | H17: ='Hidden Summary'!K10 -> 0 | I17: ='Hidden Summary'!M10 -> 0 | J17: ='Hidden Summary'!Z10 -> 0 | K17: ='Hidden Summary'!O10 -> 0 | M17: ='Hidden Summary'!Q10 -> 0 | N17: ='Hidden Summary'!U10 -> 0 | O17: ='Hidden Summary'!S10 -> 0 | P17: ='Hidden Summary'!X10 -> 0 | R17: ='Hidden Summary'!J10 -> 0 | S17: ='Hidden Summary'!L10 -> 0 | T17: ='Hidden Summary'!N10 -> 0 | U17: ='Hidden Summary'!AA10 -> 0 | V17: ='Hidden Summary'!P10 -> 0 | X17: ='Hidden Summary'!W10 -> 0 | Y17: ='Hidden Summary'!Y10 -> 0 | Z17: ='Hidden Summary'!R10 -> 0 | AA17: ='Hidden Summary'!V10 -> 0 | AB17: ='Hidden Summary'!T10 -> 0 | AG17: 0 | AH17: 0 | AI17: 0 | AJ17: ='Hidden Summary'!AB10 -> 0
A18: ='Hidden Summary'!A11 -> 0 | C18: ='Hidden Summary'!D11 -> 0 | E18: =IF('Hidden Summary'!G11="Rational Method","Rational",IF('Hidden Summary'!G11="TR-55 Method","TR-55",IF('Hidden Summary'!G11="USGS-5030 Method","USGS-5030",IF('Hidden Summary'!G11="USGS-5158 Method","USGS-5158",IF('Hidden Summary'!G11="User Input Method","User Input",""))))) ->  | G18: ='Hidden Summary'!I11 -> 0 | H18: ='Hidden Summary'!K11 -> 0 | I18: ='Hidden Summary'!M11 -> 0 | J18: ='Hidden Summary'!Z11 -> 0 | K18: ='Hidden Summary'!O11 -> 0 | M18: ='Hidden Summary'!Q11 -> 0 | N18: ='Hidden Summary'!U11 -> 0 | O18: ='Hidden Summary'!S11 -> 0 | P18: ='Hidden Summary'!X11 -> 0 | R18: ='Hidden Summary'!J11 -> 0 | S18: ='Hidden Summary'!L11 -> 0 | T18: ='Hidden Summary'!N11 -> 0 | U18: ='Hidden Summary'!AA11 -> 0 | V18: ='Hidden Summary'!P11 -> 0 | X18: ='Hidden Summary'!W11 -> 0 | Y18: ='Hidden Summary'!Y11 -> 0 | Z18: ='Hidden Summary'!R11 -> 0 | AA18: ='Hidden Summary'!V11 -> 0 | AB18: ='Hidden Summary'!T11 -> 0 | AG18: 0 | AH18: 0 | AI18: 0 | AJ18: ='Hidden Summary'!AB11 -> 0
A19: ='Hidden Summary'!A12 -> 0 | C19: ='Hidden Summary'!D12 -> 0 | E19: =IF('Hidden Summary'!G12="Rational Method","Rational",IF('Hidden Summary'!G12="TR-55 Method","TR-55",IF('Hidden Summary'!G12="USGS-5030 Method","USGS-5030",IF('Hidden Summary'!G12="USGS-5158 Method","USGS-5158",IF('Hidden Summary'!G12="User Input Method","User Input",""))))) ->  | G19: ='Hidden Summary'!I12 -> 0 | H19: ='Hidden Summary'!K12 -> 0 | I19: ='Hidden Summary'!M12 -> 0 | J19: ='Hidden Summary'!Z12 -> 0 | K19: ='Hidden Summary'!O12 -> 0 | M19: ='Hidden Summary'!Q12 -> 0 | N19: ='Hidden Summary'!U12 -> 0 | O19: ='Hidden Summary'!S12 -> 0 | P19: ='Hidden Summary'!X12 -> 0 | R19: ='Hidden Summary'!J12 -> 0 | S19: ='Hidden Summary'!L12 -> 0 | T19: ='Hidden Summary'!N12 -> 0 | U19: ='Hidden Summary'!AA12 -> 0 | V19: ='Hidden Summary'!P12 -> 0 | X19: ='Hidden Summary'!W12 -> 0 | Y19: ='Hidden Summary'!Y12 -> 0 | Z19: ='Hidden Summary'!R12 -> 0 | AA19: ='Hidden Summary'!V12 -> 0 | AB19: ='Hidden Summary'!T12 -> 0 | AG19: 0 | AH19: 0 | AI19: 0 | AJ19: ='Hidden Summary'!AB12 -> 0
A20: ='Hidden Summary'!A13 -> 0 | C20: ='Hidden Summary'!D13 -> 0 | E20: =IF('Hidden Summary'!G13="Rational Method","Rational",IF('Hidden Summary'!G13="TR-55 Method","TR-55",IF('Hidden Summary'!G13="USGS-5030 Method","USGS-5030",IF('Hidden Summary'!G13="USGS-5158 Method","USGS-5158",IF('Hidden Summary'!G13="User Input Method","User Input",""))))) ->  | G20: ='Hidden Summary'!I13 -> 0 | H20: ='Hidden Summary'!K13 -> 0 | I20: ='Hidden Summary'!M13 -> 0 | J20: ='Hidden Summary'!Z13 -> 0 | K20: ='Hidden Summary'!O13 -> 0 | M20: ='Hidden Summary'!Q13 -> 0 | N20: ='Hidden Summary'!U13 -> 0 | O20: ='Hidden Summary'!S13 -> 0 | P20: ='Hidden Summary'!X13 -> 0 | R20: ='Hidden Summary'!J13 -> 0 | S20: ='Hidden Summary'!L13 -> 0 | T20: ='Hidden Summary'!N13 -> 0 | U20: ='Hidden Summary'!AA13 -> 0 | V20: ='Hidden Summary'!P13 -> 0 | X20: ='Hidden Summary'!W13 -> 0 | Y20: ='Hidden Summary'!Y13 -> 0 | Z20: ='Hidden Summary'!R13 -> 0 | AA20: ='Hidden Summary'!V13 -> 0 | AB20: ='Hidden Summary'!T13 -> 0 | AG20: 0 | AH20: 0 | AI20: 0 | AJ20: ='Hidden Summary'!AB13 -> 0
A21: ='Hidden Summary'!A14 -> 0 | C21: ='Hidden Summary'!D14 -> 0 | E21: =IF('Hidden Summary'!G14="Rational Method","Rational",IF('Hidden Summary'!G14="TR-55 Method","TR-55",IF('Hidden Summary'!G14="USGS-5030 Method","USGS-5030",IF('Hidden Summary'!G14="USGS-5158 Method","USGS-5158",IF('Hidden Summary'!G14="User Input Method","User Input",""))))) ->  | G21: ='Hidden Summary'!I14 -> 0 | H21: ='Hidden Summary'!K14 -> 0 | I21: ='Hidden Summary'!M14 -> 0 | J21: ='Hidden Summary'!Z14 -> 0 | K21: ='Hidden Summary'!O14 -> 0 | M21: ='Hidden Summary'!Q14 -> 0 | N21: ='Hidden Summary'!U14 -> 0 | O21: ='Hidden Summary'!S14 -> 0 | P21: ='Hidden Summary'!X14 -> 0 | R21: ='Hidden Summary'!J14 -> 0 | S21: ='Hidden Summary'!L14 -> 0 | T21: ='Hidden Summary'!N14 -> 0 | U21: ='Hidden Summary'!AA14 -> 0 | V21: ='Hidden Summary'!P14 -> 0 | X21: ='Hidden Summary'!W14 -> 0 | Y21: ='Hidden Summary'!Y14 -> 0 | Z21: ='Hidden Summary'!R14 -> 0 | AA21: ='Hidden Summary'!V14 -> 0 | AB21: ='Hidden Summary'!T14 -> 0 | AG21: 0 | AH21: 0 | AI21: 0 | AJ21: ='Hidden Summary'!AB14 -> 0
A22: ='Hidden Summary'!A15 -> 0 | C22: ='Hidden Summary'!D15 -> 0 | E22: =IF('Hidden Summary'!G15="Rational Method","Rational",IF('Hidden Summary'!G15="TR-55 Method","TR-55",IF('Hidden Summary'!G15="USGS-5030 Method","USGS-5030",IF('Hidden Summary'!G15="USGS-5158 Method","USGS-5158",IF('Hidden Summary'!G15="User Input Method","User Input",""))))) ->  | G22: ='Hidden Summary'!I15 -> 0 | H22: ='Hidden Summary'!K15 -> 0 | I22: ='Hidden Summary'!M15 -> 0 | J22: ='Hidden Summary'!Z15 -> 0 | K22: ='Hidden Summary'!O15 -> 0 | M22: ='Hidden Summary'!Q15 -> 0 | N22: ='Hidden Summary'!U15 -> 0 | O22: ='Hidden Summary'!S15 -> 0 | P22: ='Hidden Summary'!X15 -> 0 | R22: ='Hidden Summary'!J15 -> 0 | S22: ='Hidden Summary'!L15 -> 0 | T22: ='Hidden Summary'!N15 -> 0 | U22: ='Hidden Summary'!AA15 -> 0 | V22: ='Hidden Summary'!P15 -> 0 | X22: ='Hidden Summary'!W15 -> 0 | Y22: ='Hidden Summary'!Y15 -> 0 | Z22: ='Hidden Summary'!R15 -> 0 | AA22: ='Hidden Summary'!V15 -> 0 | AB22: ='Hidden Summary'!T15 -> 0 | AG22: 0 | AH22: 0 | AI22: 0 | AJ22: ='Hidden Summary'!AB15 -> 0
A23: ='Hidden Summary'!A16 -> 0 | C23: ='Hidden Summary'!D16 -> 0 | E23: =IF('Hidden Summary'!G16="Rational Method","Rational",IF('Hidden Summary'!G16="TR-55 Method","TR-55",IF('Hidden Summary'!G16="USGS-5030 Method","USGS-5030",IF('Hidden Summary'!G16="USGS-5158 Method","USGS-5158",IF('Hidden Summary'!G16="User Input Method","User Input",""))))) ->  | G23: ='Hidden Summary'!I16 -> 0 | H23: ='Hidden Summary'!K16 -> 0 | I23: ='Hidden Summary'!M16 -> 0 | J23: ='Hidden Summary'!Z16 -> 0 | K23: ='Hidden Summary'!O16 -> 0 | M23: ='Hidden Summary'!Q16 -> 0 | N23: ='Hidden Summary'!U16 -> 0 | O23: ='Hidden Summary'!S16 -> 0 | P23: ='Hidden Summary'!X16 -> 0 | R23: ='Hidden Summary'!J16 -> 0 | S23: ='Hidden Summary'!L16 -> 0 | T23: ='Hidden Summary'!N16 -> 0 | U23: ='Hidden Summary'!AA16 -> 0 | V23: ='Hidden Summary'!P16 -> 0 | X23: ='Hidden Summary'!W16 -> 0 | Y23: ='Hidden Summary'!Y16 -> 0 | Z23: ='Hidden Summary'!R16 -> 0 | AA23: ='Hidden Summary'!V16 -> 0 | AB23: ='Hidden Summary'!T16 -> 0 | AG23: 0 | AH23: 0 | AI23: 0 | AJ23: ='Hidden Summary'!AB16 -> 0
A24: ='Hidden Summary'!A17 -> 0 | C24: ='Hidden Summary'!D17 -> 0 | E24: =IF('Hidden Summary'!G17="Rational Method","Rational",IF('Hidden Summary'!G17="TR-55 Method","TR-55",IF('Hidden Summary'!G17="USGS-5030 Method","USGS-5030",IF('Hidden Summary'!G17="USGS-5158 Method","USGS-5158",IF('Hidden Summary'!G17="User Input Method","User Input",""))))) ->  | G24: ='Hidden Summary'!I17 -> 0 | H24: ='Hidden Summary'!K17 -> 0 | I24: ='Hidden Summary'!M17 -> 0 | J24: ='Hidden Summary'!Z17 -> 0 | K24: ='Hidden Summary'!O17 -> 0 | M24: ='Hidden Summary'!Q17 -> 0 | N24: ='Hidden Summary'!U17 -> 0 | O24: ='Hidden Summary'!S17 -> 0 | P24: ='Hidden Summary'!X17 -> 0 | R24: ='Hidden Summary'!J17 -> 0 | S24: ='Hidden Summary'!L17 -> 0 | T24: ='Hidden Summary'!N17 -> 0 | U24: ='Hidden Summary'!AA17 -> 0 | V24: ='Hidden Summary'!P17 -> 0 | X24: ='Hidden Summary'!W17 -> 0 | Y24: ='Hidden Summary'!Y17 -> 0 | Z24: ='Hidden Summary'!R17 -> 0 | AA24: ='Hidden Summary'!V17 -> 0 | AB24: ='Hidden Summary'!T17 -> 0 | AG24: 0 | AH24: 0 | AI24: 0 | AJ24: ='Hidden Summary'!AB17 -> 0
A25: ='Hidden Summary'!A18 -> 0 | C25: ='Hidden Summary'!D18 -> 0 | E25: =IF('Hidden Summary'!G18="Rational Method","Rational",IF('Hidden Summary'!G18="TR-55 Method","TR-55",IF('Hidden Summary'!G18="USGS-5030 Method","USGS-5030",IF('Hidden Summary'!G18="USGS-5158 Method","USGS-5158",IF('Hidden Summary'!G18="User Input Method","User Input",""))))) ->  | G25: ='Hidden Summary'!I18 -> 0 | H25: ='Hidden Summary'!K18 -> 0 | I25: ='Hidden Summary'!M18 -> 0 | J25: ='Hidden Summary'!Z18 -> 0 | K25: ='Hidden Summary'!O18 -> 0 | M25: ='Hidden Summary'!Q18 -> 0 | N25: ='Hidden Summary'!U18 -> 0 | O25: ='Hidden Summary'!S18 -> 0 | P25: ='Hidden Summary'!X18 -> 0 | R25: ='Hidden Summary'!J18 -> 0 | S25: ='Hidden Summary'!L18 -> 0 | T25: ='Hidden Summary'!N18 -> 0 | U25: ='Hidden Summary'!AA18 -> 0 | V25: ='Hidden Summary'!P18 -> 0 | X25: ='Hidden Summary'!W18 -> 0 | Y25: ='Hidden Summary'!Y18 -> 0 | Z25: ='Hidden Summary'!R18 -> 0 | AA25: ='Hidden Summary'!V18 -> 0 | AB25: ='Hidden Summary'!T18 -> 0 | AG25: 0 | AH25: 0 | AI25: 0 | AJ25: ='Hidden Summary'!AB18 -> 0
A26: ='Hidden Summary'!A19 -> 0 | C26: ='Hidden Summary'!D19 -> 0 | E26: =IF('Hidden Summary'!G19="Rational Method","Rational",IF('Hidden Summary'!G19="TR-55 Method","TR-55",IF('Hidden Summary'!G19="USGS-5030 Method","USGS-5030",IF('Hidden Summary'!G19="USGS-5158 Method","USGS-5158",IF('Hidden Summary'!G19="User Input Method","User Input",""))))) ->  | G26: ='Hidden Summary'!I19 -> 0 | H26: ='Hidden Summary'!K19 -> 0 | I26: ='Hidden Summary'!M19 -> 0 | J26: ='Hidden Summary'!Z19 -> 0 | K26: ='Hidden Summary'!O19 -> 0 | M26: ='Hidden Summary'!Q19 -> 0 | N26: ='Hidden Summary'!U19 -> 0 | O26: ='Hidden Summary'!S19 -> 0 | P26: ='Hidden Summary'!X19 -> 0 | R26: ='Hidden Summary'!J19 -> 0 | S26: ='Hidden Summary'!L19 -> 0 | T26: ='Hidden Summary'!N19 -> 0 | U26: ='Hidden Summary'!AA19 -> 0 | V26: ='Hidden Summary'!P19 -> 0 | X26: ='Hidden Summary'!W19 -> 0 | Y26: ='Hidden Summary'!Y19 -> 0 | Z26: ='Hidden Summary'!R19 -> 0 | AA26: ='Hidden Summary'!V19 -> 0 | AB26: ='Hidden Summary'!T19 -> 0 | AG26: 0 | AH26: 0 | AI26: 0 | AJ26: ='Hidden Summary'!AB19 -> 0
A27: ='Hidden Summary'!A20 -> 0 | C27: ='Hidden Summary'!D20 -> 0 | E27: =IF('Hidden Summary'!G20="Rational Method","Rational",IF('Hidden Summary'!G20="TR-55 Method","TR-55",IF('Hidden Summary'!G20="USGS-5030 Method","USGS-5030",IF('Hidden Summary'!G20="USGS-5158 Method","USGS-5158",IF('Hidden Summary'!G20="User Input Method","User Input",""))))) ->  | G27: ='Hidden Summary'!I20 -> 0 | H27: ='Hidden Summary'!K20 -> 0 | I27: ='Hidden Summary'!M20 -> 0 | J27: ='Hidden Summary'!Z20 -> 0 | K27: ='Hidden Summary'!O20 -> 0 | M27: ='Hidden Summary'!Q20 -> 0 | N27: ='Hidden Summary'!U20 -> 0 | O27: ='Hidden Summary'!S20 -> 0 | P27: ='Hidden Summary'!X20 -> 0 | R27: ='Hidden Summary'!J20 -> 0 | S27: ='Hidden Summary'!L20 -> 0 | T27: ='Hidden Summary'!N20 -> 0 | U27: ='Hidden Summary'!AA20 -> 0 | V27: ='Hidden Summary'!P20 -> 0 | X27: ='Hidden Summary'!W20 -> 0 | Y27: ='Hidden Summary'!Y20 -> 0 | Z27: ='Hidden Summary'!R20 -> 0 | AA27: ='Hidden Summary'!V20 -> 0 | AB27: ='Hidden Summary'!T20 -> 0 | AG27: 0 | AH27: 0 | AI27: 0 | AJ27: ='Hidden Summary'!AB20 -> 0
A28: ='Hidden Summary'!A21 -> 0 | C28: ='Hidden Summary'!D21 -> 0 | E28: =IF('Hidden Summary'!G21="Rational Method","Rational",IF('Hidden Summary'!G21="TR-55 Method","TR-55",IF('Hidden Summary'!G21="USGS-5030 Method","USGS-5030",IF('Hidden Summary'!G21="USGS-5158 Method","USGS-5158",IF('Hidden Summary'!G21="User Input Method","User Input",""))))) ->  | G28: ='Hidden Summary'!I21 -> 0 | H28: ='Hidden Summary'!K21 -> 0 | I28: ='Hidden Summary'!M21 -> 0 | J28: ='Hidden Summary'!Z21 -> 0 | K28: ='Hidden Summary'!O21 -> 0 | M28: ='Hidden Summary'!Q21 -> 0 | N28: ='Hidden Summary'!U21 -> 0 | O28: ='Hidden Summary'!S21 -> 0 | P28: ='Hidden Summary'!X21 -> 0 | R28: ='Hidden Summary'!J21 -> 0 | S28: ='Hidden Summary'!L21 -> 0 | T28: ='Hidden Summary'!N21 -> 0 | U28: ='Hidden Summary'!AA21 -> 0 | V28: ='Hidden Summary'!P21 -> 0 | X28: ='Hidden Summary'!W21 -> 0 | Y28: ='Hidden Summary'!Y21 -> 0 | Z28: ='Hidden Summary'!R21 -> 0 | AA28: ='Hidden Summary'!V21 -> 0 | AB28: ='Hidden Summary'!T21 -> 0 | AG28: 0 | AH28: 0 | AI28: 0 | AJ28: ='Hidden Summary'!AB21 -> 0
A29: ='Hidden Summary'!A22 -> 0 | C29: ='Hidden Summary'!D22 -> 0 | E29: =IF('Hidden Summary'!G22="Rational Method","Rational",IF('Hidden Summary'!G22="TR-55 Method","TR-55",IF('Hidden Summary'!G22="USGS-5030 Method","USGS-5030",IF('Hidden Summary'!G22="USGS-5158 Method","USGS-5158",IF('Hidden Summary'!G22="User Input Method","User Input",""))))) ->  | G29: ='Hidden Summary'!I22 -> 0 | H29: ='Hidden Summary'!K22 -> 0 | I29: ='Hidden Summary'!M22 -> 0 | J29: ='Hidden Summary'!Z22 -> 0 | K29: ='Hidden Summary'!O22 -> 0 | M29: ='Hidden Summary'!Q22 -> 0 | N29: ='Hidden Summary'!U22 -> 0 | O29: ='Hidden Summary'!S22 -> 0 | P29: ='Hidden Summary'!X22 -> 0 | R29: ='Hidden Summary'!J22 -> 0 | S29: ='Hidden Summary'!L22 -> 0 | T29: ='Hidden Summary'!N22 -> 0 | U29: ='Hidden Summary'!AA22 -> 0 | V29: ='Hidden Summary'!P22 -> 0 | X29: ='Hidden Summary'!W22 -> 0 | Y29: ='Hidden Summary'!Y22 -> 0 | Z29: ='Hidden Summary'!R22 -> 0 | AA29: ='Hidden Summary'!V22 -> 0 | AB29: ='Hidden Summary'!T22 -> 0 | AG29: 0 | AH29: 0 | AI29: 0 | AJ29: ='Hidden Summary'!AB22 -> 0
A30: ='Hidden Summary'!A23 -> 0 | C30: ='Hidden Summary'!D23 -> 0 | E30: =IF('Hidden Summary'!G23="Rational Method","Rational",IF('Hidden Summary'!G23="TR-55 Method","TR-55",IF('Hidden Summary'!G23="USGS-5030 Method","USGS-5030",IF('Hidden Summary'!G23="USGS-5158 Method","USGS-5158",IF('Hidden Summary'!G23="User Input Method","User Input",""))))) ->  | G30: ='Hidden Summary'!I23 -> 0 | H30: ='Hidden Summary'!K23 -> 0 | I30: ='Hidden Summary'!M23 -> 0 | J30: ='Hidden Summary'!Z23 -> 0 | K30: ='Hidden Summary'!O23 -> 0 | M30: ='Hidden Summary'!Q23 -> 0 | N30: ='Hidden Summary'!U23 -> 0 | O30: ='Hidden Summary'!S23 -> 0 | P30: ='Hidden Summary'!X23 -> 0 | R30: ='Hidden Summary'!J23 -> 0 | S30: ='Hidden Summary'!L23 -> 0 | T30: ='Hidden Summary'!N23 -> 0 | U30: ='Hidden Summary'!AA23 -> 0 | V30: ='Hidden Summary'!P23 -> 0 | X30: ='Hidden Summary'!W23 -> 0 | Y30: ='Hidden Summary'!Y23 -> 0 | Z30: ='Hidden Summary'!R23 -> 0 | AA30: ='Hidden Summary'!V23 -> 0 | AB30: ='Hidden Summary'!T23 -> 0 | AG30: 0 | AH30: 0 | AI30: 0 | AJ30: ='Hidden Summary'!AB23 -> 0
A31: ='Hidden Summary'!A24 -> 0 | C31: ='Hidden Summary'!D24 -> 0 | E31: =IF('Hidden Summary'!G24="Rational Method","Rational",IF('Hidden Summary'!G24="TR-55 Method","TR-55",IF('Hidden Summary'!G24="USGS-5030 Method","USGS-5030",IF('Hidden Summary'!G24="USGS-5158 Method","USGS-5158",IF('Hidden Summary'!G24="User Input Method","User Input",""))))) ->  | G31: ='Hidden Summary'!I24 -> 0 | H31: ='Hidden Summary'!K24 -> 0 | I31: ='Hidden Summary'!M24 -> 0 | J31: ='Hidden Summary'!Z24 -> 0 | K31: ='Hidden Summary'!O24 -> 0 | M31: ='Hidden Summary'!Q24 -> 0 | N31: ='Hidden Summary'!U24 -> 0 | O31: ='Hidden Summary'!S24 -> 0 | P31: ='Hidden Summary'!X24 -> 0 | R31: ='Hidden Summary'!J24 -> 0 | S31: ='Hidden Summary'!L24 -> 0 | T31: ='Hidden Summary'!N24 -> 0 | U31: ='Hidden Summary'!AA24 -> 0 | V31: ='Hidden Summary'!P24 -> 0 | X31: ='Hidden Summary'!W24 -> 0 | Y31: ='Hidden Summary'!Y24 -> 0 | Z31: ='Hidden Summary'!R24 -> 0 | AA31: ='Hidden Summary'!V24 -> 0 | AB31: ='Hidden Summary'!T24 -> 0 | AG31: 0 | AH31: 0 | AI31: 0 | AJ31: ='Hidden Summary'!AB24 -> 0
A32: ='Hidden Summary'!A25 -> 0 | C32: ='Hidden Summary'!D25 -> 0 | E32: =IF('Hidden Summary'!G25="Rational Method","Rational",IF('Hidden Summary'!G25="TR-55 Method","TR-55",IF('Hidden Summary'!G25="USGS-5030 Method","USGS-5030",IF('Hidden Summary'!G25="USGS-5158 Method","USGS-5158",IF('Hidden Summary'!G25="User Input Method","User Input",""))))) ->  | G32: ='Hidden Summary'!I25 -> 0 | H32: ='Hidden Summary'!K25 -> 0 | I32: ='Hidden Summary'!M25 -> 0 | J32: ='Hidden Summary'!Z25 -> 0 | K32: ='Hidden Summary'!O25 -> 0 | M32: ='Hidden Summary'!Q25 -> 0 | N32: ='Hidden Summary'!U25 -> 0 | O32: ='Hidden Summary'!S25 -> 0 | P32: ='Hidden Summary'!X25 -> 0 | R32: ='Hidden Summary'!J25 -> 0 | S32: ='Hidden Summary'!L25 -> 0 | T32: ='Hidden Summary'!N25 -> 0 | U32: ='Hidden Summary'!AA25 -> 0 | V32: ='Hidden Summary'!P25 -> 0 | X32: ='Hidden Summary'!W25 -> 0 | Y32: ='Hidden Summary'!Y25 -> 0 | Z32: ='Hidden Summary'!R25 -> 0 | AA32: ='Hidden Summary'!V25 -> 0 | AB32: ='Hidden Summary'!T25 -> 0 | AG32: 0 | AH32: 0 | AI32: 0 | AJ32: ='Hidden Summary'!AB25 -> 0
A33: ='Hidden Summary'!A26 -> 0 | C33: ='Hidden Summary'!D26 -> 0 | E33: =IF('Hidden Summary'!G26="Rational Method","Rational",IF('Hidden Summary'!G26="TR-55 Method","TR-55",IF('Hidden Summary'!G26="USGS-5030 Method","USGS-5030",IF('Hidden Summary'!G26="USGS-5158 Method","USGS-5158",IF('Hidden Summary'!G26="User Input Method","User Input",""))))) ->  | G33: ='Hidden Summary'!I26 -> 0 | H33: ='Hidden Summary'!K26 -> 0 | I33: ='Hidden Summary'!M26 -> 0 | J33: ='Hidden Summary'!Z26 -> 0 | K33: ='Hidden Summary'!O26 -> 0 | M33: ='Hidden Summary'!Q26 -> 0 | N33: ='Hidden Summary'!U26 -> 0 | O33: ='Hidden Summary'!S26 -> 0 | P33: ='Hidden Summary'!X26 -> 0 | R33: ='Hidden Summary'!J26 -> 0 | S33: ='Hidden Summary'!L26 -> 0 | T33: ='Hidden Summary'!N26 -> 0 | U33: ='Hidden Summary'!AA26 -> 0 | V33: ='Hidden Summary'!P26 -> 0 | X33: ='Hidden Summary'!W26 -> 0 | Y33: ='Hidden Summary'!Y26 -> 0 | Z33: ='Hidden Summary'!R26 -> 0 | AA33: ='Hidden Summary'!V26 -> 0 | AB33: ='Hidden Summary'!T26 -> 0 | AG33: 0 | AH33: 0 | AI33: 0 | AJ33: ='Hidden Summary'!AB26 -> 0
A34: ='Hidden Summary'!A27 -> 0 | C34: ='Hidden Summary'!D27 -> 0 | E34: =IF('Hidden Summary'!G27="Rational Method","Rational",IF('Hidden Summary'!G27="TR-55 Method","TR-55",IF('Hidden Summary'!G27="USGS-5030 Method","USGS-5030",IF('Hidden Summary'!G27="USGS-5158 Method","USGS-5158",IF('Hidden Summary'!G27="User Input Method","User Input",""))))) ->  | G34: ='Hidden Summary'!I27 -> 0 | H34: ='Hidden Summary'!K27 -> 0 | I34: ='Hidden Summary'!M27 -> 0 | J34: ='Hidden Summary'!Z27 -> 0 | K34: ='Hidden Summary'!O27 -> 0 | M34: ='Hidden Summary'!Q27 -> 0 | N34: ='Hidden Summary'!U27 -> 0 | O34: ='Hidden Summary'!S27 -> 0 | P34: ='Hidden Summary'!X27 -> 0 | R34: ='Hidden Summary'!J27 -> 0 | S34: ='Hidden Summary'!L27 -> 0 | T34: ='Hidden Summary'!N27 -> 0 | U34: ='Hidden Summary'!AA27 -> 0 | V34: ='Hidden Summary'!P27 -> 0 | X34: ='Hidden Summary'!W27 -> 0 | Y34: ='Hidden Summary'!Y27 -> 0 | Z34: ='Hidden Summary'!R27 -> 0 | AA34: ='Hidden Summary'!V27 -> 0 | AB34: ='Hidden Summary'!T27 -> 0 | AG34: 0 | AH34: 0 | AI34: 0 | AJ34: ='Hidden Summary'!AB27 -> 0
A35: ='Hidden Summary'!A28 -> 0 | C35: ='Hidden Summary'!D28 -> 0 | E35: =IF('Hidden Summary'!G28="Rational Method","Rational",IF('Hidden Summary'!G28="TR-55 Method","TR-55",IF('Hidden Summary'!G28="USGS-5030 Method","USGS-5030",IF('Hidden Summary'!G28="USGS-5158 Method","USGS-5158",IF('Hidden Summary'!G28="User Input Method","User Input",""))))) ->  | G35: ='Hidden Summary'!I28 -> 0 | H35: ='Hidden Summary'!K28 -> 0 | I35: ='Hidden Summary'!M28 -> 0 | J35: ='Hidden Summary'!Z28 -> 0 | K35: ='Hidden Summary'!O28 -> 0 | M35: ='Hidden Summary'!Q28 -> 0 | N35: ='Hidden Summary'!U28 -> 0 | O35: ='Hidden Summary'!S28 -> 0 | P35: ='Hidden Summary'!X28 -> 0 | R35: ='Hidden Summary'!J28 -> 0 | S35: ='Hidden Summary'!L28 -> 0 | T35: ='Hidden Summary'!N28 -> 0 | U35: ='Hidden Summary'!AA28 -> 0 | V35: ='Hidden Summary'!P28 -> 0 | X35: ='Hidden Summary'!W28 -> 0 | Y35: ='Hidden Summary'!Y28 -> 0 | Z35: ='Hidden Summary'!R28 -> 0 | AA35: ='Hidden Summary'!V28 -> 0 | AB35: ='Hidden Summary'!T28 -> 0 | AG35: 0 | AH35: 0 | AI35: 0 | AJ35: ='Hidden Summary'!AB28 -> 0
A36: ='Hidden Summary'!A29 -> 0 | C36: ='Hidden Summary'!D29 -> 0 | E36: =IF('Hidden Summary'!G29="Rational Method","Rational",IF('Hidden Summary'!G29="TR-55 Method","TR-55",IF('Hidden Summary'!G29="USGS-5030 Method","USGS-5030",IF('Hidden Summary'!G29="USGS-5158 Method","USGS-5158",IF('Hidden Summary'!G29="User Input Method","User Input",""))))) ->  | G36: ='Hidden Summary'!I29 -> 0 | H36: ='Hidden Summary'!K29 -> 0 | I36: ='Hidden Summary'!M29 -> 0 | J36: ='Hidden Summary'!Z29 -> 0 | K36: ='Hidden Summary'!O29 -> 0 | M36: ='Hidden Summary'!Q29 -> 0 | N36: ='Hidden Summary'!U29 -> 0 | O36: ='Hidden Summary'!S29 -> 0 | P36: ='Hidden Summary'!X29 -> 0 | R36: ='Hidden Summary'!J29 -> 0 | S36: ='Hidden Summary'!L29 -> 0 | T36: ='Hidden Summary'!N29 -> 0 | U36: ='Hidden Summary'!AA29 -> 0 | V36: ='Hidden Summary'!P29 -> 0 | X36: ='Hidden Summary'!W29 -> 0 | Y36: ='Hidden Summary'!Y29 -> 0 | Z36: ='Hidden Summary'!R29 -> 0 | AA36: ='Hidden Summary'!V29 -> 0 | AB36: ='Hidden Summary'!T29 -> 0 | AG36: 0 | AH36: 0 | AI36: 0 | AJ36: ='Hidden Summary'!AB29 -> 0
A37: ='Hidden Summary'!A30 -> 0 | C37: ='Hidden Summary'!D30 -> 0 | E37: =IF('Hidden Summary'!G30="Rational Method","Rational",IF('Hidden Summary'!G30="TR-55 Method","TR-55",IF('Hidden Summary'!G30="USGS-5030 Method","USGS-5030",IF('Hidden Summary'!G30="USGS-5158 Method","USGS-5158",IF('Hidden Summary'!G30="User Input Method","User Input",""))))) ->  | G37: ='Hidden Summary'!I30 -> 0 | H37: ='Hidden Summary'!K30 -> 0 | I37: ='Hidden Summary'!M30 -> 0 | J37: ='Hidden Summary'!Z30 -> 0 | K37: ='Hidden Summary'!O30 -> 0 | M37: ='Hidden Summary'!Q30 -> 0 | N37: ='Hidden Summary'!U30 -> 0 | O37: ='Hidden Summary'!S30 -> 0 | P37: ='Hidden Summary'!X30 -> 0 | R37: ='Hidden Summary'!J30 -> 0 | S37: ='Hidden Summary'!L30 -> 0 | T37: ='Hidden Summary'!N30 -> 0 | U37: ='Hidden Summary'!AA30 -> 0 | V37: ='Hidden Summary'!P30 -> 0 | X37: ='Hidden Summary'!W30 -> 0 | Y37: ='Hidden Summary'!Y30 -> 0 | Z37: ='Hidden Summary'!R30 -> 0 | AA37: ='Hidden Summary'!V30 -> 0 | AB37: ='Hidden Summary'!T30 -> 0 | AG37: 0 | AH37: 0 | AI37: 0 | AJ37: ='Hidden Summary'!AB30 -> 0
A38: ='Hidden Summary'!A31 -> 0 | C38: ='Hidden Summary'!D31 -> 0 | E38: =IF('Hidden Summary'!G31="Rational Method","Rational",IF('Hidden Summary'!G31="TR-55 Method","TR-55",IF('Hidden Summary'!G31="USGS-5030 Method","USGS-5030",IF('Hidden Summary'!G31="USGS-5158 Method","USGS-5158",IF('Hidden Summary'!G31="User Input Method","User Input",""))))) ->  | G38: ='Hidden Summary'!I31 -> 0 | H38: ='Hidden Summary'!K31 -> 0 | I38: ='Hidden Summary'!M31 -> 0 | J38: ='Hidden Summary'!Z31 -> 0 | K38: ='Hidden Summary'!O31 -> 0 | M38: ='Hidden Summary'!Q31 -> 0 | N38: ='Hidden Summary'!U31 -> 0 | O38: ='Hidden Summary'!S31 -> 0 | P38: ='Hidden Summary'!X31 -> 0 | R38: ='Hidden Summary'!J31 -> 0 | S38: ='Hidden Summary'!L31 -> 0 | T38: ='Hidden Summary'!N31 -> 0 | U38: ='Hidden Summary'!AA31 -> 0 | V38: ='Hidden Summary'!P31 -> 0 | X38: ='Hidden Summary'!W31 -> 0 | Y38: ='Hidden Summary'!Y31 -> 0 | Z38: ='Hidden Summary'!R31 -> 0 | AA38: ='Hidden Summary'!V31 -> 0 | AB38: ='Hidden Summary'!T31 -> 0 | AG38: 0 | AH38: 0 | AI38: 0 | AJ38: ='Hidden Summary'!AB31 -> 0
A39: ='Hidden Summary'!A32 -> 0 | C39: ='Hidden Summary'!D32 -> 0 | E39: =IF('Hidden Summary'!G32="Rational Method","Rational",IF('Hidden Summary'!G32="TR-55 Method","TR-55",IF('Hidden Summary'!G32="USGS-5030 Method","USGS-5030",IF('Hidden Summary'!G32="USGS-5158 Method","USGS-5158",IF('Hidden Summary'!G32="User Input Method","User Input",""))))) ->  | G39: ='Hidden Summary'!I32 -> 0 | H39: ='Hidden Summary'!K32 -> 0 | I39: ='Hidden Summary'!M32 -> 0 | J39: ='Hidden Summary'!Z32 -> 0 | K39: ='Hidden Summary'!O32 -> 0 | M39: ='Hidden Summary'!Q32 -> 0 | N39: ='Hidden Summary'!U32 -> 0 | O39: ='Hidden Summary'!S32 -> 0 | P39: ='Hidden Summary'!X32 -> 0 | R39: ='Hidden Summary'!J32 -> 0 | S39: ='Hidden Summary'!L32 -> 0 | T39: ='Hidden Summary'!N32 -> 0 | U39: ='Hidden Summary'!AA32 -> 0 | V39: ='Hidden Summary'!P32 -> 0 | X39: ='Hidden Summary'!W32 -> 0 | Y39: ='Hidden Summary'!Y32 -> 0 | Z39: ='Hidden Summary'!R32 -> 0 | AA39: ='Hidden Summary'!V32 -> 0 | AB39: ='Hidden Summary'!T32 -> 0 | AG39: 0 | AH39: 0 | AI39: 0 | AJ39: ='Hidden Summary'!AB32 -> 0
A40: ='Hidden Summary'!A33 -> 0 | C40: ='Hidden Summary'!D33 -> 0 | E40: =IF('Hidden Summary'!G33="Rational Method","Rational",IF('Hidden Summary'!G33="TR-55 Method","TR-55",IF('Hidden Summary'!G33="USGS-5030 Method","USGS-5030",IF('Hidden Summary'!G33="USGS-5158 Method","USGS-5158",IF('Hidden Summary'!G33="User Input Method","User Input",""))))) ->  | G40: ='Hidden Summary'!I33 -> 0 | H40: ='Hidden Summary'!K33 -> 0 | I40: ='Hidden Summary'!M33 -> 0 | J40: ='Hidden Summary'!Z33 -> 0 | K40: ='Hidden Summary'!O33 -> 0 | M40: ='Hidden Summary'!Q33 -> 0 | N40: ='Hidden Summary'!U33 -> 0 | O40: ='Hidden Summary'!S33 -> 0 | P40: ='Hidden Summary'!X33 -> 0 | R40: ='Hidden Summary'!J33 -> 0 | S40: ='Hidden Summary'!L33 -> 0 | T40: ='Hidden Summary'!N33 -> 0 | U40: ='Hidden Summary'!AA33 -> 0 | V40: ='Hidden Summary'!P33 -> 0 | X40: ='Hidden Summary'!W33 -> 0 | Y40: ='Hidden Summary'!Y33 -> 0 | Z40: ='Hidden Summary'!R33 -> 0 | AA40: ='Hidden Summary'!V33 -> 0 | AB40: ='Hidden Summary'!T33 -> 0 | AG40: 0 | AH40: 0 | AI40: 0 | AJ40: ='Hidden Summary'!AB33 -> 0
A41: ='Hidden Summary'!A34 -> 0 | C41: ='Hidden Summary'!D34 -> 0 | E41: =IF('Hidden Summary'!G34="Rational Method","Rational",IF('Hidden Summary'!G34="TR-55 Method","TR-55",IF('Hidden Summary'!G34="USGS-5030 Method","USGS-5030",IF('Hidden Summary'!G34="USGS-5158 Method","USGS-5158",IF('Hidden Summary'!G34="User Input Method","User Input",""))))) ->  | G41: ='Hidden Summary'!I34 -> 0 | H41: ='Hidden Summary'!K34 -> 0 | I41: ='Hidden Summary'!M34 -> 0 | J41: ='Hidden Summary'!Z34 -> 0 | K41: ='Hidden Summary'!O34 -> 0 | M41: ='Hidden Summary'!Q34 -> 0 | N41: ='Hidden Summary'!U34 -> 0 | O41: ='Hidden Summary'!S34 -> 0 | P41: ='Hidden Summary'!X34 -> 0 | R41: ='Hidden Summary'!J34 -> 0 | S41: ='Hidden Summary'!L34 -> 0 | T41: ='Hidden Summary'!N34 -> 0 | U41: ='Hidden Summary'!AA34 -> 0 | V41: ='Hidden Summary'!P34 -> 0 | X41: ='Hidden Summary'!W34 -> 0 | Y41: ='Hidden Summary'!Y34 -> 0 | Z41: ='Hidden Summary'!R34 -> 0 | AA41: ='Hidden Summary'!V34 -> 0 | AB41: ='Hidden Summary'!T34 -> 0 | AG41: 0 | AH41: 0 | AI41: 0 | AJ41: ='Hidden Summary'!AB34 -> 0
A42: ='Hidden Summary'!A35 -> 0 | C42: ='Hidden Summary'!D35 -> 0 | E42: =IF('Hidden Summary'!G35="Rational Method","Rational",IF('Hidden Summary'!G35="TR-55 Method","TR-55",IF('Hidden Summary'!G35="USGS-5030 Method","USGS-5030",IF('Hidden Summary'!G35="USGS-5158 Method","USGS-5158",IF('Hidden Summary'!G35="User Input Method","User Input",""))))) ->  | G42: ='Hidden Summary'!I35 -> 0 | H42: ='Hidden Summary'!K35 -> 0 | I42: ='Hidden Summary'!M35 -> 0 | J42: ='Hidden Summary'!Z35 -> 0 | K42: ='Hidden Summary'!O35 -> 0 | M42: ='Hidden Summary'!Q35 -> 0 | N42: ='Hidden Summary'!U35 -> 0 | O42: ='Hidden Summary'!S35 -> 0 | P42: ='Hidden Summary'!X35 -> 0 | R42: ='Hidden Summary'!J35 -> 0 | S42: ='Hidden Summary'!L35 -> 0 | T42: ='Hidden Summary'!N35 -> 0 | U42: ='Hidden Summary'!AA35 -> 0 | V42: ='Hidden Summary'!P35 -> 0 | X42: ='Hidden Summary'!W35 -> 0 | Y42: ='Hidden Summary'!Y35 -> 0 | Z42: ='Hidden Summary'!R35 -> 0 | AA42: ='Hidden Summary'!V35 -> 0 | AB42: ='Hidden Summary'!T35 -> 0 | AG42: 0 | AH42: 0 | AI42: 0 | AJ42: ='Hidden Summary'!AB35 -> 0
A43: ='Hidden Summary'!A36 -> 0 | C43: ='Hidden Summary'!D36 -> 0 | E43: =IF('Hidden Summary'!G36="Rational Method","Rational",IF('Hidden Summary'!G36="TR-55 Method","TR-55",IF('Hidden Summary'!G36="USGS-5030 Method","USGS-5030",IF('Hidden Summary'!G36="USGS-5158 Method","USGS-5158",IF('Hidden Summary'!G36="User Input Method","User Input",""))))) ->  | G43: ='Hidden Summary'!I36 -> 0 | H43: ='Hidden Summary'!K36 -> 0 | I43: ='Hidden Summary'!M36 -> 0 | J43: ='Hidden Summary'!Z36 -> 0 | K43: ='Hidden Summary'!O36 -> 0 | M43: ='Hidden Summary'!Q36 -> 0 | N43: ='Hidden Summary'!U36 -> 0 | O43: ='Hidden Summary'!S36 -> 0 | P43: ='Hidden Summary'!X36 -> 0 | R43: ='Hidden Summary'!J36 -> 0 | S43: ='Hidden Summary'!L36 -> 0 | T43: ='Hidden Summary'!N36 -> 0 | U43: ='Hidden Summary'!AA36 -> 0 | V43: ='Hidden Summary'!P36 -> 0 | X43: ='Hidden Summary'!W36 -> 0 | Y43: ='Hidden Summary'!Y36 -> 0 | Z43: ='Hidden Summary'!R36 -> 0 | AA43: ='Hidden Summary'!V36 -> 0 | AB43: ='Hidden Summary'!T36 -> 0 | AG43: 0 | AH43: 0 | AI43: 0 | AJ43: ='Hidden Summary'!AB36 -> 0
A44: ='Hidden Summary'!A37 -> 0 | C44: ='Hidden Summary'!D37 -> 0 | E44: =IF('Hidden Summary'!G37="Rational Method","Rational",IF('Hidden Summary'!G37="TR-55 Method","TR-55",IF('Hidden Summary'!G37="USGS-5030 Method","USGS-5030",IF('Hidden Summary'!G37="USGS-5158 Method","USGS-5158",IF('Hidden Summary'!G37="User Input Method","User Input",""))))) ->  | G44: ='Hidden Summary'!I37 -> 0 | H44: ='Hidden Summary'!K37 -> 0 | I44: ='Hidden Summary'!M37 -> 0 | J44: ='Hidden Summary'!Z37 -> 0 | K44: ='Hidden Summary'!O37 -> 0 | M44: ='Hidden Summary'!Q37 -> 0 | N44: ='Hidden Summary'!U37 -> 0 | O44: ='Hidden Summary'!S37 -> 0 | P44: ='Hidden Summary'!X37 -> 0 | R44: ='Hidden Summary'!J37 -> 0 | S44: ='Hidden Summary'!L37 -> 0 | T44: ='Hidden Summary'!N37 -> 0 | U44: ='Hidden Summary'!AA37 -> 0 | V44: ='Hidden Summary'!P37 -> 0 | X44: ='Hidden Summary'!W37 -> 0 | Y44: ='Hidden Summary'!Y37 -> 0 | Z44: ='Hidden Summary'!R37 -> 0 | AA44: ='Hidden Summary'!V37 -> 0 | AB44: ='Hidden Summary'!T37 -> 0 | AG44: 0 | AH44: 0 | AI44: 0 | AJ44: ='Hidden Summary'!AB37 -> 0
A45: ='Hidden Summary'!A38 -> 0 | C45: ='Hidden Summary'!D38 -> 0 | E45: =IF('Hidden Summary'!G38="Rational Method","Rational",IF('Hidden Summary'!G38="TR-55 Method","TR-55",IF('Hidden Summary'!G38="USGS-5030 Method","USGS-5030",IF('Hidden Summary'!G38="USGS-5158 Method","USGS-5158",IF('Hidden Summary'!G38="User Input Method","User Input",""))))) ->  | G45: ='Hidden Summary'!I38 -> 0 | H45: ='Hidden Summary'!K38 -> 0 | I45: ='Hidden Summary'!M38 -> 0 | J45: ='Hidden Summary'!Z38 -> 0 | K45: ='Hidden Summary'!O38 -> 0 | M45: ='Hidden Summary'!Q38 -> 0 | N45: ='Hidden Summary'!U38 -> 0 | O45: ='Hidden Summary'!S38 -> 0 | P45: ='Hidden Summary'!X38 -> 0 | R45: ='Hidden Summary'!J38 -> 0 | S45: ='Hidden Summary'!L38 -> 0 | T45: ='Hidden Summary'!N38 -> 0 | U45: ='Hidden Summary'!AA38 -> 0 | V45: ='Hidden Summary'!P38 -> 0 | X45: ='Hidden Summary'!W38 -> 0 | Y45: ='Hidden Summary'!Y38 -> 0 | Z45: ='Hidden Summary'!R38 -> 0 | AA45: ='Hidden Summary'!V38 -> 0 | AB45: ='Hidden Summary'!T38 -> 0 | AG45: 0 | AH45: 0 | AI45: 0 | AJ45: ='Hidden Summary'!AB38 -> 0
A46: ='Hidden Summary'!A39 -> 0 | C46: ='Hidden Summary'!D39 -> 0 | E46: =IF('Hidden Summary'!G39="Rational Method","Rational",IF('Hidden Summary'!G39="TR-55 Method","TR-55",IF('Hidden Summary'!G39="USGS-5030 Method","USGS-5030",IF('Hidden Summary'!G39="USGS-5158 Method","USGS-5158",IF('Hidden Summary'!G39="User Input Method","User Input",""))))) ->  | G46: ='Hidden Summary'!I39 -> 0 | H46: ='Hidden Summary'!K39 -> 0 | I46: ='Hidden Summary'!M39 -> 0 | J46: ='Hidden Summary'!Z39 -> 0 | K46: ='Hidden Summary'!O39 -> 0 | M46: ='Hidden Summary'!Q39 -> 0 | N46: ='Hidden Summary'!U39 -> 0 | O46: ='Hidden Summary'!S39 -> 0 | P46: ='Hidden Summary'!X39 -> 0 | R46: ='Hidden Summary'!J39 -> 0 | S46: ='Hidden Summary'!L39 -> 0 | T46: ='Hidden Summary'!N39 -> 0 | U46: ='Hidden Summary'!AA39 -> 0 | V46: ='Hidden Summary'!P39 -> 0 | X46: ='Hidden Summary'!W39 -> 0 | Y46: ='Hidden Summary'!Y39 -> 0 | Z46: ='Hidden Summary'!R39 -> 0 | AA46: ='Hidden Summary'!V39 -> 0 | AB46: ='Hidden Summary'!T39 -> 0 | AG46: 0 | AH46: 0 | AI46: 0 | AJ46: ='Hidden Summary'!AB39 -> 0
A47: ='Hidden Summary'!A40 -> 0 | C47: ='Hidden Summary'!D40 -> 0 | E47: =IF('Hidden Summary'!G40="Rational Method","Rational",IF('Hidden Summary'!G40="TR-55 Method","TR-55",IF('Hidden Summary'!G40="USGS-5030 Method","USGS-5030",IF('Hidden Summary'!G40="USGS-5158 Method","USGS-5158",IF('Hidden Summary'!G40="User Input Method","User Input",""))))) ->  | G47: ='Hidden Summary'!I40 -> 0 | H47: ='Hidden Summary'!K40 -> 0 | I47: ='Hidden Summary'!M40 -> 0 | J47: ='Hidden Summary'!Z40 -> 0 | K47: ='Hidden Summary'!O40 -> 0 | M47: ='Hidden Summary'!Q40 -> 0 | N47: ='Hidden Summary'!U40 -> 0 | O47: ='Hidden Summary'!S40 -> 0 | P47: ='Hidden Summary'!X40 -> 0 | R47: ='Hidden Summary'!J40 -> 0 | S47: ='Hidden Summary'!L40 -> 0 | T47: ='Hidden Summary'!N40 -> 0 | U47: ='Hidden Summary'!AA40 -> 0 | V47: ='Hidden Summary'!P40 -> 0 | X47: ='Hidden Summary'!W40 -> 0 | Y47: ='Hidden Summary'!Y40 -> 0 | Z47: ='Hidden Summary'!R40 -> 0 | AA47: ='Hidden Summary'!V40 -> 0 | AB47: ='Hidden Summary'!T40 -> 0 | AG47: 0 | AH47: 0 | AI47: 0 | AJ47: ='Hidden Summary'!AB40 -> 0
A48: ='Hidden Summary'!A41 -> 0 | C48: ='Hidden Summary'!D41 -> 0 | E48: =IF('Hidden Summary'!G41="Rational Method","Rational",IF('Hidden Summary'!G41="TR-55 Method","TR-55",IF('Hidden Summary'!G41="USGS-5030 Method","USGS-5030",IF('Hidden Summary'!G41="USGS-5158 Method","USGS-5158",IF('Hidden Summary'!G41="User Input Method","User Input",""))))) ->  | G48: ='Hidden Summary'!I41 -> 0 | H48: ='Hidden Summary'!K41 -> 0 | I48: ='Hidden Summary'!M41 -> 0 | J48: ='Hidden Summary'!Z41 -> 0 | K48: ='Hidden Summary'!O41 -> 0 | M48: ='Hidden Summary'!Q41 -> 0 | N48: ='Hidden Summary'!U41 -> 0 | O48: ='Hidden Summary'!S41 -> 0 | P48: ='Hidden Summary'!X41 -> 0 | R48: ='Hidden Summary'!J41 -> 0 | S48: ='Hidden Summary'!L41 -> 0 | T48: ='Hidden Summary'!N41 -> 0 | U48: ='Hidden Summary'!AA41 -> 0 | V48: ='Hidden Summary'!P41 -> 0 | X48: ='Hidden Summary'!W41 -> 0 | Y48: ='Hidden Summary'!Y41 -> 0 | Z48: ='Hidden Summary'!R41 -> 0 | AA48: ='Hidden Summary'!V41 -> 0 | AB48: ='Hidden Summary'!T41 -> 0 | AG48: 0 | AH48: 0 | AI48: 0 | AJ48: ='Hidden Summary'!AB41 -> 0
A49: ='Hidden Summary'!A42 -> 0 | C49: ='Hidden Summary'!D42 -> 0 | E49: =IF('Hidden Summary'!G42="Rational Method","Rational",IF('Hidden Summary'!G42="TR-55 Method","TR-55",IF('Hidden Summary'!G42="USGS-5030 Method","USGS-5030",IF('Hidden Summary'!G42="USGS-5158 Method","USGS-5158",IF('Hidden Summary'!G42="User Input Method","User Input",""))))) ->  | G49: ='Hidden Summary'!I42 -> 0 | H49: ='Hidden Summary'!K42 -> 0 | I49: ='Hidden Summary'!M42 -> 0 | J49: ='Hidden Summary'!Z42 -> 0 | K49: ='Hidden Summary'!O42 -> 0 | M49: ='Hidden Summary'!Q42 -> 0 | N49: ='Hidden Summary'!U42 -> 0 | O49: ='Hidden Summary'!S42 -> 0 | P49: ='Hidden Summary'!X42 -> 0 | R49: ='Hidden Summary'!J42 -> 0 | S49: ='Hidden Summary'!L42 -> 0 | T49: ='Hidden Summary'!N42 -> 0 | U49: ='Hidden Summary'!AA42 -> 0 | V49: ='Hidden Summary'!P42 -> 0 | X49: ='Hidden Summary'!W42 -> 0 | Y49: ='Hidden Summary'!Y42 -> 0 | Z49: ='Hidden Summary'!R42 -> 0 | AA49: ='Hidden Summary'!V42 -> 0 | AB49: ='Hidden Summary'!T42 -> 0 | AG49: 0 | AH49: 0 | AI49: 0 | AJ49: ='Hidden Summary'!AB42 -> 0
A50: ='Hidden Summary'!A43 -> 0 | C50: ='Hidden Summary'!D43 -> 0 | E50: =IF('Hidden Summary'!G43="Rational Method","Rational",IF('Hidden Summary'!G43="TR-55 Method","TR-55",IF('Hidden Summary'!G43="USGS-5030 Method","USGS-5030",IF('Hidden Summary'!G43="USGS-5158 Method","USGS-5158",IF('Hidden Summary'!G43="User Input Method","User Input",""))))) ->  | G50: ='Hidden Summary'!I43 -> 0 | H50: ='Hidden Summary'!K43 -> 0 | I50: ='Hidden Summary'!M43 -> 0 | J50: ='Hidden Summary'!Z43 -> 0 | K50: ='Hidden Summary'!O43 -> 0 | M50: ='Hidden Summary'!Q43 -> 0 | N50: ='Hidden Summary'!U43 -> 0 | O50: ='Hidden Summary'!S43 -> 0 | P50: ='Hidden Summary'!X43 -> 0 | R50: ='Hidden Summary'!J43 -> 0 | S50: ='Hidden Summary'!L43 -> 0 | T50: ='Hidden Summary'!N43 -> 0 | U50: ='Hidden Summary'!AA43 -> 0 | V50: ='Hidden Summary'!P43 -> 0 | X50: ='Hidden Summary'!W43 -> 0 | Y50: ='Hidden Summary'!Y43 -> 0 | Z50: ='Hidden Summary'!R43 -> 0 | AA50: ='Hidden Summary'!V43 -> 0 | AB50: ='Hidden Summary'!T43 -> 0 | AG50: 0 | AH50: 0 | AI50: 0 | AJ50: ='Hidden Summary'!AB43 -> 0
A51: ='Hidden Summary'!A44 -> 0 | C51: ='Hidden Summary'!D44 -> 0 | E51: =IF('Hidden Summary'!G44="Rational Method","Rational",IF('Hidden Summary'!G44="TR-55 Method","TR-55",IF('Hidden Summary'!G44="USGS-5030 Method","USGS-5030",IF('Hidden Summary'!G44="USGS-5158 Method","USGS-5158",IF('Hidden Summary'!G44="User Input Method","User Input",""))))) ->  | G51: ='Hidden Summary'!I44 -> 0 | H51: ='Hidden Summary'!K44 -> 0 | I51: ='Hidden Summary'!M44 -> 0 | J51: ='Hidden Summary'!Z44 -> 0 | K51: ='Hidden Summary'!O44 -> 0 | M51: ='Hidden Summary'!Q44 -> 0 | N51: ='Hidden Summary'!U44 -> 0 | O51: ='Hidden Summary'!S44 -> 0 | P51: ='Hidden Summary'!X44 -> 0 | R51: ='Hidden Summary'!J44 -> 0 | S51: ='Hidden Summary'!L44 -> 0 | T51: ='Hidden Summary'!N44 -> 0 | U51: ='Hidden Summary'!AA44 -> 0 | V51: ='Hidden Summary'!P44 -> 0 | X51: ='Hidden Summary'!W44 -> 0 | Y51: ='Hidden Summary'!Y44 -> 0 | Z51: ='Hidden Summary'!R44 -> 0 | AA51: ='Hidden Summary'!V44 -> 0 | AB51: ='Hidden Summary'!T44 -> 0 | AG51: 0 | AH51: 0 | AI51: 0 | AJ51: ='Hidden Summary'!AB44 -> 0
A52: ='Hidden Summary'!A45 -> 0 | C52: ='Hidden Summary'!D45 -> 0 | E52: =IF('Hidden Summary'!G45="Rational Method","Rational",IF('Hidden Summary'!G45="TR-55 Method","TR-55",IF('Hidden Summary'!G45="USGS-5030 Method","USGS-5030",IF('Hidden Summary'!G45="USGS-5158 Method","USGS-5158",IF('Hidden Summary'!G45="User Input Method","User Input",""))))) ->  | G52: ='Hidden Summary'!I45 -> 0 | H52: ='Hidden Summary'!K45 -> 0 | I52: ='Hidden Summary'!M45 -> 0 | J52: ='Hidden Summary'!Z45 -> 0 | K52: ='Hidden Summary'!O45 -> 0 | M52: ='Hidden Summary'!Q45 -> 0 | N52: ='Hidden Summary'!U45 -> 0 | O52: ='Hidden Summary'!S45 -> 0 | P52: ='Hidden Summary'!X45 -> 0 | R52: ='Hidden Summary'!J45 -> 0 | S52: ='Hidden Summary'!L45 -> 0 | T52: ='Hidden Summary'!N45 -> 0 | U52: ='Hidden Summary'!AA45 -> 0 | V52: ='Hidden Summary'!P45 -> 0 | X52: ='Hidden Summary'!W45 -> 0 | Y52: ='Hidden Summary'!Y45 -> 0 | Z52: ='Hidden Summary'!R45 -> 0 | AA52: ='Hidden Summary'!V45 -> 0 | AB52: ='Hidden Summary'!T45 -> 0 | AG52: 0 | AH52: 0 | AI52: 0 | AJ52: ='Hidden Summary'!AB45 -> 0
A53: ='Hidden Summary'!A46 -> 0 | C53: ='Hidden Summary'!D46 -> 0 | E53: =IF('Hidden Summary'!G46="Rational Method","Rational",IF('Hidden Summary'!G46="TR-55 Method","TR-55",IF('Hidden Summary'!G46="USGS-5030 Method","USGS-5030",IF('Hidden Summary'!G46="USGS-5158 Method","USGS-5158",IF('Hidden Summary'!G46="User Input Method","User Input",""))))) ->  | G53: ='Hidden Summary'!I46 -> 0 | H53: ='Hidden Summary'!K46 -> 0 | I53: ='Hidden Summary'!M46 -> 0 | J53: ='Hidden Summary'!Z46 -> 0 | K53: ='Hidden Summary'!O46 -> 0 | M53: ='Hidden Summary'!Q46 -> 0 | N53: ='Hidden Summary'!U46 -> 0 | O53: ='Hidden Summary'!S46 -> 0 | P53: ='Hidden Summary'!X46 -> 0 | R53: ='Hidden Summary'!J46 -> 0 | S53: ='Hidden Summary'!L46 -> 0 | T53: ='Hidden Summary'!N46 -> 0 | U53: ='Hidden Summary'!AA46 -> 0 | V53: ='Hidden Summary'!P46 -> 0 | X53: ='Hidden Summary'!W46 -> 0 | Y53: ='Hidden Summary'!Y46 -> 0 | Z53: ='Hidden Summary'!R46 -> 0 | AA53: ='Hidden Summary'!V46 -> 0 | AB53: ='Hidden Summary'!T46 -> 0 | AG53: 0 | AH53: 0 | AI53: 0 | AJ53: ='Hidden Summary'!AB46 -> 0
A54: ='Hidden Summary'!A47 -> 0 | C54: ='Hidden Summary'!D47 -> 0 | E54: =IF('Hidden Summary'!G47="Rational Method","Rational",IF('Hidden Summary'!G47="TR-55 Method","TR-55",IF('Hidden Summary'!G47="USGS-5030 Method","USGS-5030",IF('Hidden Summary'!G47="USGS-5158 Method","USGS-5158",IF('Hidden Summary'!G47="User Input Method","User Input",""))))) ->  | G54: ='Hidden Summary'!I47 -> 0 | H54: ='Hidden Summary'!K47 -> 0 | I54: ='Hidden Summary'!M47 -> 0 | J54: ='Hidden Summary'!Z47 -> 0 | K54: ='Hidden Summary'!O47 -> 0 | M54: ='Hidden Summary'!Q47 -> 0 | N54: ='Hidden Summary'!U47 -> 0 | O54: ='Hidden Summary'!S47 -> 0 | P54: ='Hidden Summary'!X47 -> 0 | R54: ='Hidden Summary'!J47 -> 0 | S54: ='Hidden Summary'!L47 -> 0 | T54: ='Hidden Summary'!N47 -> 0 | U54: ='Hidden Summary'!AA47 -> 0 | V54: ='Hidden Summary'!P47 -> 0 | X54: ='Hidden Summary'!W47 -> 0 | Y54: ='Hidden Summary'!Y47 -> 0 | Z54: ='Hidden Summary'!R47 -> 0 | AA54: ='Hidden Summary'!V47 -> 0 | AB54: ='Hidden Summary'!T47 -> 0 | AG54: 0 | AH54: 0 | AI54: 0 | AJ54: ='Hidden Summary'!AB47 -> 0
A55: ='Hidden Summary'!A48 -> 0 | C55: ='Hidden Summary'!D48 -> 0 | E55: =IF('Hidden Summary'!G48="Rational Method","Rational",IF('Hidden Summary'!G48="TR-55 Method","TR-55",IF('Hidden Summary'!G48="USGS-5030 Method","USGS-5030",IF('Hidden Summary'!G48="USGS-5158 Method","USGS-5158",IF('Hidden Summary'!G48="User Input Method","User Input",""))))) ->  | G55: ='Hidden Summary'!I48 -> 0 | H55: ='Hidden Summary'!K48 -> 0 | I55: ='Hidden Summary'!M48 -> 0 | J55: ='Hidden Summary'!Z48 -> 0 | K55: ='Hidden Summary'!O48 -> 0 | M55: ='Hidden Summary'!Q48 -> 0 | N55: ='Hidden Summary'!U48 -> 0 | O55: ='Hidden Summary'!S48 -> 0 | P55: ='Hidden Summary'!X48 -> 0 | R55: ='Hidden Summary'!J48 -> 0 | S55: ='Hidden Summary'!L48 -> 0 | T55: ='Hidden Summary'!N48 -> 0 | U55: ='Hidden Summary'!AA48 -> 0 | V55: ='Hidden Summary'!P48 -> 0 | X55: ='Hidden Summary'!W48 -> 0 | Y55: ='Hidden Summary'!Y48 -> 0 | Z55: ='Hidden Summary'!R48 -> 0 | AA55: ='Hidden Summary'!V48 -> 0 | AB55: ='Hidden Summary'!T48 -> 0 | AG55: 0 | AH55: 0 | AI55: 0 | AJ55: ='Hidden Summary'!AB48 -> 0
A56: ='Hidden Summary'!A49 -> 0 | C56: ='Hidden Summary'!D49 -> 0 | E56: =IF('Hidden Summary'!G49="Rational Method","Rational",IF('Hidden Summary'!G49="TR-55 Method","TR-55",IF('Hidden Summary'!G49="USGS-5030 Method","USGS-5030",IF('Hidden Summary'!G49="USGS-5158 Method","USGS-5158",IF('Hidden Summary'!G49="User Input Method","User Input",""))))) ->  | G56: ='Hidden Summary'!I49 -> 0 | H56: ='Hidden Summary'!K49 -> 0 | I56: ='Hidden Summary'!M49 -> 0 | J56: ='Hidden Summary'!Z49 -> 0 | K56: ='Hidden Summary'!O49 -> 0 | M56: ='Hidden Summary'!Q49 -> 0 | N56: ='Hidden Summary'!U49 -> 0 | O56: ='Hidden Summary'!S49 -> 0 | P56: ='Hidden Summary'!X49 -> 0 | R56: ='Hidden Summary'!J49 -> 0 | S56: ='Hidden Summary'!L49 -> 0 | T56: ='Hidden Summary'!N49 -> 0 | U56: ='Hidden Summary'!AA49 -> 0 | V56: ='Hidden Summary'!P49 -> 0 | X56: ='Hidden Summary'!W49 -> 0 | Y56: ='Hidden Summary'!Y49 -> 0 | Z56: ='Hidden Summary'!R49 -> 0 | AA56: ='Hidden Summary'!V49 -> 0 | AB56: ='Hidden Summary'!T49 -> 0 | AG56: 0 | AH56: 0 | AI56: 0 | AJ56: ='Hidden Summary'!AB49 -> 0
A57: ='Hidden Summary'!A50 -> 0 | C57: ='Hidden Summary'!D50 -> 0 | E57: =IF('Hidden Summary'!G50="Rational Method","Rational",IF('Hidden Summary'!G50="TR-55 Method","TR-55",IF('Hidden Summary'!G50="USGS-5030 Method","USGS-5030",IF('Hidden Summary'!G50="USGS-5158 Method","USGS-5158",IF('Hidden Summary'!G50="User Input Method","User Input",""))))) ->  | G57: ='Hidden Summary'!I50 -> 0 | H57: ='Hidden Summary'!K50 -> 0 | I57: ='Hidden Summary'!M50 -> 0 | J57: ='Hidden Summary'!Z50 -> 0 | K57: ='Hidden Summary'!O50 -> 0 | M57: ='Hidden Summary'!Q50 -> 0 | N57: ='Hidden Summary'!U50 -> 0 | O57: ='Hidden Summary'!S50 -> 0 | P57: ='Hidden Summary'!X50 -> 0 | R57: ='Hidden Summary'!J50 -> 0 | S57: ='Hidden Summary'!L50 -> 0 | T57: ='Hidden Summary'!N50 -> 0 | U57: ='Hidden Summary'!AA50 -> 0 | V57: ='Hidden Summary'!P50 -> 0 | X57: ='Hidden Summary'!W50 -> 0 | Y57: ='Hidden Summary'!Y50 -> 0 | Z57: ='Hidden Summary'!R50 -> 0 | AA57: ='Hidden Summary'!V50 -> 0 | AB57: ='Hidden Summary'!T50 -> 0 | AG57: 0 | AH57: 0 | AI57: 0 | AJ57: ='Hidden Summary'!AB50 -> 0
A58: ='Hidden Summary'!A51 -> 0 | C58: ='Hidden Summary'!D51 -> 0 | E58: =IF('Hidden Summary'!G51="Rational Method","Rational",IF('Hidden Summary'!G51="TR-55 Method","TR-55",IF('Hidden Summary'!G51="USGS-5030 Method","USGS-5030",IF('Hidden Summary'!G51="USGS-5158 Method","USGS-5158",IF('Hidden Summary'!G51="User Input Method","User Input",""))))) ->  | G58: ='Hidden Summary'!I51 -> 0 | H58: ='Hidden Summary'!K51 -> 0 | I58: ='Hidden Summary'!M51 -> 0 | J58: ='Hidden Summary'!Z51 -> 0 | K58: ='Hidden Summary'!O51 -> 0 | M58: ='Hidden Summary'!Q51 -> 0 | N58: ='Hidden Summary'!U51 -> 0 | O58: ='Hidden Summary'!S51 -> 0 | P58: ='Hidden Summary'!X51 -> 0 | R58: ='Hidden Summary'!J51 -> 0 | S58: ='Hidden Summary'!L51 -> 0 | T58: ='Hidden Summary'!N51 -> 0 | U58: ='Hidden Summary'!AA51 -> 0 | V58: ='Hidden Summary'!P51 -> 0 | X58: ='Hidden Summary'!W51 -> 0 | Y58: ='Hidden Summary'!Y51 -> 0 | Z58: ='Hidden Summary'!R51 -> 0 | AA58: ='Hidden Summary'!V51 -> 0 | AB58: ='Hidden Summary'!T51 -> 0 | AG58: 0 | AH58: 0 | AI58: 0 | AJ58: ='Hidden Summary'!AB51 -> 0
A59: ='Hidden Summary'!A52 -> 0 | C59: ='Hidden Summary'!D52 -> 0 | E59: =IF('Hidden Summary'!G52="Rational Method","Rational",IF('Hidden Summary'!G52="TR-55 Method","TR-55",IF('Hidden Summary'!G52="USGS-5030 Method","USGS-5030",IF('Hidden Summary'!G52="USGS-5158 Method","USGS-5158",IF('Hidden Summary'!G52="User Input Method","User Input",""))))) ->  | G59: ='Hidden Summary'!I52 -> 0 | H59: ='Hidden Summary'!K52 -> 0 | I59: ='Hidden Summary'!M52 -> 0 | J59: ='Hidden Summary'!Z52 -> 0 | K59: ='Hidden Summary'!O52 -> 0 | M59: ='Hidden Summary'!Q52 -> 0 | N59: ='Hidden Summary'!U52 -> 0 | O59: ='Hidden Summary'!S52 -> 0 | P59: ='Hidden Summary'!X52 -> 0 | R59: ='Hidden Summary'!J52 -> 0 | S59: ='Hidden Summary'!L52 -> 0 | T59: ='Hidden Summary'!N52 -> 0 | U59: ='Hidden Summary'!AA52 -> 0 | V59: ='Hidden Summary'!P52 -> 0 | X59: ='Hidden Summary'!W52 -> 0 | Y59: ='Hidden Summary'!Y52 -> 0 | Z59: ='Hidden Summary'!R52 -> 0 | AA59: ='Hidden Summary'!V52 -> 0 | AB59: ='Hidden Summary'!T52 -> 0 | AG59: 0 | AH59: 0 | AI59: 0 | AJ59: ='Hidden Summary'!AB52 -> 0
A60: ='Hidden Summary'!A53 -> 0 | C60: ='Hidden Summary'!D53 -> 0 | E60: =IF('Hidden Summary'!G53="Rational Method","Rational",IF('Hidden Summary'!G53="TR-55 Method","TR-55",IF('Hidden Summary'!G53="USGS-5030 Method","USGS-5030",IF('Hidden Summary'!G53="USGS-5158 Method","USGS-5158",IF('Hidden Summary'!G53="User Input Method","User Input",""))))) ->  | G60: ='Hidden Summary'!I53 -> 0 | H60: ='Hidden Summary'!K53 -> 0 | I60: ='Hidden Summary'!M53 -> 0 | J60: ='Hidden Summary'!Z53 -> 0 | K60: ='Hidden Summary'!O53 -> 0 | M60: ='Hidden Summary'!Q53 -> 0 | N60: ='Hidden Summary'!U53 -> 0 | O60: ='Hidden Summary'!S53 -> 0 | P60: ='Hidden Summary'!X53 -> 0 | R60: ='Hidden Summary'!J53 -> 0 | S60: ='Hidden Summary'!L53 -> 0 | T60: ='Hidden Summary'!N53 -> 0 | U60: ='Hidden Summary'!AA53 -> 0 | V60: ='Hidden Summary'!P53 -> 0 | X60: ='Hidden Summary'!W53 -> 0 | Y60: ='Hidden Summary'!Y53 -> 0 | Z60: ='Hidden Summary'!R53 -> 0 | AA60: ='Hidden Summary'!V53 -> 0 | AB60: ='Hidden Summary'!T53 -> 0 | AG60: 0 | AH60: 0 | AI60: 0 | AJ60: ='Hidden Summary'!AB53 -> 0
A61: ='Hidden Summary'!A54 -> 0 | C61: ='Hidden Summary'!D54 -> 0 | E61: =IF('Hidden Summary'!G54="Rational Method","Rational",IF('Hidden Summary'!G54="TR-55 Method","TR-55",IF('Hidden Summary'!G54="USGS-5030 Method","USGS-5030",IF('Hidden Summary'!G54="USGS-5158 Method","USGS-5158",IF('Hidden Summary'!G54="User Input Method","User Input",""))))) ->  | G61: ='Hidden Summary'!I54 -> 0 | H61: ='Hidden Summary'!K54 -> 0 | I61: ='Hidden Summary'!M54 -> 0 | J61: ='Hidden Summary'!Z54 -> 0 | K61: ='Hidden Summary'!O54 -> 0 | M61: ='Hidden Summary'!Q54 -> 0 | N61: ='Hidden Summary'!U54 -> 0 | O61: ='Hidden Summary'!S54 -> 0 | P61: ='Hidden Summary'!X54 -> 0 | R61: ='Hidden Summary'!J54 -> 0 | S61: ='Hidden Summary'!L54 -> 0 | T61: ='Hidden Summary'!N54 -> 0 | U61: ='Hidden Summary'!AA54 -> 0 | V61: ='Hidden Summary'!P54 -> 0 | X61: ='Hidden Summary'!W54 -> 0 | Y61: ='Hidden Summary'!Y54 -> 0 | Z61: ='Hidden Summary'!R54 -> 0 | AA61: ='Hidden Summary'!V54 -> 0 | AB61: ='Hidden Summary'!T54 -> 0 | AG61: 0 | AH61: 0 | AI61: 0 | AJ61: ='Hidden Summary'!AB54 -> 0
A62: ='Hidden Summary'!A55 -> 0 | C62: ='Hidden Summary'!D55 -> 0 | E62: =IF('Hidden Summary'!G55="Rational Method","Rational",IF('Hidden Summary'!G55="TR-55 Method","TR-55",IF('Hidden Summary'!G55="USGS-5030 Method","USGS-5030",IF('Hidden Summary'!G55="USGS-5158 Method","USGS-5158",IF('Hidden Summary'!G55="User Input Method","User Input",""))))) ->  | G62: ='Hidden Summary'!I55 -> 0 | H62: ='Hidden Summary'!K55 -> 0 | I62: ='Hidden Summary'!M55 -> 0 | J62: ='Hidden Summary'!Z55 -> 0 | K62: ='Hidden Summary'!O55 -> 0 | M62: ='Hidden Summary'!Q55 -> 0 | N62: ='Hidden Summary'!U55 -> 0 | O62: ='Hidden Summary'!S55 -> 0 | P62: ='Hidden Summary'!X55 -> 0 | R62: ='Hidden Summary'!J55 -> 0 | S62: ='Hidden Summary'!L55 -> 0 | T62: ='Hidden Summary'!N55 -> 0 | U62: ='Hidden Summary'!AA55 -> 0 | V62: ='Hidden Summary'!P55 -> 0 | X62: ='Hidden Summary'!W55 -> 0 | Y62: ='Hidden Summary'!Y55 -> 0 | Z62: ='Hidden Summary'!R55 -> 0 | AA62: ='Hidden Summary'!V55 -> 0 | AB62: ='Hidden Summary'!T55 -> 0 | AG62: 0 | AH62: 0 | AI62: 0 | AJ62: ='Hidden Summary'!AB55 -> 0
A63: ='Hidden Summary'!A56 -> 0 | C63: ='Hidden Summary'!D56 -> 0 | E63: =IF('Hidden Summary'!G56="Rational Method","Rational",IF('Hidden Summary'!G56="TR-55 Method","TR-55",IF('Hidden Summary'!G56="USGS-5030 Method","USGS-5030",IF('Hidden Summary'!G56="USGS-5158 Method","USGS-5158",IF('Hidden Summary'!G56="User Input Method","User Input",""))))) ->  | G63: ='Hidden Summary'!I56 -> 0 | H63: ='Hidden Summary'!K56 -> 0 | I63: ='Hidden Summary'!M56 -> 0 | J63: ='Hidden Summary'!Z56 -> 0 | K63: ='Hidden Summary'!O56 -> 0 | M63: ='Hidden Summary'!Q56 -> 0 | N63: ='Hidden Summary'!U56 -> 0 | O63: ='Hidden Summary'!S56 -> 0 | P63: ='Hidden Summary'!X56 -> 0 | R63: ='Hidden Summary'!J56 -> 0 | S63: ='Hidden Summary'!L56 -> 0 | T63: ='Hidden Summary'!N56 -> 0 | U63: ='Hidden Summary'!AA56 -> 0 | V63: ='Hidden Summary'!P56 -> 0 | X63: ='Hidden Summary'!W56 -> 0 | Y63: ='Hidden Summary'!Y56 -> 0 | Z63: ='Hidden Summary'!R56 -> 0 | AA63: ='Hidden Summary'!V56 -> 0 | AB63: ='Hidden Summary'!T56 -> 0 | AG63: 0 | AH63: 0 | AI63: 0 | AJ63: ='Hidden Summary'!AB56 -> 0
A64: ='Hidden Summary'!A57 -> 0 | C64: ='Hidden Summary'!D57 -> 0 | E64: =IF('Hidden Summary'!G57="Rational Method","Rational",IF('Hidden Summary'!G57="TR-55 Method","TR-55",IF('Hidden Summary'!G57="USGS-5030 Method","USGS-5030",IF('Hidden Summary'!G57="USGS-5158 Method","USGS-5158",IF('Hidden Summary'!G57="User Input Method","User Input",""))))) ->  | G64: ='Hidden Summary'!I57 -> 0 | H64: ='Hidden Summary'!K57 -> 0 | I64: ='Hidden Summary'!M57 -> 0 | J64: ='Hidden Summary'!Z57 -> 0 | K64: ='Hidden Summary'!O57 -> 0 | M64: ='Hidden Summary'!Q57 -> 0 | N64: ='Hidden Summary'!U57 -> 0 | O64: ='Hidden Summary'!S57 -> 0 | P64: ='Hidden Summary'!X57 -> 0 | R64: ='Hidden Summary'!J57 -> 0 | S64: ='Hidden Summary'!L57 -> 0 | T64: ='Hidden Summary'!N57 -> 0 | U64: ='Hidden Summary'!AA57 -> 0 | V64: ='Hidden Summary'!P57 -> 0 | X64: ='Hidden Summary'!W57 -> 0 | Y64: ='Hidden Summary'!Y57 -> 0 | Z64: ='Hidden Summary'!R57 -> 0 | AA64: ='Hidden Summary'!V57 -> 0 | AB64: ='Hidden Summary'!T57 -> 0 | AG64: 0 | AH64: 0 | AI64: 0 | AJ64: ='Hidden Summary'!AB57 -> 0
A65: ='Hidden Summary'!A58 -> 0 | C65: ='Hidden Summary'!D58 -> 0 | E65: =IF('Hidden Summary'!G58="Rational Method","Rational",IF('Hidden Summary'!G58="TR-55 Method","TR-55",IF('Hidden Summary'!G58="USGS-5030 Method","USGS-5030",IF('Hidden Summary'!G58="USGS-5158 Method","USGS-5158",IF('Hidden Summary'!G58="User Input Method","User Input",""))))) ->  | G65: ='Hidden Summary'!I58 -> 0 | H65: ='Hidden Summary'!K58 -> 0 | I65: ='Hidden Summary'!M58 -> 0 | J65: ='Hidden Summary'!Z58 -> 0 | K65: ='Hidden Summary'!O58 -> 0 | M65: ='Hidden Summary'!Q58 -> 0 | N65: ='Hidden Summary'!U58 -> 0 | O65: ='Hidden Summary'!S58 -> 0 | P65: ='Hidden Summary'!X58 -> 0 | R65: ='Hidden Summary'!J58 -> 0 | S65: ='Hidden Summary'!L58 -> 0 | T65: ='Hidden Summary'!N58 -> 0 | U65: ='Hidden Summary'!AA58 -> 0 | V65: ='Hidden Summary'!P58 -> 0 | X65: ='Hidden Summary'!W58 -> 0 | Y65: ='Hidden Summary'!Y58 -> 0 | Z65: ='Hidden Summary'!R58 -> 0 | AA65: ='Hidden Summary'!V58 -> 0 | AB65: ='Hidden Summary'!T58 -> 0 | AG65: 0 | AH65: 0 | AI65: 0 | AJ65: ='Hidden Summary'!AB58 -> 0
A66: ='Hidden Summary'!A59 -> 0 | C66: ='Hidden Summary'!D59 -> 0 | E66: =IF('Hidden Summary'!G59="Rational Method","Rational",IF('Hidden Summary'!G59="TR-55 Method","TR-55",IF('Hidden Summary'!G59="USGS-5030 Method","USGS-5030",IF('Hidden Summary'!G59="USGS-5158 Method","USGS-5158",IF('Hidden Summary'!G59="User Input Method","User Input",""))))) ->  | G66: ='Hidden Summary'!I59 -> 0 | H66: ='Hidden Summary'!K59 -> 0 | I66: ='Hidden Summary'!M59 -> 0 | J66: ='Hidden Summary'!Z59 -> 0 | K66: ='Hidden Summary'!O59 -> 0 | M66: ='Hidden Summary'!Q59 -> 0 | N66: ='Hidden Summary'!U59 -> 0 | O66: ='Hidden Summary'!S59 -> 0 | P66: ='Hidden Summary'!X59 -> 0 | R66: ='Hidden Summary'!J59 -> 0 | S66: ='Hidden Summary'!L59 -> 0 | T66: ='Hidden Summary'!N59 -> 0 | U66: ='Hidden Summary'!AA59 -> 0 | V66: ='Hidden Summary'!P59 -> 0 | X66: ='Hidden Summary'!W59 -> 0 | Y66: ='Hidden Summary'!Y59 -> 0 | Z66: ='Hidden Summary'!R59 -> 0 | AA66: ='Hidden Summary'!V59 -> 0 | AB66: ='Hidden Summary'!T59 -> 0 | AG66: 0 | AH66: 0 | AI66: 0 | AJ66: ='Hidden Summary'!AB59 -> 0
A67: ='Hidden Summary'!A60 -> 0 | C67: ='Hidden Summary'!D60 -> 0 | E67: =IF('Hidden Summary'!G60="Rational Method","Rational",IF('Hidden Summary'!G60="TR-55 Method","TR-55",IF('Hidden Summary'!G60="USGS-5030 Method","USGS-5030",IF('Hidden Summary'!G60="USGS-5158 Method","USGS-5158",IF('Hidden Summary'!G60="User Input Method","User Input",""))))) ->  | G67: ='Hidden Summary'!I60 -> 0 | H67: ='Hidden Summary'!K60 -> 0 | I67: ='Hidden Summary'!M60 -> 0 | J67: ='Hidden Summary'!Z60 -> 0 | K67: ='Hidden Summary'!O60 -> 0 | M67: ='Hidden Summary'!Q60 -> 0 | N67: ='Hidden Summary'!U60 -> 0 | O67: ='Hidden Summary'!S60 -> 0 | P67: ='Hidden Summary'!X60 -> 0 | R67: ='Hidden Summary'!J60 -> 0 | S67: ='Hidden Summary'!L60 -> 0 | T67: ='Hidden Summary'!N60 -> 0 | U67: ='Hidden Summary'!AA60 -> 0 | V67: ='Hidden Summary'!P60 -> 0 | X67: ='Hidden Summary'!W60 -> 0 | Y67: ='Hidden Summary'!Y60 -> 0 | Z67: ='Hidden Summary'!R60 -> 0 | AA67: ='Hidden Summary'!V60 -> 0 | AB67: ='Hidden Summary'!T60 -> 0 | AG67: 0 | AH67: 0 | AI67: 0 | AJ67: ='Hidden Summary'!AB60 -> 0
A68: ='Hidden Summary'!A61 -> 0 | C68: ='Hidden Summary'!D61 -> 0 | E68: =IF('Hidden Summary'!G61="Rational Method","Rational",IF('Hidden Summary'!G61="TR-55 Method","TR-55",IF('Hidden Summary'!G61="USGS-5030 Method","USGS-5030",IF('Hidden Summary'!G61="USGS-5158 Method","USGS-5158",IF('Hidden Summary'!G61="User Input Method","User Input",""))))) ->  | G68: ='Hidden Summary'!I61 -> 0 | H68: ='Hidden Summary'!K61 -> 0 | I68: ='Hidden Summary'!M61 -> 0 | J68: ='Hidden Summary'!Z61 -> 0 | K68: ='Hidden Summary'!O61 -> 0 | M68: ='Hidden Summary'!Q61 -> 0 | N68: ='Hidden Summary'!U61 -> 0 | O68: ='Hidden Summary'!S61 -> 0 | P68: ='Hidden Summary'!X61 -> 0 | R68: ='Hidden Summary'!J61 -> 0 | S68: ='Hidden Summary'!L61 -> 0 | T68: ='Hidden Summary'!N61 -> 0 | U68: ='Hidden Summary'!AA61 -> 0 | V68: ='Hidden Summary'!P61 -> 0 | X68: ='Hidden Summary'!W61 -> 0 | Y68: ='Hidden Summary'!Y61 -> 0 | Z68: ='Hidden Summary'!R61 -> 0 | AA68: ='Hidden Summary'!V61 -> 0 | AB68: ='Hidden Summary'!T61 -> 0 | AG68: 0 | AH68: 0 | AI68: 0 | AJ68: ='Hidden Summary'!AB61 -> 0
A69: ='Hidden Summary'!A62 -> 0 | C69: ='Hidden Summary'!D62 -> 0 | E69: =IF('Hidden Summary'!G62="Rational Method","Rational",IF('Hidden Summary'!G62="TR-55 Method","TR-55",IF('Hidden Summary'!G62="USGS-5030 Method","USGS-5030",IF('Hidden Summary'!G62="USGS-5158 Method","USGS-5158",IF('Hidden Summary'!G62="User Input Method","User Input",""))))) ->  | G69: ='Hidden Summary'!I62 -> 0 | H69: ='Hidden Summary'!K62 -> 0 | I69: ='Hidden Summary'!M62 -> 0 | J69: ='Hidden Summary'!Z62 -> 0 | K69: ='Hidden Summary'!O62 -> 0 | M69: ='Hidden Summary'!Q62 -> 0 | N69: ='Hidden Summary'!U62 -> 0 | O69: ='Hidden Summary'!S62 -> 0 | P69: ='Hidden Summary'!X62 -> 0 | R69: ='Hidden Summary'!J62 -> 0 | S69: ='Hidden Summary'!L62 -> 0 | T69: ='Hidden Summary'!N62 -> 0 | U69: ='Hidden Summary'!AA62 -> 0 | V69: ='Hidden Summary'!P62 -> 0 | X69: ='Hidden Summary'!W62 -> 0 | Y69: ='Hidden Summary'!Y62 -> 0 | Z69: ='Hidden Summary'!R62 -> 0 | AA69: ='Hidden Summary'!V62 -> 0 | AB69: ='Hidden Summary'!T62 -> 0 | AG69: 0 | AH69: 0 | AI69: 0 | AJ69: ='Hidden Summary'!AB62 -> 0
A70: ='Hidden Summary'!A63 -> 0 | C70: ='Hidden Summary'!D63 -> 0 | E70: =IF('Hidden Summary'!G63="Rational Method","Rational",IF('Hidden Summary'!G63="TR-55 Method","TR-55",IF('Hidden Summary'!G63="USGS-5030 Method","USGS-5030",IF('Hidden Summary'!G63="USGS-5158 Method","USGS-5158",IF('Hidden Summary'!G63="User Input Method","User Input",""))))) ->  | G70: ='Hidden Summary'!I63 -> 0 | H70: ='Hidden Summary'!K63 -> 0 | I70: ='Hidden Summary'!M63 -> 0 | J70: ='Hidden Summary'!Z63 -> 0 | K70: ='Hidden Summary'!O63 -> 0 | M70: ='Hidden Summary'!Q63 -> 0 | N70: ='Hidden Summary'!U63 -> 0 | O70: ='Hidden Summary'!S63 -> 0 | P70: ='Hidden Summary'!X63 -> 0 | R70: ='Hidden Summary'!J63 -> 0 | S70: ='Hidden Summary'!L63 -> 0 | T70: ='Hidden Summary'!N63 -> 0 | U70: ='Hidden Summary'!AA63 -> 0 | V70: ='Hidden Summary'!P63 -> 0 | X70: ='Hidden Summary'!W63 -> 0 | Y70: ='Hidden Summary'!Y63 -> 0 | Z70: ='Hidden Summary'!R63 -> 0 | AA70: ='Hidden Summary'!V63 -> 0 | AB70: ='Hidden Summary'!T63 -> 0 | AG70: 0 | AH70: 0 | AI70: 0 | AJ70: ='Hidden Summary'!AB63 -> 0
A71: ='Hidden Summary'!A64 -> 0 | C71: ='Hidden Summary'!D64 -> 0 | E71: =IF('Hidden Summary'!G64="Rational Method","Rational",IF('Hidden Summary'!G64="TR-55 Method","TR-55",IF('Hidden Summary'!G64="USGS-5030 Method","USGS-5030",IF('Hidden Summary'!G64="USGS-5158 Method","USGS-5158",IF('Hidden Summary'!G64="User Input Method","User Input",""))))) ->  | G71: ='Hidden Summary'!I64 -> 0 | H71: ='Hidden Summary'!K64 -> 0 | I71: ='Hidden Summary'!M64 -> 0 | J71: ='Hidden Summary'!Z64 -> 0 | K71: ='Hidden Summary'!O64 -> 0 | M71: ='Hidden Summary'!Q64 -> 0 | N71: ='Hidden Summary'!U64 -> 0 | O71: ='Hidden Summary'!S64 -> 0 | P71: ='Hidden Summary'!X64 -> 0 | R71: ='Hidden Summary'!J64 -> 0 | S71: ='Hidden Summary'!L64 -> 0 | T71: ='Hidden Summary'!N64 -> 0 | U71: ='Hidden Summary'!AA64 -> 0 | V71: ='Hidden Summary'!P64 -> 0 | X71: ='Hidden Summary'!W64 -> 0 | Y71: ='Hidden Summary'!Y64 -> 0 | Z71: ='Hidden Summary'!R64 -> 0 | AA71: ='Hidden Summary'!V64 -> 0 | AB71: ='Hidden Summary'!T64 -> 0 | AG71: 0 | AH71: 0 | AI71: 0 | AJ71: ='Hidden Summary'!AB64 -> 0
A72: ='Hidden Summary'!A65 -> 0 | C72: ='Hidden Summary'!D65 -> 0 | E72: =IF('Hidden Summary'!G65="Rational Method","Rational",IF('Hidden Summary'!G65="TR-55 Method","TR-55",IF('Hidden Summary'!G65="USGS-5030 Method","USGS-5030",IF('Hidden Summary'!G65="USGS-5158 Method","USGS-5158",IF('Hidden Summary'!G65="User Input Method","User Input",""))))) ->  | G72: ='Hidden Summary'!I65 -> 0 | H72: ='Hidden Summary'!K65 -> 0 | I72: ='Hidden Summary'!M65 -> 0 | J72: ='Hidden Summary'!Z65 -> 0 | K72: ='Hidden Summary'!O65 -> 0 | M72: ='Hidden Summary'!Q65 -> 0 | N72: ='Hidden Summary'!U65 -> 0 | O72: ='Hidden Summary'!S65 -> 0 | P72: ='Hidden Summary'!X65 -> 0 | R72: ='Hidden Summary'!J65 -> 0 | S72: ='Hidden Summary'!L65 -> 0 | T72: ='Hidden Summary'!N65 -> 0 | U72: ='Hidden Summary'!AA65 -> 0 | V72: ='Hidden Summary'!P65 -> 0 | X72: ='Hidden Summary'!W65 -> 0 | Y72: ='Hidden Summary'!Y65 -> 0 | Z72: ='Hidden Summary'!R65 -> 0 | AA72: ='Hidden Summary'!V65 -> 0 | AB72: ='Hidden Summary'!T65 -> 0 | AG72: 0 | AH72: 0 | AI72: 0 | AJ72: ='Hidden Summary'!AB65 -> 0
A73: ='Hidden Summary'!A66 -> 0 | C73: ='Hidden Summary'!D66 -> 0 | E73: =IF('Hidden Summary'!G66="Rational Method","Rational",IF('Hidden Summary'!G66="TR-55 Method","TR-55",IF('Hidden Summary'!G66="USGS-5030 Method","USGS-5030",IF('Hidden Summary'!G66="USGS-5158 Method","USGS-5158",IF('Hidden Summary'!G66="User Input Method","User Input",""))))) ->  | G73: ='Hidden Summary'!I66 -> 0 | H73: ='Hidden Summary'!K66 -> 0 | I73: ='Hidden Summary'!M66 -> 0 | J73: ='Hidden Summary'!Z66 -> 0 | K73: ='Hidden Summary'!O66 -> 0 | M73: ='Hidden Summary'!Q66 -> 0 | N73: ='Hidden Summary'!U66 -> 0 | O73: ='Hidden Summary'!S66 -> 0 | P73: ='Hidden Summary'!X66 -> 0 | R73: ='Hidden Summary'!J66 -> 0 | S73: ='Hidden Summary'!L66 -> 0 | T73: ='Hidden Summary'!N66 -> 0 | U73: ='Hidden Summary'!AA66 -> 0 | V73: ='Hidden Summary'!P66 -> 0 | X73: ='Hidden Summary'!W66 -> 0 | Y73: ='Hidden Summary'!Y66 -> 0 | Z73: ='Hidden Summary'!R66 -> 0 | AA73: ='Hidden Summary'!V66 -> 0 | AB73: ='Hidden Summary'!T66 -> 0 | AG73: 0 | AH73: 0 | AI73: 0 | AJ73: ='Hidden Summary'!AB66 -> 0
A74: ='Hidden Summary'!A67 -> 0 | C74: ='Hidden Summary'!D67 -> 0 | E74: =IF('Hidden Summary'!G67="Rational Method","Rational",IF('Hidden Summary'!G67="TR-55 Method","TR-55",IF('Hidden Summary'!G67="USGS-5030 Method","USGS-5030",IF('Hidden Summary'!G67="USGS-5158 Method","USGS-5158",IF('Hidden Summary'!G67="User Input Method","User Input",""))))) ->  | G74: ='Hidden Summary'!I67 -> 0 | H74: ='Hidden Summary'!K67 -> 0 | I74: ='Hidden Summary'!M67 -> 0 | J74: ='Hidden Summary'!Z67 -> 0 | K74: ='Hidden Summary'!O67 -> 0 | M74: ='Hidden Summary'!Q67 -> 0 | N74: ='Hidden Summary'!U67 -> 0 | O74: ='Hidden Summary'!S67 -> 0 | P74: ='Hidden Summary'!X67 -> 0 | R74: ='Hidden Summary'!J67 -> 0 | S74: ='Hidden Summary'!L67 -> 0 | T74: ='Hidden Summary'!N67 -> 0 | U74: ='Hidden Summary'!AA67 -> 0 | V74: ='Hidden Summary'!P67 -> 0 | X74: ='Hidden Summary'!W67 -> 0 | Y74: ='Hidden Summary'!Y67 -> 0 | Z74: ='Hidden Summary'!R67 -> 0 | AA74: ='Hidden Summary'!V67 -> 0 | AB74: ='Hidden Summary'!T67 -> 0 | AD74: =(Z74/M74)-1 ->  | AE74: =(AA74/N74)-1 ->  | AF74: =(AB74/O74)-1 ->  | AG74: =R74-G74 -> 0 | AH74: =(U74*R74)-(J74*G74) -> 0 | AI74: =U74-J74 -> 0 | AJ74: ='Hidden Summary'!AB67 -> 0
A75: ='Hidden Summary'!A68 -> 0 | C75: ='Hidden Summary'!D68 -> 0 | E75: =IF('Hidden Summary'!G68="Rational Method","Rational",IF('Hidden Summary'!G68="TR-55 Method","TR-55",IF('Hidden Summary'!G68="USGS-5030 Method","USGS-5030",IF('Hidden Summary'!G68="USGS-5158 Method","USGS-5158",IF('Hidden Summary'!G68="User Input Method","User Input",""))))) ->  | G75: ='Hidden Summary'!I68 -> 0 | H75: ='Hidden Summary'!K68 -> 0 | I75: ='Hidden Summary'!M68 -> 0 | J75: ='Hidden Summary'!Z68 -> 0 | K75: ='Hidden Summary'!O68 -> 0 | M75: ='Hidden Summary'!Q68 -> 0 | N75: ='Hidden Summary'!U68 -> 0 | O75: ='Hidden Summary'!S68 -> 0 | P75: ='Hidden Summary'!X68 -> 0 | R75: ='Hidden Summary'!J68 -> 0 | S75: ='Hidden Summary'!L68 -> 0 | T75: ='Hidden Summary'!N68 -> 0 | U75: ='Hidden Summary'!AA68 -> 0 | V75: ='Hidden Summary'!P68 -> 0 | X75: ='Hidden Summary'!W68 -> 0 | Y75: ='Hidden Summary'!Y68 -> 0 | Z75: ='Hidden Summary'!R68 -> 0 | AA75: ='Hidden Summary'!V68 -> 0 | AB75: ='Hidden Summary'!T68 -> 0 | AG75: 0 | AH75: 0 | AI75: 0 | AJ75: ='Hidden Summary'!AB68 -> 0
A76: ='Hidden Summary'!A69 -> 0 | C76: ='Hidden Summary'!D69 -> 0 | E76: =IF('Hidden Summary'!G69="Rational Method","Rational",IF('Hidden Summary'!G69="TR-55 Method","TR-55",IF('Hidden Summary'!G69="USGS-5030 Method","USGS-5030",IF('Hidden Summary'!G69="USGS-5158 Method","USGS-5158",IF('Hidden Summary'!G69="User Input Method","User Input",""))))) ->  | G76: ='Hidden Summary'!I69 -> 0 | H76: ='Hidden Summary'!K69 -> 0 | I76: ='Hidden Summary'!M69 -> 0 | J76: ='Hidden Summary'!Z69 -> 0 | K76: ='Hidden Summary'!O69 -> 0 | M76: ='Hidden Summary'!Q69 -> 0 | N76: ='Hidden Summary'!U69 -> 0 | O76: ='Hidden Summary'!S69 -> 0 | P76: ='Hidden Summary'!X69 -> 0 | R76: ='Hidden Summary'!J69 -> 0 | S76: ='Hidden Summary'!L69 -> 0 | T76: ='Hidden Summary'!N69 -> 0 | U76: ='Hidden Summary'!AA69 -> 0 | V76: ='Hidden Summary'!P69 -> 0 | X76: ='Hidden Summary'!W69 -> 0 | Y76: ='Hidden Summary'!Y69 -> 0 | Z76: ='Hidden Summary'!R69 -> 0 | AA76: ='Hidden Summary'!V69 -> 0 | AB76: ='Hidden Summary'!T69 -> 0 | AG76: 0 | AH76: 0 | AI76: 0 | AJ76: ='Hidden Summary'!AB69 -> 0
A77: ='Hidden Summary'!A70 -> 0 | C77: ='Hidden Summary'!D70 -> 0 | E77: =IF('Hidden Summary'!G70="Rational Method","Rational",IF('Hidden Summary'!G70="TR-55 Method","TR-55",IF('Hidden Summary'!G70="USGS-5030 Method","USGS-5030",IF('Hidden Summary'!G70="USGS-5158 Method","USGS-5158",IF('Hidden Summary'!G70="User Input Method","User Input",""))))) ->  | G77: ='Hidden Summary'!I70 -> 0 | H77: ='Hidden Summary'!K70 -> 0 | I77: ='Hidden Summary'!M70 -> 0 | J77: ='Hidden Summary'!Z70 -> 0 | K77: ='Hidden Summary'!O70 -> 0 | M77: ='Hidden Summary'!Q70 -> 0 | N77: ='Hidden Summary'!U70 -> 0 | O77: ='Hidden Summary'!S70 -> 0 | P77: ='Hidden Summary'!X70 -> 0 | R77: ='Hidden Summary'!J70 -> 0 | S77: ='Hidden Summary'!L70 -> 0 | T77: ='Hidden Summary'!N70 -> 0 | U77: ='Hidden Summary'!AA70 -> 0 | V77: ='Hidden Summary'!P70 -> 0 | X77: ='Hidden Summary'!W70 -> 0 | Y77: ='Hidden Summary'!Y70 -> 0 | Z77: ='Hidden Summary'!R70 -> 0 | AA77: ='Hidden Summary'!V70 -> 0 | AB77: ='Hidden Summary'!T70 -> 0 | AG77: 0 | AH77: 0 | AI77: 0 | AJ77: ='Hidden Summary'!AB70 -> 0
A78: ='Hidden Summary'!A71 -> 0 | C78: ='Hidden Summary'!D71 -> 0 | E78: =IF('Hidden Summary'!G71="Rational Method","Rational",IF('Hidden Summary'!G71="TR-55 Method","TR-55",IF('Hidden Summary'!G71="USGS-5030 Method","USGS-5030",IF('Hidden Summary'!G71="USGS-5158 Method","USGS-5158",IF('Hidden Summary'!G71="User Input Method","User Input",""))))) ->  | G78: ='Hidden Summary'!I71 -> 0 | H78: ='Hidden Summary'!K71 -> 0 | I78: ='Hidden Summary'!M71 -> 0 | J78: ='Hidden Summary'!Z71 -> 0 | K78: ='Hidden Summary'!O71 -> 0 | M78: ='Hidden Summary'!Q71 -> 0 | N78: ='Hidden Summary'!U71 -> 0 | O78: ='Hidden Summary'!S71 -> 0 | P78: ='Hidden Summary'!X71 -> 0 | R78: ='Hidden Summary'!J71 -> 0 | S78: ='Hidden Summary'!L71 -> 0 | T78: ='Hidden Summary'!N71 -> 0 | U78: ='Hidden Summary'!AA71 -> 0 | V78: ='Hidden Summary'!P71 -> 0 | X78: ='Hidden Summary'!W71 -> 0 | Y78: ='Hidden Summary'!Y71 -> 0 | Z78: ='Hidden Summary'!R71 -> 0 | AA78: ='Hidden Summary'!V71 -> 0 | AB78: ='Hidden Summary'!T71 -> 0 | AG78: 0 | AH78: 0 | AI78: 0 | AJ78: ='Hidden Summary'!AB71 -> 0
A79: ='Hidden Summary'!A72 -> 0 | C79: ='Hidden Summary'!D72 -> 0 | E79: =IF('Hidden Summary'!G72="Rational Method","Rational",IF('Hidden Summary'!G72="TR-55 Method","TR-55",IF('Hidden Summary'!G72="USGS-5030 Method","USGS-5030",IF('Hidden Summary'!G72="USGS-5158 Method","USGS-5158",IF('Hidden Summary'!G72="User Input Method","User Input",""))))) ->  | G79: ='Hidden Summary'!I72 -> 0 | H79: ='Hidden Summary'!K72 -> 0 | I79: ='Hidden Summary'!M72 -> 0 | J79: ='Hidden Summary'!Z72 -> 0 | K79: ='Hidden Summary'!O72 -> 0 | M79: ='Hidden Summary'!Q72 -> 0 | N79: ='Hidden Summary'!U72 -> 0 | O79: ='Hidden Summary'!S72 -> 0 | P79: ='Hidden Summary'!X72 -> 0 | R79: ='Hidden Summary'!J72 -> 0 | S79: ='Hidden Summary'!L72 -> 0 | T79: ='Hidden Summary'!N72 -> 0 | U79: ='Hidden Summary'!AA72 -> 0 | V79: ='Hidden Summary'!P72 -> 0 | X79: ='Hidden Summary'!W72 -> 0 | Y79: ='Hidden Summary'!Y72 -> 0 | Z79: ='Hidden Summary'!R72 -> 0 | AA79: ='Hidden Summary'!V72 -> 0 | AB79: ='Hidden Summary'!T72 -> 0 | AG79: 0 | AH79: 0 | AI79: 0 | AJ79: ='Hidden Summary'!AB72 -> 0
A80: ='Hidden Summary'!A73 -> 0 | C80: ='Hidden Summary'!D73 -> 0 | E80: =IF('Hidden Summary'!G73="Rational Method","Rational",IF('Hidden Summary'!G73="TR-55 Method","TR-55",IF('Hidden Summary'!G73="USGS-5030 Method","USGS-5030",IF('Hidden Summary'!G73="USGS-5158 Method","USGS-5158",IF('Hidden Summary'!G73="User Input Method","User Input",""))))) ->  | G80: ='Hidden Summary'!I73 -> 0 | H80: ='Hidden Summary'!K73 -> 0 | I80: ='Hidden Summary'!M73 -> 0 | J80: ='Hidden Summary'!Z73 -> 0 | K80: ='Hidden Summary'!O73 -> 0 | M80: ='Hidden Summary'!Q73 -> 0 | N80: ='Hidden Summary'!U73 -> 0 | O80: ='Hidden Summary'!S73 -> 0 | P80: ='Hidden Summary'!X73 -> 0 | R80: ='Hidden Summary'!J73 -> 0 | S80: ='Hidden Summary'!L73 -> 0 | T80: ='Hidden Summary'!N73 -> 0 | U80: ='Hidden Summary'!AA73 -> 0 | V80: ='Hidden Summary'!P73 -> 0 | X80: ='Hidden Summary'!W73 -> 0 | Y80: ='Hidden Summary'!Y73 -> 0 | Z80: ='Hidden Summary'!R73 -> 0 | AA80: ='Hidden Summary'!V73 -> 0 | AB80: ='Hidden Summary'!T73 -> 0 | AG80: 0 | AH80: 0 | AI80: 0 | AJ80: ='Hidden Summary'!AB73 -> 0
A81: ='Hidden Summary'!A74 -> 0 | C81: ='Hidden Summary'!D74 -> 0 | E81: =IF('Hidden Summary'!G74="Rational Method","Rational",IF('Hidden Summary'!G74="TR-55 Method","TR-55",IF('Hidden Summary'!G74="USGS-5030 Method","USGS-5030",IF('Hidden Summary'!G74="USGS-5158 Method","USGS-5158",IF('Hidden Summary'!G74="User Input Method","User Input",""))))) ->  | G81: ='Hidden Summary'!I74 -> 0 | H81: ='Hidden Summary'!K74 -> 0 | I81: ='Hidden Summary'!M74 -> 0 | J81: ='Hidden Summary'!Z74 -> 0 | K81: ='Hidden Summary'!O74 -> 0 | M81: ='Hidden Summary'!Q74 -> 0 | N81: ='Hidden Summary'!U74 -> 0 | O81: ='Hidden Summary'!S74 -> 0 | P81: ='Hidden Summary'!X74 -> 0 | R81: ='Hidden Summary'!J74 -> 0 | S81: ='Hidden Summary'!L74 -> 0 | T81: ='Hidden Summary'!N74 -> 0 | U81: ='Hidden Summary'!AA74 -> 0 | V81: ='Hidden Summary'!P74 -> 0 | X81: ='Hidden Summary'!W74 -> 0 | Y81: ='Hidden Summary'!Y74 -> 0 | Z81: ='Hidden Summary'!R74 -> 0 | AA81: ='Hidden Summary'!V74 -> 0 | AB81: ='Hidden Summary'!T74 -> 0 | AG81: 0 | AH81: 0 | AI81: 0 | AJ81: ='Hidden Summary'!AB74 -> 0
A82: ='Hidden Summary'!A75 -> 0 | C82: ='Hidden Summary'!D75 -> 0 | E82: =IF('Hidden Summary'!G75="Rational Method","Rational",IF('Hidden Summary'!G75="TR-55 Method","TR-55",IF('Hidden Summary'!G75="USGS-5030 Method","USGS-5030",IF('Hidden Summary'!G75="USGS-5158 Method","USGS-5158",IF('Hidden Summary'!G75="User Input Method","User Input",""))))) ->  | G82: ='Hidden Summary'!I75 -> 0 | H82: ='Hidden Summary'!K75 -> 0 | I82: ='Hidden Summary'!M75 -> 0 | J82: ='Hidden Summary'!Z75 -> 0 | K82: ='Hidden Summary'!O75 -> 0 | M82: ='Hidden Summary'!Q75 -> 0 | N82: ='Hidden Summary'!U75 -> 0 | O82: ='Hidden Summary'!S75 -> 0 | P82: ='Hidden Summary'!X75 -> 0 | R82: ='Hidden Summary'!J75 -> 0 | S82: ='Hidden Summary'!L75 -> 0 | T82: ='Hidden Summary'!N75 -> 0 | U82: ='Hidden Summary'!AA75 -> 0 | V82: ='Hidden Summary'!P75 -> 0 | X82: ='Hidden Summary'!W75 -> 0 | Y82: ='Hidden Summary'!Y75 -> 0 | Z82: ='Hidden Summary'!R75 -> 0 | AA82: ='Hidden Summary'!V75 -> 0 | AB82: ='Hidden Summary'!T75 -> 0 | AG82: 0 | AH82: 0 | AI82: 0 | AJ82: ='Hidden Summary'!AB75 -> 0
A83: ='Hidden Summary'!A76 -> 0 | C83: ='Hidden Summary'!D76 -> 0 | E83: =IF('Hidden Summary'!G76="Rational Method","Rational",IF('Hidden Summary'!G76="TR-55 Method","TR-55",IF('Hidden Summary'!G76="USGS-5030 Method","USGS-5030",IF('Hidden Summary'!G76="USGS-5158 Method","USGS-5158",IF('Hidden Summary'!G76="User Input Method","User Input",""))))) ->  | G83: ='Hidden Summary'!I76 -> 0 | H83: ='Hidden Summary'!K76 -> 0 | I83: ='Hidden Summary'!M76 -> 0 | J83: ='Hidden Summary'!Z76 -> 0 | K83: ='Hidden Summary'!O76 -> 0 | M83: ='Hidden Summary'!Q76 -> 0 | N83: ='Hidden Summary'!U76 -> 0 | O83: ='Hidden Summary'!S76 -> 0 | P83: ='Hidden Summary'!X76 -> 0 | R83: ='Hidden Summary'!J76 -> 0 | S83: ='Hidden Summary'!L76 -> 0 | T83: ='Hidden Summary'!N76 -> 0 | U83: ='Hidden Summary'!AA76 -> 0 | V83: ='Hidden Summary'!P76 -> 0 | X83: ='Hidden Summary'!W76 -> 0 | Y83: ='Hidden Summary'!Y76 -> 0 | Z83: ='Hidden Summary'!R76 -> 0 | AA83: ='Hidden Summary'!V76 -> 0 | AB83: ='Hidden Summary'!T76 -> 0 | AG83: 0 | AH83: 0 | AI83: 0 | AJ83: ='Hidden Summary'!AB76 -> 0
A84: ='Hidden Summary'!A77 -> 0 | C84: ='Hidden Summary'!D77 -> 0 | E84: =IF('Hidden Summary'!G77="Rational Method","Rational",IF('Hidden Summary'!G77="TR-55 Method","TR-55",IF('Hidden Summary'!G77="USGS-5030 Method","USGS-5030",IF('Hidden Summary'!G77="USGS-5158 Method","USGS-5158",IF('Hidden Summary'!G77="User Input Method","User Input",""))))) ->  | G84: ='Hidden Summary'!I77 -> 0 | H84: ='Hidden Summary'!K77 -> 0 | I84: ='Hidden Summary'!M77 -> 0 | J84: ='Hidden Summary'!Z77 -> 0 | K84: ='Hidden Summary'!O77 -> 0 | M84: ='Hidden Summary'!Q77 -> 0 | N84: ='Hidden Summary'!U77 -> 0 | O84: ='Hidden Summary'!S77 -> 0 | P84: ='Hidden Summary'!X77 -> 0 | R84: ='Hidden Summary'!J77 -> 0 | S84: ='Hidden Summary'!L77 -> 0 | T84: ='Hidden Summary'!N77 -> 0 | U84: ='Hidden Summary'!AA77 -> 0 | V84: ='Hidden Summary'!P77 -> 0 | X84: ='Hidden Summary'!W77 -> 0 | Y84: ='Hidden Summary'!Y77 -> 0 | Z84: ='Hidden Summary'!R77 -> 0 | AA84: ='Hidden Summary'!V77 -> 0 | AB84: ='Hidden Summary'!T77 -> 0 | AG84: 0 | AH84: 0 | AI84: 0 | AJ84: ='Hidden Summary'!AB77 -> 0
A85: ='Hidden Summary'!A78 -> 0 | C85: ='Hidden Summary'!D78 -> 0 | E85: =IF('Hidden Summary'!G78="Rational Method","Rational",IF('Hidden Summary'!G78="TR-55 Method","TR-55",IF('Hidden Summary'!G78="USGS-5030 Method","USGS-5030",IF('Hidden Summary'!G78="USGS-5158 Method","USGS-5158",IF('Hidden Summary'!G78="User Input Method","User Input",""))))) ->  | G85: ='Hidden Summary'!I78 -> 0 | H85: ='Hidden Summary'!K78 -> 0 | I85: ='Hidden Summary'!M78 -> 0 | J85: ='Hidden Summary'!Z78 -> 0 | K85: ='Hidden Summary'!O78 -> 0 | M85: ='Hidden Summary'!Q78 -> 0 | N85: ='Hidden Summary'!U78 -> 0 | O85: ='Hidden Summary'!S78 -> 0 | P85: ='Hidden Summary'!X78 -> 0 | R85: ='Hidden Summary'!J78 -> 0 | S85: ='Hidden Summary'!L78 -> 0 | T85: ='Hidden Summary'!N78 -> 0 | U85: ='Hidden Summary'!AA78 -> 0 | V85: ='Hidden Summary'!P78 -> 0 | X85: ='Hidden Summary'!W78 -> 0 | Y85: ='Hidden Summary'!Y78 -> 0 | Z85: ='Hidden Summary'!R78 -> 0 | AA85: ='Hidden Summary'!V78 -> 0 | AB85: ='Hidden Summary'!T78 -> 0 | AG85: 0 | AH85: 0 | AI85: 0 | AJ85: ='Hidden Summary'!AB78 -> 0
A86: ='Hidden Summary'!A79 -> 0 | C86: ='Hidden Summary'!D79 -> 0 | E86: =IF('Hidden Summary'!G79="Rational Method","Rational",IF('Hidden Summary'!G79="TR-55 Method","TR-55",IF('Hidden Summary'!G79="USGS-5030 Method","USGS-5030",IF('Hidden Summary'!G79="USGS-5158 Method","USGS-5158",IF('Hidden Summary'!G79="User Input Method","User Input",""))))) ->  | G86: ='Hidden Summary'!I79 -> 0 | H86: ='Hidden Summary'!K79 -> 0 | I86: ='Hidden Summary'!M79 -> 0 | J86: ='Hidden Summary'!Z79 -> 0 | K86: ='Hidden Summary'!O79 -> 0 | M86: ='Hidden Summary'!Q79 -> 0 | N86: ='Hidden Summary'!U79 -> 0 | O86: ='Hidden Summary'!S79 -> 0 | P86: ='Hidden Summary'!X79 -> 0 | R86: ='Hidden Summary'!J79 -> 0 | S86: ='Hidden Summary'!L79 -> 0 | T86: ='Hidden Summary'!N79 -> 0 | U86: ='Hidden Summary'!AA79 -> 0 | V86: ='Hidden Summary'!P79 -> 0 | X86: ='Hidden Summary'!W79 -> 0 | Y86: ='Hidden Summary'!Y79 -> 0 | Z86: ='Hidden Summary'!R79 -> 0 | AA86: ='Hidden Summary'!V79 -> 0 | AB86: ='Hidden Summary'!T79 -> 0 | AG86: 0 | AH86: 0 | AI86: 0 | AJ86: ='Hidden Summary'!AB79 -> 0
A87: ='Hidden Summary'!A80 -> 0 | C87: ='Hidden Summary'!D80 -> 0 | E87: =IF('Hidden Summary'!G80="Rational Method","Rational",IF('Hidden Summary'!G80="TR-55 Method","TR-55",IF('Hidden Summary'!G80="USGS-5030 Method","USGS-5030",IF('Hidden Summary'!G80="USGS-5158 Method","USGS-5158",IF('Hidden Summary'!G80="User Input Method","User Input",""))))) ->  | G87: ='Hidden Summary'!I80 -> 0 | H87: ='Hidden Summary'!K80 -> 0 | I87: ='Hidden Summary'!M80 -> 0 | J87: ='Hidden Summary'!Z80 -> 0 | K87: ='Hidden Summary'!O80 -> 0 | M87: ='Hidden Summary'!Q80 -> 0 | N87: ='Hidden Summary'!U80 -> 0 | O87: ='Hidden Summary'!S80 -> 0 | P87: ='Hidden Summary'!X80 -> 0 | R87: ='Hidden Summary'!J80 -> 0 | S87: ='Hidden Summary'!L80 -> 0 | T87: ='Hidden Summary'!N80 -> 0 | U87: ='Hidden Summary'!AA80 -> 0 | V87: ='Hidden Summary'!P80 -> 0 | X87: ='Hidden Summary'!W80 -> 0 | Y87: ='Hidden Summary'!Y80 -> 0 | Z87: ='Hidden Summary'!R80 -> 0 | AA87: ='Hidden Summary'!V80 -> 0 | AB87: ='Hidden Summary'!T80 -> 0 | AG87: 0 | AH87: 0 | AI87: 0 | AJ87: ='Hidden Summary'!AB80 -> 0
A88: ='Hidden Summary'!A81 -> 0 | C88: ='Hidden Summary'!D81 -> 0 | E88: =IF('Hidden Summary'!G81="Rational Method","Rational",IF('Hidden Summary'!G81="TR-55 Method","TR-55",IF('Hidden Summary'!G81="USGS-5030 Method","USGS-5030",IF('Hidden Summary'!G81="USGS-5158 Method","USGS-5158",IF('Hidden Summary'!G81="User Input Method","User Input",""))))) ->  | G88: ='Hidden Summary'!I81 -> 0 | H88: ='Hidden Summary'!K81 -> 0 | I88: ='Hidden Summary'!M81 -> 0 | J88: ='Hidden Summary'!Z81 -> 0 | K88: ='Hidden Summary'!O81 -> 0 | M88: ='Hidden Summary'!Q81 -> 0 | N88: ='Hidden Summary'!U81 -> 0 | O88: ='Hidden Summary'!S81 -> 0 | P88: ='Hidden Summary'!X81 -> 0 | R88: ='Hidden Summary'!J81 -> 0 | S88: ='Hidden Summary'!L81 -> 0 | T88: ='Hidden Summary'!N81 -> 0 | U88: ='Hidden Summary'!AA81 -> 0 | V88: ='Hidden Summary'!P81 -> 0 | X88: ='Hidden Summary'!W81 -> 0 | Y88: ='Hidden Summary'!Y81 -> 0 | Z88: ='Hidden Summary'!R81 -> 0 | AA88: ='Hidden Summary'!V81 -> 0 | AB88: ='Hidden Summary'!T81 -> 0 | AG88: 0 | AH88: 0 | AI88: 0 | AJ88: ='Hidden Summary'!AB81 -> 0
A89: ='Hidden Summary'!A82 -> 0 | C89: ='Hidden Summary'!D82 -> 0 | E89: =IF('Hidden Summary'!G82="Rational Method","Rational",IF('Hidden Summary'!G82="TR-55 Method","TR-55",IF('Hidden Summary'!G82="USGS-5030 Method","USGS-5030",IF('Hidden Summary'!G82="USGS-5158 Method","USGS-5158",IF('Hidden Summary'!G82="User Input Method","User Input",""))))) ->  | G89: ='Hidden Summary'!I82 -> 0 | H89: ='Hidden Summary'!K82 -> 0 | I89: ='Hidden Summary'!M82 -> 0 | J89: ='Hidden Summary'!Z82 -> 0 | K89: ='Hidden Summary'!O82 -> 0 | M89: ='Hidden Summary'!Q82 -> 0 | N89: ='Hidden Summary'!U82 -> 0 | O89: ='Hidden Summary'!S82 -> 0 | P89: ='Hidden Summary'!X82 -> 0 | R89: ='Hidden Summary'!J82 -> 0 | S89: ='Hidden Summary'!L82 -> 0 | T89: ='Hidden Summary'!N82 -> 0 | U89: ='Hidden Summary'!AA82 -> 0 | V89: ='Hidden Summary'!P82 -> 0 | X89: ='Hidden Summary'!W82 -> 0 | Y89: ='Hidden Summary'!Y82 -> 0 | Z89: ='Hidden Summary'!R82 -> 0 | AA89: ='Hidden Summary'!V82 -> 0 | AB89: ='Hidden Summary'!T82 -> 0 | AG89: 0 | AH89: 0 | AI89: 0 | AJ89: ='Hidden Summary'!AB82 -> 0
A90: ='Hidden Summary'!A83 -> 0 | C90: ='Hidden Summary'!D83 -> 0 | E90: =IF('Hidden Summary'!G83="Rational Method","Rational",IF('Hidden Summary'!G83="TR-55 Method","TR-55",IF('Hidden Summary'!G83="USGS-5030 Method","USGS-5030",IF('Hidden Summary'!G83="USGS-5158 Method","USGS-5158",IF('Hidden Summary'!G83="User Input Method","User Input",""))))) ->  | G90: ='Hidden Summary'!I83 -> 0 | H90: ='Hidden Summary'!K83 -> 0 | I90: ='Hidden Summary'!M83 -> 0 | J90: ='Hidden Summary'!Z83 -> 0 | K90: ='Hidden Summary'!O83 -> 0 | M90: ='Hidden Summary'!Q83 -> 0 | N90: ='Hidden Summary'!U83 -> 0 | O90: ='Hidden Summary'!S83 -> 0 | P90: ='Hidden Summary'!X83 -> 0 | R90: ='Hidden Summary'!J83 -> 0 | S90: ='Hidden Summary'!L83 -> 0 | T90: ='Hidden Summary'!N83 -> 0 | U90: ='Hidden Summary'!AA83 -> 0 | V90: ='Hidden Summary'!P83 -> 0 | X90: ='Hidden Summary'!W83 -> 0 | Y90: ='Hidden Summary'!Y83 -> 0 | Z90: ='Hidden Summary'!R83 -> 0 | AA90: ='Hidden Summary'!V83 -> 0 | AB90: ='Hidden Summary'!T83 -> 0 | AG90: 0 | AH90: 0 | AI90: 0 | AJ90: ='Hidden Summary'!AB83 -> 0
A91: ='Hidden Summary'!A84 -> 0 | C91: ='Hidden Summary'!D84 -> 0 | E91: =IF('Hidden Summary'!G84="Rational Method","Rational",IF('Hidden Summary'!G84="TR-55 Method","TR-55",IF('Hidden Summary'!G84="USGS-5030 Method","USGS-5030",IF('Hidden Summary'!G84="USGS-5158 Method","USGS-5158",IF('Hidden Summary'!G84="User Input Method","User Input",""))))) ->  | G91: ='Hidden Summary'!I84 -> 0 | H91: ='Hidden Summary'!K84 -> 0 | I91: ='Hidden Summary'!M84 -> 0 | J91: ='Hidden Summary'!Z84 -> 0 | K91: ='Hidden Summary'!O84 -> 0 | M91: ='Hidden Summary'!Q84 -> 0 | N91: ='Hidden Summary'!U84 -> 0 | O91: ='Hidden Summary'!S84 -> 0 | P91: ='Hidden Summary'!X84 -> 0 | R91: ='Hidden Summary'!J84 -> 0 | S91: ='Hidden Summary'!L84 -> 0 | T91: ='Hidden Summary'!N84 -> 0 | U91: ='Hidden Summary'!AA84 -> 0 | V91: ='Hidden Summary'!P84 -> 0 | X91: ='Hidden Summary'!W84 -> 0 | Y91: ='Hidden Summary'!Y84 -> 0 | Z91: ='Hidden Summary'!R84 -> 0 | AA91: ='Hidden Summary'!V84 -> 0 | AB91: ='Hidden Summary'!T84 -> 0 | AG91: 0 | AH91: 0 | AI91: 0 | AJ91: ='Hidden Summary'!AB84 -> 0
A92: ='Hidden Summary'!A85 -> 0 | C92: ='Hidden Summary'!D85 -> 0 | E92: =IF('Hidden Summary'!G85="Rational Method","Rational",IF('Hidden Summary'!G85="TR-55 Method","TR-55",IF('Hidden Summary'!G85="USGS-5030 Method","USGS-5030",IF('Hidden Summary'!G85="USGS-5158 Method","USGS-5158",IF('Hidden Summary'!G85="User Input Method","User Input",""))))) ->  | G92: ='Hidden Summary'!I85 -> 0 | H92: ='Hidden Summary'!K85 -> 0 | I92: ='Hidden Summary'!M85 -> 0 | J92: ='Hidden Summary'!Z85 -> 0 | K92: ='Hidden Summary'!O85 -> 0 | M92: ='Hidden Summary'!Q85 -> 0 | N92: ='Hidden Summary'!U85 -> 0 | O92: ='Hidden Summary'!S85 -> 0 | P92: ='Hidden Summary'!X85 -> 0 | R92: ='Hidden Summary'!J85 -> 0 | S92: ='Hidden Summary'!L85 -> 0 | T92: ='Hidden Summary'!N85 -> 0 | U92: ='Hidden Summary'!AA85 -> 0 | V92: ='Hidden Summary'!P85 -> 0 | X92: ='Hidden Summary'!W85 -> 0 | Y92: ='Hidden Summary'!Y85 -> 0 | Z92: ='Hidden Summary'!R85 -> 0 | AA92: ='Hidden Summary'!V85 -> 0 | AB92: ='Hidden Summary'!T85 -> 0 | AG92: 0 | AH92: 0 | AI92: 0 | AJ92: ='Hidden Summary'!AB85 -> 0
A93: ='Hidden Summary'!A86 -> 0 | C93: ='Hidden Summary'!D86 -> 0 | E93: =IF('Hidden Summary'!G86="Rational Method","Rational",IF('Hidden Summary'!G86="TR-55 Method","TR-55",IF('Hidden Summary'!G86="USGS-5030 Method","USGS-5030",IF('Hidden Summary'!G86="USGS-5158 Method","USGS-5158",IF('Hidden Summary'!G86="User Input Method","User Input",""))))) ->  | G93: ='Hidden Summary'!I86 -> 0 | H93: ='Hidden Summary'!K86 -> 0 | I93: ='Hidden Summary'!M86 -> 0 | J93: ='Hidden Summary'!Z86 -> 0 | K93: ='Hidden Summary'!O86 -> 0 | M93: ='Hidden Summary'!Q86 -> 0 | N93: ='Hidden Summary'!U86 -> 0 | O93: ='Hidden Summary'!S86 -> 0 | P93: ='Hidden Summary'!X86 -> 0 | R93: ='Hidden Summary'!J86 -> 0 | S93: ='Hidden Summary'!L86 -> 0 | T93: ='Hidden Summary'!N86 -> 0 | U93: ='Hidden Summary'!AA86 -> 0 | V93: ='Hidden Summary'!P86 -> 0 | X93: ='Hidden Summary'!W86 -> 0 | Y93: ='Hidden Summary'!Y86 -> 0 | Z93: ='Hidden Summary'!R86 -> 0 | AA93: ='Hidden Summary'!V86 -> 0 | AB93: ='Hidden Summary'!T86 -> 0 | AG93: 0 | AH93: 0 | AI93: 0 | AJ93: ='Hidden Summary'!AB86 -> 0
A94: ='Hidden Summary'!A87 -> 0 | C94: ='Hidden Summary'!D87 -> 0 | E94: =IF('Hidden Summary'!G87="Rational Method","Rational",IF('Hidden Summary'!G87="TR-55 Method","TR-55",IF('Hidden Summary'!G87="USGS-5030 Method","USGS-5030",IF('Hidden Summary'!G87="USGS-5158 Method","USGS-5158",IF('Hidden Summary'!G87="User Input Method","User Input",""))))) ->  | G94: ='Hidden Summary'!I87 -> 0 | H94: ='Hidden Summary'!K87 -> 0 | I94: ='Hidden Summary'!M87 -> 0 | J94: ='Hidden Summary'!Z87 -> 0 | K94: ='Hidden Summary'!O87 -> 0 | M94: ='Hidden Summary'!Q87 -> 0 | N94: ='Hidden Summary'!U87 -> 0 | O94: ='Hidden Summary'!S87 -> 0 | P94: ='Hidden Summary'!X87 -> 0 | R94: ='Hidden Summary'!J87 -> 0 | S94: ='Hidden Summary'!L87 -> 0 | T94: ='Hidden Summary'!N87 -> 0 | U94: ='Hidden Summary'!AA87 -> 0 | V94: ='Hidden Summary'!P87 -> 0 | X94: ='Hidden Summary'!W87 -> 0 | Y94: ='Hidden Summary'!Y87 -> 0 | Z94: ='Hidden Summary'!R87 -> 0 | AA94: ='Hidden Summary'!V87 -> 0 | AB94: ='Hidden Summary'!T87 -> 0 | AG94: 0 | AH94: 0 | AI94: 0 | AJ94: ='Hidden Summary'!AB87 -> 0
A95: ='Hidden Summary'!A88 -> 0 | C95: ='Hidden Summary'!D88 -> 0 | E95: =IF('Hidden Summary'!G88="Rational Method","Rational",IF('Hidden Summary'!G88="TR-55 Method","TR-55",IF('Hidden Summary'!G88="USGS-5030 Method","USGS-5030",IF('Hidden Summary'!G88="USGS-5158 Method","USGS-5158",IF('Hidden Summary'!G88="User Input Method","User Input",""))))) ->  | G95: ='Hidden Summary'!I88 -> 0 | H95: ='Hidden Summary'!K88 -> 0 | I95: ='Hidden Summary'!M88 -> 0 | J95: ='Hidden Summary'!Z88 -> 0 | K95: ='Hidden Summary'!O88 -> 0 | M95: ='Hidden Summary'!Q88 -> 0 | N95: ='Hidden Summary'!U88 -> 0 | O95: ='Hidden Summary'!S88 -> 0 | P95: ='Hidden Summary'!X88 -> 0 | R95: ='Hidden Summary'!J88 -> 0 | S95: ='Hidden Summary'!L88 -> 0 | T95: ='Hidden Summary'!N88 -> 0 | U95: ='Hidden Summary'!AA88 -> 0 | V95: ='Hidden Summary'!P88 -> 0 | X95: ='Hidden Summary'!W88 -> 0 | Y95: ='Hidden Summary'!Y88 -> 0 | Z95: ='Hidden Summary'!R88 -> 0 | AA95: ='Hidden Summary'!V88 -> 0 | AB95: ='Hidden Summary'!T88 -> 0 | AG95: 0 | AH95: 0 | AI95: 0 | AJ95: ='Hidden Summary'!AB88 -> 0
A96: ='Hidden Summary'!A89 -> 0 | C96: ='Hidden Summary'!D89 -> 0 | E96: =IF('Hidden Summary'!G89="Rational Method","Rational",IF('Hidden Summary'!G89="TR-55 Method","TR-55",IF('Hidden Summary'!G89="USGS-5030 Method","USGS-5030",IF('Hidden Summary'!G89="USGS-5158 Method","USGS-5158",IF('Hidden Summary'!G89="User Input Method","User Input",""))))) ->  | G96: ='Hidden Summary'!I89 -> 0 | H96: ='Hidden Summary'!K89 -> 0 | I96: ='Hidden Summary'!M89 -> 0 | J96: ='Hidden Summary'!Z89 -> 0 | K96: ='Hidden Summary'!O89 -> 0 | M96: ='Hidden Summary'!Q89 -> 0 | N96: ='Hidden Summary'!U89 -> 0 | O96: ='Hidden Summary'!S89 -> 0 | P96: ='Hidden Summary'!X89 -> 0 | R96: ='Hidden Summary'!J89 -> 0 | S96: ='Hidden Summary'!L89 -> 0 | T96: ='Hidden Summary'!N89 -> 0 | U96: ='Hidden Summary'!AA89 -> 0 | V96: ='Hidden Summary'!P89 -> 0 | X96: ='Hidden Summary'!W89 -> 0 | Y96: ='Hidden Summary'!Y89 -> 0 | Z96: ='Hidden Summary'!R89 -> 0 | AA96: ='Hidden Summary'!V89 -> 0 | AB96: ='Hidden Summary'!T89 -> 0 | AG96: 0 | AH96: 0 | AI96: 0 | AJ96: ='Hidden Summary'!AB89 -> 0
A97: ='Hidden Summary'!A90 -> 0 | C97: ='Hidden Summary'!D90 -> 0 | E97: =IF('Hidden Summary'!G90="Rational Method","Rational",IF('Hidden Summary'!G90="TR-55 Method","TR-55",IF('Hidden Summary'!G90="USGS-5030 Method","USGS-5030",IF('Hidden Summary'!G90="USGS-5158 Method","USGS-5158",IF('Hidden Summary'!G90="User Input Method","User Input",""))))) ->  | G97: ='Hidden Summary'!I90 -> 0 | H97: ='Hidden Summary'!K90 -> 0 | I97: ='Hidden Summary'!M90 -> 0 | J97: ='Hidden Summary'!Z90 -> 0 | K97: ='Hidden Summary'!O90 -> 0 | M97: ='Hidden Summary'!Q90 -> 0 | N97: ='Hidden Summary'!U90 -> 0 | O97: ='Hidden Summary'!S90 -> 0 | P97: ='Hidden Summary'!X90 -> 0 | R97: ='Hidden Summary'!J90 -> 0 | S97: ='Hidden Summary'!L90 -> 0 | T97: ='Hidden Summary'!N90 -> 0 | U97: ='Hidden Summary'!AA90 -> 0 | V97: ='Hidden Summary'!P90 -> 0 | X97: ='Hidden Summary'!W90 -> 0 | Y97: ='Hidden Summary'!Y90 -> 0 | Z97: ='Hidden Summary'!R90 -> 0 | AA97: ='Hidden Summary'!V90 -> 0 | AB97: ='Hidden Summary'!T90 -> 0 | AG97: 0 | AH97: 0 | AI97: 0 | AJ97: ='Hidden Summary'!AB90 -> 0
A98: ='Hidden Summary'!A91 -> 0 | C98: ='Hidden Summary'!D91 -> 0 | E98: =IF('Hidden Summary'!G91="Rational Method","Rational",IF('Hidden Summary'!G91="TR-55 Method","TR-55",IF('Hidden Summary'!G91="USGS-5030 Method","USGS-5030",IF('Hidden Summary'!G91="USGS-5158 Method","USGS-5158",IF('Hidden Summary'!G91="User Input Method","User Input",""))))) ->  | G98: ='Hidden Summary'!I91 -> 0 | H98: ='Hidden Summary'!K91 -> 0 | I98: ='Hidden Summary'!M91 -> 0 | J98: ='Hidden Summary'!Z91 -> 0 | K98: ='Hidden Summary'!O91 -> 0 | M98: ='Hidden Summary'!Q91 -> 0 | N98: ='Hidden Summary'!U91 -> 0 | O98: ='Hidden Summary'!S91 -> 0 | P98: ='Hidden Summary'!X91 -> 0 | R98: ='Hidden Summary'!J91 -> 0 | S98: ='Hidden Summary'!L91 -> 0 | T98: ='Hidden Summary'!N91 -> 0 | U98: ='Hidden Summary'!AA91 -> 0 | V98: ='Hidden Summary'!P91 -> 0 | X98: ='Hidden Summary'!W91 -> 0 | Y98: ='Hidden Summary'!Y91 -> 0 | Z98: ='Hidden Summary'!R91 -> 0 | AA98: ='Hidden Summary'!V91 -> 0 | AB98: ='Hidden Summary'!T91 -> 0 | AG98: 0 | AH98: 0 | AI98: 0 | AJ98: ='Hidden Summary'!AB91 -> 0
A99: ='Hidden Summary'!A92 -> 0 | C99: ='Hidden Summary'!D92 -> 0 | E99: =IF('Hidden Summary'!G92="Rational Method","Rational",IF('Hidden Summary'!G92="TR-55 Method","TR-55",IF('Hidden Summary'!G92="USGS-5030 Method","USGS-5030",IF('Hidden Summary'!G92="USGS-5158 Method","USGS-5158",IF('Hidden Summary'!G92="User Input Method","User Input",""))))) ->  | G99: ='Hidden Summary'!I92 -> 0 | H99: ='Hidden Summary'!K92 -> 0 | I99: ='Hidden Summary'!M92 -> 0 | J99: ='Hidden Summary'!Z92 -> 0 | K99: ='Hidden Summary'!O92 -> 0 | M99: ='Hidden Summary'!Q92 -> 0 | N99: ='Hidden Summary'!U92 -> 0 | O99: ='Hidden Summary'!S92 -> 0 | P99: ='Hidden Summary'!X92 -> 0 | R99: ='Hidden Summary'!J92 -> 0 | S99: ='Hidden Summary'!L92 -> 0 | T99: ='Hidden Summary'!N92 -> 0 | U99: ='Hidden Summary'!AA92 -> 0 | V99: ='Hidden Summary'!P92 -> 0 | X99: ='Hidden Summary'!W92 -> 0 | Y99: ='Hidden Summary'!Y92 -> 0 | Z99: ='Hidden Summary'!R92 -> 0 | AA99: ='Hidden Summary'!V92 -> 0 | AB99: ='Hidden Summary'!T92 -> 0 | AG99: 0 | AH99: 0 | AI99: 0 | AJ99: ='Hidden Summary'!AB92 -> 0
A100: ='Hidden Summary'!A93 -> 0 | C100: ='Hidden Summary'!D93 -> 0 | E100: =IF('Hidden Summary'!G93="Rational Method","Rational",IF('Hidden Summary'!G93="TR-55 Method","TR-55",IF('Hidden Summary'!G93="USGS-5030 Method","USGS-5030",IF('Hidden Summary'!G93="USGS-5158 Method","USGS-5158",IF('Hidden Summary'!G93="User Input Method","User Input",""))))) ->  | G100: ='Hidden Summary'!I93 -> 0 | H100: ='Hidden Summary'!K93 -> 0 | I100: ='Hidden Summary'!M93 -> 0 | J100: ='Hidden Summary'!Z93 -> 0 | K100: ='Hidden Summary'!O93 -> 0 | M100: ='Hidden Summary'!Q93 -> 0 | N100: ='Hidden Summary'!U93 -> 0 | O100: ='Hidden Summary'!S93 -> 0 | P100: ='Hidden Summary'!X93 -> 0 | R100: ='Hidden Summary'!J93 -> 0 | S100: ='Hidden Summary'!L93 -> 0 | T100: ='Hidden Summary'!N93 -> 0 | U100: ='Hidden Summary'!AA93 -> 0 | V100: ='Hidden Summary'!P93 -> 0 | X100: ='Hidden Summary'!W93 -> 0 | Y100: ='Hidden Summary'!Y93 -> 0 | Z100: ='Hidden Summary'!R93 -> 0 | AA100: ='Hidden Summary'!V93 -> 0 | AB100: ='Hidden Summary'!T93 -> 0 | AG100: 0 | AH100: 0 | AI100: 0 | AJ100: ='Hidden Summary'!AB93 -> 0
A101: ='Hidden Summary'!A94 -> 0 | C101: ='Hidden Summary'!D94 -> 0 | E101: =IF('Hidden Summary'!G94="Rational Method","Rational",IF('Hidden Summary'!G94="TR-55 Method","TR-55",IF('Hidden Summary'!G94="USGS-5030 Method","USGS-5030",IF('Hidden Summary'!G94="USGS-5158 Method","USGS-5158",IF('Hidden Summary'!G94="User Input Method","User Input",""))))) ->  | G101: ='Hidden Summary'!I94 -> 0 | H101: ='Hidden Summary'!K94 -> 0 | I101: ='Hidden Summary'!M94 -> 0 | J101: ='Hidden Summary'!Z94 -> 0 | K101: ='Hidden Summary'!O94 -> 0 | M101: ='Hidden Summary'!Q94 -> 0 | N101: ='Hidden Summary'!U94 -> 0 | O101: ='Hidden Summary'!S94 -> 0 | P101: ='Hidden Summary'!X94 -> 0 | R101: ='Hidden Summary'!J94 -> 0 | S101: ='Hidden Summary'!L94 -> 0 | T101: ='Hidden Summary'!N94 -> 0 | U101: ='Hidden Summary'!AA94 -> 0 | V101: ='Hidden Summary'!P94 -> 0 | X101: ='Hidden Summary'!W94 -> 0 | Y101: ='Hidden Summary'!Y94 -> 0 | Z101: ='Hidden Summary'!R94 -> 0 | AA101: ='Hidden Summary'!V94 -> 0 | AB101: ='Hidden Summary'!T94 -> 0 | AG101: 0 | AH101: 0 | AI101: 0 | AJ101: ='Hidden Summary'!AB94 -> 0
A102: ='Hidden Summary'!A95 -> 0 | C102: ='Hidden Summary'!D95 -> 0 | E102: =IF('Hidden Summary'!G95="Rational Method","Rational",IF('Hidden Summary'!G95="TR-55 Method","TR-55",IF('Hidden Summary'!G95="USGS-5030 Method","USGS-5030",IF('Hidden Summary'!G95="USGS-5158 Method","USGS-5158",IF('Hidden Summary'!G95="User Input Method","User Input",""))))) ->  | G102: ='Hidden Summary'!I95 -> 0 | H102: ='Hidden Summary'!K95 -> 0 | I102: ='Hidden Summary'!M95 -> 0 | J102: ='Hidden Summary'!Z95 -> 0 | K102: ='Hidden Summary'!O95 -> 0 | M102: ='Hidden Summary'!Q95 -> 0 | N102: ='Hidden Summary'!U95 -> 0 | O102: ='Hidden Summary'!S95 -> 0 | P102: ='Hidden Summary'!X95 -> 0 | R102: ='Hidden Summary'!J95 -> 0 | S102: ='Hidden Summary'!L95 -> 0 | T102: ='Hidden Summary'!N95 -> 0 | U102: ='Hidden Summary'!AA95 -> 0 | V102: ='Hidden Summary'!P95 -> 0 | X102: ='Hidden Summary'!W95 -> 0 | Y102: ='Hidden Summary'!Y95 -> 0 | Z102: ='Hidden Summary'!R95 -> 0 | AA102: ='Hidden Summary'!V95 -> 0 | AB102: ='Hidden Summary'!T95 -> 0 | AG102: 0 | AH102: 0 | AI102: 0 | AJ102: ='Hidden Summary'!AB95 -> 0
A103: ='Hidden Summary'!A96 -> 0 | C103: ='Hidden Summary'!D96 -> 0 | E103: =IF('Hidden Summary'!G96="Rational Method","Rational",IF('Hidden Summary'!G96="TR-55 Method","TR-55",IF('Hidden Summary'!G96="USGS-5030 Method","USGS-5030",IF('Hidden Summary'!G96="USGS-5158 Method","USGS-5158",IF('Hidden Summary'!G96="User Input Method","User Input",""))))) ->  | G103: ='Hidden Summary'!I96 -> 0 | H103: ='Hidden Summary'!K96 -> 0 | I103: ='Hidden Summary'!M96 -> 0 | J103: ='Hidden Summary'!Z96 -> 0 | K103: ='Hidden Summary'!O96 -> 0 | M103: ='Hidden Summary'!Q96 -> 0 | N103: ='Hidden Summary'!U96 -> 0 | O103: ='Hidden Summary'!S96 -> 0 | P103: ='Hidden Summary'!X96 -> 0 | R103: ='Hidden Summary'!J96 -> 0 | S103: ='Hidden Summary'!L96 -> 0 | T103: ='Hidden Summary'!N96 -> 0 | U103: ='Hidden Summary'!AA96 -> 0 | V103: ='Hidden Summary'!P96 -> 0 | X103: ='Hidden Summary'!W96 -> 0 | Y103: ='Hidden Summary'!Y96 -> 0 | Z103: ='Hidden Summary'!R96 -> 0 | AA103: ='Hidden Summary'!V96 -> 0 | AB103: ='Hidden Summary'!T96 -> 0 | AG103: 0 | AH103: 0 | AI103: 0 | AJ103: ='Hidden Summary'!AB96 -> 0
A104: ='Hidden Summary'!A97 -> 0 | C104: ='Hidden Summary'!D97 -> 0 | E104: =IF('Hidden Summary'!G97="Rational Method","Rational",IF('Hidden Summary'!G97="TR-55 Method","TR-55",IF('Hidden Summary'!G97="USGS-5030 Method","USGS-5030",IF('Hidden Summary'!G97="USGS-5158 Method","USGS-5158",IF('Hidden Summary'!G97="User Input Method","User Input",""))))) ->  | G104: ='Hidden Summary'!I97 -> 0 | H104: ='Hidden Summary'!K97 -> 0 | I104: ='Hidden Summary'!M97 -> 0 | J104: ='Hidden Summary'!Z97 -> 0 | K104: ='Hidden Summary'!O97 -> 0 | M104: ='Hidden Summary'!Q97 -> 0 | N104: ='Hidden Summary'!U97 -> 0 | O104: ='Hidden Summary'!S97 -> 0 | P104: ='Hidden Summary'!X97 -> 0 | R104: ='Hidden Summary'!J97 -> 0 | S104: ='Hidden Summary'!L97 -> 0 | T104: ='Hidden Summary'!N97 -> 0 | U104: ='Hidden Summary'!AA97 -> 0 | V104: ='Hidden Summary'!P97 -> 0 | X104: ='Hidden Summary'!W97 -> 0 | Y104: ='Hidden Summary'!Y97 -> 0 | Z104: ='Hidden Summary'!R97 -> 0 | AA104: ='Hidden Summary'!V97 -> 0 | AB104: ='Hidden Summary'!T97 -> 0 | AG104: 0 | AH104: 0 | AI104: 0 | AJ104: ='Hidden Summary'!AB97 -> 0
A105: ='Hidden Summary'!A98 -> 0 | C105: ='Hidden Summary'!D98 -> 0 | E105: =IF('Hidden Summary'!G98="Rational Method","Rational",IF('Hidden Summary'!G98="TR-55 Method","TR-55",IF('Hidden Summary'!G98="USGS-5030 Method","USGS-5030",IF('Hidden Summary'!G98="USGS-5158 Method","USGS-5158",IF('Hidden Summary'!G98="User Input Method","User Input",""))))) ->  | G105: ='Hidden Summary'!I98 -> 0 | H105: ='Hidden Summary'!K98 -> 0 | I105: ='Hidden Summary'!M98 -> 0 | J105: ='Hidden Summary'!Z98 -> 0 | K105: ='Hidden Summary'!O98 -> 0 | M105: ='Hidden Summary'!Q98 -> 0 | N105: ='Hidden Summary'!U98 -> 0 | O105: ='Hidden Summary'!S98 -> 0 | P105: ='Hidden Summary'!X98 -> 0 | R105: ='Hidden Summary'!J98 -> 0 | S105: ='Hidden Summary'!L98 -> 0 | T105: ='Hidden Summary'!N98 -> 0 | U105: ='Hidden Summary'!AA98 -> 0 | V105: ='Hidden Summary'!P98 -> 0 | X105: ='Hidden Summary'!W98 -> 0 | Y105: ='Hidden Summary'!Y98 -> 0 | Z105: ='Hidden Summary'!R98 -> 0 | AA105: ='Hidden Summary'!V98 -> 0 | AB105: ='Hidden Summary'!T98 -> 0 | AG105: 0 | AH105: 0 | AI105: 0 | AJ105: ='Hidden Summary'!AB98 -> 0
A106: ='Hidden Summary'!A99 -> 0 | C106: ='Hidden Summary'!D99 -> 0 | E106: =IF('Hidden Summary'!G99="Rational Method","Rational",IF('Hidden Summary'!G99="TR-55 Method","TR-55",IF('Hidden Summary'!G99="USGS-5030 Method","USGS-5030",IF('Hidden Summary'!G99="USGS-5158 Method","USGS-5158",IF('Hidden Summary'!G99="User Input Method","User Input",""))))) ->  | G106: ='Hidden Summary'!I99 -> 0 | H106: ='Hidden Summary'!K99 -> 0 | I106: ='Hidden Summary'!M99 -> 0 | J106: ='Hidden Summary'!Z99 -> 0 | K106: ='Hidden Summary'!O99 -> 0 | M106: ='Hidden Summary'!Q99 -> 0 | N106: ='Hidden Summary'!U99 -> 0 | O106: ='Hidden Summary'!S99 -> 0 | P106: ='Hidden Summary'!X99 -> 0 | R106: ='Hidden Summary'!J99 -> 0 | S106: ='Hidden Summary'!L99 -> 0 | T106: ='Hidden Summary'!N99 -> 0 | U106: ='Hidden Summary'!AA99 -> 0 | V106: ='Hidden Summary'!P99 -> 0 | X106: ='Hidden Summary'!W99 -> 0 | Y106: ='Hidden Summary'!Y99 -> 0 | Z106: ='Hidden Summary'!R99 -> 0 | AA106: ='Hidden Summary'!V99 -> 0 | AB106: ='Hidden Summary'!T99 -> 0 | AG106: 0 | AH106: 0 | AI106: 0 | AJ106: ='Hidden Summary'!AB99 -> 0
A107: ='Hidden Summary'!A100 -> 0 | C107: ='Hidden Summary'!D100 -> 0 | E107: =IF('Hidden Summary'!G100="Rational Method","Rational",IF('Hidden Summary'!G100="TR-55 Method","TR-55",IF('Hidden Summary'!G100="USGS-5030 Method","USGS-5030",IF('Hidden Summary'!G100="USGS-5158 Method","USGS-5158",IF('Hidden Summary'!G100="User Input Method","User Input",""))))) ->  | G107: ='Hidden Summary'!I100 -> 0 | H107: ='Hidden Summary'!K100 -> 0 | I107: ='Hidden Summary'!M100 -> 0 | J107: ='Hidden Summary'!Z100 -> 0 | K107: ='Hidden Summary'!O100 -> 0 | M107: ='Hidden Summary'!Q100 -> 0 | N107: ='Hidden Summary'!U100 -> 0 | O107: ='Hidden Summary'!S100 -> 0 | P107: ='Hidden Summary'!X100 -> 0 | R107: ='Hidden Summary'!J100 -> 0 | S107: ='Hidden Summary'!L100 -> 0 | T107: ='Hidden Summary'!N100 -> 0 | U107: ='Hidden Summary'!AA100 -> 0 | V107: ='Hidden Summary'!P100 -> 0 | X107: ='Hidden Summary'!W100 -> 0 | Y107: ='Hidden Summary'!Y100 -> 0 | Z107: ='Hidden Summary'!R100 -> 0 | AA107: ='Hidden Summary'!V100 -> 0 | AB107: ='Hidden Summary'!T100 -> 0 | AG107: 0 | AH107: 0 | AI107: 0 | AJ107: ='Hidden Summary'!AB100 -> 0
A108: ='Hidden Summary'!A101 -> 0 | C108: ='Hidden Summary'!D101 -> 0 | E108: =IF('Hidden Summary'!G101="Rational Method","Rational",IF('Hidden Summary'!G101="TR-55 Method","TR-55",IF('Hidden Summary'!G101="USGS-5030 Method","USGS-5030",IF('Hidden Summary'!G101="USGS-5158 Method","USGS-5158",IF('Hidden Summary'!G101="User Input Method","User Input",""))))) ->  | G108: ='Hidden Summary'!I101 -> 0 | H108: ='Hidden Summary'!K101 -> 0 | I108: ='Hidden Summary'!M101 -> 0 | J108: ='Hidden Summary'!Z101 -> 0 | K108: ='Hidden Summary'!O101 -> 0 | M108: ='Hidden Summary'!Q101 -> 0 | N108: ='Hidden Summary'!U101 -> 0 | O108: ='Hidden Summary'!S101 -> 0 | P108: ='Hidden Summary'!X101 -> 0 | R108: ='Hidden Summary'!J101 -> 0 | S108: ='Hidden Summary'!L101 -> 0 | T108: ='Hidden Summary'!N101 -> 0 | U108: ='Hidden Summary'!AA101 -> 0 | V108: ='Hidden Summary'!P101 -> 0 | X108: ='Hidden Summary'!W101 -> 0 | Y108: ='Hidden Summary'!Y101 -> 0 | Z108: ='Hidden Summary'!R101 -> 0 | AA108: ='Hidden Summary'!V101 -> 0 | AB108: ='Hidden Summary'!T101 -> 0 | AG108: 0 | AH108: 0 | AI108: 0 | AJ108: ='Hidden Summary'!AB101 -> 0
A109: ='Hidden Summary'!A102 -> 0 | C109: ='Hidden Summary'!D102 -> 0 | E109: =IF('Hidden Summary'!G102="Rational Method","Rational",IF('Hidden Summary'!G102="TR-55 Method","TR-55",IF('Hidden Summary'!G102="USGS-5030 Method","USGS-5030",IF('Hidden Summary'!G102="USGS-5158 Method","USGS-5158",IF('Hidden Summary'!G102="User Input Method","User Input",""))))) ->  | G109: ='Hidden Summary'!I102 -> 0 | H109: ='Hidden Summary'!K102 -> 0 | I109: ='Hidden Summary'!M102 -> 0 | J109: ='Hidden Summary'!Z102 -> 0 | K109: ='Hidden Summary'!O102 -> 0 | M109: ='Hidden Summary'!Q102 -> 0 | N109: ='Hidden Summary'!U102 -> 0 | O109: ='Hidden Summary'!S102 -> 0 | P109: ='Hidden Summary'!X102 -> 0 | R109: ='Hidden Summary'!J102 -> 0 | S109: ='Hidden Summary'!L102 -> 0 | T109: ='Hidden Summary'!N102 -> 0 | U109: ='Hidden Summary'!AA102 -> 0 | V109: ='Hidden Summary'!P102 -> 0 | X109: ='Hidden Summary'!W102 -> 0 | Y109: ='Hidden Summary'!Y102 -> 0 | Z109: ='Hidden Summary'!R102 -> 0 | AA109: ='Hidden Summary'!V102 -> 0 | AB109: ='Hidden Summary'!T102 -> 0 | AG109: 0 | AH109: 0 | AI109: 0 | AJ109: ='Hidden Summary'!AB102 -> 0
A110: ='Hidden Summary'!A103 -> 0 | C110: ='Hidden Summary'!D103 -> 0 | E110: =IF('Hidden Summary'!G103="Rational Method","Rational",IF('Hidden Summary'!G103="TR-55 Method","TR-55",IF('Hidden Summary'!G103="USGS-5030 Method","USGS-5030",IF('Hidden Summary'!G103="USGS-5158 Method","USGS-5158",IF('Hidden Summary'!G103="User Input Method","User Input",""))))) ->  | G110: ='Hidden Summary'!I103 -> 0 | H110: ='Hidden Summary'!K103 -> 0 | I110: ='Hidden Summary'!M103 -> 0 | J110: ='Hidden Summary'!Z103 -> 0 | K110: ='Hidden Summary'!O103 -> 0 | M110: ='Hidden Summary'!Q103 -> 0 | N110: ='Hidden Summary'!U103 -> 0 | O110: ='Hidden Summary'!S103 -> 0 | P110: ='Hidden Summary'!X103 -> 0 | R110: ='Hidden Summary'!J103 -> 0 | S110: ='Hidden Summary'!L103 -> 0 | T110: ='Hidden Summary'!N103 -> 0 | U110: ='Hidden Summary'!AA103 -> 0 | V110: ='Hidden Summary'!P103 -> 0 | X110: ='Hidden Summary'!W103 -> 0 | Y110: ='Hidden Summary'!Y103 -> 0 | Z110: ='Hidden Summary'!R103 -> 0 | AA110: ='Hidden Summary'!V103 -> 0 | AB110: ='Hidden Summary'!T103 -> 0 | AG110: 0 | AH110: 0 | AI110: 0 | AJ110: ='Hidden Summary'!AB103 -> 0
A111: ='Hidden Summary'!A104 -> 0 | C111: ='Hidden Summary'!D104 -> 0 | E111: =IF('Hidden Summary'!G104="Rational Method","Rational",IF('Hidden Summary'!G104="TR-55 Method","TR-55",IF('Hidden Summary'!G104="USGS-5030 Method","USGS-5030",IF('Hidden Summary'!G104="USGS-5158 Method","USGS-5158",IF('Hidden Summary'!G104="User Input Method","User Input",""))))) ->  | G111: ='Hidden Summary'!I104 -> 0 | H111: ='Hidden Summary'!K104 -> 0 | I111: ='Hidden Summary'!M104 -> 0 | J111: ='Hidden Summary'!Z104 -> 0 | K111: ='Hidden Summary'!O104 -> 0 | M111: ='Hidden Summary'!Q104 -> 0 | N111: ='Hidden Summary'!U104 -> 0 | O111: ='Hidden Summary'!S104 -> 0 | P111: ='Hidden Summary'!X104 -> 0 | R111: ='Hidden Summary'!J104 -> 0 | S111: ='Hidden Summary'!L104 -> 0 | T111: ='Hidden Summary'!N104 -> 0 | U111: ='Hidden Summary'!AA104 -> 0 | V111: ='Hidden Summary'!P104 -> 0 | X111: ='Hidden Summary'!W104 -> 0 | Y111: ='Hidden Summary'!Y104 -> 0 | Z111: ='Hidden Summary'!R104 -> 0 | AA111: ='Hidden Summary'!V104 -> 0 | AB111: ='Hidden Summary'!T104 -> 0 | AG111: 0 | AH111: 0 | AI111: 0 | AJ111: ='Hidden Summary'!AB104 -> 0
A112: ='Hidden Summary'!A105 -> 0 | C112: ='Hidden Summary'!D105 -> 0 | E112: =IF('Hidden Summary'!G105="Rational Method","Rational",IF('Hidden Summary'!G105="TR-55 Method","TR-55",IF('Hidden Summary'!G105="USGS-5030 Method","USGS-5030",IF('Hidden Summary'!G105="USGS-5158 Method","USGS-5158",IF('Hidden Summary'!G105="User Input Method","User Input",""))))) ->  | G112: ='Hidden Summary'!I105 -> 0 | H112: ='Hidden Summary'!K105 -> 0 | I112: ='Hidden Summary'!M105 -> 0 | J112: ='Hidden Summary'!Z105 -> 0 | K112: ='Hidden Summary'!O105 -> 0 | M112: ='Hidden Summary'!Q105 -> 0 | N112: ='Hidden Summary'!U105 -> 0 | O112: ='Hidden Summary'!S105 -> 0 | P112: ='Hidden Summary'!X105 -> 0 | R112: ='Hidden Summary'!J105 -> 0 | S112: ='Hidden Summary'!L105 -> 0 | T112: ='Hidden Summary'!N105 -> 0 | U112: ='Hidden Summary'!AA105 -> 0 | V112: ='Hidden Summary'!P105 -> 0 | X112: ='Hidden Summary'!W105 -> 0 | Y112: ='Hidden Summary'!Y105 -> 0 | Z112: ='Hidden Summary'!R105 -> 0 | AA112: ='Hidden Summary'!V105 -> 0 | AB112: ='Hidden Summary'!T105 -> 0 | AG112: 0 | AH112: 0 | AI112: 0 | AJ112: ='Hidden Summary'!AB105 -> 0
A113: ='Hidden Summary'!A106 -> 0 | C113: ='Hidden Summary'!D106 -> 0 | E113: =IF('Hidden Summary'!G106="Rational Method","Rational",IF('Hidden Summary'!G106="TR-55 Method","TR-55",IF('Hidden Summary'!G106="USGS-5030 Method","USGS-5030",IF('Hidden Summary'!G106="USGS-5158 Method","USGS-5158",IF('Hidden Summary'!G106="User Input Method","User Input",""))))) ->  | G113: ='Hidden Summary'!I106 -> 0 | H113: ='Hidden Summary'!K106 -> 0 | I113: ='Hidden Summary'!M106 -> 0 | J113: ='Hidden Summary'!Z106 -> 0 | K113: ='Hidden Summary'!O106 -> 0 | M113: ='Hidden Summary'!Q106 -> 0 | N113: ='Hidden Summary'!U106 -> 0 | O113: ='Hidden Summary'!S106 -> 0 | P113: ='Hidden Summary'!X106 -> 0 | R113: ='Hidden Summary'!J106 -> 0 | S113: ='Hidden Summary'!L106 -> 0 | T113: ='Hidden Summary'!N106 -> 0 | U113: ='Hidden Summary'!AA106 -> 0 | V113: ='Hidden Summary'!P106 -> 0 | X113: ='Hidden Summary'!W106 -> 0 | Y113: ='Hidden Summary'!Y106 -> 0 | Z113: ='Hidden Summary'!R106 -> 0 | AA113: ='Hidden Summary'!V106 -> 0 | AB113: ='Hidden Summary'!T106 -> 0 | AG113: 0 | AH113: 0 | AI113: 0 | AJ113: ='Hidden Summary'!AB106 -> 0
A114: ='Hidden Summary'!A107 -> 0 | C114: ='Hidden Summary'!D107 -> 0 | E114: =IF('Hidden Summary'!G107="Rational Method","Rational",IF('Hidden Summary'!G107="TR-55 Method","TR-55",IF('Hidden Summary'!G107="USGS-5030 Method","USGS-5030",IF('Hidden Summary'!G107="USGS-5158 Method","USGS-5158",IF('Hidden Summary'!G107="User Input Method","User Input",""))))) ->  | G114: ='Hidden Summary'!I107 -> 0 | H114: ='Hidden Summary'!K107 -> 0 | I114: ='Hidden Summary'!M107 -> 0 | J114: ='Hidden Summary'!Z107 -> 0 | K114: ='Hidden Summary'!O107 -> 0 | M114: ='Hidden Summary'!Q107 -> 0 | N114: ='Hidden Summary'!U107 -> 0 | O114: ='Hidden Summary'!S107 -> 0 | P114: ='Hidden Summary'!X107 -> 0 | R114: ='Hidden Summary'!J107 -> 0 | S114: ='Hidden Summary'!L107 -> 0 | T114: ='Hidden Summary'!N107 -> 0 | U114: ='Hidden Summary'!AA107 -> 0 | V114: ='Hidden Summary'!P107 -> 0 | X114: ='Hidden Summary'!W107 -> 0 | Y114: ='Hidden Summary'!Y107 -> 0 | Z114: ='Hidden Summary'!R107 -> 0 | AA114: ='Hidden Summary'!V107 -> 0 | AB114: ='Hidden Summary'!T107 -> 0 | AG114: 0 | AH114: 0 | AI114: 0 | AJ114: ='Hidden Summary'!AB107 -> 0
A115: ='Hidden Summary'!A108 -> 0 | C115: ='Hidden Summary'!D108 -> 0 | E115: =IF('Hidden Summary'!G108="Rational Method","Rational",IF('Hidden Summary'!G108="TR-55 Method","TR-55",IF('Hidden Summary'!G108="USGS-5030 Method","USGS-5030",IF('Hidden Summary'!G108="USGS-5158 Method","USGS-5158",IF('Hidden Summary'!G108="User Input Method","User Input",""))))) ->  | G115: ='Hidden Summary'!I108 -> 0 | H115: ='Hidden Summary'!K108 -> 0 | I115: ='Hidden Summary'!M108 -> 0 | J115: ='Hidden Summary'!Z108 -> 0 | K115: ='Hidden Summary'!O108 -> 0 | M115: ='Hidden Summary'!Q108 -> 0 | N115: ='Hidden Summary'!U108 -> 0 | O115: ='Hidden Summary'!S108 -> 0 | P115: ='Hidden Summary'!X108 -> 0 | R115: ='Hidden Summary'!J108 -> 0 | S115: ='Hidden Summary'!L108 -> 0 | T115: ='Hidden Summary'!N108 -> 0 | U115: ='Hidden Summary'!AA108 -> 0 | V115: ='Hidden Summary'!P108 -> 0 | X115: ='Hidden Summary'!W108 -> 0 | Y115: ='Hidden Summary'!Y108 -> 0 | Z115: ='Hidden Summary'!R108 -> 0 | AA115: ='Hidden Summary'!V108 -> 0 | AB115: ='Hidden Summary'!T108 -> 0 | AG115: 0 | AH115: 0 | AI115: 0 | AJ115: ='Hidden Summary'!AB108 -> 0
A116: ='Hidden Summary'!A109 -> 0 | C116: ='Hidden Summary'!D109 -> 0 | E116: =IF('Hidden Summary'!G109="Rational Method","Rational",IF('Hidden Summary'!G109="TR-55 Method","TR-55",IF('Hidden Summary'!G109="USGS-5030 Method","USGS-5030",IF('Hidden Summary'!G109="USGS-5158 Method","USGS-5158",IF('Hidden Summary'!G109="User Input Method","User Input",""))))) ->  | G116: ='Hidden Summary'!I109 -> 0 | H116: ='Hidden Summary'!K109 -> 0 | I116: ='Hidden Summary'!M109 -> 0 | J116: ='Hidden Summary'!Z109 -> 0 | K116: ='Hidden Summary'!O109 -> 0 | M116: ='Hidden Summary'!Q109 -> 0 | N116: ='Hidden Summary'!U109 -> 0 | O116: ='Hidden Summary'!S109 -> 0 | P116: ='Hidden Summary'!X109 -> 0 | R116: ='Hidden Summary'!J109 -> 0 | S116: ='Hidden Summary'!L109 -> 0 | T116: ='Hidden Summary'!N109 -> 0 | U116: ='Hidden Summary'!AA109 -> 0 | V116: ='Hidden Summary'!P109 -> 0 | X116: ='Hidden Summary'!W109 -> 0 | Y116: ='Hidden Summary'!Y109 -> 0 | Z116: ='Hidden Summary'!R109 -> 0 | AA116: ='Hidden Summary'!V109 -> 0 | AB116: ='Hidden Summary'!T109 -> 0 | AG116: 0 | AH116: 0 | AI116: 0 | AJ116: ='Hidden Summary'!AB109 -> 0
A117: ='Hidden Summary'!A110 -> 0 | C117: ='Hidden Summary'!D110 -> 0 | E117: =IF('Hidden Summary'!G110="Rational Method","Rational",IF('Hidden Summary'!G110="TR-55 Method","TR-55",IF('Hidden Summary'!G110="USGS-5030 Method","USGS-5030",IF('Hidden Summary'!G110="USGS-5158 Method","USGS-5158",IF('Hidden Summary'!G110="User Input Method","User Input",""))))) ->  | G117: ='Hidden Summary'!I110 -> 0 | H117: ='Hidden Summary'!K110 -> 0 | I117: ='Hidden Summary'!M110 -> 0 | J117: ='Hidden Summary'!Z110 -> 0 | K117: ='Hidden Summary'!O110 -> 0 | M117: ='Hidden Summary'!Q110 -> 0 | N117: ='Hidden Summary'!U110 -> 0 | O117: ='Hidden Summary'!S110 -> 0 | P117: ='Hidden Summary'!X110 -> 0 | R117: ='Hidden Summary'!J110 -> 0 | S117: ='Hidden Summary'!L110 -> 0 | T117: ='Hidden Summary'!N110 -> 0 | U117: ='Hidden Summary'!AA110 -> 0 | V117: ='Hidden Summary'!P110 -> 0 | X117: ='Hidden Summary'!W110 -> 0 | Y117: ='Hidden Summary'!Y110 -> 0 | Z117: ='Hidden Summary'!R110 -> 0 | AA117: ='Hidden Summary'!V110 -> 0 | AB117: ='Hidden Summary'!T110 -> 0 | AG117: 0 | AH117: 0 | AI117: 0 | AJ117: ='Hidden Summary'!AB110 -> 0
A118: ='Hidden Summary'!A111 -> 0 | C118: ='Hidden Summary'!D111 -> 0 | E118: =IF('Hidden Summary'!G111="Rational Method","Rational",IF('Hidden Summary'!G111="TR-55 Method","TR-55",IF('Hidden Summary'!G111="USGS-5030 Method","USGS-5030",IF('Hidden Summary'!G111="USGS-5158 Method","USGS-5158",IF('Hidden Summary'!G111="User Input Method","User Input",""))))) ->  | G118: ='Hidden Summary'!I111 -> 0 | H118: ='Hidden Summary'!K111 -> 0 | I118: ='Hidden Summary'!M111 -> 0 | J118: ='Hidden Summary'!Z111 -> 0 | K118: ='Hidden Summary'!O111 -> 0 | M118: ='Hidden Summary'!Q111 -> 0 | N118: ='Hidden Summary'!U111 -> 0 | O118: ='Hidden Summary'!S111 -> 0 | P118: ='Hidden Summary'!X111 -> 0 | R118: ='Hidden Summary'!J111 -> 0 | S118: ='Hidden Summary'!L111 -> 0 | T118: ='Hidden Summary'!N111 -> 0 | U118: ='Hidden Summary'!AA111 -> 0 | V118: ='Hidden Summary'!P111 -> 0 | X118: ='Hidden Summary'!W111 -> 0 | Y118: ='Hidden Summary'!Y111 -> 0 | Z118: ='Hidden Summary'!R111 -> 0 | AA118: ='Hidden Summary'!V111 -> 0 | AB118: ='Hidden Summary'!T111 -> 0 | AG118: 0 | AH118: 0 | AI118: 0 | AJ118: ='Hidden Summary'!AB111 -> 0
A119: ='Hidden Summary'!A112 -> 0 | C119: ='Hidden Summary'!D112 -> 0 | E119: =IF('Hidden Summary'!G112="Rational Method","Rational",IF('Hidden Summary'!G112="TR-55 Method","TR-55",IF('Hidden Summary'!G112="USGS-5030 Method","USGS-5030",IF('Hidden Summary'!G112="USGS-5158 Method","USGS-5158",IF('Hidden Summary'!G112="User Input Method","User Input",""))))) ->  | G119: ='Hidden Summary'!I112 -> 0 | H119: ='Hidden Summary'!K112 -> 0 | I119: ='Hidden Summary'!M112 -> 0 | J119: ='Hidden Summary'!Z112 -> 0 | K119: ='Hidden Summary'!O112 -> 0 | M119: ='Hidden Summary'!Q112 -> 0 | N119: ='Hidden Summary'!U112 -> 0 | O119: ='Hidden Summary'!S112 -> 0 | P119: ='Hidden Summary'!X112 -> 0 | R119: ='Hidden Summary'!J112 -> 0 | S119: ='Hidden Summary'!L112 -> 0 | T119: ='Hidden Summary'!N112 -> 0 | U119: ='Hidden Summary'!AA112 -> 0 | V119: ='Hidden Summary'!P112 -> 0 | X119: ='Hidden Summary'!W112 -> 0 | Y119: ='Hidden Summary'!Y112 -> 0 | Z119: ='Hidden Summary'!R112 -> 0 | AA119: ='Hidden Summary'!V112 -> 0 | AB119: ='Hidden Summary'!T112 -> 0 | AG119: 0 | AH119: 0 | AI119: 0 | AJ119: ='Hidden Summary'!AB112 -> 0
A120: ='Hidden Summary'!A113 -> 0 | C120: ='Hidden Summary'!D113 -> 0 | E120: =IF('Hidden Summary'!G113="Rational Method","Rational",IF('Hidden Summary'!G113="TR-55 Method","TR-55",IF('Hidden Summary'!G113="USGS-5030 Method","USGS-5030",IF('Hidden Summary'!G113="USGS-5158 Method","USGS-5158",IF('Hidden Summary'!G113="User Input Method","User Input",""))))) ->  | G120: ='Hidden Summary'!I113 -> 0 | H120: ='Hidden Summary'!K113 -> 0 | I120: ='Hidden Summary'!M113 -> 0 | J120: ='Hidden Summary'!Z113 -> 0 | K120: ='Hidden Summary'!O113 -> 0 | M120: ='Hidden Summary'!Q113 -> 0 | N120: ='Hidden Summary'!U113 -> 0 | O120: ='Hidden Summary'!S113 -> 0 | P120: ='Hidden Summary'!X113 -> 0 | R120: ='Hidden Summary'!J113 -> 0 | S120: ='Hidden Summary'!L113 -> 0 | T120: ='Hidden Summary'!N113 -> 0 | U120: ='Hidden Summary'!AA113 -> 0 | V120: ='Hidden Summary'!P113 -> 0 | X120: ='Hidden Summary'!W113 -> 0 | Y120: ='Hidden Summary'!Y113 -> 0 | Z120: ='Hidden Summary'!R113 -> 0 | AA120: ='Hidden Summary'!V113 -> 0 | AB120: ='Hidden Summary'!T113 -> 0 | AG120: 0 | AH120: 0 | AI120: 0 | AJ120: ='Hidden Summary'!AB113 -> 0
A121: ='Hidden Summary'!A114 -> 0 | C121: ='Hidden Summary'!D114 -> 0 | E121: =IF('Hidden Summary'!G114="Rational Method","Rational",IF('Hidden Summary'!G114="TR-55 Method","TR-55",IF('Hidden Summary'!G114="USGS-5030 Method","USGS-5030",IF('Hidden Summary'!G114="USGS-5158 Method","USGS-5158",IF('Hidden Summary'!G114="User Input Method","User Input",""))))) ->  | G121: ='Hidden Summary'!I114 -> 0 | H121: ='Hidden Summary'!K114 -> 0 | I121: ='Hidden Summary'!M114 -> 0 | J121: ='Hidden Summary'!Z114 -> 0 | K121: ='Hidden Summary'!O114 -> 0 | M121: ='Hidden Summary'!Q114 -> 0 | N121: ='Hidden Summary'!U114 -> 0 | O121: ='Hidden Summary'!S114 -> 0 | P121: ='Hidden Summary'!X114 -> 0 | R121: ='Hidden Summary'!J114 -> 0 | S121: ='Hidden Summary'!L114 -> 0 | T121: ='Hidden Summary'!N114 -> 0 | U121: ='Hidden Summary'!AA114 -> 0 | V121: ='Hidden Summary'!P114 -> 0 | X121: ='Hidden Summary'!W114 -> 0 | Y121: ='Hidden Summary'!Y114 -> 0 | Z121: ='Hidden Summary'!R114 -> 0 | AA121: ='Hidden Summary'!V114 -> 0 | AB121: ='Hidden Summary'!T114 -> 0 | AG121: 0 | AH121: 0 | AI121: 0 | AJ121: ='Hidden Summary'!AB114 -> 0
A122: ='Hidden Summary'!A115 -> 0 | C122: ='Hidden Summary'!D115 -> 0 | E122: =IF('Hidden Summary'!G115="Rational Method","Rational",IF('Hidden Summary'!G115="TR-55 Method","TR-55",IF('Hidden Summary'!G115="USGS-5030 Method","USGS-5030",IF('Hidden Summary'!G115="USGS-5158 Method","USGS-5158",IF('Hidden Summary'!G115="User Input Method","User Input",""))))) ->  | G122: ='Hidden Summary'!I115 -> 0 | H122: ='Hidden Summary'!K115 -> 0 | I122: ='Hidden Summary'!M115 -> 0 | J122: ='Hidden Summary'!Z115 -> 0 | K122: ='Hidden Summary'!O115 -> 0 | M122: ='Hidden Summary'!Q115 -> 0 | N122: ='Hidden Summary'!U115 -> 0 | O122: ='Hidden Summary'!S115 -> 0 | P122: ='Hidden Summary'!X115 -> 0 | R122: ='Hidden Summary'!J115 -> 0 | S122: ='Hidden Summary'!L115 -> 0 | T122: ='Hidden Summary'!N115 -> 0 | U122: ='Hidden Summary'!AA115 -> 0 | V122: ='Hidden Summary'!P115 -> 0 | X122: ='Hidden Summary'!W115 -> 0 | Y122: ='Hidden Summary'!Y115 -> 0 | Z122: ='Hidden Summary'!R115 -> 0 | AA122: ='Hidden Summary'!V115 -> 0 | AB122: ='Hidden Summary'!T115 -> 0 | AG122: 0 | AH122: 0 | AI122: 0 | AJ122: ='Hidden Summary'!AB115 -> 0
A123: ='Hidden Summary'!A116 -> 0 | C123: ='Hidden Summary'!D116 -> 0 | E123: =IF('Hidden Summary'!G116="Rational Method","Rational",IF('Hidden Summary'!G116="TR-55 Method","TR-55",IF('Hidden Summary'!G116="USGS-5030 Method","USGS-5030",IF('Hidden Summary'!G116="USGS-5158 Method","USGS-5158",IF('Hidden Summary'!G116="User Input Method","User Input",""))))) ->  | G123: ='Hidden Summary'!I116 -> 0 | H123: ='Hidden Summary'!K116 -> 0 | I123: ='Hidden Summary'!M116 -> 0 | J123: ='Hidden Summary'!Z116 -> 0 | K123: ='Hidden Summary'!O116 -> 0 | M123: ='Hidden Summary'!Q116 -> 0 | N123: ='Hidden Summary'!U116 -> 0 | O123: ='Hidden Summary'!S116 -> 0 | P123: ='Hidden Summary'!X116 -> 0 | R123: ='Hidden Summary'!J116 -> 0 | S123: ='Hidden Summary'!L116 -> 0 | T123: ='Hidden Summary'!N116 -> 0 | U123: ='Hidden Summary'!AA116 -> 0 | V123: ='Hidden Summary'!P116 -> 0 | X123: ='Hidden Summary'!W116 -> 0 | Y123: ='Hidden Summary'!Y116 -> 0 | Z123: ='Hidden Summary'!R116 -> 0 | AA123: ='Hidden Summary'!V116 -> 0 | AB123: ='Hidden Summary'!T116 -> 0 | AG123: 0 | AH123: 0 | AI123: 0 | AJ123: ='Hidden Summary'!AB116 -> 0
A124: ='Hidden Summary'!A117 -> 0 | C124: ='Hidden Summary'!D117 -> 0 | E124: =IF('Hidden Summary'!G117="Rational Method","Rational",IF('Hidden Summary'!G117="TR-55 Method","TR-55",IF('Hidden Summary'!G117="USGS-5030 Method","USGS-5030",IF('Hidden Summary'!G117="USGS-5158 Method","USGS-5158",IF('Hidden Summary'!G117="User Input Method","User Input",""))))) ->  | G124: ='Hidden Summary'!I117 -> 0 | H124: ='Hidden Summary'!K117 -> 0 | I124: ='Hidden Summary'!M117 -> 0 | J124: ='Hidden Summary'!Z117 -> 0 | K124: ='Hidden Summary'!O117 -> 0 | M124: ='Hidden Summary'!Q117 -> 0 | N124: ='Hidden Summary'!U117 -> 0 | O124: ='Hidden Summary'!S117 -> 0 | P124: ='Hidden Summary'!X117 -> 0 | R124: ='Hidden Summary'!J117 -> 0 | S124: ='Hidden Summary'!L117 -> 0 | T124: ='Hidden Summary'!N117 -> 0 | U124: ='Hidden Summary'!AA117 -> 0 | V124: ='Hidden Summary'!P117 -> 0 | X124: ='Hidden Summary'!W117 -> 0 | Y124: ='Hidden Summary'!Y117 -> 0 | Z124: ='Hidden Summary'!R117 -> 0 | AA124: ='Hidden Summary'!V117 -> 0 | AB124: ='Hidden Summary'!T117 -> 0 | AG124: 0 | AH124: 0 | AI124: 0 | AJ124: ='Hidden Summary'!AB117 -> 0
A125: ='Hidden Summary'!A118 -> 0 | C125: ='Hidden Summary'!D118 -> 0 | E125: =IF('Hidden Summary'!G118="Rational Method","Rational",IF('Hidden Summary'!G118="TR-55 Method","TR-55",IF('Hidden Summary'!G118="USGS-5030 Method","USGS-5030",IF('Hidden Summary'!G118="USGS-5158 Method","USGS-5158",IF('Hidden Summary'!G118="User Input Method","User Input",""))))) ->  | G125: ='Hidden Summary'!I118 -> 0 | H125: ='Hidden Summary'!K118 -> 0 | I125: ='Hidden Summary'!M118 -> 0 | J125: ='Hidden Summary'!Z118 -> 0 | K125: ='Hidden Summary'!O118 -> 0 | M125: ='Hidden Summary'!Q118 -> 0 | N125: ='Hidden Summary'!U118 -> 0 | O125: ='Hidden Summary'!S118 -> 0 | P125: ='Hidden Summary'!X118 -> 0 | R125: ='Hidden Summary'!J118 -> 0 | S125: ='Hidden Summary'!L118 -> 0 | T125: ='Hidden Summary'!N118 -> 0 | U125: ='Hidden Summary'!AA118 -> 0 | V125: ='Hidden Summary'!P118 -> 0 | X125: ='Hidden Summary'!W118 -> 0 | Y125: ='Hidden Summary'!Y118 -> 0 | Z125: ='Hidden Summary'!R118 -> 0 | AA125: ='Hidden Summary'!V118 -> 0 | AB125: ='Hidden Summary'!T118 -> 0 | AG125: 0 | AH125: 0 | AI125: 0 | AJ125: ='Hidden Summary'!AB118 -> 0
A126: ='Hidden Summary'!A119 -> 0 | C126: ='Hidden Summary'!D119 -> 0 | E126: =IF('Hidden Summary'!G119="Rational Method","Rational",IF('Hidden Summary'!G119="TR-55 Method","TR-55",IF('Hidden Summary'!G119="USGS-5030 Method","USGS-5030",IF('Hidden Summary'!G119="USGS-5158 Method","USGS-5158",IF('Hidden Summary'!G119="User Input Method","User Input",""))))) ->  | G126: ='Hidden Summary'!I119 -> 0 | H126: ='Hidden Summary'!K119 -> 0 | I126: ='Hidden Summary'!M119 -> 0 | J126: ='Hidden Summary'!Z119 -> 0 | K126: ='Hidden Summary'!O119 -> 0 | M126: ='Hidden Summary'!Q119 -> 0 | N126: ='Hidden Summary'!U119 -> 0 | O126: ='Hidden Summary'!S119 -> 0 | P126: ='Hidden Summary'!X119 -> 0 | R126: ='Hidden Summary'!J119 -> 0 | S126: ='Hidden Summary'!L119 -> 0 | T126: ='Hidden Summary'!N119 -> 0 | U126: ='Hidden Summary'!AA119 -> 0 | V126: ='Hidden Summary'!P119 -> 0 | X126: ='Hidden Summary'!W119 -> 0 | Y126: ='Hidden Summary'!Y119 -> 0 | Z126: ='Hidden Summary'!R119 -> 0 | AA126: ='Hidden Summary'!V119 -> 0 | AB126: ='Hidden Summary'!T119 -> 0 | AG126: 0 | AH126: 0 | AI126: 0 | AJ126: ='Hidden Summary'!AB119 -> 0
A127: ='Hidden Summary'!A120 -> 0 | C127: ='Hidden Summary'!D120 -> 0 | E127: =IF('Hidden Summary'!G120="Rational Method","Rational",IF('Hidden Summary'!G120="TR-55 Method","TR-55",IF('Hidden Summary'!G120="USGS-5030 Method","USGS-5030",IF('Hidden Summary'!G120="USGS-5158 Method","USGS-5158",IF('Hidden Summary'!G120="User Input Method","User Input",""))))) ->  | G127: ='Hidden Summary'!I120 -> 0 | H127: ='Hidden Summary'!K120 -> 0 | I127: ='Hidden Summary'!M120 -> 0 | J127: ='Hidden Summary'!Z120 -> 0 | K127: ='Hidden Summary'!O120 -> 0 | M127: ='Hidden Summary'!Q120 -> 0 | N127: ='Hidden Summary'!U120 -> 0 | O127: ='Hidden Summary'!S120 -> 0 | P127: ='Hidden Summary'!X120 -> 0 | R127: ='Hidden Summary'!J120 -> 0 | S127: ='Hidden Summary'!L120 -> 0 | T127: ='Hidden Summary'!N120 -> 0 | U127: ='Hidden Summary'!AA120 -> 0 | V127: ='Hidden Summary'!P120 -> 0 | X127: ='Hidden Summary'!W120 -> 0 | Y127: ='Hidden Summary'!Y120 -> 0 | Z127: ='Hidden Summary'!R120 -> 0 | AA127: ='Hidden Summary'!V120 -> 0 | AB127: ='Hidden Summary'!T120 -> 0 | AG127: 0 | AH127: 0 | AI127: 0 | AJ127: ='Hidden Summary'!AB120 -> 0
A128: ='Hidden Summary'!A121 -> 0 | C128: ='Hidden Summary'!D121 -> 0 | E128: =IF('Hidden Summary'!G121="Rational Method","Rational",IF('Hidden Summary'!G121="TR-55 Method","TR-55",IF('Hidden Summary'!G121="USGS-5030 Method","USGS-5030",IF('Hidden Summary'!G121="USGS-5158 Method","USGS-5158",IF('Hidden Summary'!G121="User Input Method","User Input",""))))) ->  | G128: ='Hidden Summary'!I121 -> 0 | H128: ='Hidden Summary'!K121 -> 0 | I128: ='Hidden Summary'!M121 -> 0 | J128: ='Hidden Summary'!Z121 -> 0 | K128: ='Hidden Summary'!O121 -> 0 | M128: ='Hidden Summary'!Q121 -> 0 | N128: ='Hidden Summary'!U121 -> 0 | O128: ='Hidden Summary'!S121 -> 0 | P128: ='Hidden Summary'!X121 -> 0 | R128: ='Hidden Summary'!J121 -> 0 | S128: ='Hidden Summary'!L121 -> 0 | T128: ='Hidden Summary'!N121 -> 0 | U128: ='Hidden Summary'!AA121 -> 0 | V128: ='Hidden Summary'!P121 -> 0 | X128: ='Hidden Summary'!W121 -> 0 | Y128: ='Hidden Summary'!Y121 -> 0 | Z128: ='Hidden Summary'!R121 -> 0 | AA128: ='Hidden Summary'!V121 -> 0 | AB128: ='Hidden Summary'!T121 -> 0 | AG128: 0 | AH128: 0 | AI128: 0 | AJ128: ='Hidden Summary'!AB121 -> 0
A129: ='Hidden Summary'!A122 -> 0 | C129: ='Hidden Summary'!D122 -> 0 | E129: =IF('Hidden Summary'!G122="Rational Method","Rational",IF('Hidden Summary'!G122="TR-55 Method","TR-55",IF('Hidden Summary'!G122="USGS-5030 Method","USGS-5030",IF('Hidden Summary'!G122="USGS-5158 Method","USGS-5158",IF('Hidden Summary'!G122="User Input Method","User Input",""))))) ->  | G129: ='Hidden Summary'!I122 -> 0 | H129: ='Hidden Summary'!K122 -> 0 | I129: ='Hidden Summary'!M122 -> 0 | J129: ='Hidden Summary'!Z122 -> 0 | K129: ='Hidden Summary'!O122 -> 0 | M129: ='Hidden Summary'!Q122 -> 0 | N129: ='Hidden Summary'!U122 -> 0 | O129: ='Hidden Summary'!S122 -> 0 | P129: ='Hidden Summary'!X122 -> 0 | R129: ='Hidden Summary'!J122 -> 0 | S129: ='Hidden Summary'!L122 -> 0 | T129: ='Hidden Summary'!N122 -> 0 | U129: ='Hidden Summary'!AA122 -> 0 | V129: ='Hidden Summary'!P122 -> 0 | X129: ='Hidden Summary'!W122 -> 0 | Y129: ='Hidden Summary'!Y122 -> 0 | Z129: ='Hidden Summary'!R122 -> 0 | AA129: ='Hidden Summary'!V122 -> 0 | AB129: ='Hidden Summary'!T122 -> 0 | AG129: 0 | AH129: 0 | AI129: 0 | AJ129: ='Hidden Summary'!AB122 -> 0
A130: ='Hidden Summary'!A123 -> 0 | C130: ='Hidden Summary'!D123 -> 0 | E130: =IF('Hidden Summary'!G123="Rational Method","Rational",IF('Hidden Summary'!G123="TR-55 Method","TR-55",IF('Hidden Summary'!G123="USGS-5030 Method","USGS-5030",IF('Hidden Summary'!G123="USGS-5158 Method","USGS-5158",IF('Hidden Summary'!G123="User Input Method","User Input",""))))) ->  | G130: ='Hidden Summary'!I123 -> 0 | H130: ='Hidden Summary'!K123 -> 0 | I130: ='Hidden Summary'!M123 -> 0 | J130: ='Hidden Summary'!Z123 -> 0 | K130: ='Hidden Summary'!O123 -> 0 | M130: ='Hidden Summary'!Q123 -> 0 | N130: ='Hidden Summary'!U123 -> 0 | O130: ='Hidden Summary'!S123 -> 0 | P130: ='Hidden Summary'!X123 -> 0 | R130: ='Hidden Summary'!J123 -> 0 | S130: ='Hidden Summary'!L123 -> 0 | T130: ='Hidden Summary'!N123 -> 0 | U130: ='Hidden Summary'!AA123 -> 0 | V130: ='Hidden Summary'!P123 -> 0 | X130: ='Hidden Summary'!W123 -> 0 | Y130: ='Hidden Summary'!Y123 -> 0 | Z130: ='Hidden Summary'!R123 -> 0 | AA130: ='Hidden Summary'!V123 -> 0 | AB130: ='Hidden Summary'!T123 -> 0 | AG130: 0 | AH130: 0 | AI130: 0 | AJ130: ='Hidden Summary'!AB123 -> 0
A131: ='Hidden Summary'!A124 -> 0 | C131: ='Hidden Summary'!D124 -> 0 | E131: =IF('Hidden Summary'!G124="Rational Method","Rational",IF('Hidden Summary'!G124="TR-55 Method","TR-55",IF('Hidden Summary'!G124="USGS-5030 Method","USGS-5030",IF('Hidden Summary'!G124="USGS-5158 Method","USGS-5158",IF('Hidden Summary'!G124="User Input Method","User Input",""))))) ->  | G131: ='Hidden Summary'!I124 -> 0 | H131: ='Hidden Summary'!K124 -> 0 | I131: ='Hidden Summary'!M124 -> 0 | J131: ='Hidden Summary'!Z124 -> 0 | K131: ='Hidden Summary'!O124 -> 0 | M131: ='Hidden Summary'!Q124 -> 0 | N131: ='Hidden Summary'!U124 -> 0 | O131: ='Hidden Summary'!S124 -> 0 | P131: ='Hidden Summary'!X124 -> 0 | R131: ='Hidden Summary'!J124 -> 0 | S131: ='Hidden Summary'!L124 -> 0 | T131: ='Hidden Summary'!N124 -> 0 | U131: ='Hidden Summary'!AA124 -> 0 | V131: ='Hidden Summary'!P124 -> 0 | X131: ='Hidden Summary'!W124 -> 0 | Y131: ='Hidden Summary'!Y124 -> 0 | Z131: ='Hidden Summary'!R124 -> 0 | AA131: ='Hidden Summary'!V124 -> 0 | AB131: ='Hidden Summary'!T124 -> 0 | AG131: 0 | AH131: 0 | AI131: 0 | AJ131: ='Hidden Summary'!AB124 -> 0
A132: ='Hidden Summary'!A125 -> 0 | C132: ='Hidden Summary'!D125 -> 0 | E132: =IF('Hidden Summary'!G125="Rational Method","Rational",IF('Hidden Summary'!G125="TR-55 Method","TR-55",IF('Hidden Summary'!G125="USGS-5030 Method","USGS-5030",IF('Hidden Summary'!G125="USGS-5158 Method","USGS-5158",IF('Hidden Summary'!G125="User Input Method","User Input",""))))) ->  | G132: ='Hidden Summary'!I125 -> 0 | H132: ='Hidden Summary'!K125 -> 0 | I132: ='Hidden Summary'!M125 -> 0 | J132: ='Hidden Summary'!Z125 -> 0 | K132: ='Hidden Summary'!O125 -> 0 | M132: ='Hidden Summary'!Q125 -> 0 | N132: ='Hidden Summary'!U125 -> 0 | O132: ='Hidden Summary'!S125 -> 0 | P132: ='Hidden Summary'!X125 -> 0 | R132: ='Hidden Summary'!J125 -> 0 | S132: ='Hidden Summary'!L125 -> 0 | T132: ='Hidden Summary'!N125 -> 0 | U132: ='Hidden Summary'!AA125 -> 0 | V132: ='Hidden Summary'!P125 -> 0 | X132: ='Hidden Summary'!W125 -> 0 | Y132: ='Hidden Summary'!Y125 -> 0 | Z132: ='Hidden Summary'!R125 -> 0 | AA132: ='Hidden Summary'!V125 -> 0 | AB132: ='Hidden Summary'!T125 -> 0 | AG132: 0 | AH132: 0 | AI132: 0 | AJ132: ='Hidden Summary'!AB125 -> 0
A133: ='Hidden Summary'!A126 -> 0 | C133: ='Hidden Summary'!D126 -> 0 | E133: =IF('Hidden Summary'!G126="Rational Method","Rational",IF('Hidden Summary'!G126="TR-55 Method","TR-55",IF('Hidden Summary'!G126="USGS-5030 Method","USGS-5030",IF('Hidden Summary'!G126="USGS-5158 Method","USGS-5158",IF('Hidden Summary'!G126="User Input Method","User Input",""))))) ->  | G133: ='Hidden Summary'!I126 -> 0 | H133: ='Hidden Summary'!K126 -> 0 | I133: ='Hidden Summary'!M126 -> 0 | J133: ='Hidden Summary'!Z126 -> 0 | K133: ='Hidden Summary'!O126 -> 0 | M133: ='Hidden Summary'!Q126 -> 0 | N133: ='Hidden Summary'!U126 -> 0 | O133: ='Hidden Summary'!S126 -> 0 | P133: ='Hidden Summary'!X126 -> 0 | R133: ='Hidden Summary'!J126 -> 0 | S133: ='Hidden Summary'!L126 -> 0 | T133: ='Hidden Summary'!N126 -> 0 | U133: ='Hidden Summary'!AA126 -> 0 | V133: ='Hidden Summary'!P126 -> 0 | X133: ='Hidden Summary'!W126 -> 0 | Y133: ='Hidden Summary'!Y126 -> 0 | Z133: ='Hidden Summary'!R126 -> 0 | AA133: ='Hidden Summary'!V126 -> 0 | AB133: ='Hidden Summary'!T126 -> 0 | AG133: 0 | AH133: 0 | AI133: 0 | AJ133: ='Hidden Summary'!AB126 -> 0
A134: ='Hidden Summary'!A127 -> 0 | C134: ='Hidden Summary'!D127 -> 0 | E134: =IF('Hidden Summary'!G127="Rational Method","Rational",IF('Hidden Summary'!G127="TR-55 Method","TR-55",IF('Hidden Summary'!G127="USGS-5030 Method","USGS-5030",IF('Hidden Summary'!G127="USGS-5158 Method","USGS-5158",IF('Hidden Summary'!G127="User Input Method","User Input",""))))) ->  | G134: ='Hidden Summary'!I127 -> 0 | H134: ='Hidden Summary'!K127 -> 0 | I134: ='Hidden Summary'!M127 -> 0 | J134: ='Hidden Summary'!Z127 -> 0 | K134: ='Hidden Summary'!O127 -> 0 | M134: ='Hidden Summary'!Q127 -> 0 | N134: ='Hidden Summary'!U127 -> 0 | O134: ='Hidden Summary'!S127 -> 0 | P134: ='Hidden Summary'!X127 -> 0 | R134: ='Hidden Summary'!J127 -> 0 | S134: ='Hidden Summary'!L127 -> 0 | T134: ='Hidden Summary'!N127 -> 0 | U134: ='Hidden Summary'!AA127 -> 0 | V134: ='Hidden Summary'!P127 -> 0 | X134: ='Hidden Summary'!W127 -> 0 | Y134: ='Hidden Summary'!Y127 -> 0 | Z134: ='Hidden Summary'!R127 -> 0 | AA134: ='Hidden Summary'!V127 -> 0 | AB134: ='Hidden Summary'!T127 -> 0 | AG134: 0 | AH134: 0 | AI134: 0 | AJ134: ='Hidden Summary'!AB127 -> 0
A135: ='Hidden Summary'!A128 -> 0 | C135: ='Hidden Summary'!D128 -> 0 | E135: =IF('Hidden Summary'!G128="Rational Method","Rational",IF('Hidden Summary'!G128="TR-55 Method","TR-55",IF('Hidden Summary'!G128="USGS-5030 Method","USGS-5030",IF('Hidden Summary'!G128="USGS-5158 Method","USGS-5158",IF('Hidden Summary'!G128="User Input Method","User Input",""))))) ->  | G135: ='Hidden Summary'!I128 -> 0 | H135: ='Hidden Summary'!K128 -> 0 | I135: ='Hidden Summary'!M128 -> 0 | J135: ='Hidden Summary'!Z128 -> 0 | K135: ='Hidden Summary'!O128 -> 0 | M135: ='Hidden Summary'!Q128 -> 0 | N135: ='Hidden Summary'!U128 -> 0 | O135: ='Hidden Summary'!S128 -> 0 | P135: ='Hidden Summary'!X128 -> 0 | R135: ='Hidden Summary'!J128 -> 0 | S135: ='Hidden Summary'!L128 -> 0 | T135: ='Hidden Summary'!N128 -> 0 | U135: ='Hidden Summary'!AA128 -> 0 | V135: ='Hidden Summary'!P128 -> 0 | X135: ='Hidden Summary'!W128 -> 0 | Y135: ='Hidden Summary'!Y128 -> 0 | Z135: ='Hidden Summary'!R128 -> 0 | AA135: ='Hidden Summary'!V128 -> 0 | AB135: ='Hidden Summary'!T128 -> 0 | AG135: 0 | AH135: 0 | AI135: 0 | AJ135: ='Hidden Summary'!AB128 -> 0
A136: ='Hidden Summary'!A129 -> 0 | C136: ='Hidden Summary'!D129 -> 0 | E136: =IF('Hidden Summary'!G129="Rational Method","Rational",IF('Hidden Summary'!G129="TR-55 Method","TR-55",IF('Hidden Summary'!G129="USGS-5030 Method","USGS-5030",IF('Hidden Summary'!G129="USGS-5158 Method","USGS-5158",IF('Hidden Summary'!G129="User Input Method","User Input",""))))) ->  | G136: ='Hidden Summary'!I129 -> 0 | H136: ='Hidden Summary'!K129 -> 0 | I136: ='Hidden Summary'!M129 -> 0 | J136: ='Hidden Summary'!Z129 -> 0 | K136: ='Hidden Summary'!O129 -> 0 | M136: ='Hidden Summary'!Q129 -> 0 | N136: ='Hidden Summary'!U129 -> 0 | O136: ='Hidden Summary'!S129 -> 0 | P136: ='Hidden Summary'!X129 -> 0 | R136: ='Hidden Summary'!J129 -> 0 | S136: ='Hidden Summary'!L129 -> 0 | T136: ='Hidden Summary'!N129 -> 0 | U136: ='Hidden Summary'!AA129 -> 0 | V136: ='Hidden Summary'!P129 -> 0 | X136: ='Hidden Summary'!W129 -> 0 | Y136: ='Hidden Summary'!Y129 -> 0 | Z136: ='Hidden Summary'!R129 -> 0 | AA136: ='Hidden Summary'!V129 -> 0 | AB136: ='Hidden Summary'!T129 -> 0 | AG136: 0 | AH136: 0 | AI136: 0 | AJ136: ='Hidden Summary'!AB129 -> 0
A137: ='Hidden Summary'!A130 -> 0 | C137: ='Hidden Summary'!D130 -> 0 | E137: =IF('Hidden Summary'!G130="Rational Method","Rational",IF('Hidden Summary'!G130="TR-55 Method","TR-55",IF('Hidden Summary'!G130="USGS-5030 Method","USGS-5030",IF('Hidden Summary'!G130="USGS-5158 Method","USGS-5158",IF('Hidden Summary'!G130="User Input Method","User Input",""))))) ->  | G137: ='Hidden Summary'!I130 -> 0 | H137: ='Hidden Summary'!K130 -> 0 | I137: ='Hidden Summary'!M130 -> 0 | J137: ='Hidden Summary'!Z130 -> 0 | K137: ='Hidden Summary'!O130 -> 0 | M137: ='Hidden Summary'!Q130 -> 0 | N137: ='Hidden Summary'!U130 -> 0 | O137: ='Hidden Summary'!S130 -> 0 | P137: ='Hidden Summary'!X130 -> 0 | R137: ='Hidden Summary'!J130 -> 0 | S137: ='Hidden Summary'!L130 -> 0 | T137: ='Hidden Summary'!N130 -> 0 | U137: ='Hidden Summary'!AA130 -> 0 | V137: ='Hidden Summary'!P130 -> 0 | X137: ='Hidden Summary'!W130 -> 0 | Y137: ='Hidden Summary'!Y130 -> 0 | Z137: ='Hidden Summary'!R130 -> 0 | AA137: ='Hidden Summary'!V130 -> 0 | AB137: ='Hidden Summary'!T130 -> 0 | AG137: 0 | AH137: 0 | AI137: 0 | AJ137: ='Hidden Summary'!AB130 -> 0
A138: ='Hidden Summary'!A131 -> 0 | C138: ='Hidden Summary'!D131 -> 0 | E138: =IF('Hidden Summary'!G131="Rational Method","Rational",IF('Hidden Summary'!G131="TR-55 Method","TR-55",IF('Hidden Summary'!G131="USGS-5030 Method","USGS-5030",IF('Hidden Summary'!G131="USGS-5158 Method","USGS-5158",IF('Hidden Summary'!G131="User Input Method","User Input",""))))) ->  | G138: ='Hidden Summary'!I131 -> 0 | H138: ='Hidden Summary'!K131 -> 0 | I138: ='Hidden Summary'!M131 -> 0 | J138: ='Hidden Summary'!Z131 -> 0 | K138: ='Hidden Summary'!O131 -> 0 | M138: ='Hidden Summary'!Q131 -> 0 | N138: ='Hidden Summary'!U131 -> 0 | O138: ='Hidden Summary'!S131 -> 0 | P138: ='Hidden Summary'!X131 -> 0 | R138: ='Hidden Summary'!J131 -> 0 | S138: ='Hidden Summary'!L131 -> 0 | T138: ='Hidden Summary'!N131 -> 0 | U138: ='Hidden Summary'!AA131 -> 0 | V138: ='Hidden Summary'!P131 -> 0 | X138: ='Hidden Summary'!W131 -> 0 | Y138: ='Hidden Summary'!Y131 -> 0 | Z138: ='Hidden Summary'!R131 -> 0 | AA138: ='Hidden Summary'!V131 -> 0 | AB138: ='Hidden Summary'!T131 -> 0 | AD138: =(Z138/M138)-1 ->  | AE138: =(AA138/N138)-1 ->  | AF138: =(AB138/O138)-1 ->  | AG138: =R138-G138 -> 0 | AH138: =(U138*R138)-(J138*G138) -> 0 | AI138: =U138-J138 -> 0 | AJ138: ='Hidden Summary'!AB131 -> 0
A139: ='Hidden Summary'!A132 -> 0 | C139: ='Hidden Summary'!D132 -> 0 | E139: =IF('Hidden Summary'!G132="Rational Method","Rational",IF('Hidden Summary'!G132="TR-55 Method","TR-55",IF('Hidden Summary'!G132="USGS-5030 Method","USGS-5030",IF('Hidden Summary'!G132="USGS-5158 Method","USGS-5158",IF('Hidden Summary'!G132="User Input Method","User Input",""))))) ->  | G139: ='Hidden Summary'!I132 -> 0 | H139: ='Hidden Summary'!K132 -> 0 | I139: ='Hidden Summary'!M132 -> 0 | J139: ='Hidden Summary'!Z132 -> 0 | K139: ='Hidden Summary'!O132 -> 0 | M139: ='Hidden Summary'!Q132 -> 0 | N139: ='Hidden Summary'!U132 -> 0 | O139: ='Hidden Summary'!S132 -> 0 | P139: ='Hidden Summary'!X132 -> 0 | R139: ='Hidden Summary'!J132 -> 0 | S139: ='Hidden Summary'!L132 -> 0 | T139: ='Hidden Summary'!N132 -> 0 | U139: ='Hidden Summary'!AA132 -> 0 | V139: ='Hidden Summary'!P132 -> 0 | X139: ='Hidden Summary'!W132 -> 0 | Y139: ='Hidden Summary'!Y132 -> 0 | Z139: ='Hidden Summary'!R132 -> 0 | AA139: ='Hidden Summary'!V132 -> 0 | AB139: ='Hidden Summary'!T132 -> 0 | AG139: 0 | AH139: 0 | AI139: 0 | AJ139: ='Hidden Summary'!AB132 -> 0
A140: ='Hidden Summary'!A133 -> 0 | C140: ='Hidden Summary'!D133 -> 0 | E140: =IF('Hidden Summary'!G133="Rational Method","Rational",IF('Hidden Summary'!G133="TR-55 Method","TR-55",IF('Hidden Summary'!G133="USGS-5030 Method","USGS-5030",IF('Hidden Summary'!G133="USGS-5158 Method","USGS-5158",IF('Hidden Summary'!G133="User Input Method","User Input",""))))) ->  | G140: ='Hidden Summary'!I133 -> 0 | H140: ='Hidden Summary'!K133 -> 0 | I140: ='Hidden Summary'!M133 -> 0 | J140: ='Hidden Summary'!Z133 -> 0 | K140: ='Hidden Summary'!O133 -> 0 | M140: ='Hidden Summary'!Q133 -> 0 | N140: ='Hidden Summary'!U133 -> 0 | O140: ='Hidden Summary'!S133 -> 0 | P140: ='Hidden Summary'!X133 -> 0 | R140: ='Hidden Summary'!J133 -> 0 | S140: ='Hidden Summary'!L133 -> 0 | T140: ='Hidden Summary'!N133 -> 0 | U140: ='Hidden Summary'!AA133 -> 0 | V140: ='Hidden Summary'!P133 -> 0 | X140: ='Hidden Summary'!W133 -> 0 | Y140: ='Hidden Summary'!Y133 -> 0 | Z140: ='Hidden Summary'!R133 -> 0 | AA140: ='Hidden Summary'!V133 -> 0 | AB140: ='Hidden Summary'!T133 -> 0 | AG140: 0 | AH140: 0 | AI140: 0 | AJ140: ='Hidden Summary'!AB133 -> 0
A141: ='Hidden Summary'!A134 -> 0 | C141: ='Hidden Summary'!D134 -> 0 | E141: =IF('Hidden Summary'!G134="Rational Method","Rational",IF('Hidden Summary'!G134="TR-55 Method","TR-55",IF('Hidden Summary'!G134="USGS-5030 Method","USGS-5030",IF('Hidden Summary'!G134="USGS-5158 Method","USGS-5158",IF('Hidden Summary'!G134="User Input Method","User Input",""))))) ->  | G141: ='Hidden Summary'!I134 -> 0 | H141: ='Hidden Summary'!K134 -> 0 | I141: ='Hidden Summary'!M134 -> 0 | J141: ='Hidden Summary'!Z134 -> 0 | K141: ='Hidden Summary'!O134 -> 0 | M141: ='Hidden Summary'!Q134 -> 0 | N141: ='Hidden Summary'!U134 -> 0 | O141: ='Hidden Summary'!S134 -> 0 | P141: ='Hidden Summary'!X134 -> 0 | R141: ='Hidden Summary'!J134 -> 0 | S141: ='Hidden Summary'!L134 -> 0 | T141: ='Hidden Summary'!N134 -> 0 | U141: ='Hidden Summary'!AA134 -> 0 | V141: ='Hidden Summary'!P134 -> 0 | X141: ='Hidden Summary'!W134 -> 0 | Y141: ='Hidden Summary'!Y134 -> 0 | Z141: ='Hidden Summary'!R134 -> 0 | AA141: ='Hidden Summary'!V134 -> 0 | AB141: ='Hidden Summary'!T134 -> 0 | AG141: 0 | AH141: 0 | AI141: 0 | AJ141: ='Hidden Summary'!AB134 -> 0
A142: ='Hidden Summary'!A135 -> 0 | C142: ='Hidden Summary'!D135 -> 0 | E142: =IF('Hidden Summary'!G135="Rational Method","Rational",IF('Hidden Summary'!G135="TR-55 Method","TR-55",IF('Hidden Summary'!G135="USGS-5030 Method","USGS-5030",IF('Hidden Summary'!G135="USGS-5158 Method","USGS-5158",IF('Hidden Summary'!G135="User Input Method","User Input",""))))) ->  | G142: ='Hidden Summary'!I135 -> 0 | H142: ='Hidden Summary'!K135 -> 0 | I142: ='Hidden Summary'!M135 -> 0 | J142: ='Hidden Summary'!Z135 -> 0 | K142: ='Hidden Summary'!O135 -> 0 | M142: ='Hidden Summary'!Q135 -> 0 | N142: ='Hidden Summary'!U135 -> 0 | O142: ='Hidden Summary'!S135 -> 0 | P142: ='Hidden Summary'!X135 -> 0 | R142: ='Hidden Summary'!J135 -> 0 | S142: ='Hidden Summary'!L135 -> 0 | T142: ='Hidden Summary'!N135 -> 0 | U142: ='Hidden Summary'!AA135 -> 0 | V142: ='Hidden Summary'!P135 -> 0 | X142: ='Hidden Summary'!W135 -> 0 | Y142: ='Hidden Summary'!Y135 -> 0 | Z142: ='Hidden Summary'!R135 -> 0 | AA142: ='Hidden Summary'!V135 -> 0 | AB142: ='Hidden Summary'!T135 -> 0 | AG142: 0 | AH142: 0 | AI142: 0 | AJ142: ='Hidden Summary'!AB135 -> 0
A143: ='Hidden Summary'!A136 -> 0 | C143: ='Hidden Summary'!D136 -> 0 | E143: =IF('Hidden Summary'!G136="Rational Method","Rational",IF('Hidden Summary'!G136="TR-55 Method","TR-55",IF('Hidden Summary'!G136="USGS-5030 Method","USGS-5030",IF('Hidden Summary'!G136="USGS-5158 Method","USGS-5158",IF('Hidden Summary'!G136="User Input Method","User Input",""))))) ->  | G143: ='Hidden Summary'!I136 -> 0 | H143: ='Hidden Summary'!K136 -> 0 | I143: ='Hidden Summary'!M136 -> 0 | J143: ='Hidden Summary'!Z136 -> 0 | K143: ='Hidden Summary'!O136 -> 0 | M143: ='Hidden Summary'!Q136 -> 0 | N143: ='Hidden Summary'!U136 -> 0 | O143: ='Hidden Summary'!S136 -> 0 | P143: ='Hidden Summary'!X136 -> 0 | R143: ='Hidden Summary'!J136 -> 0 | S143: ='Hidden Summary'!L136 -> 0 | T143: ='Hidden Summary'!N136 -> 0 | U143: ='Hidden Summary'!AA136 -> 0 | V143: ='Hidden Summary'!P136 -> 0 | X143: ='Hidden Summary'!W136 -> 0 | Y143: ='Hidden Summary'!Y136 -> 0 | Z143: ='Hidden Summary'!R136 -> 0 | AA143: ='Hidden Summary'!V136 -> 0 | AB143: ='Hidden Summary'!T136 -> 0 | AG143: 0 | AH143: 0 | AI143: 0 | AJ143: ='Hidden Summary'!AB136 -> 0
A144: ='Hidden Summary'!A137 -> 0 | C144: ='Hidden Summary'!D137 -> 0 | E144: =IF('Hidden Summary'!G137="Rational Method","Rational",IF('Hidden Summary'!G137="TR-55 Method","TR-55",IF('Hidden Summary'!G137="USGS-5030 Method","USGS-5030",IF('Hidden Summary'!G137="USGS-5158 Method","USGS-5158",IF('Hidden Summary'!G137="User Input Method","User Input",""))))) ->  | G144: ='Hidden Summary'!I137 -> 0 | H144: ='Hidden Summary'!K137 -> 0 | I144: ='Hidden Summary'!M137 -> 0 | J144: ='Hidden Summary'!Z137 -> 0 | K144: ='Hidden Summary'!O137 -> 0 | M144: ='Hidden Summary'!Q137 -> 0 | N144: ='Hidden Summary'!U137 -> 0 | O144: ='Hidden Summary'!S137 -> 0 | P144: ='Hidden Summary'!X137 -> 0 | R144: ='Hidden Summary'!J137 -> 0 | S144: ='Hidden Summary'!L137 -> 0 | T144: ='Hidden Summary'!N137 -> 0 | U144: ='Hidden Summary'!AA137 -> 0 | V144: ='Hidden Summary'!P137 -> 0 | X144: ='Hidden Summary'!W137 -> 0 | Y144: ='Hidden Summary'!Y137 -> 0 | Z144: ='Hidden Summary'!R137 -> 0 | AA144: ='Hidden Summary'!V137 -> 0 | AB144: ='Hidden Summary'!T137 -> 0 | AG144: 0 | AH144: 0 | AI144: 0 | AJ144: ='Hidden Summary'!AB137 -> 0
A145: ='Hidden Summary'!A138 -> 0 | C145: ='Hidden Summary'!D138 -> 0 | E145: =IF('Hidden Summary'!G138="Rational Method","Rational",IF('Hidden Summary'!G138="TR-55 Method","TR-55",IF('Hidden Summary'!G138="USGS-5030 Method","USGS-5030",IF('Hidden Summary'!G138="USGS-5158 Method","USGS-5158",IF('Hidden Summary'!G138="User Input Method","User Input",""))))) ->  | G145: ='Hidden Summary'!I138 -> 0 | H145: ='Hidden Summary'!K138 -> 0 | I145: ='Hidden Summary'!M138 -> 0 | J145: ='Hidden Summary'!Z138 -> 0 | K145: ='Hidden Summary'!O138 -> 0 | M145: ='Hidden Summary'!Q138 -> 0 | N145: ='Hidden Summary'!U138 -> 0 | O145: ='Hidden Summary'!S138 -> 0 | P145: ='Hidden Summary'!X138 -> 0 | R145: ='Hidden Summary'!J138 -> 0 | S145: ='Hidden Summary'!L138 -> 0 | T145: ='Hidden Summary'!N138 -> 0 | U145: ='Hidden Summary'!AA138 -> 0 | V145: ='Hidden Summary'!P138 -> 0 | X145: ='Hidden Summary'!W138 -> 0 | Y145: ='Hidden Summary'!Y138 -> 0 | Z145: ='Hidden Summary'!R138 -> 0 | AA145: ='Hidden Summary'!V138 -> 0 | AB145: ='Hidden Summary'!T138 -> 0 | AG145: 0 | AH145: 0 | AI145: 0 | AJ145: ='Hidden Summary'!AB138 -> 0
A146: ='Hidden Summary'!A139 -> 0 | C146: ='Hidden Summary'!D139 -> 0 | E146: =IF('Hidden Summary'!G139="Rational Method","Rational",IF('Hidden Summary'!G139="TR-55 Method","TR-55",IF('Hidden Summary'!G139="USGS-5030 Method","USGS-5030",IF('Hidden Summary'!G139="USGS-5158 Method","USGS-5158",IF('Hidden Summary'!G139="User Input Method","User Input",""))))) ->  | G146: ='Hidden Summary'!I139 -> 0 | H146: ='Hidden Summary'!K139 -> 0 | I146: ='Hidden Summary'!M139 -> 0 | J146: ='Hidden Summary'!Z139 -> 0 | K146: ='Hidden Summary'!O139 -> 0 | M146: ='Hidden Summary'!Q139 -> 0 | N146: ='Hidden Summary'!U139 -> 0 | O146: ='Hidden Summary'!S139 -> 0 | P146: ='Hidden Summary'!X139 -> 0 | R146: ='Hidden Summary'!J139 -> 0 | S146: ='Hidden Summary'!L139 -> 0 | T146: ='Hidden Summary'!N139 -> 0 | U146: ='Hidden Summary'!AA139 -> 0 | V146: ='Hidden Summary'!P139 -> 0 | X146: ='Hidden Summary'!W139 -> 0 | Y146: ='Hidden Summary'!Y139 -> 0 | Z146: ='Hidden Summary'!R139 -> 0 | AA146: ='Hidden Summary'!V139 -> 0 | AB146: ='Hidden Summary'!T139 -> 0 | AG146: 0 | AH146: 0 | AI146: 0 | AJ146: ='Hidden Summary'!AB139 -> 0
A147: ='Hidden Summary'!A140 -> 0 | C147: ='Hidden Summary'!D140 -> 0 | E147: =IF('Hidden Summary'!G140="Rational Method","Rational",IF('Hidden Summary'!G140="TR-55 Method","TR-55",IF('Hidden Summary'!G140="USGS-5030 Method","USGS-5030",IF('Hidden Summary'!G140="USGS-5158 Method","USGS-5158",IF('Hidden Summary'!G140="User Input Method","User Input",""))))) ->  | G147: ='Hidden Summary'!I140 -> 0 | H147: ='Hidden Summary'!K140 -> 0 | I147: ='Hidden Summary'!M140 -> 0 | J147: ='Hidden Summary'!Z140 -> 0 | K147: ='Hidden Summary'!O140 -> 0 | M147: ='Hidden Summary'!Q140 -> 0 | N147: ='Hidden Summary'!U140 -> 0 | O147: ='Hidden Summary'!S140 -> 0 | P147: ='Hidden Summary'!X140 -> 0 | R147: ='Hidden Summary'!J140 -> 0 | S147: ='Hidden Summary'!L140 -> 0 | T147: ='Hidden Summary'!N140 -> 0 | U147: ='Hidden Summary'!AA140 -> 0 | V147: ='Hidden Summary'!P140 -> 0 | X147: ='Hidden Summary'!W140 -> 0 | Y147: ='Hidden Summary'!Y140 -> 0 | Z147: ='Hidden Summary'!R140 -> 0 | AA147: ='Hidden Summary'!V140 -> 0 | AB147: ='Hidden Summary'!T140 -> 0 | AG147: 0 | AH147: 0 | AI147: 0 | AJ147: ='Hidden Summary'!AB140 -> 0
A148: ='Hidden Summary'!A141 -> 0 | C148: ='Hidden Summary'!D141 -> 0 | E148: =IF('Hidden Summary'!G141="Rational Method","Rational",IF('Hidden Summary'!G141="TR-55 Method","TR-55",IF('Hidden Summary'!G141="USGS-5030 Method","USGS-5030",IF('Hidden Summary'!G141="USGS-5158 Method","USGS-5158",IF('Hidden Summary'!G141="User Input Method","User Input",""))))) ->  | G148: ='Hidden Summary'!I141 -> 0 | H148: ='Hidden Summary'!K141 -> 0 | I148: ='Hidden Summary'!M141 -> 0 | J148: ='Hidden Summary'!Z141 -> 0 | K148: ='Hidden Summary'!O141 -> 0 | M148: ='Hidden Summary'!Q141 -> 0 | N148: ='Hidden Summary'!U141 -> 0 | O148: ='Hidden Summary'!S141 -> 0 | P148: ='Hidden Summary'!X141 -> 0 | R148: ='Hidden Summary'!J141 -> 0 | S148: ='Hidden Summary'!L141 -> 0 | T148: ='Hidden Summary'!N141 -> 0 | U148: ='Hidden Summary'!AA141 -> 0 | V148: ='Hidden Summary'!P141 -> 0 | X148: ='Hidden Summary'!W141 -> 0 | Y148: ='Hidden Summary'!Y141 -> 0 | Z148: ='Hidden Summary'!R141 -> 0 | AA148: ='Hidden Summary'!V141 -> 0 | AB148: ='Hidden Summary'!T141 -> 0 | AG148: 0 | AH148: 0 | AI148: 0 | AJ148: ='Hidden Summary'!AB141 -> 0
A149: ='Hidden Summary'!A142 -> 0 | C149: ='Hidden Summary'!D142 -> 0 | E149: =IF('Hidden Summary'!G142="Rational Method","Rational",IF('Hidden Summary'!G142="TR-55 Method","TR-55",IF('Hidden Summary'!G142="USGS-5030 Method","USGS-5030",IF('Hidden Summary'!G142="USGS-5158 Method","USGS-5158",IF('Hidden Summary'!G142="User Input Method","User Input",""))))) ->  | G149: ='Hidden Summary'!I142 -> 0 | H149: ='Hidden Summary'!K142 -> 0 | I149: ='Hidden Summary'!M142 -> 0 | J149: ='Hidden Summary'!Z142 -> 0 | K149: ='Hidden Summary'!O142 -> 0 | M149: ='Hidden Summary'!Q142 -> 0 | N149: ='Hidden Summary'!U142 -> 0 | O149: ='Hidden Summary'!S142 -> 0 | P149: ='Hidden Summary'!X142 -> 0 | R149: ='Hidden Summary'!J142 -> 0 | S149: ='Hidden Summary'!L142 -> 0 | T149: ='Hidden Summary'!N142 -> 0 | U149: ='Hidden Summary'!AA142 -> 0 | V149: ='Hidden Summary'!P142 -> 0 | X149: ='Hidden Summary'!W142 -> 0 | Y149: ='Hidden Summary'!Y142 -> 0 | Z149: ='Hidden Summary'!R142 -> 0 | AA149: ='Hidden Summary'!V142 -> 0 | AB149: ='Hidden Summary'!T142 -> 0 | AG149: 0 | AH149: 0 | AI149: 0 | AJ149: ='Hidden Summary'!AB142 -> 0
A150: ='Hidden Summary'!A143 -> 0 | C150: ='Hidden Summary'!D143 -> 0 | E150: =IF('Hidden Summary'!G143="Rational Method","Rational",IF('Hidden Summary'!G143="TR-55 Method","TR-55",IF('Hidden Summary'!G143="USGS-5030 Method","USGS-5030",IF('Hidden Summary'!G143="USGS-5158 Method","USGS-5158",IF('Hidden Summary'!G143="User Input Method","User Input",""))))) ->  | G150: ='Hidden Summary'!I143 -> 0 | H150: ='Hidden Summary'!K143 -> 0 | I150: ='Hidden Summary'!M143 -> 0 | J150: ='Hidden Summary'!Z143 -> 0 | K150: ='Hidden Summary'!O143 -> 0 | M150: ='Hidden Summary'!Q143 -> 0 | N150: ='Hidden Summary'!U143 -> 0 | O150: ='Hidden Summary'!S143 -> 0 | P150: ='Hidden Summary'!X143 -> 0 | R150: ='Hidden Summary'!J143 -> 0 | S150: ='Hidden Summary'!L143 -> 0 | T150: ='Hidden Summary'!N143 -> 0 | U150: ='Hidden Summary'!AA143 -> 0 | V150: ='Hidden Summary'!P143 -> 0 | X150: ='Hidden Summary'!W143 -> 0 | Y150: ='Hidden Summary'!Y143 -> 0 | Z150: ='Hidden Summary'!R143 -> 0 | AA150: ='Hidden Summary'!V143 -> 0 | AB150: ='Hidden Summary'!T143 -> 0 | AG150: 0 | AH150: 0 | AI150: 0 | AJ150: ='Hidden Summary'!AB143 -> 0
A151: ='Hidden Summary'!A144 -> 0 | C151: ='Hidden Summary'!D144 -> 0 | E151: =IF('Hidden Summary'!G144="Rational Method","Rational",IF('Hidden Summary'!G144="TR-55 Method","TR-55",IF('Hidden Summary'!G144="USGS-5030 Method","USGS-5030",IF('Hidden Summary'!G144="USGS-5158 Method","USGS-5158",IF('Hidden Summary'!G144="User Input Method","User Input",""))))) ->  | G151: ='Hidden Summary'!I144 -> 0 | H151: ='Hidden Summary'!K144 -> 0 | I151: ='Hidden Summary'!M144 -> 0 | J151: ='Hidden Summary'!Z144 -> 0 | K151: ='Hidden Summary'!O144 -> 0 | M151: ='Hidden Summary'!Q144 -> 0 | N151: ='Hidden Summary'!U144 -> 0 | O151: ='Hidden Summary'!S144 -> 0 | P151: ='Hidden Summary'!X144 -> 0 | R151: ='Hidden Summary'!J144 -> 0 | S151: ='Hidden Summary'!L144 -> 0 | T151: ='Hidden Summary'!N144 -> 0 | U151: ='Hidden Summary'!AA144 -> 0 | V151: ='Hidden Summary'!P144 -> 0 | X151: ='Hidden Summary'!W144 -> 0 | Y151: ='Hidden Summary'!Y144 -> 0 | Z151: ='Hidden Summary'!R144 -> 0 | AA151: ='Hidden Summary'!V144 -> 0 | AB151: ='Hidden Summary'!T144 -> 0 | AG151: 0 | AH151: 0 | AI151: 0 | AJ151: ='Hidden Summary'!AB144 -> 0
A152: ='Hidden Summary'!A145 -> 0 | C152: ='Hidden Summary'!D145 -> 0 | E152: =IF('Hidden Summary'!G145="Rational Method","Rational",IF('Hidden Summary'!G145="TR-55 Method","TR-55",IF('Hidden Summary'!G145="USGS-5030 Method","USGS-5030",IF('Hidden Summary'!G145="USGS-5158 Method","USGS-5158",IF('Hidden Summary'!G145="User Input Method","User Input",""))))) ->  | G152: ='Hidden Summary'!I145 -> 0 | H152: ='Hidden Summary'!K145 -> 0 | I152: ='Hidden Summary'!M145 -> 0 | J152: ='Hidden Summary'!Z145 -> 0 | K152: ='Hidden Summary'!O145 -> 0 | M152: ='Hidden Summary'!Q145 -> 0 | N152: ='Hidden Summary'!U145 -> 0 | O152: ='Hidden Summary'!S145 -> 0 | P152: ='Hidden Summary'!X145 -> 0 | R152: ='Hidden Summary'!J145 -> 0 | S152: ='Hidden Summary'!L145 -> 0 | T152: ='Hidden Summary'!N145 -> 0 | U152: ='Hidden Summary'!AA145 -> 0 | V152: ='Hidden Summary'!P145 -> 0 | X152: ='Hidden Summary'!W145 -> 0 | Y152: ='Hidden Summary'!Y145 -> 0 | Z152: ='Hidden Summary'!R145 -> 0 | AA152: ='Hidden Summary'!V145 -> 0 | AB152: ='Hidden Summary'!T145 -> 0 | AG152: 0 | AH152: 0 | AI152: 0 | AJ152: ='Hidden Summary'!AB145 -> 0
A153: ='Hidden Summary'!A146 -> 0 | C153: ='Hidden Summary'!D146 -> 0 | E153: =IF('Hidden Summary'!G146="Rational Method","Rational",IF('Hidden Summary'!G146="TR-55 Method","TR-55",IF('Hidden Summary'!G146="USGS-5030 Method","USGS-5030",IF('Hidden Summary'!G146="USGS-5158 Method","USGS-5158",IF('Hidden Summary'!G146="User Input Method","User Input",""))))) ->  | G153: ='Hidden Summary'!I146 -> 0 | H153: ='Hidden Summary'!K146 -> 0 | I153: ='Hidden Summary'!M146 -> 0 | J153: ='Hidden Summary'!Z146 -> 0 | K153: ='Hidden Summary'!O146 -> 0 | M153: ='Hidden Summary'!Q146 -> 0 | N153: ='Hidden Summary'!U146 -> 0 | O153: ='Hidden Summary'!S146 -> 0 | P153: ='Hidden Summary'!X146 -> 0 | R153: ='Hidden Summary'!J146 -> 0 | S153: ='Hidden Summary'!L146 -> 0 | T153: ='Hidden Summary'!N146 -> 0 | U153: ='Hidden Summary'!AA146 -> 0 | V153: ='Hidden Summary'!P146 -> 0 | X153: ='Hidden Summary'!W146 -> 0 | Y153: ='Hidden Summary'!Y146 -> 0 | Z153: ='Hidden Summary'!R146 -> 0 | AA153: ='Hidden Summary'!V146 -> 0 | AB153: ='Hidden Summary'!T146 -> 0 | AG153: 0 | AH153: 0 | AI153: 0 | AJ153: ='Hidden Summary'!AB146 -> 0
A154: ='Hidden Summary'!A147 -> 0 | C154: ='Hidden Summary'!D147 -> 0 | E154: =IF('Hidden Summary'!G147="Rational Method","Rational",IF('Hidden Summary'!G147="TR-55 Method","TR-55",IF('Hidden Summary'!G147="USGS-5030 Method","USGS-5030",IF('Hidden Summary'!G147="USGS-5158 Method","USGS-5158",IF('Hidden Summary'!G147="User Input Method","User Input",""))))) ->  | G154: ='Hidden Summary'!I147 -> 0 | H154: ='Hidden Summary'!K147 -> 0 | I154: ='Hidden Summary'!M147 -> 0 | J154: ='Hidden Summary'!Z147 -> 0 | K154: ='Hidden Summary'!O147 -> 0 | M154: ='Hidden Summary'!Q147 -> 0 | N154: ='Hidden Summary'!U147 -> 0 | O154: ='Hidden Summary'!S147 -> 0 | P154: ='Hidden Summary'!X147 -> 0 | R154: ='Hidden Summary'!J147 -> 0 | S154: ='Hidden Summary'!L147 -> 0 | T154: ='Hidden Summary'!N147 -> 0 | U154: ='Hidden Summary'!AA147 -> 0 | V154: ='Hidden Summary'!P147 -> 0 | X154: ='Hidden Summary'!W147 -> 0 | Y154: ='Hidden Summary'!Y147 -> 0 | Z154: ='Hidden Summary'!R147 -> 0 | AA154: ='Hidden Summary'!V147 -> 0 | AB154: ='Hidden Summary'!T147 -> 0 | AG154: 0 | AH154: 0 | AI154: 0 | AJ154: ='Hidden Summary'!AB147 -> 0
A155: ='Hidden Summary'!A148 -> 0 | C155: ='Hidden Summary'!D148 -> 0 | E155: =IF('Hidden Summary'!G148="Rational Method","Rational",IF('Hidden Summary'!G148="TR-55 Method","TR-55",IF('Hidden Summary'!G148="USGS-5030 Method","USGS-5030",IF('Hidden Summary'!G148="USGS-5158 Method","USGS-5158",IF('Hidden Summary'!G148="User Input Method","User Input",""))))) ->  | G155: ='Hidden Summary'!I148 -> 0 | H155: ='Hidden Summary'!K148 -> 0 | I155: ='Hidden Summary'!M148 -> 0 | J155: ='Hidden Summary'!Z148 -> 0 | K155: ='Hidden Summary'!O148 -> 0 | M155: ='Hidden Summary'!Q148 -> 0 | N155: ='Hidden Summary'!U148 -> 0 | O155: ='Hidden Summary'!S148 -> 0 | P155: ='Hidden Summary'!X148 -> 0 | R155: ='Hidden Summary'!J148 -> 0 | S155: ='Hidden Summary'!L148 -> 0 | T155: ='Hidden Summary'!N148 -> 0 | U155: ='Hidden Summary'!AA148 -> 0 | V155: ='Hidden Summary'!P148 -> 0 | X155: ='Hidden Summary'!W148 -> 0 | Y155: ='Hidden Summary'!Y148 -> 0 | Z155: ='Hidden Summary'!R148 -> 0 | AA155: ='Hidden Summary'!V148 -> 0 | AB155: ='Hidden Summary'!T148 -> 0 | AG155: 0 | AH155: 0 | AI155: 0 | AJ155: ='Hidden Summary'!AB148 -> 0
A156: ='Hidden Summary'!A149 -> 0 | C156: ='Hidden Summary'!D149 -> 0 | E156: =IF('Hidden Summary'!G149="Rational Method","Rational",IF('Hidden Summary'!G149="TR-55 Method","TR-55",IF('Hidden Summary'!G149="USGS-5030 Method","USGS-5030",IF('Hidden Summary'!G149="USGS-5158 Method","USGS-5158",IF('Hidden Summary'!G149="User Input Method","User Input",""))))) ->  | G156: ='Hidden Summary'!I149 -> 0 | H156: ='Hidden Summary'!K149 -> 0 | I156: ='Hidden Summary'!M149 -> 0 | J156: ='Hidden Summary'!Z149 -> 0 | K156: ='Hidden Summary'!O149 -> 0 | M156: ='Hidden Summary'!Q149 -> 0 | N156: ='Hidden Summary'!U149 -> 0 | O156: ='Hidden Summary'!S149 -> 0 | P156: ='Hidden Summary'!X149 -> 0 | R156: ='Hidden Summary'!J149 -> 0 | S156: ='Hidden Summary'!L149 -> 0 | T156: ='Hidden Summary'!N149 -> 0 | U156: ='Hidden Summary'!AA149 -> 0 | V156: ='Hidden Summary'!P149 -> 0 | X156: ='Hidden Summary'!W149 -> 0 | Y156: ='Hidden Summary'!Y149 -> 0 | Z156: ='Hidden Summary'!R149 -> 0 | AA156: ='Hidden Summary'!V149 -> 0 | AB156: ='Hidden Summary'!T149 -> 0 | AG156: 0 | AH156: 0 | AI156: 0 | AJ156: ='Hidden Summary'!AB149 -> 0
A157: ='Hidden Summary'!A150 -> 0 | C157: ='Hidden Summary'!D150 -> 0 | E157: =IF('Hidden Summary'!G150="Rational Method","Rational",IF('Hidden Summary'!G150="TR-55 Method","TR-55",IF('Hidden Summary'!G150="USGS-5030 Method","USGS-5030",IF('Hidden Summary'!G150="USGS-5158 Method","USGS-5158",IF('Hidden Summary'!G150="User Input Method","User Input",""))))) ->  | G157: ='Hidden Summary'!I150 -> 0 | H157: ='Hidden Summary'!K150 -> 0 | I157: ='Hidden Summary'!M150 -> 0 | J157: ='Hidden Summary'!Z150 -> 0 | K157: ='Hidden Summary'!O150 -> 0 | M157: ='Hidden Summary'!Q150 -> 0 | N157: ='Hidden Summary'!U150 -> 0 | O157: ='Hidden Summary'!S150 -> 0 | P157: ='Hidden Summary'!X150 -> 0 | R157: ='Hidden Summary'!J150 -> 0 | S157: ='Hidden Summary'!L150 -> 0 | T157: ='Hidden Summary'!N150 -> 0 | U157: ='Hidden Summary'!AA150 -> 0 | V157: ='Hidden Summary'!P150 -> 0 | X157: ='Hidden Summary'!W150 -> 0 | Y157: ='Hidden Summary'!Y150 -> 0 | Z157: ='Hidden Summary'!R150 -> 0 | AA157: ='Hidden Summary'!V150 -> 0 | AB157: ='Hidden Summary'!T150 -> 0 | AG157: 0 | AH157: 0 | AI157: 0 | AJ157: ='Hidden Summary'!AB150 -> 0
A158: ='Hidden Summary'!A151 -> 0 | C158: ='Hidden Summary'!D151 -> 0 | E158: =IF('Hidden Summary'!G151="Rational Method","Rational",IF('Hidden Summary'!G151="TR-55 Method","TR-55",IF('Hidden Summary'!G151="USGS-5030 Method","USGS-5030",IF('Hidden Summary'!G151="USGS-5158 Method","USGS-5158",IF('Hidden Summary'!G151="User Input Method","User Input",""))))) ->  | G158: ='Hidden Summary'!I151 -> 0 | H158: ='Hidden Summary'!K151 -> 0 | I158: ='Hidden Summary'!M151 -> 0 | J158: ='Hidden Summary'!Z151 -> 0 | K158: ='Hidden Summary'!O151 -> 0 | M158: ='Hidden Summary'!Q151 -> 0 | N158: ='Hidden Summary'!U151 -> 0 | O158: ='Hidden Summary'!S151 -> 0 | P158: ='Hidden Summary'!X151 -> 0 | R158: ='Hidden Summary'!J151 -> 0 | S158: ='Hidden Summary'!L151 -> 0 | T158: ='Hidden Summary'!N151 -> 0 | U158: ='Hidden Summary'!AA151 -> 0 | V158: ='Hidden Summary'!P151 -> 0 | X158: ='Hidden Summary'!W151 -> 0 | Y158: ='Hidden Summary'!Y151 -> 0 | Z158: ='Hidden Summary'!R151 -> 0 | AA158: ='Hidden Summary'!V151 -> 0 | AB158: ='Hidden Summary'!T151 -> 0 | AG158: 0 | AH158: 0 | AI158: 0 | AJ158: ='Hidden Summary'!AB151 -> 0
A159: ='Hidden Summary'!A152 -> 0 | C159: ='Hidden Summary'!D152 -> 0 | E159: =IF('Hidden Summary'!G152="Rational Method","Rational",IF('Hidden Summary'!G152="TR-55 Method","TR-55",IF('Hidden Summary'!G152="USGS-5030 Method","USGS-5030",IF('Hidden Summary'!G152="USGS-5158 Method","USGS-5158",IF('Hidden Summary'!G152="User Input Method","User Input",""))))) ->  | G159: ='Hidden Summary'!I152 -> 0 | H159: ='Hidden Summary'!K152 -> 0 | I159: ='Hidden Summary'!M152 -> 0 | J159: ='Hidden Summary'!Z152 -> 0 | K159: ='Hidden Summary'!O152 -> 0 | M159: ='Hidden Summary'!Q152 -> 0 | N159: ='Hidden Summary'!U152 -> 0 | O159: ='Hidden Summary'!S152 -> 0 | P159: ='Hidden Summary'!X152 -> 0 | R159: ='Hidden Summary'!J152 -> 0 | S159: ='Hidden Summary'!L152 -> 0 | T159: ='Hidden Summary'!N152 -> 0 | U159: ='Hidden Summary'!AA152 -> 0 | V159: ='Hidden Summary'!P152 -> 0 | X159: ='Hidden Summary'!W152 -> 0 | Y159: ='Hidden Summary'!Y152 -> 0 | Z159: ='Hidden Summary'!R152 -> 0 | AA159: ='Hidden Summary'!V152 -> 0 | AB159: ='Hidden Summary'!T152 -> 0 | AG159: 0 | AH159: 0 | AI159: 0 | AJ159: ='Hidden Summary'!AB152 -> 0
A160: ='Hidden Summary'!A153 -> 0 | C160: ='Hidden Summary'!D153 -> 0 | E160: =IF('Hidden Summary'!G153="Rational Method","Rational",IF('Hidden Summary'!G153="TR-55 Method","TR-55",IF('Hidden Summary'!G153="USGS-5030 Method","USGS-5030",IF('Hidden Summary'!G153="USGS-5158 Method","USGS-5158",IF('Hidden Summary'!G153="User Input Method","User Input",""))))) ->  | G160: ='Hidden Summary'!I153 -> 0 | H160: ='Hidden Summary'!K153 -> 0 | I160: ='Hidden Summary'!M153 -> 0 | J160: ='Hidden Summary'!Z153 -> 0 | K160: ='Hidden Summary'!O153 -> 0 | M160: ='Hidden Summary'!Q153 -> 0 | N160: ='Hidden Summary'!U153 -> 0 | O160: ='Hidden Summary'!S153 -> 0 | P160: ='Hidden Summary'!X153 -> 0 | R160: ='Hidden Summary'!J153 -> 0 | S160: ='Hidden Summary'!L153 -> 0 | T160: ='Hidden Summary'!N153 -> 0 | U160: ='Hidden Summary'!AA153 -> 0 | V160: ='Hidden Summary'!P153 -> 0 | X160: ='Hidden Summary'!W153 -> 0 | Y160: ='Hidden Summary'!Y153 -> 0 | Z160: ='Hidden Summary'!R153 -> 0 | AA160: ='Hidden Summary'!V153 -> 0 | AB160: ='Hidden Summary'!T153 -> 0 | AG160: 0 | AH160: 0 | AI160: 0 | AJ160: ='Hidden Summary'!AB153 -> 0
A161: ='Hidden Summary'!A154 -> 0 | C161: ='Hidden Summary'!D154 -> 0 | E161: =IF('Hidden Summary'!G154="Rational Method","Rational",IF('Hidden Summary'!G154="TR-55 Method","TR-55",IF('Hidden Summary'!G154="USGS-5030 Method","USGS-5030",IF('Hidden Summary'!G154="USGS-5158 Method","USGS-5158",IF('Hidden Summary'!G154="User Input Method","User Input",""))))) ->  | G161: ='Hidden Summary'!I154 -> 0 | H161: ='Hidden Summary'!K154 -> 0 | I161: ='Hidden Summary'!M154 -> 0 | J161: ='Hidden Summary'!Z154 -> 0 | K161: ='Hidden Summary'!O154 -> 0 | M161: ='Hidden Summary'!Q154 -> 0 | N161: ='Hidden Summary'!U154 -> 0 | O161: ='Hidden Summary'!S154 -> 0 | P161: ='Hidden Summary'!X154 -> 0 | R161: ='Hidden Summary'!J154 -> 0 | S161: ='Hidden Summary'!L154 -> 0 | T161: ='Hidden Summary'!N154 -> 0 | U161: ='Hidden Summary'!AA154 -> 0 | V161: ='Hidden Summary'!P154 -> 0 | X161: ='Hidden Summary'!W154 -> 0 | Y161: ='Hidden Summary'!Y154 -> 0 | Z161: ='Hidden Summary'!R154 -> 0 | AA161: ='Hidden Summary'!V154 -> 0 | AB161: ='Hidden Summary'!T154 -> 0 | AG161: 0 | AH161: 0 | AI161: 0 | AJ161: ='Hidden Summary'!AB154 -> 0
A162: ='Hidden Summary'!A155 -> 0 | C162: ='Hidden Summary'!D155 -> 0 | E162: =IF('Hidden Summary'!G155="Rational Method","Rational",IF('Hidden Summary'!G155="TR-55 Method","TR-55",IF('Hidden Summary'!G155="USGS-5030 Method","USGS-5030",IF('Hidden Summary'!G155="USGS-5158 Method","USGS-5158",IF('Hidden Summary'!G155="User Input Method","User Input",""))))) ->  | G162: ='Hidden Summary'!I155 -> 0 | H162: ='Hidden Summary'!K155 -> 0 | I162: ='Hidden Summary'!M155 -> 0 | J162: ='Hidden Summary'!Z155 -> 0 | K162: ='Hidden Summary'!O155 -> 0 | M162: ='Hidden Summary'!Q155 -> 0 | N162: ='Hidden Summary'!U155 -> 0 | O162: ='Hidden Summary'!S155 -> 0 | P162: ='Hidden Summary'!X155 -> 0 | R162: ='Hidden Summary'!J155 -> 0 | S162: ='Hidden Summary'!L155 -> 0 | T162: ='Hidden Summary'!N155 -> 0 | U162: ='Hidden Summary'!AA155 -> 0 | V162: ='Hidden Summary'!P155 -> 0 | X162: ='Hidden Summary'!W155 -> 0 | Y162: ='Hidden Summary'!Y155 -> 0 | Z162: ='Hidden Summary'!R155 -> 0 | AA162: ='Hidden Summary'!V155 -> 0 | AB162: ='Hidden Summary'!T155 -> 0 | AG162: 0 | AH162: 0 | AI162: 0 | AJ162: ='Hidden Summary'!AB155 -> 0
A163: ='Hidden Summary'!A156 -> 0 | C163: ='Hidden Summary'!D156 -> 0 | E163: =IF('Hidden Summary'!G156="Rational Method","Rational",IF('Hidden Summary'!G156="TR-55 Method","TR-55",IF('Hidden Summary'!G156="USGS-5030 Method","USGS-5030",IF('Hidden Summary'!G156="USGS-5158 Method","USGS-5158",IF('Hidden Summary'!G156="User Input Method","User Input",""))))) ->  | G163: ='Hidden Summary'!I156 -> 0 | H163: ='Hidden Summary'!K156 -> 0 | I163: ='Hidden Summary'!M156 -> 0 | J163: ='Hidden Summary'!Z156 -> 0 | K163: ='Hidden Summary'!O156 -> 0 | M163: ='Hidden Summary'!Q156 -> 0 | N163: ='Hidden Summary'!U156 -> 0 | O163: ='Hidden Summary'!S156 -> 0 | P163: ='Hidden Summary'!X156 -> 0 | R163: ='Hidden Summary'!J156 -> 0 | S163: ='Hidden Summary'!L156 -> 0 | T163: ='Hidden Summary'!N156 -> 0 | U163: ='Hidden Summary'!AA156 -> 0 | V163: ='Hidden Summary'!P156 -> 0 | X163: ='Hidden Summary'!W156 -> 0 | Y163: ='Hidden Summary'!Y156 -> 0 | Z163: ='Hidden Summary'!R156 -> 0 | AA163: ='Hidden Summary'!V156 -> 0 | AB163: ='Hidden Summary'!T156 -> 0 | AG163: 0 | AH163: 0 | AI163: 0 | AJ163: ='Hidden Summary'!AB156 -> 0
A164: ='Hidden Summary'!A157 -> 0 | C164: ='Hidden Summary'!D157 -> 0 | E164: =IF('Hidden Summary'!G157="Rational Method","Rational",IF('Hidden Summary'!G157="TR-55 Method","TR-55",IF('Hidden Summary'!G157="USGS-5030 Method","USGS-5030",IF('Hidden Summary'!G157="USGS-5158 Method","USGS-5158",IF('Hidden Summary'!G157="User Input Method","User Input",""))))) ->  | G164: ='Hidden Summary'!I157 -> 0 | H164: ='Hidden Summary'!K157 -> 0 | I164: ='Hidden Summary'!M157 -> 0 | J164: ='Hidden Summary'!Z157 -> 0 | K164: ='Hidden Summary'!O157 -> 0 | M164: ='Hidden Summary'!Q157 -> 0 | N164: ='Hidden Summary'!U157 -> 0 | O164: ='Hidden Summary'!S157 -> 0 | P164: ='Hidden Summary'!X157 -> 0 | R164: ='Hidden Summary'!J157 -> 0 | S164: ='Hidden Summary'!L157 -> 0 | T164: ='Hidden Summary'!N157 -> 0 | U164: ='Hidden Summary'!AA157 -> 0 | V164: ='Hidden Summary'!P157 -> 0 | X164: ='Hidden Summary'!W157 -> 0 | Y164: ='Hidden Summary'!Y157 -> 0 | Z164: ='Hidden Summary'!R157 -> 0 | AA164: ='Hidden Summary'!V157 -> 0 | AB164: ='Hidden Summary'!T157 -> 0 | AG164: 0 | AH164: 0 | AI164: 0 | AJ164: ='Hidden Summary'!AB157 -> 0
A165: ='Hidden Summary'!A158 -> 0 | C165: ='Hidden Summary'!D158 -> 0 | E165: =IF('Hidden Summary'!G158="Rational Method","Rational",IF('Hidden Summary'!G158="TR-55 Method","TR-55",IF('Hidden Summary'!G158="USGS-5030 Method","USGS-5030",IF('Hidden Summary'!G158="USGS-5158 Method","USGS-5158",IF('Hidden Summary'!G158="User Input Method","User Input",""))))) ->  | G165: ='Hidden Summary'!I158 -> 0 | H165: ='Hidden Summary'!K158 -> 0 | I165: ='Hidden Summary'!M158 -> 0 | J165: ='Hidden Summary'!Z158 -> 0 | K165: ='Hidden Summary'!O158 -> 0 | M165: ='Hidden Summary'!Q158 -> 0 | N165: ='Hidden Summary'!U158 -> 0 | O165: ='Hidden Summary'!S158 -> 0 | P165: ='Hidden Summary'!X158 -> 0 | R165: ='Hidden Summary'!J158 -> 0 | S165: ='Hidden Summary'!L158 -> 0 | T165: ='Hidden Summary'!N158 -> 0 | U165: ='Hidden Summary'!AA158 -> 0 | V165: ='Hidden Summary'!P158 -> 0 | X165: ='Hidden Summary'!W158 -> 0 | Y165: ='Hidden Summary'!Y158 -> 0 | Z165: ='Hidden Summary'!R158 -> 0 | AA165: ='Hidden Summary'!V158 -> 0 | AB165: ='Hidden Summary'!T158 -> 0 | AG165: 0 | AH165: 0 | AI165: 0 | AJ165: ='Hidden Summary'!AB158 -> 0
A166: ='Hidden Summary'!A159 -> 0 | C166: ='Hidden Summary'!D159 -> 0 | E166: =IF('Hidden Summary'!G159="Rational Method","Rational",IF('Hidden Summary'!G159="TR-55 Method","TR-55",IF('Hidden Summary'!G159="USGS-5030 Method","USGS-5030",IF('Hidden Summary'!G159="USGS-5158 Method","USGS-5158",IF('Hidden Summary'!G159="User Input Method","User Input",""))))) ->  | G166: ='Hidden Summary'!I159 -> 0 | H166: ='Hidden Summary'!K159 -> 0 | I166: ='Hidden Summary'!M159 -> 0 | J166: ='Hidden Summary'!Z159 -> 0 | K166: ='Hidden Summary'!O159 -> 0 | M166: ='Hidden Summary'!Q159 -> 0 | N166: ='Hidden Summary'!U159 -> 0 | O166: ='Hidden Summary'!S159 -> 0 | P166: ='Hidden Summary'!X159 -> 0 | R166: ='Hidden Summary'!J159 -> 0 | S166: ='Hidden Summary'!L159 -> 0 | T166: ='Hidden Summary'!N159 -> 0 | U166: ='Hidden Summary'!AA159 -> 0 | V166: ='Hidden Summary'!P159 -> 0 | X166: ='Hidden Summary'!W159 -> 0 | Y166: ='Hidden Summary'!Y159 -> 0 | Z166: ='Hidden Summary'!R159 -> 0 | AA166: ='Hidden Summary'!V159 -> 0 | AB166: ='Hidden Summary'!T159 -> 0 | AG166: 0 | AH166: 0 | AI166: 0 | AJ166: ='Hidden Summary'!AB159 -> 0
A167: ='Hidden Summary'!A160 -> 0 | C167: ='Hidden Summary'!D160 -> 0 | E167: =IF('Hidden Summary'!G160="Rational Method","Rational",IF('Hidden Summary'!G160="TR-55 Method","TR-55",IF('Hidden Summary'!G160="USGS-5030 Method","USGS-5030",IF('Hidden Summary'!G160="USGS-5158 Method","USGS-5158",IF('Hidden Summary'!G160="User Input Method","User Input",""))))) ->  | G167: ='Hidden Summary'!I160 -> 0 | H167: ='Hidden Summary'!K160 -> 0 | I167: ='Hidden Summary'!M160 -> 0 | J167: ='Hidden Summary'!Z160 -> 0 | K167: ='Hidden Summary'!O160 -> 0 | M167: ='Hidden Summary'!Q160 -> 0 | N167: ='Hidden Summary'!U160 -> 0 | O167: ='Hidden Summary'!S160 -> 0 | P167: ='Hidden Summary'!X160 -> 0 | R167: ='Hidden Summary'!J160 -> 0 | S167: ='Hidden Summary'!L160 -> 0 | T167: ='Hidden Summary'!N160 -> 0 | U167: ='Hidden Summary'!AA160 -> 0 | V167: ='Hidden Summary'!P160 -> 0 | X167: ='Hidden Summary'!W160 -> 0 | Y167: ='Hidden Summary'!Y160 -> 0 | Z167: ='Hidden Summary'!R160 -> 0 | AA167: ='Hidden Summary'!V160 -> 0 | AB167: ='Hidden Summary'!T160 -> 0 | AG167: 0 | AH167: 0 | AI167: 0 | AJ167: ='Hidden Summary'!AB160 -> 0
A168: ='Hidden Summary'!A161 -> 0 | C168: ='Hidden Summary'!D161 -> 0 | E168: =IF('Hidden Summary'!G161="Rational Method","Rational",IF('Hidden Summary'!G161="TR-55 Method","TR-55",IF('Hidden Summary'!G161="USGS-5030 Method","USGS-5030",IF('Hidden Summary'!G161="USGS-5158 Method","USGS-5158",IF('Hidden Summary'!G161="User Input Method","User Input",""))))) ->  | G168: ='Hidden Summary'!I161 -> 0 | H168: ='Hidden Summary'!K161 -> 0 | I168: ='Hidden Summary'!M161 -> 0 | J168: ='Hidden Summary'!Z161 -> 0 | K168: ='Hidden Summary'!O161 -> 0 | M168: ='Hidden Summary'!Q161 -> 0 | N168: ='Hidden Summary'!U161 -> 0 | O168: ='Hidden Summary'!S161 -> 0 | P168: ='Hidden Summary'!X161 -> 0 | R168: ='Hidden Summary'!J161 -> 0 | S168: ='Hidden Summary'!L161 -> 0 | T168: ='Hidden Summary'!N161 -> 0 | U168: ='Hidden Summary'!AA161 -> 0 | V168: ='Hidden Summary'!P161 -> 0 | X168: ='Hidden Summary'!W161 -> 0 | Y168: ='Hidden Summary'!Y161 -> 0 | Z168: ='Hidden Summary'!R161 -> 0 | AA168: ='Hidden Summary'!V161 -> 0 | AB168: ='Hidden Summary'!T161 -> 0 | AG168: 0 | AH168: 0 | AI168: 0 | AJ168: ='Hidden Summary'!AB161 -> 0
A169: ='Hidden Summary'!A162 -> 0 | C169: ='Hidden Summary'!D162 -> 0 | E169: =IF('Hidden Summary'!G162="Rational Method","Rational",IF('Hidden Summary'!G162="TR-55 Method","TR-55",IF('Hidden Summary'!G162="USGS-5030 Method","USGS-5030",IF('Hidden Summary'!G162="USGS-5158 Method","USGS-5158",IF('Hidden Summary'!G162="User Input Method","User Input",""))))) ->  | G169: ='Hidden Summary'!I162 -> 0 | H169: ='Hidden Summary'!K162 -> 0 | I169: ='Hidden Summary'!M162 -> 0 | J169: ='Hidden Summary'!Z162 -> 0 | K169: ='Hidden Summary'!O162 -> 0 | M169: ='Hidden Summary'!Q162 -> 0 | N169: ='Hidden Summary'!U162 -> 0 | O169: ='Hidden Summary'!S162 -> 0 | P169: ='Hidden Summary'!X162 -> 0 | R169: ='Hidden Summary'!J162 -> 0 | S169: ='Hidden Summary'!L162 -> 0 | T169: ='Hidden Summary'!N162 -> 0 | U169: ='Hidden Summary'!AA162 -> 0 | V169: ='Hidden Summary'!P162 -> 0 | X169: ='Hidden Summary'!W162 -> 0 | Y169: ='Hidden Summary'!Y162 -> 0 | Z169: ='Hidden Summary'!R162 -> 0 | AA169: ='Hidden Summary'!V162 -> 0 | AB169: ='Hidden Summary'!T162 -> 0 | AG169: 0 | AH169: 0 | AI169: 0 | AJ169: ='Hidden Summary'!AB162 -> 0
A170: ='Hidden Summary'!A163 -> 0 | C170: ='Hidden Summary'!D163 -> 0 | E170: =IF('Hidden Summary'!G163="Rational Method","Rational",IF('Hidden Summary'!G163="TR-55 Method","TR-55",IF('Hidden Summary'!G163="USGS-5030 Method","USGS-5030",IF('Hidden Summary'!G163="USGS-5158 Method","USGS-5158",IF('Hidden Summary'!G163="User Input Method","User Input",""))))) ->  | G170: ='Hidden Summary'!I163 -> 0 | H170: ='Hidden Summary'!K163 -> 0 | I170: ='Hidden Summary'!M163 -> 0 | J170: ='Hidden Summary'!Z163 -> 0 | K170: ='Hidden Summary'!O163 -> 0 | M170: ='Hidden Summary'!Q163 -> 0 | N170: ='Hidden Summary'!U163 -> 0 | O170: ='Hidden Summary'!S163 -> 0 | P170: ='Hidden Summary'!X163 -> 0 | R170: ='Hidden Summary'!J163 -> 0 | S170: ='Hidden Summary'!L163 -> 0 | T170: ='Hidden Summary'!N163 -> 0 | U170: ='Hidden Summary'!AA163 -> 0 | V170: ='Hidden Summary'!P163 -> 0 | X170: ='Hidden Summary'!W163 -> 0 | Y170: ='Hidden Summary'!Y163 -> 0 | Z170: ='Hidden Summary'!R163 -> 0 | AA170: ='Hidden Summary'!V163 -> 0 | AB170: ='Hidden Summary'!T163 -> 0 | AG170: 0 | AH170: 0 | AI170: 0 | AJ170: ='Hidden Summary'!AB163 -> 0
A171: ='Hidden Summary'!A164 -> 0 | C171: ='Hidden Summary'!D164 -> 0 | E171: =IF('Hidden Summary'!G164="Rational Method","Rational",IF('Hidden Summary'!G164="TR-55 Method","TR-55",IF('Hidden Summary'!G164="USGS-5030 Method","USGS-5030",IF('Hidden Summary'!G164="USGS-5158 Method","USGS-5158",IF('Hidden Summary'!G164="User Input Method","User Input",""))))) ->  | G171: ='Hidden Summary'!I164 -> 0 | H171: ='Hidden Summary'!K164 -> 0 | I171: ='Hidden Summary'!M164 -> 0 | J171: ='Hidden Summary'!Z164 -> 0 | K171: ='Hidden Summary'!O164 -> 0 | M171: ='Hidden Summary'!Q164 -> 0 | N171: ='Hidden Summary'!U164 -> 0 | O171: ='Hidden Summary'!S164 -> 0 | P171: ='Hidden Summary'!X164 -> 0 | R171: ='Hidden Summary'!J164 -> 0 | S171: ='Hidden Summary'!L164 -> 0 | T171: ='Hidden Summary'!N164 -> 0 | U171: ='Hidden Summary'!AA164 -> 0 | V171: ='Hidden Summary'!P164 -> 0 | X171: ='Hidden Summary'!W164 -> 0 | Y171: ='Hidden Summary'!Y164 -> 0 | Z171: ='Hidden Summary'!R164 -> 0 | AA171: ='Hidden Summary'!V164 -> 0 | AB171: ='Hidden Summary'!T164 -> 0 | AG171: 0 | AH171: 0 | AI171: 0 | AJ171: ='Hidden Summary'!AB164 -> 0
A172: ='Hidden Summary'!A165 -> 0 | C172: ='Hidden Summary'!D165 -> 0 | E172: =IF('Hidden Summary'!G165="Rational Method","Rational",IF('Hidden Summary'!G165="TR-55 Method","TR-55",IF('Hidden Summary'!G165="USGS-5030 Method","USGS-5030",IF('Hidden Summary'!G165="USGS-5158 Method","USGS-5158",IF('Hidden Summary'!G165="User Input Method","User Input",""))))) ->  | G172: ='Hidden Summary'!I165 -> 0 | H172: ='Hidden Summary'!K165 -> 0 | I172: ='Hidden Summary'!M165 -> 0 | J172: ='Hidden Summary'!Z165 -> 0 | K172: ='Hidden Summary'!O165 -> 0 | M172: ='Hidden Summary'!Q165 -> 0 | N172: ='Hidden Summary'!U165 -> 0 | O172: ='Hidden Summary'!S165 -> 0 | P172: ='Hidden Summary'!X165 -> 0 | R172: ='Hidden Summary'!J165 -> 0 | S172: ='Hidden Summary'!L165 -> 0 | T172: ='Hidden Summary'!N165 -> 0 | U172: ='Hidden Summary'!AA165 -> 0 | V172: ='Hidden Summary'!P165 -> 0 | X172: ='Hidden Summary'!W165 -> 0 | Y172: ='Hidden Summary'!Y165 -> 0 | Z172: ='Hidden Summary'!R165 -> 0 | AA172: ='Hidden Summary'!V165 -> 0 | AB172: ='Hidden Summary'!T165 -> 0 | AG172: 0 | AH172: 0 | AI172: 0 | AJ172: ='Hidden Summary'!AB165 -> 0
A173: ='Hidden Summary'!A166 -> 0 | C173: ='Hidden Summary'!D166 -> 0 | E173: =IF('Hidden Summary'!G166="Rational Method","Rational",IF('Hidden Summary'!G166="TR-55 Method","TR-55",IF('Hidden Summary'!G166="USGS-5030 Method","USGS-5030",IF('Hidden Summary'!G166="USGS-5158 Method","USGS-5158",IF('Hidden Summary'!G166="User Input Method","User Input",""))))) ->  | G173: ='Hidden Summary'!I166 -> 0 | H173: ='Hidden Summary'!K166 -> 0 | I173: ='Hidden Summary'!M166 -> 0 | J173: ='Hidden Summary'!Z166 -> 0 | K173: ='Hidden Summary'!O166 -> 0 | M173: ='Hidden Summary'!Q166 -> 0 | N173: ='Hidden Summary'!U166 -> 0 | O173: ='Hidden Summary'!S166 -> 0 | P173: ='Hidden Summary'!X166 -> 0 | R173: ='Hidden Summary'!J166 -> 0 | S173: ='Hidden Summary'!L166 -> 0 | T173: ='Hidden Summary'!N166 -> 0 | U173: ='Hidden Summary'!AA166 -> 0 | V173: ='Hidden Summary'!P166 -> 0 | X173: ='Hidden Summary'!W166 -> 0 | Y173: ='Hidden Summary'!Y166 -> 0 | Z173: ='Hidden Summary'!R166 -> 0 | AA173: ='Hidden Summary'!V166 -> 0 | AB173: ='Hidden Summary'!T166 -> 0 | AG173: 0 | AH173: 0 | AI173: 0 | AJ173: ='Hidden Summary'!AB166 -> 0
A174: ='Hidden Summary'!A167 -> 0 | C174: ='Hidden Summary'!D167 -> 0 | E174: =IF('Hidden Summary'!G167="Rational Method","Rational",IF('Hidden Summary'!G167="TR-55 Method","TR-55",IF('Hidden Summary'!G167="USGS-5030 Method","USGS-5030",IF('Hidden Summary'!G167="USGS-5158 Method","USGS-5158",IF('Hidden Summary'!G167="User Input Method","User Input",""))))) ->  | G174: ='Hidden Summary'!I167 -> 0 | H174: ='Hidden Summary'!K167 -> 0 | I174: ='Hidden Summary'!M167 -> 0 | J174: ='Hidden Summary'!Z167 -> 0 | K174: ='Hidden Summary'!O167 -> 0 | M174: ='Hidden Summary'!Q167 -> 0 | N174: ='Hidden Summary'!U167 -> 0 | O174: ='Hidden Summary'!S167 -> 0 | P174: ='Hidden Summary'!X167 -> 0 | R174: ='Hidden Summary'!J167 -> 0 | S174: ='Hidden Summary'!L167 -> 0 | T174: ='Hidden Summary'!N167 -> 0 | U174: ='Hidden Summary'!AA167 -> 0 | V174: ='Hidden Summary'!P167 -> 0 | X174: ='Hidden Summary'!W167 -> 0 | Y174: ='Hidden Summary'!Y167 -> 0 | Z174: ='Hidden Summary'!R167 -> 0 | AA174: ='Hidden Summary'!V167 -> 0 | AB174: ='Hidden Summary'!T167 -> 0 | AG174: 0 | AH174: 0 | AI174: 0 | AJ174: ='Hidden Summary'!AB167 -> 0
A175: ='Hidden Summary'!A168 -> 0 | C175: ='Hidden Summary'!D168 -> 0 | E175: =IF('Hidden Summary'!G168="Rational Method","Rational",IF('Hidden Summary'!G168="TR-55 Method","TR-55",IF('Hidden Summary'!G168="USGS-5030 Method","USGS-5030",IF('Hidden Summary'!G168="USGS-5158 Method","USGS-5158",IF('Hidden Summary'!G168="User Input Method","User Input",""))))) ->  | G175: ='Hidden Summary'!I168 -> 0 | H175: ='Hidden Summary'!K168 -> 0 | I175: ='Hidden Summary'!M168 -> 0 | J175: ='Hidden Summary'!Z168 -> 0 | K175: ='Hidden Summary'!O168 -> 0 | M175: ='Hidden Summary'!Q168 -> 0 | N175: ='Hidden Summary'!U168 -> 0 | O175: ='Hidden Summary'!S168 -> 0 | P175: ='Hidden Summary'!X168 -> 0 | R175: ='Hidden Summary'!J168 -> 0 | S175: ='Hidden Summary'!L168 -> 0 | T175: ='Hidden Summary'!N168 -> 0 | U175: ='Hidden Summary'!AA168 -> 0 | V175: ='Hidden Summary'!P168 -> 0 | X175: ='Hidden Summary'!W168 -> 0 | Y175: ='Hidden Summary'!Y168 -> 0 | Z175: ='Hidden Summary'!R168 -> 0 | AA175: ='Hidden Summary'!V168 -> 0 | AB175: ='Hidden Summary'!T168 -> 0 | AG175: 0 | AH175: 0 | AI175: 0 | AJ175: ='Hidden Summary'!AB168 -> 0
A176: ='Hidden Summary'!A169 -> 0 | C176: ='Hidden Summary'!D169 -> 0 | E176: =IF('Hidden Summary'!G169="Rational Method","Rational",IF('Hidden Summary'!G169="TR-55 Method","TR-55",IF('Hidden Summary'!G169="USGS-5030 Method","USGS-5030",IF('Hidden Summary'!G169="USGS-5158 Method","USGS-5158",IF('Hidden Summary'!G169="User Input Method","User Input",""))))) ->  | G176: ='Hidden Summary'!I169 -> 0 | H176: ='Hidden Summary'!K169 -> 0 | I176: ='Hidden Summary'!M169 -> 0 | J176: ='Hidden Summary'!Z169 -> 0 | K176: ='Hidden Summary'!O169 -> 0 | M176: ='Hidden Summary'!Q169 -> 0 | N176: ='Hidden Summary'!U169 -> 0 | O176: ='Hidden Summary'!S169 -> 0 | P176: ='Hidden Summary'!X169 -> 0 | R176: ='Hidden Summary'!J169 -> 0 | S176: ='Hidden Summary'!L169 -> 0 | T176: ='Hidden Summary'!N169 -> 0 | U176: ='Hidden Summary'!AA169 -> 0 | V176: ='Hidden Summary'!P169 -> 0 | X176: ='Hidden Summary'!W169 -> 0 | Y176: ='Hidden Summary'!Y169 -> 0 | Z176: ='Hidden Summary'!R169 -> 0 | AA176: ='Hidden Summary'!V169 -> 0 | AB176: ='Hidden Summary'!T169 -> 0 | AG176: 0 | AH176: 0 | AI176: 0 | AJ176: ='Hidden Summary'!AB169 -> 0
A177: ='Hidden Summary'!A170 -> 0 | C177: ='Hidden Summary'!D170 -> 0 | E177: =IF('Hidden Summary'!G170="Rational Method","Rational",IF('Hidden Summary'!G170="TR-55 Method","TR-55",IF('Hidden Summary'!G170="USGS-5030 Method","USGS-5030",IF('Hidden Summary'!G170="USGS-5158 Method","USGS-5158",IF('Hidden Summary'!G170="User Input Method","User Input",""))))) ->  | G177: ='Hidden Summary'!I170 -> 0 | H177: ='Hidden Summary'!K170 -> 0 | I177: ='Hidden Summary'!M170 -> 0 | J177: ='Hidden Summary'!Z170 -> 0 | K177: ='Hidden Summary'!O170 -> 0 | M177: ='Hidden Summary'!Q170 -> 0 | N177: ='Hidden Summary'!U170 -> 0 | O177: ='Hidden Summary'!S170 -> 0 | P177: ='Hidden Summary'!X170 -> 0 | R177: ='Hidden Summary'!J170 -> 0 | S177: ='Hidden Summary'!L170 -> 0 | T177: ='Hidden Summary'!N170 -> 0 | U177: ='Hidden Summary'!AA170 -> 0 | V177: ='Hidden Summary'!P170 -> 0 | X177: ='Hidden Summary'!W170 -> 0 | Y177: ='Hidden Summary'!Y170 -> 0 | Z177: ='Hidden Summary'!R170 -> 0 | AA177: ='Hidden Summary'!V170 -> 0 | AB177: ='Hidden Summary'!T170 -> 0 | AG177: 0 | AH177: 0 | AI177: 0 | AJ177: ='Hidden Summary'!AB170 -> 0
A178: ='Hidden Summary'!A171 -> 0 | C178: ='Hidden Summary'!D171 -> 0 | E178: =IF('Hidden Summary'!G171="Rational Method","Rational",IF('Hidden Summary'!G171="TR-55 Method","TR-55",IF('Hidden Summary'!G171="USGS-5030 Method","USGS-5030",IF('Hidden Summary'!G171="USGS-5158 Method","USGS-5158",IF('Hidden Summary'!G171="User Input Method","User Input",""))))) ->  | G178: ='Hidden Summary'!I171 -> 0 | H178: ='Hidden Summary'!K171 -> 0 | I178: ='Hidden Summary'!M171 -> 0 | J178: ='Hidden Summary'!Z171 -> 0 | K178: ='Hidden Summary'!O171 -> 0 | M178: ='Hidden Summary'!Q171 -> 0 | N178: ='Hidden Summary'!U171 -> 0 | O178: ='Hidden Summary'!S171 -> 0 | P178: ='Hidden Summary'!X171 -> 0 | R178: ='Hidden Summary'!J171 -> 0 | S178: ='Hidden Summary'!L171 -> 0 | T178: ='Hidden Summary'!N171 -> 0 | U178: ='Hidden Summary'!AA171 -> 0 | V178: ='Hidden Summary'!P171 -> 0 | X178: ='Hidden Summary'!W171 -> 0 | Y178: ='Hidden Summary'!Y171 -> 0 | Z178: ='Hidden Summary'!R171 -> 0 | AA178: ='Hidden Summary'!V171 -> 0 | AB178: ='Hidden Summary'!T171 -> 0 | AG178: 0 | AH178: 0 | AI178: 0 | AJ178: ='Hidden Summary'!AB171 -> 0
A179: ='Hidden Summary'!A172 -> 0 | C179: ='Hidden Summary'!D172 -> 0 | E179: =IF('Hidden Summary'!G172="Rational Method","Rational",IF('Hidden Summary'!G172="TR-55 Method","TR-55",IF('Hidden Summary'!G172="USGS-5030 Method","USGS-5030",IF('Hidden Summary'!G172="USGS-5158 Method","USGS-5158",IF('Hidden Summary'!G172="User Input Method","User Input",""))))) ->  | G179: ='Hidden Summary'!I172 -> 0 | H179: ='Hidden Summary'!K172 -> 0 | I179: ='Hidden Summary'!M172 -> 0 | J179: ='Hidden Summary'!Z172 -> 0 | K179: ='Hidden Summary'!O172 -> 0 | M179: ='Hidden Summary'!Q172 -> 0 | N179: ='Hidden Summary'!U172 -> 0 | O179: ='Hidden Summary'!S172 -> 0 | P179: ='Hidden Summary'!X172 -> 0 | R179: ='Hidden Summary'!J172 -> 0 | S179: ='Hidden Summary'!L172 -> 0 | T179: ='Hidden Summary'!N172 -> 0 | U179: ='Hidden Summary'!AA172 -> 0 | V179: ='Hidden Summary'!P172 -> 0 | X179: ='Hidden Summary'!W172 -> 0 | Y179: ='Hidden Summary'!Y172 -> 0 | Z179: ='Hidden Summary'!R172 -> 0 | AA179: ='Hidden Summary'!V172 -> 0 | AB179: ='Hidden Summary'!T172 -> 0 | AG179: 0 | AH179: 0 | AI179: 0 | AJ179: ='Hidden Summary'!AB172 -> 0
A180: ='Hidden Summary'!A173 -> 0 | C180: ='Hidden Summary'!D173 -> 0 | E180: =IF('Hidden Summary'!G173="Rational Method","Rational",IF('Hidden Summary'!G173="TR-55 Method","TR-55",IF('Hidden Summary'!G173="USGS-5030 Method","USGS-5030",IF('Hidden Summary'!G173="USGS-5158 Method","USGS-5158",IF('Hidden Summary'!G173="User Input Method","User Input",""))))) ->  | G180: ='Hidden Summary'!I173 -> 0 | H180: ='Hidden Summary'!K173 -> 0 | I180: ='Hidden Summary'!M173 -> 0 | J180: ='Hidden Summary'!Z173 -> 0 | K180: ='Hidden Summary'!O173 -> 0 | M180: ='Hidden Summary'!Q173 -> 0 | N180: ='Hidden Summary'!U173 -> 0 | O180: ='Hidden Summary'!S173 -> 0 | P180: ='Hidden Summary'!X173 -> 0 | R180: ='Hidden Summary'!J173 -> 0 | S180: ='Hidden Summary'!L173 -> 0 | T180: ='Hidden Summary'!N173 -> 0 | U180: ='Hidden Summary'!AA173 -> 0 | V180: ='Hidden Summary'!P173 -> 0 | X180: ='Hidden Summary'!W173 -> 0 | Y180: ='Hidden Summary'!Y173 -> 0 | Z180: ='Hidden Summary'!R173 -> 0 | AA180: ='Hidden Summary'!V173 -> 0 | AB180: ='Hidden Summary'!T173 -> 0 | AG180: 0 | AH180: 0 | AI180: 0 | AJ180: ='Hidden Summary'!AB173 -> 0
A181: ='Hidden Summary'!A174 -> 0 | C181: ='Hidden Summary'!D174 -> 0 | E181: =IF('Hidden Summary'!G174="Rational Method","Rational",IF('Hidden Summary'!G174="TR-55 Method","TR-55",IF('Hidden Summary'!G174="USGS-5030 Method","USGS-5030",IF('Hidden Summary'!G174="USGS-5158 Method","USGS-5158",IF('Hidden Summary'!G174="User Input Method","User Input",""))))) ->  | G181: ='Hidden Summary'!I174 -> 0 | H181: ='Hidden Summary'!K174 -> 0 | I181: ='Hidden Summary'!M174 -> 0 | J181: ='Hidden Summary'!Z174 -> 0 | K181: ='Hidden Summary'!O174 -> 0 | M181: ='Hidden Summary'!Q174 -> 0 | N181: ='Hidden Summary'!U174 -> 0 | O181: ='Hidden Summary'!S174 -> 0 | P181: ='Hidden Summary'!X174 -> 0 | R181: ='Hidden Summary'!J174 -> 0 | S181: ='Hidden Summary'!L174 -> 0 | T181: ='Hidden Summary'!N174 -> 0 | U181: ='Hidden Summary'!AA174 -> 0 | V181: ='Hidden Summary'!P174 -> 0 | X181: ='Hidden Summary'!W174 -> 0 | Y181: ='Hidden Summary'!Y174 -> 0 | Z181: ='Hidden Summary'!R174 -> 0 | AA181: ='Hidden Summary'!V174 -> 0 | AB181: ='Hidden Summary'!T174 -> 0 | AG181: 0 | AH181: 0 | AI181: 0 | AJ181: ='Hidden Summary'!AB174 -> 0
A182: ='Hidden Summary'!A175 -> 0 | C182: ='Hidden Summary'!D175 -> 0 | E182: =IF('Hidden Summary'!G175="Rational Method","Rational",IF('Hidden Summary'!G175="TR-55 Method","TR-55",IF('Hidden Summary'!G175="USGS-5030 Method","USGS-5030",IF('Hidden Summary'!G175="USGS-5158 Method","USGS-5158",IF('Hidden Summary'!G175="User Input Method","User Input",""))))) ->  | G182: ='Hidden Summary'!I175 -> 0 | H182: ='Hidden Summary'!K175 -> 0 | I182: ='Hidden Summary'!M175 -> 0 | J182: ='Hidden Summary'!Z175 -> 0 | K182: ='Hidden Summary'!O175 -> 0 | M182: ='Hidden Summary'!Q175 -> 0 | N182: ='Hidden Summary'!U175 -> 0 | O182: ='Hidden Summary'!S175 -> 0 | P182: ='Hidden Summary'!X175 -> 0 | R182: ='Hidden Summary'!J175 -> 0 | S182: ='Hidden Summary'!L175 -> 0 | T182: ='Hidden Summary'!N175 -> 0 | U182: ='Hidden Summary'!AA175 -> 0 | V182: ='Hidden Summary'!P175 -> 0 | X182: ='Hidden Summary'!W175 -> 0 | Y182: ='Hidden Summary'!Y175 -> 0 | Z182: ='Hidden Summary'!R175 -> 0 | AA182: ='Hidden Summary'!V175 -> 0 | AB182: ='Hidden Summary'!T175 -> 0 | AG182: 0 | AH182: 0 | AI182: 0 | AJ182: ='Hidden Summary'!AB175 -> 0
A183: ='Hidden Summary'!A176 -> 0 | C183: ='Hidden Summary'!D176 -> 0 | E183: =IF('Hidden Summary'!G176="Rational Method","Rational",IF('Hidden Summary'!G176="TR-55 Method","TR-55",IF('Hidden Summary'!G176="USGS-5030 Method","USGS-5030",IF('Hidden Summary'!G176="USGS-5158 Method","USGS-5158",IF('Hidden Summary'!G176="User Input Method","User Input",""))))) ->  | G183: ='Hidden Summary'!I176 -> 0 | H183: ='Hidden Summary'!K176 -> 0 | I183: ='Hidden Summary'!M176 -> 0 | J183: ='Hidden Summary'!Z176 -> 0 | K183: ='Hidden Summary'!O176 -> 0 | M183: ='Hidden Summary'!Q176 -> 0 | N183: ='Hidden Summary'!U176 -> 0 | O183: ='Hidden Summary'!S176 -> 0 | P183: ='Hidden Summary'!X176 -> 0 | R183: ='Hidden Summary'!J176 -> 0 | S183: ='Hidden Summary'!L176 -> 0 | T183: ='Hidden Summary'!N176 -> 0 | U183: ='Hidden Summary'!AA176 -> 0 | V183: ='Hidden Summary'!P176 -> 0 | X183: ='Hidden Summary'!W176 -> 0 | Y183: ='Hidden Summary'!Y176 -> 0 | Z183: ='Hidden Summary'!R176 -> 0 | AA183: ='Hidden Summary'!V176 -> 0 | AB183: ='Hidden Summary'!T176 -> 0 | AG183: 0 | AH183: 0 | AI183: 0 | AJ183: ='Hidden Summary'!AB176 -> 0
A184: ='Hidden Summary'!A177 -> 0 | C184: ='Hidden Summary'!D177 -> 0 | E184: =IF('Hidden Summary'!G177="Rational Method","Rational",IF('Hidden Summary'!G177="TR-55 Method","TR-55",IF('Hidden Summary'!G177="USGS-5030 Method","USGS-5030",IF('Hidden Summary'!G177="USGS-5158 Method","USGS-5158",IF('Hidden Summary'!G177="User Input Method","User Input",""))))) ->  | G184: ='Hidden Summary'!I177 -> 0 | H184: ='Hidden Summary'!K177 -> 0 | I184: ='Hidden Summary'!M177 -> 0 | J184: ='Hidden Summary'!Z177 -> 0 | K184: ='Hidden Summary'!O177 -> 0 | M184: ='Hidden Summary'!Q177 -> 0 | N184: ='Hidden Summary'!U177 -> 0 | O184: ='Hidden Summary'!S177 -> 0 | P184: ='Hidden Summary'!X177 -> 0 | R184: ='Hidden Summary'!J177 -> 0 | S184: ='Hidden Summary'!L177 -> 0 | T184: ='Hidden Summary'!N177 -> 0 | U184: ='Hidden Summary'!AA177 -> 0 | V184: ='Hidden Summary'!P177 -> 0 | X184: ='Hidden Summary'!W177 -> 0 | Y184: ='Hidden Summary'!Y177 -> 0 | Z184: ='Hidden Summary'!R177 -> 0 | AA184: ='Hidden Summary'!V177 -> 0 | AB184: ='Hidden Summary'!T177 -> 0 | AG184: 0 | AH184: 0 | AI184: 0 | AJ184: ='Hidden Summary'!AB177 -> 0
A185: ='Hidden Summary'!A178 -> 0 | C185: ='Hidden Summary'!D178 -> 0 | E185: =IF('Hidden Summary'!G178="Rational Method","Rational",IF('Hidden Summary'!G178="TR-55 Method","TR-55",IF('Hidden Summary'!G178="USGS-5030 Method","USGS-5030",IF('Hidden Summary'!G178="USGS-5158 Method","USGS-5158",IF('Hidden Summary'!G178="User Input Method","User Input",""))))) ->  | G185: ='Hidden Summary'!I178 -> 0 | H185: ='Hidden Summary'!K178 -> 0 | I185: ='Hidden Summary'!M178 -> 0 | J185: ='Hidden Summary'!Z178 -> 0 | K185: ='Hidden Summary'!O178 -> 0 | M185: ='Hidden Summary'!Q178 -> 0 | N185: ='Hidden Summary'!U178 -> 0 | O185: ='Hidden Summary'!S178 -> 0 | P185: ='Hidden Summary'!X178 -> 0 | R185: ='Hidden Summary'!J178 -> 0 | S185: ='Hidden Summary'!L178 -> 0 | T185: ='Hidden Summary'!N178 -> 0 | U185: ='Hidden Summary'!AA178 -> 0 | V185: ='Hidden Summary'!P178 -> 0 | X185: ='Hidden Summary'!W178 -> 0 | Y185: ='Hidden Summary'!Y178 -> 0 | Z185: ='Hidden Summary'!R178 -> 0 | AA185: ='Hidden Summary'!V178 -> 0 | AB185: ='Hidden Summary'!T178 -> 0 | AG185: 0 | AH185: 0 | AI185: 0 | AJ185: ='Hidden Summary'!AB178 -> 0
A186: ='Hidden Summary'!A179 -> 0 | C186: ='Hidden Summary'!D179 -> 0 | E186: =IF('Hidden Summary'!G179="Rational Method","Rational",IF('Hidden Summary'!G179="TR-55 Method","TR-55",IF('Hidden Summary'!G179="USGS-5030 Method","USGS-5030",IF('Hidden Summary'!G179="USGS-5158 Method","USGS-5158",IF('Hidden Summary'!G179="User Input Method","User Input",""))))) ->  | G186: ='Hidden Summary'!I179 -> 0 | H186: ='Hidden Summary'!K179 -> 0 | I186: ='Hidden Summary'!M179 -> 0 | J186: ='Hidden Summary'!Z179 -> 0 | K186: ='Hidden Summary'!O179 -> 0 | M186: ='Hidden Summary'!Q179 -> 0 | N186: ='Hidden Summary'!U179 -> 0 | O186: ='Hidden Summary'!S179 -> 0 | P186: ='Hidden Summary'!X179 -> 0 | R186: ='Hidden Summary'!J179 -> 0 | S186: ='Hidden Summary'!L179 -> 0 | T186: ='Hidden Summary'!N179 -> 0 | U186: ='Hidden Summary'!AA179 -> 0 | V186: ='Hidden Summary'!P179 -> 0 | X186: ='Hidden Summary'!W179 -> 0 | Y186: ='Hidden Summary'!Y179 -> 0 | Z186: ='Hidden Summary'!R179 -> 0 | AA186: ='Hidden Summary'!V179 -> 0 | AB186: ='Hidden Summary'!T179 -> 0 | AG186: 0 | AH186: 0 | AI186: 0 | AJ186: ='Hidden Summary'!AB179 -> 0
A187: ='Hidden Summary'!A180 -> 0 | C187: ='Hidden Summary'!D180 -> 0 | E187: =IF('Hidden Summary'!G180="Rational Method","Rational",IF('Hidden Summary'!G180="TR-55 Method","TR-55",IF('Hidden Summary'!G180="USGS-5030 Method","USGS-5030",IF('Hidden Summary'!G180="USGS-5158 Method","USGS-5158",IF('Hidden Summary'!G180="User Input Method","User Input",""))))) ->  | G187: ='Hidden Summary'!I180 -> 0 | H187: ='Hidden Summary'!K180 -> 0 | I187: ='Hidden Summary'!M180 -> 0 | J187: ='Hidden Summary'!Z180 -> 0 | K187: ='Hidden Summary'!O180 -> 0 | M187: ='Hidden Summary'!Q180 -> 0 | N187: ='Hidden Summary'!U180 -> 0 | O187: ='Hidden Summary'!S180 -> 0 | P187: ='Hidden Summary'!X180 -> 0 | R187: ='Hidden Summary'!J180 -> 0 | S187: ='Hidden Summary'!L180 -> 0 | T187: ='Hidden Summary'!N180 -> 0 | U187: ='Hidden Summary'!AA180 -> 0 | V187: ='Hidden Summary'!P180 -> 0 | X187: ='Hidden Summary'!W180 -> 0 | Y187: ='Hidden Summary'!Y180 -> 0 | Z187: ='Hidden Summary'!R180 -> 0 | AA187: ='Hidden Summary'!V180 -> 0 | AB187: ='Hidden Summary'!T180 -> 0 | AG187: 0 | AH187: 0 | AI187: 0 | AJ187: ='Hidden Summary'!AB180 -> 0
A188: ='Hidden Summary'!A181 -> 0 | C188: ='Hidden Summary'!D181 -> 0 | E188: =IF('Hidden Summary'!G181="Rational Method","Rational",IF('Hidden Summary'!G181="TR-55 Method","TR-55",IF('Hidden Summary'!G181="USGS-5030 Method","USGS-5030",IF('Hidden Summary'!G181="USGS-5158 Method","USGS-5158",IF('Hidden Summary'!G181="User Input Method","User Input",""))))) ->  | G188: ='Hidden Summary'!I181 -> 0 | H188: ='Hidden Summary'!K181 -> 0 | I188: ='Hidden Summary'!M181 -> 0 | J188: ='Hidden Summary'!Z181 -> 0 | K188: ='Hidden Summary'!O181 -> 0 | M188: ='Hidden Summary'!Q181 -> 0 | N188: ='Hidden Summary'!U181 -> 0 | O188: ='Hidden Summary'!S181 -> 0 | P188: ='Hidden Summary'!X181 -> 0 | R188: ='Hidden Summary'!J181 -> 0 | S188: ='Hidden Summary'!L181 -> 0 | T188: ='Hidden Summary'!N181 -> 0 | U188: ='Hidden Summary'!AA181 -> 0 | V188: ='Hidden Summary'!P181 -> 0 | X188: ='Hidden Summary'!W181 -> 0 | Y188: ='Hidden Summary'!Y181 -> 0 | Z188: ='Hidden Summary'!R181 -> 0 | AA188: ='Hidden Summary'!V181 -> 0 | AB188: ='Hidden Summary'!T181 -> 0 | AG188: 0 | AH188: 0 | AI188: 0 | AJ188: ='Hidden Summary'!AB181 -> 0
A189: ='Hidden Summary'!A182 -> 0 | C189: ='Hidden Summary'!D182 -> 0 | E189: =IF('Hidden Summary'!G182="Rational Method","Rational",IF('Hidden Summary'!G182="TR-55 Method","TR-55",IF('Hidden Summary'!G182="USGS-5030 Method","USGS-5030",IF('Hidden Summary'!G182="USGS-5158 Method","USGS-5158",IF('Hidden Summary'!G182="User Input Method","User Input",""))))) ->  | G189: ='Hidden Summary'!I182 -> 0 | H189: ='Hidden Summary'!K182 -> 0 | I189: ='Hidden Summary'!M182 -> 0 | J189: ='Hidden Summary'!Z182 -> 0 | K189: ='Hidden Summary'!O182 -> 0 | M189: ='Hidden Summary'!Q182 -> 0 | N189: ='Hidden Summary'!U182 -> 0 | O189: ='Hidden Summary'!S182 -> 0 | P189: ='Hidden Summary'!X182 -> 0 | R189: ='Hidden Summary'!J182 -> 0 | S189: ='Hidden Summary'!L182 -> 0 | T189: ='Hidden Summary'!N182 -> 0 | U189: ='Hidden Summary'!AA182 -> 0 | V189: ='Hidden Summary'!P182 -> 0 | X189: ='Hidden Summary'!W182 -> 0 | Y189: ='Hidden Summary'!Y182 -> 0 | Z189: ='Hidden Summary'!R182 -> 0 | AA189: ='Hidden Summary'!V182 -> 0 | AB189: ='Hidden Summary'!T182 -> 0 | AG189: 0 | AH189: 0 | AI189: 0 | AJ189: ='Hidden Summary'!AB182 -> 0
A190: ='Hidden Summary'!A183 -> 0 | C190: ='Hidden Summary'!D183 -> 0 | E190: =IF('Hidden Summary'!G183="Rational Method","Rational",IF('Hidden Summary'!G183="TR-55 Method","TR-55",IF('Hidden Summary'!G183="USGS-5030 Method","USGS-5030",IF('Hidden Summary'!G183="USGS-5158 Method","USGS-5158",IF('Hidden Summary'!G183="User Input Method","User Input",""))))) ->  | G190: ='Hidden Summary'!I183 -> 0 | H190: ='Hidden Summary'!K183 -> 0 | I190: ='Hidden Summary'!M183 -> 0 | J190: ='Hidden Summary'!Z183 -> 0 | K190: ='Hidden Summary'!O183 -> 0 | M190: ='Hidden Summary'!Q183 -> 0 | N190: ='Hidden Summary'!U183 -> 0 | O190: ='Hidden Summary'!S183 -> 0 | P190: ='Hidden Summary'!X183 -> 0 | R190: ='Hidden Summary'!J183 -> 0 | S190: ='Hidden Summary'!L183 -> 0 | T190: ='Hidden Summary'!N183 -> 0 | U190: ='Hidden Summary'!AA183 -> 0 | V190: ='Hidden Summary'!P183 -> 0 | X190: ='Hidden Summary'!W183 -> 0 | Y190: ='Hidden Summary'!Y183 -> 0 | Z190: ='Hidden Summary'!R183 -> 0 | AA190: ='Hidden Summary'!V183 -> 0 | AB190: ='Hidden Summary'!T183 -> 0 | AG190: 0 | AH190: 0 | AI190: 0 | AJ190: ='Hidden Summary'!AB183 -> 0
A191: ='Hidden Summary'!A184 -> 0 | C191: ='Hidden Summary'!D184 -> 0 | E191: =IF('Hidden Summary'!G184="Rational Method","Rational",IF('Hidden Summary'!G184="TR-55 Method","TR-55",IF('Hidden Summary'!G184="USGS-5030 Method","USGS-5030",IF('Hidden Summary'!G184="USGS-5158 Method","USGS-5158",IF('Hidden Summary'!G184="User Input Method","User Input",""))))) ->  | G191: ='Hidden Summary'!I184 -> 0 | H191: ='Hidden Summary'!K184 -> 0 | I191: ='Hidden Summary'!M184 -> 0 | J191: ='Hidden Summary'!Z184 -> 0 | K191: ='Hidden Summary'!O184 -> 0 | M191: ='Hidden Summary'!Q184 -> 0 | N191: ='Hidden Summary'!U184 -> 0 | O191: ='Hidden Summary'!S184 -> 0 | P191: ='Hidden Summary'!X184 -> 0 | R191: ='Hidden Summary'!J184 -> 0 | S191: ='Hidden Summary'!L184 -> 0 | T191: ='Hidden Summary'!N184 -> 0 | U191: ='Hidden Summary'!AA184 -> 0 | V191: ='Hidden Summary'!P184 -> 0 | X191: ='Hidden Summary'!W184 -> 0 | Y191: ='Hidden Summary'!Y184 -> 0 | Z191: ='Hidden Summary'!R184 -> 0 | AA191: ='Hidden Summary'!V184 -> 0 | AB191: ='Hidden Summary'!T184 -> 0 | AG191: 0 | AH191: 0 | AI191: 0 | AJ191: ='Hidden Summary'!AB184 -> 0
A192: ='Hidden Summary'!A185 -> 0 | C192: ='Hidden Summary'!D185 -> 0 | E192: =IF('Hidden Summary'!G185="Rational Method","Rational",IF('Hidden Summary'!G185="TR-55 Method","TR-55",IF('Hidden Summary'!G185="USGS-5030 Method","USGS-5030",IF('Hidden Summary'!G185="USGS-5158 Method","USGS-5158",IF('Hidden Summary'!G185="User Input Method","User Input",""))))) ->  | G192: ='Hidden Summary'!I185 -> 0 | H192: ='Hidden Summary'!K185 -> 0 | I192: ='Hidden Summary'!M185 -> 0 | J192: ='Hidden Summary'!Z185 -> 0 | K192: ='Hidden Summary'!O185 -> 0 | M192: ='Hidden Summary'!Q185 -> 0 | N192: ='Hidden Summary'!U185 -> 0 | O192: ='Hidden Summary'!S185 -> 0 | P192: ='Hidden Summary'!X185 -> 0 | R192: ='Hidden Summary'!J185 -> 0 | S192: ='Hidden Summary'!L185 -> 0 | T192: ='Hidden Summary'!N185 -> 0 | U192: ='Hidden Summary'!AA185 -> 0 | V192: ='Hidden Summary'!P185 -> 0 | X192: ='Hidden Summary'!W185 -> 0 | Y192: ='Hidden Summary'!Y185 -> 0 | Z192: ='Hidden Summary'!R185 -> 0 | AA192: ='Hidden Summary'!V185 -> 0 | AB192: ='Hidden Summary'!T185 -> 0 | AG192: 0 | AH192: 0 | AI192: 0 | AJ192: ='Hidden Summary'!AB185 -> 0
A193: ='Hidden Summary'!A186 -> 0 | C193: ='Hidden Summary'!D186 -> 0 | E193: =IF('Hidden Summary'!G186="Rational Method","Rational",IF('Hidden Summary'!G186="TR-55 Method","TR-55",IF('Hidden Summary'!G186="USGS-5030 Method","USGS-5030",IF('Hidden Summary'!G186="USGS-5158 Method","USGS-5158",IF('Hidden Summary'!G186="User Input Method","User Input",""))))) ->  | G193: ='Hidden Summary'!I186 -> 0 | H193: ='Hidden Summary'!K186 -> 0 | I193: ='Hidden Summary'!M186 -> 0 | J193: ='Hidden Summary'!Z186 -> 0 | K193: ='Hidden Summary'!O186 -> 0 | M193: ='Hidden Summary'!Q186 -> 0 | N193: ='Hidden Summary'!U186 -> 0 | O193: ='Hidden Summary'!S186 -> 0 | P193: ='Hidden Summary'!X186 -> 0 | R193: ='Hidden Summary'!J186 -> 0 | S193: ='Hidden Summary'!L186 -> 0 | T193: ='Hidden Summary'!N186 -> 0 | U193: ='Hidden Summary'!AA186 -> 0 | V193: ='Hidden Summary'!P186 -> 0 | X193: ='Hidden Summary'!W186 -> 0 | Y193: ='Hidden Summary'!Y186 -> 0 | Z193: ='Hidden Summary'!R186 -> 0 | AA193: ='Hidden Summary'!V186 -> 0 | AB193: ='Hidden Summary'!T186 -> 0 | AG193: 0 | AH193: 0 | AI193: 0 | AJ193: ='Hidden Summary'!AB186 -> 0
A194: ='Hidden Summary'!A187 -> 0 | C194: ='Hidden Summary'!D187 -> 0 | E194: =IF('Hidden Summary'!G187="Rational Method","Rational",IF('Hidden Summary'!G187="TR-55 Method","TR-55",IF('Hidden Summary'!G187="USGS-5030 Method","USGS-5030",IF('Hidden Summary'!G187="USGS-5158 Method","USGS-5158",IF('Hidden Summary'!G187="User Input Method","User Input",""))))) ->  | G194: ='Hidden Summary'!I187 -> 0 | H194: ='Hidden Summary'!K187 -> 0 | I194: ='Hidden Summary'!M187 -> 0 | J194: ='Hidden Summary'!Z187 -> 0 | K194: ='Hidden Summary'!O187 -> 0 | M194: ='Hidden Summary'!Q187 -> 0 | N194: ='Hidden Summary'!U187 -> 0 | O194: ='Hidden Summary'!S187 -> 0 | P194: ='Hidden Summary'!X187 -> 0 | R194: ='Hidden Summary'!J187 -> 0 | S194: ='Hidden Summary'!L187 -> 0 | T194: ='Hidden Summary'!N187 -> 0 | U194: ='Hidden Summary'!AA187 -> 0 | V194: ='Hidden Summary'!P187 -> 0 | X194: ='Hidden Summary'!W187 -> 0 | Y194: ='Hidden Summary'!Y187 -> 0 | Z194: ='Hidden Summary'!R187 -> 0 | AA194: ='Hidden Summary'!V187 -> 0 | AB194: ='Hidden Summary'!T187 -> 0 | AG194: 0 | AH194: 0 | AI194: 0 | AJ194: ='Hidden Summary'!AB187 -> 0
A195: ='Hidden Summary'!A188 -> 0 | C195: ='Hidden Summary'!D188 -> 0 | E195: =IF('Hidden Summary'!G188="Rational Method","Rational",IF('Hidden Summary'!G188="TR-55 Method","TR-55",IF('Hidden Summary'!G188="USGS-5030 Method","USGS-5030",IF('Hidden Summary'!G188="USGS-5158 Method","USGS-5158",IF('Hidden Summary'!G188="User Input Method","User Input",""))))) ->  | G195: ='Hidden Summary'!I188 -> 0 | H195: ='Hidden Summary'!K188 -> 0 | I195: ='Hidden Summary'!M188 -> 0 | J195: ='Hidden Summary'!Z188 -> 0 | K195: ='Hidden Summary'!O188 -> 0 | M195: ='Hidden Summary'!Q188 -> 0 | N195: ='Hidden Summary'!U188 -> 0 | O195: ='Hidden Summary'!S188 -> 0 | P195: ='Hidden Summary'!X188 -> 0 | R195: ='Hidden Summary'!J188 -> 0 | S195: ='Hidden Summary'!L188 -> 0 | T195: ='Hidden Summary'!N188 -> 0 | U195: ='Hidden Summary'!AA188 -> 0 | V195: ='Hidden Summary'!P188 -> 0 | X195: ='Hidden Summary'!W188 -> 0 | Y195: ='Hidden Summary'!Y188 -> 0 | Z195: ='Hidden Summary'!R188 -> 0 | AA195: ='Hidden Summary'!V188 -> 0 | AB195: ='Hidden Summary'!T188 -> 0 | AG195: 0 | AH195: 0 | AI195: 0 | AJ195: ='Hidden Summary'!AB188 -> 0
A196: ='Hidden Summary'!A189 -> 0 | C196: ='Hidden Summary'!D189 -> 0 | E196: =IF('Hidden Summary'!G189="Rational Method","Rational",IF('Hidden Summary'!G189="TR-55 Method","TR-55",IF('Hidden Summary'!G189="USGS-5030 Method","USGS-5030",IF('Hidden Summary'!G189="USGS-5158 Method","USGS-5158",IF('Hidden Summary'!G189="User Input Method","User Input",""))))) ->  | G196: ='Hidden Summary'!I189 -> 0 | H196: ='Hidden Summary'!K189 -> 0 | I196: ='Hidden Summary'!M189 -> 0 | J196: ='Hidden Summary'!Z189 -> 0 | K196: ='Hidden Summary'!O189 -> 0 | M196: ='Hidden Summary'!Q189 -> 0 | N196: ='Hidden Summary'!U189 -> 0 | O196: ='Hidden Summary'!S189 -> 0 | P196: ='Hidden Summary'!X189 -> 0 | R196: ='Hidden Summary'!J189 -> 0 | S196: ='Hidden Summary'!L189 -> 0 | T196: ='Hidden Summary'!N189 -> 0 | U196: ='Hidden Summary'!AA189 -> 0 | V196: ='Hidden Summary'!P189 -> 0 | X196: ='Hidden Summary'!W189 -> 0 | Y196: ='Hidden Summary'!Y189 -> 0 | Z196: ='Hidden Summary'!R189 -> 0 | AA196: ='Hidden Summary'!V189 -> 0 | AB196: ='Hidden Summary'!T189 -> 0 | AG196: 0 | AH196: 0 | AI196: 0 | AJ196: ='Hidden Summary'!AB189 -> 0
A197: ='Hidden Summary'!A190 -> 0 | C197: ='Hidden Summary'!D190 -> 0 | E197: =IF('Hidden Summary'!G190="Rational Method","Rational",IF('Hidden Summary'!G190="TR-55 Method","TR-55",IF('Hidden Summary'!G190="USGS-5030 Method","USGS-5030",IF('Hidden Summary'!G190="USGS-5158 Method","USGS-5158",IF('Hidden Summary'!G190="User Input Method","User Input",""))))) ->  | G197: ='Hidden Summary'!I190 -> 0 | H197: ='Hidden Summary'!K190 -> 0 | I197: ='Hidden Summary'!M190 -> 0 | J197: ='Hidden Summary'!Z190 -> 0 | K197: ='Hidden Summary'!O190 -> 0 | M197: ='Hidden Summary'!Q190 -> 0 | N197: ='Hidden Summary'!U190 -> 0 | O197: ='Hidden Summary'!S190 -> 0 | P197: ='Hidden Summary'!X190 -> 0 | R197: ='Hidden Summary'!J190 -> 0 | S197: ='Hidden Summary'!L190 -> 0 | T197: ='Hidden Summary'!N190 -> 0 | U197: ='Hidden Summary'!AA190 -> 0 | V197: ='Hidden Summary'!P190 -> 0 | X197: ='Hidden Summary'!W190 -> 0 | Y197: ='Hidden Summary'!Y190 -> 0 | Z197: ='Hidden Summary'!R190 -> 0 | AA197: ='Hidden Summary'!V190 -> 0 | AB197: ='Hidden Summary'!T190 -> 0 | AG197: 0 | AH197: 0 | AI197: 0 | AJ197: ='Hidden Summary'!AB190 -> 0
A198: ='Hidden Summary'!A191 -> 0 | C198: ='Hidden Summary'!D191 -> 0 | E198: =IF('Hidden Summary'!G191="Rational Method","Rational",IF('Hidden Summary'!G191="TR-55 Method","TR-55",IF('Hidden Summary'!G191="USGS-5030 Method","USGS-5030",IF('Hidden Summary'!G191="USGS-5158 Method","USGS-5158",IF('Hidden Summary'!G191="User Input Method","User Input",""))))) ->  | G198: ='Hidden Summary'!I191 -> 0 | H198: ='Hidden Summary'!K191 -> 0 | I198: ='Hidden Summary'!M191 -> 0 | J198: ='Hidden Summary'!Z191 -> 0 | K198: ='Hidden Summary'!O191 -> 0 | M198: ='Hidden Summary'!Q191 -> 0 | N198: ='Hidden Summary'!U191 -> 0 | O198: ='Hidden Summary'!S191 -> 0 | P198: ='Hidden Summary'!X191 -> 0 | R198: ='Hidden Summary'!J191 -> 0 | S198: ='Hidden Summary'!L191 -> 0 | T198: ='Hidden Summary'!N191 -> 0 | U198: ='Hidden Summary'!AA191 -> 0 | V198: ='Hidden Summary'!P191 -> 0 | X198: ='Hidden Summary'!W191 -> 0 | Y198: ='Hidden Summary'!Y191 -> 0 | Z198: ='Hidden Summary'!R191 -> 0 | AA198: ='Hidden Summary'!V191 -> 0 | AB198: ='Hidden Summary'!T191 -> 0 | AG198: 0 | AH198: 0 | AI198: 0 | AJ198: ='Hidden Summary'!AB191 -> 0
A199: ='Hidden Summary'!A192 -> 0 | C199: ='Hidden Summary'!D192 -> 0 | E199: =IF('Hidden Summary'!G192="Rational Method","Rational",IF('Hidden Summary'!G192="TR-55 Method","TR-55",IF('Hidden Summary'!G192="USGS-5030 Method","USGS-5030",IF('Hidden Summary'!G192="USGS-5158 Method","USGS-5158",IF('Hidden Summary'!G192="User Input Method","User Input",""))))) ->  | G199: ='Hidden Summary'!I192 -> 0 | H199: ='Hidden Summary'!K192 -> 0 | I199: ='Hidden Summary'!M192 -> 0 | J199: ='Hidden Summary'!Z192 -> 0 | K199: ='Hidden Summary'!O192 -> 0 | M199: ='Hidden Summary'!Q192 -> 0 | N199: ='Hidden Summary'!U192 -> 0 | O199: ='Hidden Summary'!S192 -> 0 | P199: ='Hidden Summary'!X192 -> 0 | R199: ='Hidden Summary'!J192 -> 0 | S199: ='Hidden Summary'!L192 -> 0 | T199: ='Hidden Summary'!N192 -> 0 | U199: ='Hidden Summary'!AA192 -> 0 | V199: ='Hidden Summary'!P192 -> 0 | X199: ='Hidden Summary'!W192 -> 0 | Y199: ='Hidden Summary'!Y192 -> 0 | Z199: ='Hidden Summary'!R192 -> 0 | AA199: ='Hidden Summary'!V192 -> 0 | AB199: ='Hidden Summary'!T192 -> 0 | AG199: 0 | AH199: 0 | AI199: 0 | AJ199: ='Hidden Summary'!AB192 -> 0
A200: ='Hidden Summary'!A193 -> 0 | C200: ='Hidden Summary'!D193 -> 0 | E200: =IF('Hidden Summary'!G193="Rational Method","Rational",IF('Hidden Summary'!G193="TR-55 Method","TR-55",IF('Hidden Summary'!G193="USGS-5030 Method","USGS-5030",IF('Hidden Summary'!G193="USGS-5158 Method","USGS-5158",IF('Hidden Summary'!G193="User Input Method","User Input",""))))) ->  | G200: ='Hidden Summary'!I193 -> 0 | H200: ='Hidden Summary'!K193 -> 0 | I200: ='Hidden Summary'!M193 -> 0 | J200: ='Hidden Summary'!Z193 -> 0 | K200: ='Hidden Summary'!O193 -> 0 | M200: ='Hidden Summary'!Q193 -> 0 | N200: ='Hidden Summary'!U193 -> 0 | O200: ='Hidden Summary'!S193 -> 0 | P200: ='Hidden Summary'!X193 -> 0 | R200: ='Hidden Summary'!J193 -> 0 | S200: ='Hidden Summary'!L193 -> 0 | T200: ='Hidden Summary'!N193 -> 0 | U200: ='Hidden Summary'!AA193 -> 0 | V200: ='Hidden Summary'!P193 -> 0 | X200: ='Hidden Summary'!W193 -> 0 | Y200: ='Hidden Summary'!Y193 -> 0 | Z200: ='Hidden Summary'!R193 -> 0 | AA200: ='Hidden Summary'!V193 -> 0 | AB200: ='Hidden Summary'!T193 -> 0 | AG200: 0 | AH200: 0 | AI200: 0 | AJ200: ='Hidden Summary'!AB193 -> 0

Sheet RATIONAL TAB TEMPLATE (hidden)
A1: TIP Project: | B1: =TIP_number_MAIN_tab -> 0 | K1: Date: | L1: =Date_MAIN_tab -> 00:00:00 | Z1: COLUMNS HOLDING CELLS BELOW TO BE HIDDEN (CELLS HOLD BACKGROUND DATA FOR MACROS AND CALCULATIONS) | BA1: COLUMNS HOLDING CELLS BELOW TO BE HIDDEN (CELLS HOLD BACKGROUND DATA FOR MACROS AND CALCULATIONS) | BY1: COLUMNS HOLDING CELLS BELOW TO BE HIDDEN (CELLS HOLD BACKGROUND DATA FOR MACROS AND CALCULATIONS) | CW1: COLUMNS HOLDING CELLS BELOW TO BE HIDDEN (CELLS HOLD BACKGROUND DATA FOR MACROS AND CALCULATIONS)
A2: County: | H2: PSH # OUTLET # | K2: Design Firm: | L2: =design_firm_MAIN_tab -> 0
A3: Description: | B3: =IF(project_description_MAIN_tab="","",project_description_MAIN_tab) ->  | K3: Designed By: | L3: =designer_MAIN_tab -> 0
F4: Input Alignment, Station, Offset Here | K4: Reviewed By:
A6: =MAIN!A37 -> Version 1.0 | B6: Outlet UID Number: | E6: =IF(TIP_number_MAIN_tab=0,"ENTER TIP OR PROJ #",AG30) -> ENTER TIP OR PROJ # | H6: Latitude: | K6: Longitude: | O6: Google Maps | AA6: PRE CONST. MANNING'S EQUATION OPEN CHANNEL | AM6: POST CONST. MANNING'S EQUATION OPEN CHANNEL
A8: PRE-CONSTRUCTION (RATIONAL METHOD) | H8: POST-CONSTRUCTION (RATIONAL METHOD) | N8: CHANGE | AA8: B (ft) | AB8: norm. depth (ft) | AC8: avg sideslope | AD8: S (ft/ft) | AE8: N val | AF8: A (sq.ft.) | AG8: P (ft.) | AH8: R (ft.) | AI8: Q (cfs) | AJ8: Vc (ft/s) | AK8: Q Compare Check: Make sure = 0 (set to 0 by changing y in data>what if> goal seek) | AM8: B (ft) | AN8: norm. depth (ft) | AO8: avg sideslope | AP8: S (ft/ft) | AQ8: N val | AR8: A (sq.ft.) | AS8: P (ft.) | AT8: R (ft.) | AU8: Q (cfs) | AV8: Vc (ft/s) | AW8: Q Compare Check: Make sure = 0 (set to 0 by changing y in data>what if> goal seek)
D10: Q2 = | E10: =IF(OR(c_composite_pre=0,i2pre="ENTER T.O.C",da_total_pre=0),"",c_composite_pre*i2pre*da_total_pre) ->  | F10: cfs | J10: Q2 = | K10: =IF(OR(c_composite_post=0,i2post="ENTER T.O.C",da_total_post=0),"",c_composite_post*i2post*da_total_post) ->  | L10: cfs | N10: Q2 = | O10: =IF(OR(q2post="",q2pre=""),"",(q2post/q2pre)-1) -> 
D11: V2 = | F11: ft./s | J11: V2 = | L11: ft./s | N11: V2 = | O11: =IF(OR(v2post=0,v2pre=0),"",(v2post/v2pre)-1) ->  | S11: Green = Calculated / up to date (color 210,255,210) | AA11: =Base_Width_Pre -> 0 | AB11: 1.472799103 | AC11: =(Side_Slope_Left_Pre+Side_Slope_Right_Pre)/2 -> 0 | AD11: =Slope_Pre -> 0 | AE11: =Roughness_Pre -> 0 | AF11: =AA11*AB11+AC11*AB11^2 -> 0 | AG11: =AA11+((AB11*Side_Slope_Left_Pre)^2+AB11^2)^0.5+((AB11*Side_Slope_Right_Pre)^2+AB11^2)^0.5 -> 2.945598206 | AH11: =AF11/AG11 -> 0 | AI11: =1.49/AE11*AF11*AH11^0.667*AD11^0.5 ->  | AJ11: =1.49/AE11*AH11^0.667*AD11^0.5 ->  | AK11: =AI11-q2pre ->  | AL11: =ROUND(AK11,1) ->  | AM11: =IF(Post_Const_Geometry_Selection="Geometry Same as Pre-Construction",Base_Width_Pre,Base_Width_Post) -> 0 | AN11: 1 | AO11: =IF(Post_Const_Geometry_Selection="Geometry Same as Pre-Construction",(Side_Slope_Left_Pre+Side_Slope_Right_Pre)/2,(Side_Slope_Left_Post+Side_Slope_Right_Post)/2) -> 0 | AP11: =IF(Post_Const_Geometry_Selection="Geometry Same as Pre-Construction",Slope_Pre,Slope_Post) -> 0 | AQ11: =IF(Post_Const_Geometry_Selection="Geometry Same as Pre-Construction",Roughness_Pre,Roughness_Post) -> 0 | AR11: =AM11*AN11+AO11*AN11^2 -> 0 | AS11: =IF(Post_Const_Geometry_Selection="Geometry Same as Pre-Construction",AM11+((AN11*Side_Slope_Left_Pre)^2+AN11^2)^0.5+((AN11*Side_Slope_Right_Pre)^2+AN11^2)^0.5,AM11+((AN11*Side_Slope_Left_Post)^2+AN11^2)^0.5+((AN11*Side_Slope_Right_Post)^2+AN11^2)^0.5) -> 2 | AT11: =AR11/AS11 -> 0 | AU11: =1.49/AQ11*AR11*AT11^0.667*AP11^0.5 ->  | AV11: =1.49/AQ11*AT11^0.667*AP11^0.5 ->  | AW11: =AU11-q2post ->  | AX11: =ROUND(AW11,1) -> 
A12: Ccomposite = | D12: D2 = | F12: ft. | H12: Ccomposite = | J12: D2 = | L12: ft. | N12: D2 = | O12: =IF(OR(d2post=0,d2pre=0),"",(d2post/d2pre)-1) ->  | S12: Red = Calculated, incorrect, or not up to date (color 255,165,165) | AA12: =Base_Width_Pre -> 0 | AB12: 1.472799103 | AC12: =(Side_Slope_Left_Pre+Side_Slope_Right_Pre)/2 -> 0 | AD12: =Slope_Pre -> 0 | AE12: =Roughness_Pre -> 0 | AF12: =AA12*AB12+AC12*AB12^2 -> 0 | AG12: =AA12+((AB12*Side_Slope_Left_Pre)^2+AB12^2)^0.5+((AB12*Side_Slope_Right_Pre)^2+AB12^2)^0.5 -> 2.945598206 | AH12: =AF12/AG12 -> 0 | AI12: =1.49/AE12*AF12*AH12^0.667*AD12^0.5 ->  | AJ12: =1.49/AE12*AH12^0.667*AD12^0.5 ->  | AK12: =AI12-q2pre ->  | AL12: =ROUND(AK12,1) ->  | AM12: =IF(Post_Const_Geometry_Selection="Geometry Same as Pre-Construction",Base_Width_Pre,Base_Width_Post) -> 0 | AN12: 1 | AO12: =IF(Post_Const_Geometry_Selection="Geometry Same as Pre-Construction",(Side_Slope_Left_Pre+Side_Slope_Right_Pre)/2,(Side_Slope_Left_Post+Side_Slope_Right_Post)/2) -> 0 | AP12: =IF(Post_Const_Geometry_Selection="Geometry Same as Pre-Construction",Slope_Pre,Slope_Post) -> 0 | AQ12: =IF(Post_Const_Geometry_Selection="Geometry Same as Pre-Construction",Roughness_Pre,Roughness_Post) -> 0 | AR12: =AM12*AN12+AO12*AN12^2 -> 0 | AS12: =IF(Post_Const_Geometry_Selection="Geometry Same as Pre-Construction",AM12+((AN12*Side_Slope_Left_Pre)^2+AN12^2)^0.5+((AN12*Side_Slope_Right_Pre)^2+AN12^2)^0.5,AM12+((AN12*Side_Slope_Left_Post)^2+AN12^2)^0.5+((AN12*Side_Slope_Right_Post)^2+AN12^2)^0.5) -> 2 | AT12: =AR12/AS12 -> 0 | AU12: =1.49/AQ12*AR12*AT12^0.667*AP12^0.5 ->  | AV12: =1.49/AQ12*AT12^0.667*AP12^0.5 ->  | AW12: =AU12-q2post ->  | AX12: =ROUND(AW12,1) -> 
A13: T.O.C (min.) | D13: Q5 = | E13: =IF(OR(c_composite_pre=0,i5pre=0,da_total_pre=0),"",c_composite_pre*i5pre*da_total_pre) ->  | F13: cfs | H13: T.O.C (min.) | J13: Q5 = | K13: =IF(OR(c_composite_post=0,i5post=0,da_total_post=0),"",c_composite_post*i5post*da_total_post) ->  | L13: cfs | N13: Q5 = | O13: =IF(OR(q5post="",q5pre=""),"",(q5post/q5pre)-1) ->  | S13: light blue = user iput (cells unlocked) (color 190,240,240)
A14: I2 (in/hr) = | B14: =IF(Tc_R_Pre=0,"ENTER T.O.C",IF(Name_R="","PICK COUNTY",TRANSPOSE(AO58:AS58))) -> ENTER T.O.C | D14: V5 = | F14: ft./s | H14: I2 (in/hr) = | I14: =IF(Tc_R_Post=0,"ENTER T.O.C",IF(Name_R="","PICK COUNTY",TRANSPOSE(AO86:AS86))) -> ENTER T.O.C | J14: V5 = | L14: ft./s | N14: V5 = | O14: =IF(OR(v5post=0,v5pre=0),"",(v5post/v5pre)-1) ->  | S14: Yellow = Warning / Caution (color 255,255,100) | AA14: =Base_Width_Pre -> 0 | AB14: 1.564723921 | AC14: =(Side_Slope_Left_Pre+Side_Slope_Right_Pre)/2 -> 0 | AD14: =Slope_Pre -> 0 | AE14: =Roughness_Pre -> 0 | AF14: =AA14*AB14+AC14*AB14^2 -> 0 | AG14: =AA14+((AB14*Side_Slope_Left_Pre)^2+AB14^2)^0.5+((AB14*Side_Slope_Right_Pre)^2+AB14^2)^0.5 -> 3.129447841 | AH14: =AF14/AG14 -> 0 | AI14: =1.49/AE14*AF14*AH14^0.667*AD14^0.5 ->  | AJ14: =1.49/AE14*AH14^0.667*AD14^0.5 ->  | AK14: =AI14-q5pre ->  | AL14: =ROUND(AK14,1) ->  | AM14: =IF(Post_Const_Geometry_Selection="Geometry Same as Pre-Construction",Base_Width_Pre,Base_Width_Post) -> 0 | AN14: 1 | AO14: =IF(Post_Const_Geometry_Selection="Geometry Same as Pre-Construction",(Side_Slope_Left_Pre+Side_Slope_Right_Pre)/2,(Side_Slope_Left_Post+Side_Slope_Right_Post)/2) -> 0 | AP14: =IF(Post_Const_Geometry_Selection="Geometry Same as Pre-Construction",Slope_Pre,Slope_Post) -> 0 | AQ14: =IF(Post_Const_Geometry_Selection="Geometry Same as Pre-Construction",Roughness_Pre,Roughness_Post) -> 0 | AR14: =AM14*AN14+AO14*AN14^2 -> 0 | AS14: =IF(Post_Const_Geometry_Selection="Geometry Same as Pre-Construction",AM14+((AN14*Side_Slope_Left_Pre)^2+AN14^2)^0.5+((AN14*Side_Slope_Right_Pre)^2+AN14^2)^0.5,AM14+((AN14*Side_Slope_Left_Post)^2+AN14^2)^0.5+((AN14*Side_Slope_Right_Post)^2+AN14^2)^0.5) -> 2 | AT14: =AR14/AS14 -> 0 | AU14: =1.49/AQ14*AR14*AT14^0.667*AP14^0.5 ->  | AV14: =1.49/AQ14*AT14^0.667*AP14^0.5 ->  | AW14: =AU14-q5post ->  | AX14: =ROUND(AW14,1) -> 
A15: I5 (in/hr) = | D15: D5 = | F15: ft. | H15: I5 (in/hr) = | J15: D5 = | L15: ft. | N15: D5 = | O15: =IF(OR(d5post=0,d5pre=0),"",(d5post/d5pre)-1) ->  | AA15: =Base_Width_Pre -> 0 | AB15: 1.564723921 | AC15: =(Side_Slope_Left_Pre+Side_Slope_Right_Pre)/2 -> 0 | AD15: =Slope_Pre -> 0 | AE15: =Roughness_Pre -> 0 | AF15: 0 | AG15: =AA15+((AB15*Side_Slope_Left_Pre)^2+AB15^2)^0.5+((AB15*Side_Slope_Right_Pre)^2+AB15^2)^0.5 -> 3.129447841 | AH15: 0 | AK15: =AI15-q5pre ->  | AM15: =IF(Post_Const_Geometry_Selection="Geometry Same as Pre-Construction",Base_Width_Pre,Base_Width_Post) -> 0 | AN15: 1 | AO15: =IF(Post_Const_Geometry_Selection="Geometry Same as Pre-Construction",(Side_Slope_Left_Pre+Side_Slope_Right_Pre)/2,(Side_Slope_Left_Post+Side_Slope_Right_Post)/2) -> 0 | AP15: =IF(Post_Const_Geometry_Selection="Geometry Same as Pre-Construction",Slope_Pre,Slope_Post) -> 0 | AQ15: =IF(Post_Const_Geometry_Selection="Geometry Same as Pre-Construction",Roughness_Pre,Roughness_Post) -> 0 | AR15: 0 | AS15: =IF(Post_Const_Geometry_Selection="Geometry Same as Pre-Construction",AM15+((AN15*Side_Slope_Left_Pre)^2+AN15^2)^0.5+((AN15*Side_Slope_Right_Pre)^2+AN15^2)^0.5,AM15+((AN15*Side_Slope_Left_Post)^2+AN15^2)^0.5+((AN15*Side_Slope_Right_Post)^2+AN15^2)^0.5) -> 2 | AT15: 0 | AW15: =AU15-q5post -> 
A16: I10 (in/hr) = | D16: Q10 = | E16: =IF(OR(c_composite_pre=0,i10pre=0,da_total_pre=0),"",c_composite_pre*i10pre*da_total_pre) ->  | F16: cfs | H16: I10 (in/hr) = | J16: Q10 = | K16: =IF(OR(c_composite_post=0,i10post=0,da_total_post=0),"",c_composite_post*i10post*da_total_post) ->  | L16: cfs | N16: Q10 = | O16: =IF(OR(q10post="",q10pre=""),"",(q10post/q10pre)-1) ->  | S16: User Notes (will not be printed) | AL16: 0
A17: I25 (in/hr) = | D17: V10 = | F17: ft./s | H17: I25 (in/hr) = | J17: V10 = | L17: ft./s | N17: V10 = | O17: =IF(OR(v10post=0,v10pre=0),"",(v10post/v10pre)-1) ->  | AA17: =Base_Width_Pre -> 0 | AB17: 1.621325459 | AC17: =(Side_Slope_Left_Pre+Side_Slope_Right_Pre)/2 -> 0 | AD17: =Slope_Pre -> 0 | AE17: =Roughness_Pre -> 0 | AF17: 0 | AG17: =AA17+((AB17*Side_Slope_Left_Pre)^2+AB17^2)^0.5+((AB17*Side_Slope_Right_Pre)^2+AB17^2)^0.5 -> 3.242650919 | AH17: 0 | AK17: =AI17-q10pre ->  | AM17: =IF(Post_Const_Geometry_Selection="Geometry Same as Pre-Construction",Base_Width_Pre,Base_Width_Post) -> 0 | AN17: 1 | AO17: =IF(Post_Const_Geometry_Selection="Geometry Same as Pre-Construction",(Side_Slope_Left_Pre+Side_Slope_Right_Pre)/2,(Side_Slope_Left_Post+Side_Slope_Right_Post)/2) -> 0 | AP17: =IF(Post_Const_Geometry_Selection="Geometry Same as Pre-Construction",Slope_Pre,Slope_Post) -> 0 | AQ17: =IF(Post_Const_Geometry_Selection="Geometry Same as Pre-Construction",Roughness_Pre,Roughness_Post) -> 0 | AR17: =AM17*AN17+AO17*AN17^2 -> 0 | AS17: =IF(Post_Const_Geometry_Selection="Geometry Same as Pre-Construction",AM17+((AN17*Side_Slope_Left_Pre)^2+AN17^2)^0.5+((AN17*Side_Slope_Right_Pre)^2+AN17^2)^0.5,AM17+((AN17*Side_Slope_Left_Post)^2+AN17^2)^0.5+((AN17*Side_Slope_Right_Post)^2+AN17^2)^0.5) -> 2 | AT17: =AR17/AS17 -> 0 | AU17: =1.49/AQ17*AR17*AT17^0.667*AP17^0.5 ->  | AV17: =1.49/AQ17*AT17^0.667*AP17^0.5 ->  | AW17: =AU17-q10post -> 
A18: I50 (in/hr) = | D18: D10 = | F18: ft. | H18: I50 (in/hr) = | J18: D10 = | L18: ft. | N18: D10 = | O18: =IF(OR(d10post=0,d10pre=0),"",(d10post/d10pre)-1) ->  | AA18: =Base_Width_Pre -> 0 | AB18: 1.621325459 | AC18: =(Side_Slope_Left_Pre+Side_Slope_Right_Pre)/2 -> 0 | AD18: =Slope_Pre -> 0 | AE18: =Roughness_Pre -> 0 | AF18: 0 | AG18: =AA18+((AB18*Side_Slope_Left_Pre)^2+AB18^2)^0.5+((AB18*Side_Slope_Right_Pre)^2+AB18^2)^0.5 -> 3.242650919 | AH18: 0 | AK18: =AI18-q10pre ->  | AM18: =IF(Post_Const_Geometry_Selection="Geometry Same as Pre-Construction",Base_Width_Pre,Base_Width_Post) -> 0 | AN18: 1 | AO18: =IF(Post_Const_Geometry_Selection="Geometry Same as Pre-Construction",(Side_Slope_Left_Pre+Side_Slope_Right_Pre)/2,(Side_Slope_Left_Post+Side_Slope_Right_Post)/2) -> 0 | AP18: =IF(Post_Const_Geometry_Selection="Geometry Same as Pre-Construction",Slope_Pre,Slope_Post) -> 0 | AQ18: =IF(Post_Const_Geometry_Selection="Geometry Same as Pre-Construction",Roughness_Pre,Roughness_Post) -> 0 | AR18: 0 | AS18: =IF(Post_Const_Geometry_Selection="Geometry Same as Pre-Construction",AM18+((AN18*Side_Slope_Left_Pre)^2+AN18^2)^0.5+((AN18*Side_Slope_Right_Pre)^2+AN18^2)^0.5,AM18+((AN18*Side_Slope_Left_Post)^2+AN18^2)^0.5+((AN18*Side_Slope_Right_Post)^2+AN18^2)^0.5) -> 2 | AT18: 0 | AW18: =AU18-q10post -> 
A19: DA imp in R/W = | D19: Q25 = | E19: =IF(OR(c_composite_pre=0,i25pre=0,da_total_pre=0),"",c_composite_pre*i25pre*da_total_pre) ->  | F19: cfs | H19: DA imp in R/W = | J19: Q25 = | K19: =IF(OR(c_composite_post=0,i25post=0,da_total_post=0),"",c_composite_post*i25post*da_total_post) ->  | L19: cfs | N19: Q25 = | O19: =IF(OR(q25post="",q25pre=""),"",(q25post/q25pre)-1) -> 
A20: DAtotal = | D20: V25 = | F20: ft./s | H20: DAtotal = | J20: V25 = | L20: ft./s | N20: V25 = | O20: =IF(OR(v25post=0,v25pre=0),"",(v25post/v25pre)-1) ->  | AA20: =Base_Width_Pre -> 0 | AB20: 1.682068068 | AC20: =(Side_Slope_Left_Pre+Side_Slope_Right_Pre)/2 -> 0 | AD20: =Slope_Pre -> 0 | AE20: =Roughness_Pre -> 0 | AF20: =AA20*AB20+AC20*AB20^2 -> 0 | AG20: =AA20+((AB20*Side_Slope_Left_Pre)^2+AB20^2)^0.5+((AB20*Side_Slope_Right_Pre)^2+AB20^2)^0.5 -> 3.364136136 | AH20: 0 | AK20: =AI20-q25pre ->  | AM20: =IF(Post_Const_Geometry_Selection="Geometry Same as Pre-Construction",Base_Width_Pre,Base_Width_Post) -> 0 | AN20: 1 | AO20: =IF(Post_Const_Geometry_Selection="Geometry Same as Pre-Construction",(Side_Slope_Left_Pre+Side_Slope_Right_Pre)/2,(Side_Slope_Left_Post+Side_Slope_Right_Post)/2) -> 0 | AP20: =IF(Post_Const_Geometry_Selection="Geometry Same as Pre-Construction",Slope_Pre,Slope_Post) -> 0 | AQ20: =IF(Post_Const_Geometry_Selection="Geometry Same as Pre-Construction",Roughness_Pre,Roughness_Post) -> 0 | AR20: =AM20*AN20+AO20*AN20^2 -> 0 | AS20: =IF(Post_Const_Geometry_Selection="Geometry Same as Pre-Construction",AM20+((AN20*Side_Slope_Left_Pre)^2+AN20^2)^0.5+((AN20*Side_Slope_Right_Pre)^2+AN20^2)^0.5,AM20+((AN20*Side_Slope_Left_Post)^2+AN20^2)^0.5+((AN20*Side_Slope_Right_Post)^2+AN20^2)^0.5) -> 2 | AT20: =AR20/AS20 -> 0 | AU20: =1.49/AQ20*AR20*AT20^0.667*AP20^0.5 ->  | AV20: =1.49/AQ20*AT20^0.667*AP20^0.5 ->  | AW20: =AU20-q25post -> 
A21: % Imp. Area (Total) | D21: D25 = | F21: ft. | H21: % Imp. Area (Total) | J21: D25 = | L21: ft. | N21: D25 = | O21: =IF(OR(d25post=0,d25pre=0),"",(d25post/d25pre)-1) ->  | AA21: =Base_Width_Pre -> 0 | AB21: 1.682068068 | AC21: =(Side_Slope_Left_Pre+Side_Slope_Right_Pre)/2 -> 0 | AD21: =Slope_Pre -> 0 | AE21: =Roughness_Pre -> 0 | AF21: 0 | AG21: =AA21+((AB21*Side_Slope_Left_Pre)^2+AB21^2)^0.5+((AB21*Side_Slope_Right_Pre)^2+AB21^2)^0.5 -> 3.364136136 | AH21: 0 | AK21: =AI21-q25pre ->  | AM21: =IF(Post_Const_Geometry_Selection="Geometry Same as Pre-Construction",Base_Width_Pre,Base_Width_Post) -> 0 | AN21: 1 | AO21: =IF(Post_Const_Geometry_Selection="Geometry Same as Pre-Construction",(Side_Slope_Left_Pre+Side_Slope_Right_Pre)/2,(Side_Slope_Left_Post+Side_Slope_Right_Post)/2) -> 0 | AP21: =IF(Post_Const_Geometry_Selection="Geometry Same as Pre-Construction",Slope_Pre,Slope_Post) -> 0 | AQ21: =IF(Post_Const_Geometry_Selection="Geometry Same as Pre-Construction",Roughness_Pre,Roughness_Post) -> 0 | AR21: =AM21*AN21+AO21*AN21^2 -> 0 | AS21: =IF(Post_Const_Geometry_Selection="Geometry Same as Pre-Construction",AM21+((AN21*Side_Slope_Left_Pre)^2+AN21^2)^0.5+((AN21*Side_Slope_Right_Pre)^2+AN21^2)^0.5,AM21+((AN21*Side_Slope_Left_Post)^2+AN21^2)^0.5+((AN21*Side_Slope_Right_Post)^2+AN21^2)^0.5) -> 2 | AT21: 0 | AW21: =AU21-q25post -> 
A22: % Imp. Area (NCDOT Contribution) | D22: Q50 = | E22: =IF(OR(c_composite_pre=0,i50pre=0,da_total_pre=0),"",c_composite_pre*i50pre*da_total_pre) ->  | F22: cfs | H22: % Imp. Area (NCDOT Contribution) | J22: Q50 = | K22: =IF(OR(c_composite_post=0,i50post=0,da_total_post=0),"",c_composite_post*i50post*da_total_post) ->  | L22: cfs | N22: Q50 = | O22: =IF(OR(q50post="",q50pre=""),"",(q50post/q50pre)-1) -> 
D23: V50 = | F23: ft./s | J23: V50 = | L23: ft./s | N23: V50 = | O23: =IF(OR(v50post=0,v50pre=0),"",(v50post/v50pre)-1) ->  | AA23: =Base_Width_Pre -> 0 | AB23: 1.719610494 | AC23: =(Side_Slope_Left_Pre+Side_Slope_Right_Pre)/2 -> 0 | AD23: =Slope_Pre -> 0 | AE23: =Roughness_Pre -> 0 | AF23: 0 | AG23: =AA23+((AB23*Side_Slope_Left_Pre)^2+AB23^2)^0.5+((AB23*Side_Slope_Right_Pre)^2+AB23^2)^0.5 -> 3.439220987 | AH23: 0 | AK23: =AI23-q50pre ->  | AM23: =IF(Post_Const_Geometry_Selection="Geometry Same as Pre-Construction",Base_Width_Pre,Base_Width_Post) -> 0 | AN23: 1 | AO23: =IF(Post_Const_Geometry_Selection="Geometry Same as Pre-Construction",(Side_Slope_Left_Pre+Side_Slope_Right_Pre)/2,(Side_Slope_Left_Post+Side_Slope_Right_Post)/2) -> 0 | AP23: =IF(Post_Const_Geometry_Selection="Geometry Same as Pre-Construction",Slope_Pre,Slope_Post) -> 0 | AQ23: =IF(Post_Const_Geometry_Selection="Geometry Same as Pre-Construction",Roughness_Pre,Roughness_Post) -> 0 | AR23: =AM23*AN23+AO23*AN23^2 -> 0 | AS23: =IF(Post_Const_Geometry_Selection="Geometry Same as Pre-Construction",AM23+((AN23*Side_Slope_Left_Pre)^2+AN23^2)^0.5+((AN23*Side_Slope_Right_Pre)^2+AN23^2)^0.5,AM23+((AN23*Side_Slope_Left_Post)^2+AN23^2)^0.5+((AN23*Side_Slope_Right_Post)^2+AN23^2)^0.5) -> 2 | AT23: =AR23/AS23 -> 0 | AU23: =1.49/AQ23*AR23*AT23^0.667*AP23^0.5 ->  | AV23: =1.49/AQ23*AT23^0.667*AP23^0.5 ->  | AW23: =AU23-q50post -> 
D24: D50 = | F24: ft. | J24: D50 = | L24: ft. | N24: D50 = | O24: =IF(OR(d50post=0,d50pre=0),"",(d50post/d50pre)-1) ->  | AA24: =Base_Width_Pre -> 0 | AB24: 1.719610494 | AC24: =(Side_Slope_Left_Pre+Side_Slope_Right_Pre)/2 -> 0 | AD24: =Slope_Pre -> 0 | AE24: =Roughness_Pre -> 0 | AF24: =AA24*AB24+AC24*AB24^2 -> 0 | AG24: =AA24+((AB24*Side_Slope_Left_Pre)^2+AB24^2)^0.5+((AB24*Side_Slope_Right_Pre)^2+AB24^2)^0.5 -> 3.439220987 | AH24: 0 | AI24: =1.49/AE24*AF24*AH24^0.667*AD24^0.5 ->  | AK24: =AI24-q50pre ->  | AM24: =IF(Post_Const_Geometry_Selection="Geometry Same as Pre-Construction",Base_Width_Pre,Base_Width_Post) -> 0 | AN24: 1 | AO24: =IF(Post_Const_Geometry_Selection="Geometry Same as Pre-Construction",(Side_Slope_Left_Pre+Side_Slope_Right_Pre)/2,(Side_Slope_Left_Post+Side_Slope_Right_Post)/2) -> 0 | AP24: =IF(Post_Const_Geometry_Selection="Geometry Same as Pre-Construction",Slope_Pre,Slope_Post) -> 0 | AQ24: =IF(Post_Const_Geometry_Selection="Geometry Same as Pre-Construction",Roughness_Pre,Roughness_Post) -> 0 | AR24: 0 | AS24: =IF(Post_Const_Geometry_Selection="Geometry Same as Pre-Construction",AM24+((AN24*Side_Slope_Left_Pre)^2+AN24^2)^0.5+((AN24*Side_Slope_Right_Pre)^2+AN24^2)^0.5,AM24+((AN24*Side_Slope_Left_Post)^2+AN24^2)^0.5+((AN24*Side_Slope_Right_Post)^2+AN24^2)^0.5) -> 2 | AT24: 0 | AW24: =AU24-q50post -> 
A25: I100 (in/hr) = | B25: =IF(Tc_R_Pre=0,"ENTER T.O.C",IF(Name_R="","PICK COUNTY",AT58)) -> ENTER T.O.C | D25: Q100 = | E25: =IF(OR(c_composite_pre=0,i100pre=0,da_total_pre=0),"",c_composite_pre*i100pre*da_total_pre) ->  | F25: cfs | H25: I100 (in/hr) = | I25: =IF(Tc_R_Post=0,"ENTER T.O.C",IF(Name_R="","PICK COUNTY",AT86)) -> ENTER T.O.C | J25: Q100 = | K25: =IF(OR(c_composite_post=0,i100post=0,da_total_post=0),"",c_composite_post*i100post*da_total_post) ->  | L25: cfs | N25: Q100 = | O25: =IF(OR(q100post="",q100pre=""),"",(q100post/q100pre)-1) -> 
D26: V100 = | F26: ft./s | J26: V100 = | L26: ft./s | N26: V100 = | O26: =IF(OR(v100post=0,v100pre=0),"",(v100post/v100pre)-1) ->  | AA26: =Base_Width_Pre -> 0 | AB26: 1.719610494 | AC26: =(Side_Slope_Left_Pre+Side_Slope_Right_Pre)/2 -> 0 | AD26: =Slope_Pre -> 0 | AE26: =Roughness_Pre -> 0 | AF26: =AA26*AB26+AC26*AB26^2 -> 0 | AG26: =AA26+((AB26*Side_Slope_Left_Pre)^2+AB26^2)^0.5+((AB26*Side_Slope_Right_Pre)^2+AB26^2)^0.5 -> 3.439220987 | AH26: =AF26/AG26 -> 0 | AI26: =1.49/AE26*AF26*AH26^0.667*AD26^0.5 ->  | AJ26: =1.49/AE26*AH26^0.667*AD26^0.5 ->  | AK26: =AI26-q100pre ->  | AL26: =ROUND(AK26,1) ->  | AM26: =IF(Post_Const_Geometry_Selection="Geometry Same as Pre-Construction",Base_Width_Pre,Base_Width_Post) -> 0 | AN26: 1 | AO26: =IF(Post_Const_Geometry_Selection="Geometry Same as Pre-Construction",(Side_Slope_Left_Pre+Side_Slope_Right_Pre)/2,(Side_Slope_Left_Post+Side_Slope_Right_Post)/2) -> 0 | AP26: =IF(Post_Const_Geometry_Selection="Geometry Same as Pre-Construction",Slope_Pre,Slope_Post) -> 0 | AQ26: =IF(Post_Const_Geometry_Selection="Geometry Same as Pre-Construction",Roughness_Pre,Roughness_Post) -> 0 | AR26: =AM26*AN26+AO26*AN26^2 -> 0 | AS26: =IF(Post_Const_Geometry_Selection="Geometry Same as Pre-Construction",AM26+((AN26*Side_Slope_Left_Pre)^2+AN26^2)^0.5+((AN26*Side_Slope_Right_Pre)^2+AN26^2)^0.5,AM26+((AN26*Side_Slope_Left_Post)^2+AN26^2)^0.5+((AN26*Side_Slope_Right_Post)^2+AN26^2)^0.5) -> 2 | AT26: =AR26/AS26 -> 0 | AU26: =1.49/AQ26*AR26*AT26^0.667*AP26^0.5 ->  | AV26: =1.49/AQ26*AT26^0.667*AP26^0.5 ->  | AW26: =AU26-q100post ->  | AX26: =ROUND(AW26,1) -> 
D27: D100 = | F27: ft. | J27: D100 = | L27: ft. | N27: D100 = | O27: =IF(OR(d100post=0,d100pre=0),"",(d100post/d100pre)-1) ->  | AA27: =Base_Width_Pre -> 0 | AB27: 1.719610494 | AC27: =(Side_Slope_Left_Pre+Side_Slope_Right_Pre)/2 -> 0 | AD27: =Slope_Pre -> 0 | AE27: =Roughness_Pre -> 0 | AF27: =AA27*AB27+AC27*AB27^2 -> 0 | AG27: =AA27+((AB27*Side_Slope_Left_Pre)^2+AB27^2)^0.5+((AB27*Side_Slope_Right_Pre)^2+AB27^2)^0.5 -> 3.439220987 | AH27: 0 | AI27: =1.49/AE27*AF27*AH27^0.667*AD27^0.5 ->  | AK27: =AI27-q100pre ->  | AL27: =ROUND(AK27,1) ->  | AM27: =IF(Post_Const_Geometry_Selection="Geometry Same as Pre-Construction",Base_Width_Pre,Base_Width_Post) -> 0 | AN27: 1 | AO27: =IF(Post_Const_Geometry_Selection="Geometry Same as Pre-Construction",(Side_Slope_Left_Pre+Side_Slope_Right_Pre)/2,(Side_Slope_Left_Post+Side_Slope_Right_Post)/2) -> 0 | AP27: =IF(Post_Const_Geometry_Selection="Geometry Same as Pre-Construction",Slope_Pre,Slope_Post) -> 0 | AQ27: =IF(Post_Const_Geometry_Selection="Geometry Same as Pre-Construction",Roughness_Pre,Roughness_Post) -> 0 | AR27: 0 | AS27: =IF(Post_Const_Geometry_Selection="Geometry Same as Pre-Construction",AM27+((AN27*Side_Slope_Left_Pre)^2+AN27^2)^0.5+((AN27*Side_Slope_Right_Pre)^2+AN27^2)^0.5,AM27+((AN27*Side_Slope_Left_Post)^2+AN27^2)^0.5+((AN27*Side_Slope_Right_Post)^2+AN27^2)^0.5) -> 2 | AT27: 0 | AU27: =1.49/AQ27*AR27*AT27^0.667*AP27^0.5 ->  | AV27: =1.49/AQ27*AT27^0.667*AP27^0.5 ->  | AW27: =AU27-q100post -> 
N28: DAtotal= | O28: =IF(OR(da_total_post=0,da_total_post="",da_total_pre=0),"",(da_total_post/da_total_pre)-1) -> 
A29: Railroad / 100-YR Design? | D29: Existing Erosion / Potential Future Erosion? | H29: Post Const. D/S Channel liner type | N29: DA imp R/W = | O29: =IF(OR(da_pre_imp="",da_post_imp=""),"",da_post_imp-da_pre_imp) -> 
K30: =IF(J30="","",IF(d10post="","Calc D10",IF(AND(Post_Const_Geometry_Selection="Geometry Same as Pre-Construction",Slope_Pre=""),"Enter Slope",IF(AND(Slope_Post="",Post_Const_Geometry_Selection<>"Geometry Same as Pre-Construction"),"Enter Slope",IF(Post_Const_Geometry_Selection="Geometry Same as Pre-Construction",Slope_Pre*d10post*62.4,Slope_Post*d10post*62.4))))) ->  | N30: % imp Area = | O30: =IF(OR(percent_imp_pre_total="",percent_imp_post_total=""),"",percent_imp_post_total-percent_imp_pre_total) ->  | AG30: =_xlfn.TEXTJOIN("",TRUE,"OA-",B1,"-",UID_hidden) -> OA-0-
A34: LINER TYPE | B34: Select Liner Type Above To Generate List | H34: PRE-CONSTRUCTION OUTLET GEOMETRY
A36: V10 Permissible | B36: =IF($I$30="N/A","N/A",IF(Soil_Type="Permanent Matting Product (stable)","User to Define",IF($J$30<>"","N/A",IF($I$30="Soil",#REF!,IF($I$30="Non-Soil",$AD$43,""))))) ->  | D36: =IF(Soil_Type='PICK LISTS'!E14,"N/A",IF(A34="LINER TYPE",AF62,AD60)) ->  | H36: POST-CONSTRUCTION OUTLET GEOMETRY
A37: τ10 Permissible | B37: =IF($A$34="SOIL TYPE","N/A",IF(Soil_Type="Grass / Dense Veg. (no bare soil spots)","N/A",IF($J$30<>"",$AD$43,""))) ->  | AB37: Hydrology Method: | AD37: Rational Method
A39: PRE-CONSTRUCTION OUTLET GEOMETRY | I39: POST-CONSTRUCTION OUTLET GEOMETRY
AF40: allowable shear stress | AH40: =AD43 -> 
AB41: v_permissible soil | AD41: =IF(Soil_Type='PICK LISTS'!E2,'PICK LISTS'!F2,IF(Soil_Type='PICK LISTS'!E3,'PICK LISTS'!F3,IF(Soil_Type='PICK LISTS'!E4,'PICK LISTS'!F4, IF(Soil_Type='PICK LISTS'!E5,'PICK LISTS'!F5, IF(Soil_Type='PICK LISTS'!E6,'PICK LISTS'!F6,IF(Soil_Type='PICK LISTS'!E7,'PICK LISTS'!F7,IF(Soil_Type='PICK LISTS'!E8,'PICK LISTS'!F8,IF(Soil_Type='PICK LISTS'!E9,'PICK LISTS'!F9,IF(Soil_Type='PICK LISTS'!E10,'PICK LISTS'!F10,IF(Soil_Type='PICK LISTS'!E11,'PICK LISTS'!F11,IF(Soil_Type='PICK LISTS'!E12,'PICK LISTS'!F12,IF(Soil_Type='PICK LISTS'!E13,'PICK LISTS'!F13,IF(Soil_Type="N/A (Pipe System or Non-Channel)","N/A",""))))))))))))) ->  | AF41: riprap permissible velocity | AI41: =IF(v10post="","",(1.49/(Roughness_Pre*SQRT(62.4*d10pre)))*(AH18^(0.1666666))*(AH40^0.5)) ->  | AM41: PRE
AN42: Intensity Calcs
AB43: shear/v_perm non-soil | AD43: =IF(Soil_Type='PICK LISTS'!H18,'PICK LISTS'!I18,IF(Soil_Type='PICK LISTS'!H19,'PICK LISTS'!I19,IF(Soil_Type='PICK LISTS'!H20,'PICK LISTS'!I20,IF(Soil_Type='PICK LISTS'!H21,'PICK LISTS'!I21,IF(Soil_Type='PICK LISTS'!H22,'PICK LISTS'!I22,IF(Soil_Type='PICK LISTS'!H23,'PICK LISTS'!I23,"")))))) ->  | AF43: Is it riprap lined? | AH43: =IF(OR(Soil_Type="CL-A Riprap (d50 = 4 in.)",Soil_Type="CL-B Riprap (d50 = 8 in.)",Soil_Type="CL-I Riprap (d50 = 10 in.)",Soil_Type="CL-II Riprap (d50 = 12 in.)"),"YES","NO") -> NO
AO44: 2 | AP44: 5 | AQ44: 10 | AR44: 25 | AS44: 50 | AT44: 100
AB45: Increase or Decrease in Velocity | AN45: =IF(custom_IDF="YES",INDIRECT("Z_CUSTOM_IDF"),IF(county_for_this_outlet="New Hanover", INDIRECT("NewHanover"),INDIRECT(county_for_this_outlet))) -> 
AB46: =IF(OR(v10pre="",v10post="",Soil_Type="",Soil_Type="Select Liner Type Above To Generate List"),"",IF(v10post>v10pre,"Increase",IF(v10post<=v10pre,"Decrease",""))) -> 
AB48: Vpost > Vsoil_permissible?
A51: =_xlfn.CONCAT("SUMMARY - ",_xlnm.sheet_title) -> SUMMARY - PSH # OUTLET # | AB51: =IF(I30="Soil",IF(v10post>AD41,"YES","NO"),IF(AH43="YES",IF(K30>AD43,"YES","NO"),IF(v10post>AD43,"YES","NO"))) -> NO
A52: Please provide a summary of the outlet analysis here. Directions/guidance are provided by clicking on the "i" button above.
AB53: Vpost increase > 10%? | AN53: 5-10 | AO53: =_xlfn.FORECAST.LINEAR(Tc_R_Pre,AO45:AO46,$AN45:$AN46) ->  | AP53: =_xlfn.FORECAST.LINEAR(Tc_R_Pre,AP45:AP46,$AN45:$AN46) -> 
AB54: =IF(O17>0.1,"YES","NO") -> YES | AN54: 10-15 | AO54: =_xlfn.FORECAST.LINEAR(Tc_R_Pre,AO46:AO47,$AN46:$AN47) -> 
AN55: 15-30
AN56: 30-60
AO58: =IF(OR(Tc_R_Pre>60, Tc_R_Pre<5), "Error", IF(AND(Tc_R_Pre>=5,Tc_R_Pre<=10),AO53, IF(AND(Tc_R_Pre>10,Tc_R_Pre<=15), AO54, IF(AND(Tc_R_Pre>15, Tc_R_Pre<=30), AO55, IF(AND(Tc_R_Pre>30, Tc_R_Pre<=60), AO56, VLOOKUP(Tc_R_Pre, INDIRECT(Name_R), 2)))))) -> Error | AP58: =IF(OR(Tc_R_Pre>60, Tc_R_Pre<5), "Error", IF(AND(Tc_R_Pre>=5,Tc_R_Pre<=10),AP53, IF(AND(Tc_R_Pre>10,Tc_R_Pre<=15), AP54, IF(AND(Tc_R_Pre>15, Tc_R_Pre<=30), AP55, IF(AND(Tc_R_Pre>30, Tc_R_Pre<=60), AP56, VLOOKUP(Tc_R_Pre, INDIRECT(Name_R), 2)))))) -> Error | AQ58: Error | AR58: Error | AS58: Error | AT58: Error
S59: NUMBER OF OUTLET PHOTO PAGES | U59: 1 | AC59: Applies? | AD59: Which case is it? | AF59: non-soil
AB60: Case 1 | AC60: =IF(AND(OR(F30="None",F30="Potential"),AB46="Decrease",AB51="NO"),"YES","") ->  | AD60: =IF(AC60<>"",AB60,IF(AC61<>"",AB61,IF(AC62<>"",AB62,IF(AC63<>"",AB63,IF(AC64<>"",AB64,IF(AC65<>"",AB65,IF(AC66<>"",AB66,IF(AC67<>"",AB67,IF(AC68<>"",AB68,IF(AC69<>"",AB69,"")))))))))) -> 
AB61: Case 1A | AC61: =IF(AND(OR(F30="Existing",F30="Both"),AB46="Decrease",AB51="NO"),"YES","") -> 
AB62: Case 2 | AC62: =IF(AND(OR(F30="None",F30="Potential"),AB46="Decrease",AB51="YES"),"YES","") ->  | AF62: =IF(AD60="","","Non-Soil, see Note 1 & 2 of Case Table") -> 
AB63: Case 2A | AC63: =IF(AND(OR(F30="Existing",F30="Both"),AB46="Decrease",AB51="YES"),"YES","") ->  | AN63: pre-const geometry type
AB64: Case 3 | AC64: =IF(AND(OR(F30="None",F30="Potential"),AB46="Increase",AB51="NO"),"YES","") -> 
AB65: Case 3A | AC65: =IF(AND(OR(F30="Existing",F30="Both"),AB46="Increase",AB51="NO"),"YES","") ->  | AN65: post-const geometry type | AR65: railroad design?
AB66: Case 4 | AC66: =IF(AND(OR(F30="None",F30="Potential"),AB46="Increase",AB51="YES",O17<=0.1),"YES","") -> 
AB67: Case 4A | AC67: =IF(AND(OR(F30="Existing",F30="Both"),AB46="Increase",AB51="YES",O17<=0.1),"YES","") -> 
AB68: Case 5 | AC68: =IF(AND(OR(F30="None",F30="Potential"),AB46="Increase",AB51="YES",O17>0.1),"YES","") -> 
AB69: Case 5A | AC69: =IF(AND(OR(F30="Existing",F30="Both"),AB46="Increase",AB51="YES",O17>0.1),"YES","") ->  | AM69: POST
AN70: Intensity Calcs
A72: OUTLET SITE PHOTOS PAGE 1 | AO72: 2 | AP72: 5 | AQ72: 10 | AR72: 25 | AS72: 50 | AT72: 100
AN73: =IF(custom_IDF="YES",INDIRECT("Z_CUSTOM_IDF"),IF(county_for_this_outlet="New Hanover", INDIRECT("NewHanover"),INDIRECT(county_for_this_outlet))) -> 
A74: Photo Description Here | I74: Photo Description Here
AN81: 5-10 | AO81: =_xlfn.FORECAST.LINEAR(Tc_R_Post,AO73:AO74,$AN73:$AN74) -> 
AN82: 10-15
AN83: 15-30
AN84: 30-60
AO86: =IF(OR(Tc_R_Post>60, Tc_R_Post<5), "Error", IF(AND(Tc_R_Post>=5,Tc_R_Post<=10),AO81, IF(AND(Tc_R_Post>10, Tc_R_Post<=15), AO82, IF(AND(Tc_R_Post>15, Tc_R_Post<=30), AO83, IF(AND(Tc_R_Post>30, Tc_R_Post<=60), AO84, VLOOKUP(Tc_R_Post, INDIRECT(Name_R), 2)))))) -> Error | AP86: Error | AQ86: Error | AR86: Error | AS86: Error | AT86: Error
BC89: template for 1 page of photos just copies the formatting from this cell below
BB90: ---->
BC96: TEMPLATE FOR 2 PHOTO PAGES | BU96: TEMPLATE FOR 3 PHOTO PAGES | CM96: TEMPLATE FOR 4 PHOTO PAGES | DE96: TEMPLATE FOR 5 PHOTO PAGES
A97: =_xlfn.CONCAT( _xlnm.sheet_title," SITE PHOTOS - PAGE 2") -> PSH # OUTLET # SITE PHOTOS - PAGE 2 | BC97: OUTLET SITE PHOTOS PAGE 2 | BU97: OUTLET SITE PHOTOS PAGE 2 | CM97: OUTLET SITE PHOTOS PAGE 2 | DE97: OUTLET SITE PHOTOS PAGE 2
A98: Photo Description Here | I98: Photo Description Here | BC98: Photo Description Here | BK98: Photo Description Here | BU98: Photo Description Here | CC98: Photo Description Here | CM98: Photo Description Here | CU98: Photo Description Here | DE98: Photo Description Here | DM98: Photo Description Here
AN102: =INDIRECT(New_Hanover) -> 
AI105: hidden da and c pre field values for this sheet | AM105: hidden da and c post field values for this sheet
AI107: 0.00 | AJ107: 0.9 | AM107: 0.00 | AN107: 0.9
AI108: 0.00 | AM108: 0.00
AI109: 0.00 | AJ109: 0.3 | AM109: 0.00 | AN109: 0.3
AI110: 0.00 | AM110: 0.00
AI111: 0.00 | AJ111: 0.2 | AM111: 0.00 | AN111: 0.2
AI112: 0.00 | AM112: 0.00
AI113: 0.00 | AJ113: 0 | AM113: 0.00 | AN113: 0
A114: Photo Description Here | I114: Photo Description Here | AI114: 0.00 | AM114: 0.00 | BC114: Photo Description Here | BK114: Photo Description Here | BU114: Photo Description Here | CC114: Photo Description Here | CM114: Photo Description Here | CU114: Photo Description Here | DE114: Photo Description Here | DM114: Photo Description Here
AI115: 0.00 | AJ115: 0 | AM115: 0.00 | AN115: 0
AI116: 0.00 | AM116: 0.00
AI117: 0.00 | AJ117: 0 | AM117: 0.00 | AN117: 0
AI118: 0.00 | AM118: 0.00
A131: =_xlfn.CONCAT( _xlnm.sheet_title," SITE PHOTOS - PAGE 3") -> PSH # OUTLET # SITE PHOTOS - PAGE 3 | BU131: OUTLET SITE PHOTOS PAGE 3 | CM131: OUTLET SITE PHOTOS PAGE 3 | DE131: OUTLET SITE PHOTOS PAGE 3
A132: Photo Description Here | I132: Photo Description Here | BU132: Photo Description Here | CC132: Photo Description Here | CM132: Photo Description Here | CU132: Photo Description Here | DE132: Photo Description Here | DM132: Photo Description Here
A148: Photo Description Here | I148: Photo Description Here | BU148: Photo Description Here | CC148: Photo Description Here | CM148: Photo Description Here | CU148: Photo Description Here | DE148: Photo Description Here | DM148: Photo Description Here
A165: =_xlfn.CONCAT( _xlnm.sheet_title," SITE PHOTOS - PAGE 4") -> PSH # OUTLET # SITE PHOTOS - PAGE 4 | CM165: OUTLET SITE PHOTOS PAGE 4 | DE165: OUTLET SITE PHOTOS PAGE 4
A166: Photo Description Here | I166: Photo Description Here | CM166: Photo Description Here | CU166: Photo Description Here | DE166: Photo Description Here | DM166: Photo Description Here
A182: Photo Description Here | I182: Photo Description Here | CM182: Photo Description Here | CU182: Photo Description Here | DE182: Photo Description Here | DM182: Photo Description Here
A199: =_xlfn.CONCAT( _xlnm.sheet_title," SITE PHOTOS - PAGE 5") -> PSH # OUTLET # SITE PHOTOS - PAGE 5 | DE199: OUTLET SITE PHOTOS PAGE 5
A200: Photo Description Here | I200: Photo Description Here | DE200: Photo Description Here | DM200: Photo Description Here
A216: Photo Description Here | I216: Photo Description Here | DE216: Photo Description Here | DM216: Photo Description Here
A235: =_xlfn.CONCAT("ADDITIONAL INFORMATION - LAND USE BREAKDOWN SUMMARY - ",_xlnm.sheet_title) -> ADDITIONAL INFORMATION - LAND USE BREAKDOWN SUMMARY - PSH # OUTLET #
A237: PRE-CONSTRUCTION | I237: POST-CONSTRUCTION
A239: LAND USE | C239: C-VALUE | F239: ACRES | I239: LAND USE | L239: C-VALUE | O239: ACRES
A240: IMPERVIOUS AREA WITHIN RIGHT OF WAY / EASEMENT / NCDOT CONTRIBUTION | C240: =VALUE(c_imp_pre_field) -> 0.9 | F240: =IF(VALUE(da_imp_onsite_pre_field)=0,"-",VALUE(da_imp_onsite_pre_field)) -> - | I240: IMPERVIOUS AREA WITHIN RIGHT OF WAY / EASEMENT / NCDOT CONTRIBUTION (ACRES) | L240: =VALUE(c_imp_post_field) -> 0.9 | O240: =IF(VALUE(da_imp_onsite_post_field)=0,"-",VALUE(da_imp_onsite_post_field)) -> -
A243: IMPERVIOUS AREA OUTSIDE RIGHT OF WAY / EASEMENT (ACRES) | F243: =IF(VALUE(da_imp_offsite_pre_field)=0,"-",VALUE(da_imp_offsite_pre_field)) -> - | I243: IMPERVIOUS AREA OUTSIDE RIGHT OF WAY / EASEMENT (ACRES) | O243: =IF(VALUE(da_imp_offsite_post_field)=0,"-",VALUE(da_imp_offsite_post_field)) -> -
A246: GRASS AREA WITHIN RIGHT OF WAY / EASEMENT / NCDOT CONTRIBUTION (ACRES) | C246: =VALUE(c_grass_pre_field) -> 0.3 | F246: =IF(VALUE(da_grass_onsite_pre_field)=0,"-",VALUE(da_grass_onsite_pre_field)) -> - | I246: GRASS AREA WITHIN RIGHT OF WAY / EASEMENT / NCDOT CONTRIBUTION (ACRES) | L246: =VALUE(c_grass_post_field) -> 0.3 | O246: =IF(VALUE(da_grass_onsite_post_field)=0,"-",VALUE(da_grass_onsite_post_field)) -> -
A249: GRASS AREA OUTSIDE RIGHT OF WAY / EASEMENT (ACRES) | F249: =IF(VALUE(da_grass_offsite_pre_field)=0,"-",VALUE(da_grass_offsite_pre_field)) -> - | I249: GRASS AREA OUTSIDE RIGHT OF WAY / EASEMENT (ACRES) | O249: =IF(VALUE(da_grass_offsite_post_field)=0,"-",VALUE(da_grass_offsite_post_field)) -> -
A252: WOODS AREA WITHIN RIGHT OF WAY / EASEMENT / NCDOT CONTRIBUTION (ACRES) | C252: =VALUE(c_woods_pre_field) -> 0.2 | F252: =IF(VALUE(da_woods_onsite_pre_field)=0,"-",VALUE(da_woods_onsite_pre_field)) -> - | I252: WOODS AREA WITHIN RIGHT OF WAY / EASEMENT / NCDOT CONTRIBUTION (ACRES) | L252: =VALUE(c_woods_post_field) -> 0.2 | O252: =IF(VALUE(da_woods_onsite_post_field)=0,"-",VALUE(da_woods_onsite_post_field)) -> -
A255: WOODS AREA OUTSIDE RIGHT OF WAY / EASEMENT (ACRES) | F255: =IF(VALUE(da_woods_offsite_pre_field)=0,"-",VALUE(da_woods_offsite_pre_field)) -> - | I255: WOODS AREA OUTSIDE RIGHT OF WAY / EASEMENT (ACRES) | O255: =IF(VALUE(da_woods_offsite_post_field)=0,"-",VALUE(da_woods_offsite_post_field)) -> -
A258: OTHER LAND USE #1 WITHIN RIGHT OF WAY / EASEMENT / NCDOT CONTRIBUTION (ACRES) | C258: =IF(VALUE(c_other1_pre_field)=0,"-",VALUE(c_other1_pre_field)) -> - | F258: =IF(VALUE(da_other1_onsite_pre_field)=0,"-",VALUE(da_other1_onsite_pre_field)) -> - | I258: OTHER LAND USE #1 WITHIN RIGHT OF WAY / EASEMENT / NCDOT CONTRIBUTION (ACRES) | L258: =IF(VALUE(c_other1_post_field)=0,"-",VALUE(c_other1_post_field)) -> - | O258: =IF(VALUE(da_other1_onsite_post_field)=0,"-",VALUE(da_other1_onsite_post_field)) -> -
A261: OTHER LAND USE #1 OUTSIDE RIGHT OF WAY / EASEMENT (ACRES) | F261: =IF(VALUE(da_other1_offsite_pre_field)=0,"-",VALUE(da_other1_offsite_pre_field)) -> - | I261: OTHER LAND USE #1 OUTSIDE RIGHT OF WAY / EASEMENT (ACRES) | O261: =IF(VALUE(da_other1_offsite_post_field)=0,"-",VALUE(da_other1_offsite_post_field)) -> -
A264: OTHER LAND USE #2 WITHIN RIGHT OF WAY / EASEMENT / NCDOT CONTRIBUTION (ACRES) | C264: =IF(VALUE(c_other2_pre_field)=0,"-",VALUE(c_other2_pre_field)) -> - | F264: =IF(VALUE(da_other2_onsite_pre_field)=0,"-",VALUE(da_other2_onsite_pre_field)) -> - | I264: OTHER LAND USE #1 WITHIN RIGHT OF WAY / EASEMENT / NCDOT CONTRIBUTION (ACRES) | L264: =IF(VALUE(c_other2_post_field)=0,"-",VALUE(c_other2_post_field)) -> - | O264: =IF(VALUE(da_other2_onsite_post_field)=0,"-",VALUE(da_other2_onsite_post_field)) -> -
A267: OTHER LAND USE #2 OUTSIDE RIGHT OF WAY / EASEMENT (ACRES) | F267: =IF(VALUE(da_other2_offsite_pre_field)=0,"-",VALUE(da_other2_offsite_pre_field)) -> - | I267: OTHER LAND USE #1 OUTSIDE RIGHT OF WAY / EASEMENT (ACRES) | O267: =IF(VALUE(da_other2_offsite_post_field)=0,"-",VALUE(da_other2_offsite_post_field)) -> -
A270: OTHER LAND USE #3 WITHIN RIGHT OF WAY / EASEMENT / NCDOT CONTRIBUTION (ACRES) | C270: =IF(VALUE(c_other3_pre_field)=0,"-",VALUE(c_other3_pre_field)) -> - | F270: =IF(VALUE(da_other3_onsite_pre_field)=0,"-",VALUE(da_other3_onsite_pre_field)) -> - | I270: OTHER LAND USE #1 WITHIN RIGHT OF WAY / EASEMENT / NCDOT CONTRIBUTION (ACRES) | L270: =IF(VALUE(c_other3_post_field)=0,"-",VALUE(c_other3_post_field)) -> - | O270: =IF(VALUE(da_other3_onsite_post_field)=0,"-",VALUE(da_other3_onsite_post_field)) -> -
A273: OTHER LAND USE #3 OUTSIDE RIGHT OF WAY / EASEMENT (ACRES) | F273: =IF(VALUE(da_other3_offsite_pre_field)=0,"-",VALUE(da_other3_offsite_pre_field)) -> - | I273: OTHER LAND USE #1 OUTSIDE RIGHT OF WAY / EASEMENT (ACRES) | O273: =IF(VALUE(da_other3_offsite_post_field)=0,"-",VALUE(da_other3_offsite_post_field)) -> -
AI276: τ10 Post =
A279: ROWS HOLDING CELL DATA BELOW TO BE HIDDEN (CELLS HOLD DATA+FORMATTING FOR MACROS AND CALCULATIONS)
A282: hidden formatting for triangular / trapezoidal macros DO NOT TOUCH | I282: hidden formatting for triangular / trapezoidal macros DO NOT TOUCH
A283: Depth (ft) = | E283: H:V (Lt) = | I283: Depth (ft) = | K283: H:V (Lt) =
A284: Slope (ft/ft) = | E284: H:V (Rt) = | I284: Slope (ft/ft) = | K284: H:V (Rt) =
A285: Manning's N = | E285: Base Width (ft.) = | F285: 0 | I285: Manning's N = | K285: Base Width =
A286: Notes (lining, condition, etc.): | I286: Notes (lining, condition, etc.):
A292: hidden formatting for irregular channel macro DO NOT TOUCH | I292: hidden formatting for irregular channel macro DO NOT TOUCH
A294: =IF(AND($J$30<>"",Post_Const_Geometry_Selection="Geometry Same as Pre-Construction"),"Slope (ft/ft) = ","") ->  | I294: =IF($J$30<>"","Slope (ft/ft) = ","") -> 
A295: Notes: | I295: Notes:
A301: hidden formatting for pipe macros DO NOT TOUCH | I301: hidden formatting for pipe macros DO NOT TOUCH | T301: hidden formatting for blank DO NOT TOUCH
A302: Diameter (in) = | E302: QCapacity (cfs) = | F302: =IF(OR(B302="",B303=""),"",IFERROR(MIN((SQRT(B303)/D304)*((B302/16)^(8/3)),VLOOKUP(B302,'PICK LISTS'!$E$44:$F$54,2,FALSE)),(SQRT(B303)/D304)*((B302/16)^(8/3)))) ->  | I302: Diameter (in) = | L302: QCapacity (cfs) = | N302: =IF(OR(J302="",J303=""),"",IFERROR(MIN((SQRT(J303)/K304)*((J302/16)^(8/3)),VLOOKUP(J302,'PICK LISTS'!$E$44:$F$54,2,FALSE)),(SQRT(J303)/K304)*((J302/16)^(8/3)))) ->  | O302: =IF(OR(N302="",N303=""),"",IF(N303>N302,"NOTE: Q10 > Qfull","Q10 < Qfull")) ->  | T302: Notes:
A303: Slope (ft/ft) = | E303: Q10pre (cfs) = | F303: =$E$16 ->  | I303: Slope (ft/ft) = | L303: Q10 Post (cfs) = | N303: =$K$16 -> 
A304: Pipe Material = | B304: RCP | D304: =VLOOKUP(B304,'PICK LISTS'!$E$29:$F$33, 2,FALSE) -> 0.012 | I304: Pipe Material = | J304: RCP | K304: =VLOOKUP(J304,'PICK LISTS'!$E$29:$F$33, 2,FALSE) -> 0.012
A305: Notes: | I305: Notes:
I310: hidden formatting for same as pre const. ds rec pipe macro DO NOT TOUCH
K312: Qfull (cfs) = | L312: =F311 -> 0 | N312: =IF(OR(L312="",L313=""),"",IF(L313>L312,"NOTE: Q10 > Qfull","Q10 < Qfull")) -> 
K313: Q10 Post (cfs) = | L313: =IF($K$16=0,"",$K$16) -> 
A321: SOIL TYPE
A323: LINER TYPE
B327: =IF($I$30="N/A","N/A",IF(Soil_Type="Permanent Matting Product (stable)","User to Define",IF($J$30<>"","N/A",IF($I$30="Soil",$AD$41,IF($I$30="Non-Soil",$AD$43,""))))) -> 
B328: =IF($A$34="SOIL TYPE","N/A",IF(Soil_Type="Grass / Dense Veg. (no bare soil spots)","N/A",IF($J$30<>"",$AD$43,""))) -> 

Sheet TR-55 TAB TEMPLATE (hidden)
A1: TIP Project: | B1: =TIP_number_MAIN_tab -> 0 | K1: Date: | L1: =Date_MAIN_tab -> 00:00:00 | Z1: COLUMNS HOLDING CELLS BELOW TO BE HIDDEN (CELLS HOLD BACKGROUND DATA FOR MACROS AND CALCULATIONS) | BA1: COLUMNS HOLDING CELLS BELOW TO BE HIDDEN (CELLS HOLD BACKGROUND DATA FOR MACROS AND CALCULATIONS) | BY1: COLUMNS HOLDING CELLS BELOW TO BE HIDDEN (CELLS HOLD BACKGROUND DATA FOR MACROS AND CALCULATIONS) | CW1: COLUMNS HOLDING CELLS BELOW TO BE HIDDEN (CELLS HOLD BACKGROUND DATA FOR MACROS AND CALCULATIONS)
A2: County: | H2: PSH # OUTLET # | K2: Design Firm: | L2: =design_firm_MAIN_tab -> 0
A3: Description: | B3: =IF(project_description_MAIN_tab="","",project_description_MAIN_tab) ->  | H3: PSH # OUTLET # | K3: Designed By: | L3: =designer_MAIN_tab -> 0
F4: Input Alignment, Station, Offset Here | K4: Reviewed By:
A6: =MAIN!A37 -> Version 1.0 | B6: Outlet UID Number: | E6: =IF(TIP_number_MAIN_tab=0,"ENTER TIP OR PROJ #",AG30) -> ENTER TIP OR PROJ # | H6: Latitude: | K6: Longitude: | O6: Google Maps | AA6: PRE CONST. MANNING'S EQUATION OPEN CHANNEL | AM6: POST CONST. MANNING'S EQUATION OPEN CHANNEL
A8: PRE-CONSTRUCTION (TR-55 METHOD) | H8: POST-CONSTRUCTION (TR-55 METHOD) | N8: CHANGE | AA8: B (ft) | AB8: norm. depth (ft) | AC8: avg sideslope | AD8: S (ft/ft) | AE8: N val | AF8: A (sq.ft.) | AG8: P (ft.) | AH8: R (ft.) | AI8: Q (cfs) | AJ8: Vc (ft/s) | AK8: Q Compare Check: Make sure = 0 (set to 0 by changing y in data>what if> goal seek) | AM8: B (ft) | AN8: norm. depth (ft) | AO8: avg sideslope | AP8: S (ft/ft) | AQ8: N val | AR8: A (sq.ft.) | AS8: P (ft.) | AT8: R (ft.) | AU8: Q (cfs) | AV8: Vc (ft/s) | AW8: Q Compare Check: Make sure = 0 (set to 0 by changing y in data>what if> goal seek)
D10: Q2 = | F10: cfs | J10: Q2 = | L10: cfs | N10: Q2 = | O10: =IF(OR(q2post="",q2pre=""),"",(q2post/q2pre)-1) -> 
D11: V2 = | F11: ft./s | J11: V2 = | L11: ft./s | N11: V2 = | O11: =IF(OR(v2post=0,v2pre=0),"",(v2post/v2pre)-1) ->  | S11: Green = Calculated / up to date (color 210,255,210) | AA11: =Base_Width_Pre -> 0 | AB11: 1.472799103 | AC11: =(Side_Slope_Left_Pre+Side_Slope_Right_Pre)/2 -> 0 | AD11: =Slope_Pre -> 0 | AE11: =Roughness_Pre -> 0 | AF11: =AA11*AB11+AC11*AB11^2 -> 0 | AG11: =AA11+((AB11*Side_Slope_Left_Pre)^2+AB11^2)^0.5+((AB11*Side_Slope_Right_Pre)^2+AB11^2)^0.5 -> 2.945598206 | AH11: =AF11/AG11 -> 0 | AI11: =1.49/AE11*AF11*AH11^0.667*AD11^0.5 ->  | AJ11: =1.49/AE11*AH11^0.667*AD11^0.5 ->  | AK11: =AI11-q2pre ->  | AL11: =ROUND(AK11,1) ->  | AM11: =IF(Post_Const_Geometry_Selection="Geometry Same as Pre-Construction",Base_Width_Pre,Base_Width_Post) -> 0 | AN11: 1 | AO11: =IF(Post_Const_Geometry_Selection="Geometry Same as Pre-Construction",(Side_Slope_Left_Pre+Side_Slope_Right_Pre)/2,(Side_Slope_Left_Post+Side_Slope_Right_Post)/2) -> 0 | AP11: =IF(Post_Const_Geometry_Selection="Geometry Same as Pre-Construction",Slope_Pre,Slope_Post) -> 0 | AQ11: =IF(Post_Const_Geometry_Selection="Geometry Same as Pre-Construction",Roughness_Pre,Roughness_Post) -> 0 | AR11: =AM11*AN11+AO11*AN11^2 -> 0 | AS11: =IF(Post_Const_Geometry_Selection="Geometry Same as Pre-Construction",AM11+((AN11*Side_Slope_Left_Pre)^2+AN11^2)^0.5+((AN11*Side_Slope_Right_Pre)^2+AN11^2)^0.5,AM11+((AN11*Side_Slope_Left_Post)^2+AN11^2)^0.5+((AN11*Side_Slope_Right_Post)^2+AN11^2)^0.5) -> 2 | AT11: =AR11/AS11 -> 0 | AU11: =1.49/AQ11*AR11*AT11^0.667*AP11^0.5 ->  | AV11: =1.49/AQ11*AT11^0.667*AP11^0.5 ->  | AW11: =AU11-q2post ->  | AX11: =ROUND(AW11,1) -> 
A12: CNcomposite = | D12: D2 = | F12: ft. | H12: CNcomposite = | J12: D2 = | L12: ft. | N12: D2 = | O12: =IF(OR(d2post=0,d2pre=0),"",(d2post/d2pre)-1) ->  | S12: Red = Calculated, incorrect, or not up to date (color 255,165,165) | AA12: =Base_Width_Pre -> 0 | AB12: 1.472799103 | AC12: =(Side_Slope_Left_Pre+Side_Slope_Right_Pre)/2 -> 0 | AD12: =Slope_Pre -> 0 | AE12: =Roughness_Pre -> 0 | AF12: =AA12*AB12+AC12*AB12^2 -> 0 | AG12: =AA12+((AB12*Side_Slope_Left_Pre)^2+AB12^2)^0.5+((AB12*Side_Slope_Right_Pre)^2+AB12^2)^0.5 -> 2.945598206 | AH12: =AF12/AG12 -> 0 | AI12: =1.49/AE12*AF12*AH12^0.667*AD12^0.5 ->  | AJ12: =1.49/AE12*AH12^0.667*AD12^0.5 ->  | AK12: =AI12-q2pre ->  | AL12: =ROUND(AK12,1) ->  | AM12: =IF(Post_Const_Geometry_Selection="Geometry Same as Pre-Construction",Base_Width_Pre,Base_Width_Post) -> 0 | AN12: 1 | AO12: =IF(Post_Const_Geometry_Selection="Geometry Same as Pre-Construction",(Side_Slope_Left_Pre+Side_Slope_Right_Pre)/2,(Side_Slope_Left_Post+Side_Slope_Right_Post)/2) -> 0 | AP12: =IF(Post_Const_Geometry_Selection="Geometry Same as Pre-Construction",Slope_Pre,Slope_Post) -> 0 | AQ12: =IF(Post_Const_Geometry_Selection="Geometry Same as Pre-Construction",Roughness_Pre,Roughness_Post) -> 0 | AR12: =AM12*AN12+AO12*AN12^2 -> 0 | AS12: =IF(Post_Const_Geometry_Selection="Geometry Same as Pre-Construction",AM12+((AN12*Side_Slope_Left_Pre)^2+AN12^2)^0.5+((AN12*Side_Slope_Right_Pre)^2+AN12^2)^0.5,AM12+((AN12*Side_Slope_Left_Post)^2+AN12^2)^0.5+((AN12*Side_Slope_Right_Post)^2+AN12^2)^0.5) -> 2 | AT12: =AR12/AS12 -> 0 | AU12: =1.49/AQ12*AR12*AT12^0.667*AP12^0.5 ->  | AV12: =1.49/AQ12*AT12^0.667*AP12^0.5 ->  | AW12: =AU12-q2post ->  | AX12: =ROUND(AW12,1) -> 
A13: T.O.C (min.) | D13: Q5 = | F13: cfs | H13: T.O.C (min.) | J13: Q5 = | L13: cfs | N13: Q5 = | O13: =IF(OR(q5post="",q5pre=""),"",(q5post/q5pre)-1) ->  | S13: light blue = user iput (cells unlocked) (color 190,240,240)
A14: DA imp in R/W = | D14: V5 = | F14: ft./s | H14: DA imp in R/W = | J14: V5 = | L14: ft./s | N14: V5 = | O14: =IF(OR(v5post=0,v5pre=0),"",(v5post/v5pre)-1) ->  | S14: Yellow = Warning / Caution (color 255,255,100) | AA14: =Base_Width_Pre -> 0 | AB14: 1.564723921 | AC14: =(Side_Slope_Left_Pre+Side_Slope_Right_Pre)/2 -> 0 | AD14: =Slope_Pre -> 0 | AE14: =Roughness_Pre -> 0 | AF14: =AA14*AB14+AC14*AB14^2 -> 0 | AG14: =AA14+((AB14*Side_Slope_Left_Pre)^2+AB14^2)^0.5+((AB14*Side_Slope_Right_Pre)^2+AB14^2)^0.5 -> 3.129447841 | AH14: =AF14/AG14 -> 0 | AI14: =1.49/AE14*AF14*AH14^0.667*AD14^0.5 ->  | AJ14: =1.49/AE14*AH14^0.667*AD14^0.5 ->  | AK14: =AI14-q5pre ->  | AL14: =ROUND(AK14,1) ->  | AM14: =IF(Post_Const_Geometry_Selection="Geometry Same as Pre-Construction",Base_Width_Pre,Base_Width_Post) -> 0 | AN14: 1 | AO14: =IF(Post_Const_Geometry_Selection="Geometry Same as Pre-Construction",(Side_Slope_Left_Pre+Side_Slope_Right_Pre)/2,(Side_Slope_Left_Post+Side_Slope_Right_Post)/2) -> 0 | AP14: =IF(Post_Const_Geometry_Selection="Geometry Same as Pre-Construction",Slope_Pre,Slope_Post) -> 0 | AQ14: =IF(Post_Const_Geometry_Selection="Geometry Same as Pre-Construction",Roughness_Pre,Roughness_Post) -> 0 | AR14: =AM14*AN14+AO14*AN14^2 -> 0 | AS14: =IF(Post_Const_Geometry_Selection="Geometry Same as Pre-Construction",AM14+((AN14*Side_Slope_Left_Pre)^2+AN14^2)^0.5+((AN14*Side_Slope_Right_Pre)^2+AN14^2)^0.5,AM14+((AN14*Side_Slope_Left_Post)^2+AN14^2)^0.5+((AN14*Side_Slope_Right_Post)^2+AN14^2)^0.5) -> 2 | AT14: =AR14/AS14 -> 0 | AU14: =1.49/AQ14*AR14*AT14^0.667*AP14^0.5 ->  | AV14: =1.49/AQ14*AT14^0.667*AP14^0.5 ->  | AW14: =AU14-q5post ->  | AX14: =ROUND(AW14,1) -> 
A15: DAtotal = | D15: D5 = | F15: ft. | H15: DAtotal = | J15: D5 = | L15: ft. | N15: D5 = | O15: =IF(OR(d5post=0,d5pre=0),"",(d5post/d5pre)-1) ->  | AA15: =Base_Width_Pre -> 0 | AB15: 1.564723921 | AC15: =(Side_Slope_Left_Pre+Side_Slope_Right_Pre)/2 -> 0 | AD15: =Slope_Pre -> 0 | AE15: =Roughness_Pre -> 0 | AF15: 0 | AG15: =AA15+((AB15*Side_Slope_Left_Pre)^2+AB15^2)^0.5+((AB15*Side_Slope_Right_Pre)^2+AB15^2)^0.5 -> 3.129447841 | AH15: 0 | AK15: =AI15-q5pre ->  | AM15: =IF(Post_Const_Geometry_Selection="Geometry Same as Pre-Construction",Base_Width_Pre,Base_Width_Post) -> 0 | AN15: 1 | AO15: =IF(Post_Const_Geometry_Selection="Geometry Same as Pre-Construction",(Side_Slope_Left_Pre+Side_Slope_Right_Pre)/2,(Side_Slope_Left_Post+Side_Slope_Right_Post)/2) -> 0 | AP15: =IF(Post_Const_Geometry_Selection="Geometry Same as Pre-Construction",Slope_Pre,Slope_Post) -> 0 | AQ15: =IF(Post_Const_Geometry_Selection="Geometry Same as Pre-Construction",Roughness_Pre,Roughness_Post) -> 0 | AR15: 0 | AS15: =IF(Post_Const_Geometry_Selection="Geometry Same as Pre-Construction",AM15+((AN15*Side_Slope_Left_Pre)^2+AN15^2)^0.5+((AN15*Side_Slope_Right_Pre)^2+AN15^2)^0.5,AM15+((AN15*Side_Slope_Left_Post)^2+AN15^2)^0.5+((AN15*Side_Slope_Right_Post)^2+AN15^2)^0.5) -> 2 | AT15: 0 | AW15: =AU15-q5post -> 
D16: Q10 = | F16: cfs | J16: Q10 = | L16: cfs | N16: Q10 = | O16: =IF(OR(q10post="",q10pre=""),"",(q10post/q10pre)-1) ->  | S16: User Notes (will not be printed) | AL16: 0
A17: % Imp. Area (Total) | D17: V10 = | F17: ft./s | H17: % Imp. Area (Total) | J17: V10 = | L17: ft./s | N17: V10 = | O17: =IF(OR(v10post=0,v10pre=0),"",(v10post/v10pre)-1) ->  | AA17: =Base_Width_Pre -> 0 | AB17: 1.621325459 | AC17: =(Side_Slope_Left_Pre+Side_Slope_Right_Pre)/2 -> 0 | AD17: =Slope_Pre -> 0 | AE17: =Roughness_Pre -> 0 | AF17: 0 | AG17: =AA17+((AB17*Side_Slope_Left_Pre)^2+AB17^2)^0.5+((AB17*Side_Slope_Right_Pre)^2+AB17^2)^0.5 -> 3.242650919 | AH17: 0 | AK17: =AI17-q10pre ->  | AM17: =IF(Post_Const_Geometry_Selection="Geometry Same as Pre-Construction",Base_Width_Pre,Base_Width_Post) -> 0 | AN17: 1 | AO17: =IF(Post_Const_Geometry_Selection="Geometry Same as Pre-Construction",(Side_Slope_Left_Pre+Side_Slope_Right_Pre)/2,(Side_Slope_Left_Post+Side_Slope_Right_Post)/2) -> 0 | AP17: =IF(Post_Const_Geometry_Selection="Geometry Same as Pre-Construction",Slope_Pre,Slope_Post) -> 0 | AQ17: =IF(Post_Const_Geometry_Selection="Geometry Same as Pre-Construction",Roughness_Pre,Roughness_Post) -> 0 | AR17: =AM17*AN17+AO17*AN17^2 -> 0 | AS17: =IF(Post_Const_Geometry_Selection="Geometry Same as Pre-Construction",AM17+((AN17*Side_Slope_Left_Pre)^2+AN17^2)^0.5+((AN17*Side_Slope_Right_Pre)^2+AN17^2)^0.5,AM17+((AN17*Side_Slope_Left_Post)^2+AN17^2)^0.5+((AN17*Side_Slope_Right_Post)^2+AN17^2)^0.5) -> 2 | AT17: =AR17/AS17 -> 0 | AU17: =1.49/AQ17*AR17*AT17^0.667*AP17^0.5 ->  | AV17: =1.49/AQ17*AT17^0.667*AP17^0.5 ->  | AW17: =AU17-q10post -> 
D18: D10 = | F18: ft. | J18: D10 = | L18: ft. | N18: D10 = | O18: =IF(OR(d10post=0,d10pre=0),"",(d10post/d10pre)-1) ->  | AA18: =Base_Width_Pre -> 0 | AB18: 1.621325459 | AC18: =(Side_Slope_Left_Pre+Side_Slope_Right_Pre)/2 -> 0 | AD18: =Slope_Pre -> 0 | AE18: =Roughness_Pre -> 0 | AF18: 0 | AG18: =AA18+((AB18*Side_Slope_Left_Pre)^2+AB18^2)^0.5+((AB18*Side_Slope_Right_Pre)^2+AB18^2)^0.5 -> 3.242650919 | AH18: 0 | AK18: =AI18-q10pre ->  | AM18: =IF(Post_Const_Geometry_Selection="Geometry Same as Pre-Construction",Base_Width_Pre,Base_Width_Post) -> 0 | AN18: 1 | AO18: =IF(Post_Const_Geometry_Selection="Geometry Same as Pre-Construction",(Side_Slope_Left_Pre+Side_Slope_Right_Pre)/2,(Side_Slope_Left_Post+Side_Slope_Right_Post)/2) -> 0 | AP18: =IF(Post_Const_Geometry_Selection="Geometry Same as Pre-Construction",Slope_Pre,Slope_Post) -> 0 | AQ18: =IF(Post_Const_Geometry_Selection="Geometry Same as Pre-Construction",Roughness_Pre,Roughness_Post) -> 0 | AR18: 0 | AS18: =IF(Post_Const_Geometry_Selection="Geometry Same as Pre-Construction",AM18+((AN18*Side_Slope_Left_Pre)^2+AN18^2)^0.5+((AN18*Side_Slope_Right_Pre)^2+AN18^2)^0.5,AM18+((AN18*Side_Slope_Left_Post)^2+AN18^2)^0.5+((AN18*Side_Slope_Right_Post)^2+AN18^2)^0.5) -> 2 | AT18: 0 | AW18: =AU18-q10post -> 
A19: % Imp. Area (NCDOT Contribution) | D19: Q25 = | F19: cfs | H19: % Imp. Area (NCDOT Contribution) | J19: Q25 = | L19: cfs | N19: Q25 = | O19: =IF(OR(q25post="",q25pre=""),"",(q25post/q25pre)-1) -> 
D20: V25 = | F20: ft./s | J20: V25 = | L20: ft./s | N20: V25 = | O20: =IF(OR(v25post=0,v25pre=0),"",(v25post/v25pre)-1) ->  | AA20: =Base_Width_Pre -> 0 | AB20: 1.682068068 | AC20: =(Side_Slope_Left_Pre+Side_Slope_Right_Pre)/2 -> 0 | AD20: =Slope_Pre -> 0 | AE20: =Roughness_Pre -> 0 | AF20: =AA20*AB20+AC20*AB20^2 -> 0 | AG20: =AA20+((AB20*Side_Slope_Left_Pre)^2+AB20^2)^0.5+((AB20*Side_Slope_Right_Pre)^2+AB20^2)^0.5 -> 3.364136136 | AH20: 0 | AK20: =AI20-q25pre ->  | AM20: =IF(Post_Const_Geometry_Selection="Geometry Same as Pre-Construction",Base_Width_Pre,Base_Width_Post) -> 0 | AN20: 1 | AO20: =IF(Post_Const_Geometry_Selection="Geometry Same as Pre-Construction",(Side_Slope_Left_Pre+Side_Slope_Right_Pre)/2,(Side_Slope_Left_Post+Side_Slope_Right_Post)/2) -> 0 | AP20: =IF(Post_Const_Geometry_Selection="Geometry Same as Pre-Construction",Slope_Pre,Slope_Post) -> 0 | AQ20: =IF(Post_Const_Geometry_Selection="Geometry Same as Pre-Construction",Roughness_Pre,Roughness_Post) -> 0 | AR20: =AM20*AN20+AO20*AN20^2 -> 0 | AS20: =IF(Post_Const_Geometry_Selection="Geometry Same as Pre-Construction",AM20+((AN20*Side_Slope_Left_Pre)^2+AN20^2)^0.5+((AN20*Side_Slope_Right_Pre)^2+AN20^2)^0.5,AM20+((AN20*Side_Slope_Left_Post)^2+AN20^2)^0.5+((AN20*Side_Slope_Right_Post)^2+AN20^2)^0.5) -> 2 | AT20: =AR20/AS20 -> 0 | AU20: =1.49/AQ20*AR20*AT20^0.667*AP20^0.5 ->  | AV20: =1.49/AQ20*AT20^0.667*AP20^0.5 ->  | AW20: =AU20-q25post -> 
D21: D25 = | F21: ft. | J21: D25 = | L21: ft. | N21: D25 = | O21: =IF(OR(d25post=0,d25pre=0),"",(d25post/d25pre)-1) ->  | AA21: =Base_Width_Pre -> 0 | AB21: 1.682068068 | AC21: =(Side_Slope_Left_Pre+Side_Slope_Right_Pre)/2 -> 0 | AD21: =Slope_Pre -> 0 | AE21: =Roughness_Pre -> 0 | AF21: 0 | AG21: =AA21+((AB21*Side_Slope_Left_Pre)^2+AB21^2)^0.5+((AB21*Side_Slope_Right_Pre)^2+AB21^2)^0.5 -> 3.364136136 | AH21: 0 | AK21: =AI21-q25pre ->  | AM21: =IF(Post_Const_Geometry_Selection="Geometry Same as Pre-Construction",Base_Width_Pre,Base_Width_Post) -> 0 | AN21: 1 | AO21: =IF(Post_Const_Geometry_Selection="Geometry Same as Pre-Construction",(Side_Slope_Left_Pre+Side_Slope_Right_Pre)/2,(Side_Slope_Left_Post+Side_Slope_Right_Post)/2) -> 0 | AP21: =IF(Post_Const_Geometry_Selection="Geometry Same as Pre-Construction",Slope_Pre,Slope_Post) -> 0 | AQ21: =IF(Post_Const_Geometry_Selection="Geometry Same as Pre-Construction",Roughness_Pre,Roughness_Post) -> 0 | AR21: =AM21*AN21+AO21*AN21^2 -> 0 | AS21: =IF(Post_Const_Geometry_Selection="Geometry Same as Pre-Construction",AM21+((AN21*Side_Slope_Left_Pre)^2+AN21^2)^0.5+((AN21*Side_Slope_Right_Pre)^2+AN21^2)^0.5,AM21+((AN21*Side_Slope_Left_Post)^2+AN21^2)^0.5+((AN21*Side_Slope_Right_Post)^2+AN21^2)^0.5) -> 2 | AT21: 0 | AW21: =AU21-q25post -> 
D22: Q50 = | F22: cfs | J22: Q50 = | L22: cfs | N22: Q50 = | O22: =IF(OR(q50post="",q50pre=""),"",(q50post/q50pre)-1) -> 
D23: V50 = | F23: ft./s | J23: V50 = | L23: ft./s | N23: V50 = | O23: =IF(OR(v50post=0,v50pre=0),"",(v50post/v50pre)-1) ->  | AA23: =Base_Width_Pre -> 0 | AB23: 1.719610494 | AC23: =(Side_Slope_Left_Pre+Side_Slope_Right_Pre)/2 -> 0 | AD23: =Slope_Pre -> 0 | AE23: =Roughness_Pre -> 0 | AF23: 0 | AG23: =AA23+((AB23*Side_Slope_Left_Pre)^2+AB23^2)^0.5+((AB23*Side_Slope_Right_Pre)^2+AB23^2)^0.5 -> 3.439220987 | AH23: 0 | AK23: =AI23-q50pre ->  | AM23: =IF(Post_Const_Geometry_Selection="Geometry Same as Pre-Construction",Base_Width_Pre,Base_Width_Post) -> 0 | AN23: 1 | AO23: =IF(Post_Const_Geometry_Selection="Geometry Same as Pre-Construction",(Side_Slope_Left_Pre+Side_Slope_Right_Pre)/2,(Side_Slope_Left_Post+Side_Slope_Right_Post)/2) -> 0 | AP23: =IF(Post_Const_Geometry_Selection="Geometry Same as Pre-Construction",Slope_Pre,Slope_Post) -> 0 | AQ23: =IF(Post_Const_Geometry_Selection="Geometry Same as Pre-Construction",Roughness_Pre,Roughness_Post) -> 0 | AR23: =AM23*AN23+AO23*AN23^2 -> 0 | AS23: =IF(Post_Const_Geometry_Selection="Geometry Same as Pre-Construction",AM23+((AN23*Side_Slope_Left_Pre)^2+AN23^2)^0.5+((AN23*Side_Slope_Right_Pre)^2+AN23^2)^0.5,AM23+((AN23*Side_Slope_Left_Post)^2+AN23^2)^0.5+((AN23*Side_Slope_Right_Post)^2+AN23^2)^0.5) -> 2 | AT23: =AR23/AS23 -> 0 | AU23: =1.49/AQ23*AR23*AT23^0.667*AP23^0.5 ->  | AV23: =1.49/AQ23*AT23^0.667*AP23^0.5 ->  | AW23: =AU23-q50post -> 
D24: D50 = | F24: ft. | J24: D50 = | L24: ft. | N24: D50 = | O24: =IF(OR(d50post=0,d50pre=0),"",(d50post/d50pre)-1) ->  | AA24: =Base_Width_Pre -> 0 | AB24: 1.719610494 | AC24: =(Side_Slope_Left_Pre+Side_Slope_Right_Pre)/2 -> 0 | AD24: =Slope_Pre -> 0 | AE24: =Roughness_Pre -> 0 | AF24: =AA24*AB24+AC24*AB24^2 -> 0 | AG24: =AA24+((AB24*Side_Slope_Left_Pre)^2+AB24^2)^0.5+((AB24*Side_Slope_Right_Pre)^2+AB24^2)^0.5 -> 3.439220987 | AH24: 0 | AI24: =1.49/AE24*AF24*AH24^0.667*AD24^0.5 ->  | AK24: =AI24-q50pre ->  | AM24: =IF(Post_Const_Geometry_Selection="Geometry Same as Pre-Construction",Base_Width_Pre,Base_Width_Post) -> 0 | AN24: 1 | AO24: =IF(Post_Const_Geometry_Selection="Geometry Same as Pre-Construction",(Side_Slope_Left_Pre+Side_Slope_Right_Pre)/2,(Side_Slope_Left_Post+Side_Slope_Right_Post)/2) -> 0 | AP24: =IF(Post_Const_Geometry_Selection="Geometry Same as Pre-Construction",Slope_Pre,Slope_Post) -> 0 | AQ24: =IF(Post_Const_Geometry_Selection="Geometry Same as Pre-Construction",Roughness_Pre,Roughness_Post) -> 0 | AR24: 0 | AS24: =IF(Post_Const_Geometry_Selection="Geometry Same as Pre-Construction",AM24+((AN24*Side_Slope_Left_Pre)^2+AN24^2)^0.5+((AN24*Side_Slope_Right_Pre)^2+AN24^2)^0.5,AM24+((AN24*Side_Slope_Left_Post)^2+AN24^2)^0.5+((AN24*Side_Slope_Right_Post)^2+AN24^2)^0.5) -> 2 | AT24: 0 | AW24: =AU24-q50post -> 
D25: Q100 = | F25: cfs | J25: Q100 = | L25: cfs | N25: Q100 = | O25: =IF(OR(q100post="",q100pre=""),"",(q100post/q100pre)-1) -> 
D26: V100 = | F26: ft./s | J26: V100 = | L26: ft./s | N26: V100 = | O26: =IF(OR(v100post=0,v100pre=0),"",(v100post/v100pre)-1) ->  | AA26: =Base_Width_Pre -> 0 | AB26: 1.719610494 | AC26: =(Side_Slope_Left_Pre+Side_Slope_Right_Pre)/2 -> 0 | AD26: =Slope_Pre -> 0 | AE26: =Roughness_Pre -> 0 | AF26: =AA26*AB26+AC26*AB26^2 -> 0 | AG26: =AA26+((AB26*Side_Slope_Left_Pre)^2+AB26^2)^0.5+((AB26*Side_Slope_Right_Pre)^2+AB26^2)^0.5 -> 3.439220987 | AH26: =AF26/AG26 -> 0 | AI26: =1.49/AE26*AF26*AH26^0.667*AD26^0.5 ->  | AJ26: =1.49/AE26*AH26^0.667*AD26^0.5 ->  | AK26: =AI26-q100pre ->  | AL26: =ROUND(AK26,1) ->  | AM26: =IF(Post_Const_Geometry_Selection="Geometry Same as Pre-Construction",Base_Width_Pre,Base_Width_Post) -> 0 | AN26: 1 | AO26: =IF(Post_Const_Geometry_Selection="Geometry Same as Pre-Construction",(Side_Slope_Left_Pre+Side_Slope_Right_Pre)/2,(Side_Slope_Left_Post+Side_Slope_Right_Post)/2) -> 0 | AP26: =IF(Post_Const_Geometry_Selection="Geometry Same as Pre-Construction",Slope_Pre,Slope_Post) -> 0 | AQ26: =IF(Post_Const_Geometry_Selection="Geometry Same as Pre-Construction",Roughness_Pre,Roughness_Post) -> 0 | AR26: =AM26*AN26+AO26*AN26^2 -> 0 | AS26: =IF(Post_Const_Geometry_Selection="Geometry Same as Pre-Construction",AM26+((AN26*Side_Slope_Left_Pre)^2+AN26^2)^0.5+((AN26*Side_Slope_Right_Pre)^2+AN26^2)^0.5,AM26+((AN26*Side_Slope_Left_Post)^2+AN26^2)^0.5+((AN26*Side_Slope_Right_Post)^2+AN26^2)^0.5) -> 2 | AT26: =AR26/AS26 -> 0 | AU26: =1.49/AQ26*AR26*AT26^0.667*AP26^0.5 ->  | AV26: =1.49/AQ26*AT26^0.667*AP26^0.5 ->  | AW26: =AU26-q100post ->  | AX26: =ROUND(AW26,1) -> 
D27: D100 = | F27: ft. | J27: D100 = | L27: ft. | N27: D100 = | O27: =IF(OR(d100post=0,d100pre=0),"",(d100post/d100pre)-1) ->  | AA27: =Base_Width_Pre -> 0 | AB27: 1.719610494 | AC27: =(Side_Slope_Left_Pre+Side_Slope_Right_Pre)/2 -> 0 | AD27: =Slope_Pre -> 0 | AE27: =Roughness_Pre -> 0 | AF27: =AA27*AB27+AC27*AB27^2 -> 0 | AG27: =AA27+((AB27*Side_Slope_Left_Pre)^2+AB27^2)^0.5+((AB27*Side_Slope_Right_Pre)^2+AB27^2)^0.5 -> 3.439220987 | AH27: 0 | AI27: =1.49/AE27*AF27*AH27^0.667*AD27^0.5 ->  | AK27: =AI27-q100pre ->  | AL27: =ROUND(AK27,1) ->  | AM27: =IF(Post_Const_Geometry_Selection="Geometry Same as Pre-Construction",Base_Width_Pre,Base_Width_Post) -> 0 | AN27: 1 | AO27: =IF(Post_Const_Geometry_Selection="Geometry Same as Pre-Construction",(Side_Slope_Left_Pre+Side_Slope_Right_Pre)/2,(Side_Slope_Left_Post+Side_Slope_Right_Post)/2) -> 0 | AP27: =IF(Post_Const_Geometry_Selection="Geometry Same as Pre-Construction",Slope_Pre,Slope_Post) -> 0 | AQ27: =IF(Post_Const_Geometry_Selection="Geometry Same as Pre-Construction",Roughness_Pre,Roughness_Post) -> 0 | AR27: 0 | AS27: =IF(Post_Const_Geometry_Selection="Geometry Same as Pre-Construction",AM27+((AN27*Side_Slope_Left_Pre)^2+AN27^2)^0.5+((AN27*Side_Slope_Right_Pre)^2+AN27^2)^0.5,AM27+((AN27*Side_Slope_Left_Post)^2+AN27^2)^0.5+((AN27*Side_Slope_Right_Post)^2+AN27^2)^0.5) -> 2 | AT27: 0 | AU27: =1.49/AQ27*AR27*AT27^0.667*AP27^0.5 ->  | AV27: =1.49/AQ27*AT27^0.667*AP27^0.5 ->  | AW27: =AU27-q100post -> 
N28: DAtotal= | O28: =IF(OR(da_total_post=0,da_total_post="",da_total_pre=0),"",(da_total_post/da_total_pre)-1) -> 
A29: Railroad / 100-YR Design? | D29: Existing Erosion / Potential Future Erosion? | H29: Post Const. D/S Channel liner type | N29: DA imp R/W = | O29: =IF(OR(da_pre_imp="",da_post_imp=""),"",da_post_imp-da_pre_imp) -> 
K30: =IF(J30="","",IF(d10post="","Calc D10",IF(AND(Post_Const_Geometry_Selection="Geometry Same as Pre-Construction",Slope_Pre=""),"Enter Slope",IF(AND(Slope_Post="",Post_Const_Geometry_Selection<>"Geometry Same as Pre-Construction"),"Enter Slope",IF(Post_Const_Geometry_Selection="Geometry Same as Pre-Construction",Slope_Pre*d10post*62.4,Slope_Post*d10post*62.4))))) ->  | N30: % imp Area = | O30: =IF(OR(percent_imp_pre_total="",percent_imp_post_total=""),"",percent_imp_post_total-percent_imp_pre_total) ->  | AG30: =_xlfn.TEXTJOIN("",TRUE,"OA-",B1,"-",UID_hidden) -> OA-0-
A34: LINER TYPE | B34: Select Liner Type Above To Generate List | H34: PRE-CONSTRUCTION OUTLET GEOMETRY
A36: V10 Permissible | B36: =IF(I30="N/A","N/A",IF(Soil_Type="Permanent Matting Product (stable)","User to Define",IF(J30<>"","N/A",IF(I30="Soil",AD41,IF(I30="Non-Soil",AD43,""))))) ->  | D36: =IF(Soil_Type='PICK LISTS'!E14,"N/A",IF(A34="LINER TYPE",AF62,AD60)) ->  | H36: POST-CONSTRUCTION OUTLET GEOMETRY
A37: τ10 Permissible | B37: =IF(A34="SOIL TYPE","N/A",IF(Soil_Type="Grass / Dense Veg. (no bare soil spots)","N/A",IF(J30<>"",AD43,""))) ->  | AB37: Hydrology Method: | AD37: TR-55 Method
A39: PRE-CONSTRUCTION OUTLET GEOMETRY | I39: POST-CONSTRUCTION OUTLET GEOMETRY
AF40: allowable shear stress | AH40: =AD43 -> 
AB41: v_permissible soil | AD41: =IF(Soil_Type='PICK LISTS'!E2,'PICK LISTS'!F2,IF(Soil_Type='PICK LISTS'!E3,'PICK LISTS'!F3,IF(Soil_Type='PICK LISTS'!E4,'PICK LISTS'!F4, IF(Soil_Type='PICK LISTS'!E5,'PICK LISTS'!F5, IF(Soil_Type='PICK LISTS'!E6,'PICK LISTS'!F6,IF(Soil_Type='PICK LISTS'!E7,'PICK LISTS'!F7,IF(Soil_Type='PICK LISTS'!E8,'PICK LISTS'!F8,IF(Soil_Type='PICK LISTS'!E9,'PICK LISTS'!F9,IF(Soil_Type='PICK LISTS'!E10,'PICK LISTS'!F10,IF(Soil_Type='PICK LISTS'!E11,'PICK LISTS'!F11,IF(Soil_Type='PICK LISTS'!E12,'PICK LISTS'!F12,IF(Soil_Type='PICK LISTS'!E13,'PICK LISTS'!F13,IF(Soil_Type="N/A (Pipe System or Non-Channel)","N/A",""))))))))))))) ->  | AF41: riprap permissible velocity | AI41: =IF(v10post="","",(1.49/(Roughness_Pre*SQRT(62.4*d10pre)))*(AH18^(0.1666666))*(AH40^0.5)) ->  | AM41: PRE
AN42: Intensity Calcs
AB43: shear/v_perm non-soil | AD43: =IF(Soil_Type='PICK LISTS'!H18,'PICK LISTS'!I18,IF(Soil_Type='PICK LISTS'!H19,'PICK LISTS'!I19,IF(Soil_Type='PICK LISTS'!H20,'PICK LISTS'!I20,IF(Soil_Type='PICK LISTS'!H21,'PICK LISTS'!I21,IF(Soil_Type='PICK LISTS'!H22,'PICK LISTS'!I22,IF(Soil_Type='PICK LISTS'!H23,'PICK LISTS'!I23,"")))))) ->  | AF43: Is it riprap lined? | AH43: =IF(OR(Soil_Type="CL-A Riprap (d50 = 4 in.)",Soil_Type="CL-B Riprap (d50 = 8 in.)",Soil_Type="CL-I Riprap (d50 = 10 in.)",Soil_Type="CL-II Riprap (d50 = 12 in.)"),"YES","NO") -> NO
AO44: 2 | AP44: 5 | AQ44: 10 | AR44: 25 | AS44: 50 | AT44: 100
AB45: Increase or Decrease in Velocity | AN45: =IF(custom_IDF="YES",INDIRECT("Z_CUSTOM_IDF"),IF(county_for_this_outlet="New Hanover", INDIRECT("NewHanover"),INDIRECT(county_for_this_outlet))) -> 
AB46: =IF(OR(v10pre="",v10post="",Soil_Type="",Soil_Type="Select Liner Type Above To Generate List"),"",IF(v10post>v10pre,"Increase",IF(v10post<=v10pre,"Decrease",""))) -> 
AB48: Vpost > Vsoil_permissible?
A51: =_xlfn.CONCAT("SUMMARY - ",_xlnm.sheet_title) -> SUMMARY - PSH # OUTLET # | AB51: =IF(I30="Soil",IF(v10post>AD41,"YES","NO"),IF(AH43="YES",IF(K30>AD43,"YES","NO"),IF(v10post>AD43,"YES","NO"))) -> NO
A52: Please provide a summary of the outlet analysis here. Directions/guidance are provided by clicking on the "i" button above.
AB53: Vpost increase > 10%? | AN53: 5-10 | AO53: =_xlfn.FORECAST.LINEAR(Tc_R_Pre,AO45:AO46,$AN45:$AN46) ->  | AP53: =_xlfn.FORECAST.LINEAR(Tc_R_Pre,AP45:AP46,$AN45:$AN46) -> 
AB54: =IF(O17>0.1,"YES","NO") -> YES | AN54: 10-15 | AO54: =_xlfn.FORECAST.LINEAR(Tc_R_Pre,AO46:AO47,$AN46:$AN47) -> 
AN55: 15-30
AN56: 30-60
AO58: =IF(OR(Tc_R_Pre>60, Tc_R_Pre<5), "Error", IF(AND(Tc_R_Pre>=5,Tc_R_Pre<=10),AO53, IF(AND(Tc_R_Pre>10,Tc_R_Pre<=15), AO54, IF(AND(Tc_R_Pre>15, Tc_R_Pre<=30), AO55, IF(AND(Tc_R_Pre>30, Tc_R_Pre<=60), AO56, VLOOKUP(Tc_R_Pre, INDIRECT(Name_R), 2)))))) -> Error | AP58: =IF(OR(Tc_R_Pre>60, Tc_R_Pre<5), "Error", IF(AND(Tc_R_Pre>=5,Tc_R_Pre<=10),AP53, IF(AND(Tc_R_Pre>10,Tc_R_Pre<=15), AP54, IF(AND(Tc_R_Pre>15, Tc_R_Pre<=30), AP55, IF(AND(Tc_R_Pre>30, Tc_R_Pre<=60), AP56, VLOOKUP(Tc_R_Pre, INDIRECT(Name_R), 2)))))) -> Error | AQ58: Error | AR58: Error | AS58: Error | AT58: Error
S59: NUMBER OF OUTLET PHOTO PAGES | U59: 1 | AC59: Applies? | AD59: Which case is it? | AF59: non-soil
AB60: Case 1 | AC60: =IF(AND(OR(F30="None",F30="Potential"),AB46="Decrease",AB51="NO"),"YES","") ->  | AD60: =IF(AC60<>"",AB60,IF(AC61<>"",AB61,IF(AC62<>"",AB62,IF(AC63<>"",AB63,IF(AC64<>"",AB64,IF(AC65<>"",AB65,IF(AC66<>"",AB66,IF(AC67<>"",AB67,IF(AC68<>"",AB68,IF(AC69<>"",AB69,"")))))))))) -> 
AB61: Case 1A | AC61: =IF(AND(OR(F30="Existing",F30="Both"),AB46="Decrease",AB51="NO"),"YES","") -> 
AB62: Case 2 | AC62: =IF(AND(OR(F30="None",F30="Potential"),AB46="Decrease",AB51="YES"),"YES","") ->  | AF62: =IF(AD60="","","Non-Soil, see Note 1 & 2 of Case Table") -> 
AB63: Case 2A | AC63: =IF(AND(OR(F30="Existing",F30="Both"),AB46="Decrease",AB51="YES"),"YES","") ->  | AN63: pre-const geometry type
AB64: Case 3 | AC64: =IF(AND(OR(F30="None",F30="Potential"),AB46="Increase",AB51="NO"),"YES","") -> 
AB65: Case 3A | AC65: =IF(AND(OR(F30="Existing",F30="Both"),AB46="Increase",AB51="NO"),"YES","") ->  | AN65: post-const geometry type | AR65: railroad design?
AB66: Case 4 | AC66: =IF(AND(OR(F30="None",F30="Potential"),AB46="Increase",AB51="YES",O17<=0.1),"YES","") -> 
AB67: Case 4A | AC67: =IF(AND(OR(F30="Existing",F30="Both"),AB46="Increase",AB51="YES",O17<=0.1),"YES","") -> 
AB68: Case 5 | AC68: =IF(AND(OR(F30="None",F30="Potential"),AB46="Increase",AB51="YES",O17>0.1),"YES","") -> 
AB69: Case 5A | AC69: =IF(AND(OR(F30="Existing",F30="Both"),AB46="Increase",AB51="YES",O17>0.1),"YES","") ->  | AM69: POST
AN70: Intensity Calcs
A72: OUTLET SITE PHOTOS PAGE 1 | AO72: 2 | AP72: 5 | AQ72: 10 | AR72: 25 | AS72: 50 | AT72: 100
AN73: =IF(custom_IDF="YES",INDIRECT("Z_CUSTOM_IDF"),IF(county_for_this_outlet="New Hanover", INDIRECT("NewHanover"),INDIRECT(county_for_this_outlet))) -> 
A74: Photo Description Here | I74: Photo Description Here
AN81: 5-10 | AO81: =_xlfn.FORECAST.LINEAR(Tc_R_Post,AO73:AO74,$AN73:$AN74) -> 
AN82: 10-15
AN83: 15-30
AN84: 30-60
AO86: =IF(OR(Tc_R_Post>60, Tc_R_Post<5), "Error", IF(AND(Tc_R_Post>=5,Tc_R_Post<=10),AO81, IF(AND(Tc_R_Post>10, Tc_R_Post<=15), AO82, IF(AND(Tc_R_Post>15, Tc_R_Post<=30), AO83, IF(AND(Tc_R_Post>30, Tc_R_Post<=60), AO84, VLOOKUP(Tc_R_Post, INDIRECT(Name_R), 2)))))) -> Error | AP86: Error | AQ86: Error | AR86: Error | AS86: Error | AT86: Error
BC89: template for 1 page of photos just copies the formatting from this cell below
BB90: ---->
BC96: TEMPLATE FOR 2 PHOTO PAGES | BU96: TEMPLATE FOR 3 PHOTO PAGES | CM96: TEMPLATE FOR 4 PHOTO PAGES | DE96: TEMPLATE FOR 5 PHOTO PAGES
A97: =_xlfn.CONCAT( _xlnm.sheet_title," SITE PHOTOS - PAGE 2") -> PSH # OUTLET # SITE PHOTOS - PAGE 2 | BC97: OUTLET SITE PHOTOS PAGE 2 | BU97: OUTLET SITE PHOTOS PAGE 2 | CM97: OUTLET SITE PHOTOS PAGE 2 | DE97: OUTLET SITE PHOTOS PAGE 2
A98: Photo Description Here | I98: Photo Description Here | BC98: Photo Description Here | BK98: Photo Description Here | BU98: Photo Description Here | CC98: Photo Description Here | CM98: Photo Description Here | CU98: Photo Description Here | DE98: Photo Description Here | DM98: Photo Description Here
AN102: =INDIRECT(New_Hanover) -> 
AI105: hidden da and c pre field values for this sheet | AM105: hidden da and c post field values for this sheet
AI107: 0 | AM107: 0
AI108: 0 | AM108: 0
AI109: 0 | AM109: 0
AI110: 0 | AM110: 0
AI111: 0 | AM111: 0
AI112: 0 | AM112: 0
AI113: 0 | AM113: 0
A114: Photo Description Here | I114: Photo Description Here | AI114: 0 | AM114: 0 | BC114: Photo Description Here | BK114: Photo Description Here | BU114: Photo Description Here | CC114: Photo Description Here | CM114: Photo Description Here | CU114: Photo Description Here | DE114: Photo Description Here | DM114: Photo Description Here
AI115: 0 | AM115: 0
AI116: 0 | AM116: 0
AI117: 0 | AM117: 0
AI118: 0 | AM118: 0
A131: =_xlfn.CONCAT( _xlnm.sheet_title," SITE PHOTOS - PAGE 3") -> PSH # OUTLET # SITE PHOTOS - PAGE 3 | BU131: OUTLET SITE PHOTOS PAGE 3 | CM131: OUTLET SITE PHOTOS PAGE 3 | DE131: OUTLET SITE PHOTOS PAGE 3
A132: Photo Description Here | I132: Photo Description Here | BU132: Photo Description Here | CC132: Photo Description Here | CM132: Photo Description Here | CU132: Photo Description Here | DE132: Photo Description Here | DM132: Photo Description Here
A148: Photo Description Here | I148: Photo Description Here | BU148: Photo Description Here | CC148: Photo Description Here | CM148: Photo Description Here | CU148: Photo Description Here | DE148: Photo Description Here | DM148: Photo Description Here
A165: =_xlfn.CONCAT( _xlnm.sheet_title," SITE PHOTOS - PAGE 4") -> PSH # OUTLET # SITE PHOTOS - PAGE 4 | CM165: OUTLET SITE PHOTOS PAGE 4 | DE165: OUTLET SITE PHOTOS PAGE 4
A166: Photo Description Here | I166: Photo Description Here | CM166: Photo Description Here | CU166: Photo Description Here | DE166: Photo Description Here | DM166: Photo Description Here
A182: Photo Description Here | I182: Photo Description Here | CM182: Photo Description Here | CU182: Photo Description Here | DE182: Photo Description Here | DM182: Photo Description Here
A199: =_xlfn.CONCAT( _xlnm.sheet_title," SITE PHOTOS - PAGE 5") -> PSH # OUTLET # SITE PHOTOS - PAGE 5 | DE199: OUTLET SITE PHOTOS PAGE 5
A200: Photo Description Here | I200: Photo Description Here | DE200: Photo Description Here | DM200: Photo Description Here
A216: Photo Description Here | I216: Photo Description Here | DE216: Photo Description Here | DM216: Photo Description Here
A235: =_xlfn.CONCAT("ADDITIONAL INFORMATION - LAND USE BREAKDOWN SUMMARY - ",_xlnm.sheet_title) -> ADDITIONAL INFORMATION - LAND USE BREAKDOWN SUMMARY - PSH # OUTLET #
A237: PRE-CONSTRUCTION | I237: POST-CONSTRUCTION
A239: LAND USE | F239: ACRES | I239: LAND USE | O239: ACRES
A240: IMPERVIOUS AREA WITHIN RIGHT OF WAY / EASEMENT / NCDOT CONTRIBUTION | F240: =IF(VALUE(da_imp_onsite_pre_field)=0,"-",VALUE(da_imp_onsite_pre_field)) -> - | I240: IMPERVIOUS AREA WITHIN RIGHT OF WAY / EASEMENT / NCDOT CONTRIBUTION (ACRES) | O240: =IF(VALUE(da_imp_onsite_post_field)=0,"-",VALUE(da_imp_onsite_post_field)) -> -
A243: IMPERVIOUS AREA OUTSIDE RIGHT OF WAY / EASEMENT (ACRES) | F243: =IF(VALUE(da_imp_offsite_pre_field)=0,"-",VALUE(da_imp_offsite_pre_field)) -> - | I243: IMPERVIOUS AREA OUTSIDE RIGHT OF WAY / EASEMENT (ACRES) | O243: =IF(VALUE(da_imp_offsite_post_field)=0,"-",VALUE(da_imp_offsite_post_field)) -> -
A246: GRASS AREA WITHIN RIGHT OF WAY / EASEMENT / NCDOT CONTRIBUTION (ACRES) | F246: =IF(VALUE(da_grass_onsite_pre_field)=0,"-",VALUE(da_grass_onsite_pre_field)) -> - | I246: GRASS AREA WITHIN RIGHT OF WAY / EASEMENT / NCDOT CONTRIBUTION (ACRES) | O246: =IF(VALUE(da_grass_onsite_post_field)=0,"-",VALUE(da_grass_onsite_post_field)) -> -
A249: GRASS AREA OUTSIDE RIGHT OF WAY / EASEMENT (ACRES) | F249: =IF(VALUE(da_grass_offsite_pre_field)=0,"-",VALUE(da_grass_offsite_pre_field)) -> - | I249: GRASS AREA OUTSIDE RIGHT OF WAY / EASEMENT (ACRES) | O249: =IF(VALUE(da_grass_offsite_post_field)=0,"-",VALUE(da_grass_offsite_post_field)) -> -
A252: WOODS AREA WITHIN RIGHT OF WAY / EASEMENT / NCDOT CONTRIBUTION (ACRES) | F252: =IF(VALUE(da_woods_onsite_pre_field)=0,"-",VALUE(da_woods_onsite_pre_field)) -> - | I252: WOODS AREA WITHIN RIGHT OF WAY / EASEMENT / NCDOT CONTRIBUTION (ACRES) | O252: =IF(VALUE(da_woods_onsite_post_field)=0,"-",VALUE(da_woods_onsite_post_field)) -> -
A255: WOODS AREA OUTSIDE RIGHT OF WAY / EASEMENT (ACRES) | F255: =IF(VALUE(da_woods_offsite_pre_field)=0,"-",VALUE(da_woods_offsite_pre_field)) -> - | I255: WOODS AREA OUTSIDE RIGHT OF WAY / EASEMENT (ACRES) | O255: =IF(VALUE(da_woods_offsite_post_field)=0,"-",VALUE(da_woods_offsite_post_field)) -> -
A258: OTHER LAND USE #1 WITHIN RIGHT OF WAY / EASEMENT / NCDOT CONTRIBUTION (ACRES) | F258: =IF(VALUE(da_other1_onsite_pre_field)=0,"-",VALUE(da_other1_onsite_pre_field)) -> - | I258: OTHER LAND USE #1 WITHIN RIGHT OF WAY / EASEMENT / NCDOT CONTRIBUTION (ACRES) | O258: =IF(VALUE(da_other1_onsite_post_field)=0,"-",VALUE(da_other1_onsite_post_field)) -> -
A261: OTHER LAND USE #1 OUTSIDE RIGHT OF WAY / EASEMENT (ACRES) | F261: =IF(VALUE(da_other1_offsite_pre_field)=0,"-",VALUE(da_other1_offsite_pre_field)) -> - | I261: OTHER LAND USE #1 OUTSIDE RIGHT OF WAY / EASEMENT (ACRES) | O261: =IF(VALUE(da_other1_offsite_post_field)=0,"-",VALUE(da_other1_offsite_post_field)) -> -
A264: OTHER LAND USE #2 WITHIN RIGHT OF WAY / EASEMENT / NCDOT CONTRIBUTION (ACRES) | F264: =IF(VALUE(da_other2_onsite_pre_field)=0,"-",VALUE(da_other2_onsite_pre_field)) -> - | I264: OTHER LAND USE #1 WITHIN RIGHT OF WAY / EASEMENT / NCDOT CONTRIBUTION (ACRES) | O264: =IF(VALUE(da_other2_onsite_post_field)=0,"-",VALUE(da_other2_onsite_post_field)) -> -
A267: OTHER LAND USE #2 OUTSIDE RIGHT OF WAY / EASEMENT (ACRES) | F267: =IF(VALUE(da_other2_offsite_pre_field)=0,"-",VALUE(da_other2_offsite_pre_field)) -> - | I267: OTHER LAND USE #1 OUTSIDE RIGHT OF WAY / EASEMENT (ACRES) | O267: =IF(VALUE(da_other2_offsite_post_field)=0,"-",VALUE(da_other2_offsite_post_field)) -> -
A270: OTHER LAND USE #3 WITHIN RIGHT OF WAY / EASEMENT / NCDOT CONTRIBUTION (ACRES) | F270: =IF(VALUE(da_other3_onsite_pre_field)=0,"-",VALUE(da_other3_onsite_pre_field)) -> - | I270: OTHER LAND USE #1 WITHIN RIGHT OF WAY / EASEMENT / NCDOT CONTRIBUTION (ACRES) | O270: =IF(VALUE(da_other3_onsite_post_field)=0,"-",VALUE(da_other3_onsite_post_field)) -> -
A273: OTHER LAND USE #3 OUTSIDE RIGHT OF WAY / EASEMENT (ACRES) | F273: =IF(VALUE(da_other3_offsite_pre_field)=0,"-",VALUE(da_other3_offsite_pre_field)) -> - | I273: OTHER LAND USE #1 OUTSIDE RIGHT OF WAY / EASEMENT (ACRES) | O273: =IF(VALUE(da_other3_offsite_post_field)=0,"-",VALUE(da_other3_offsite_post_field)) -> - | AI273: τ10 Post =
A279: ROWS HOLDING CELL DATA BELOW TO BE HIDDEN (CELLS HOLD DATA+FORMATTING FOR MACROS AND CALCULATIONS)
A282: hidden formatting for triangular / trapezoidal macros DO NOT TOUCH | I282: hidden formatting for triangular / trapezoidal macros DO NOT TOUCH
A283: Depth (ft) = | E283: H:V (Lt) = | I283: Depth (ft) = | K283: H:V (Lt) =
A284: Slope (ft/ft) = | E284: H:V (Rt) = | I284: Slope (ft/ft) = | K284: H:V (Rt) =
A285: Manning's N = | E285: Base Width (ft.) = | F285: 0 | I285: Manning's N = | K285: Base Width =
A286: Notes (lining, condition, etc.): | I286: Notes (lining, condition, etc.):
A292: hidden formatting for irregular channel macro DO NOT TOUCH | I292: hidden formatting for irregular channel macro DO NOT TOUCH
A294: =IF(AND($J$30<>"",Post_Const_Geometry_Selection="Geometry Same as Pre-Construction"),"Slope (ft/ft) = ","") ->  | I294: =IF($J$30<>"","Slope (ft/ft) = ","") -> 
A295: Notes: | I295: Notes:
A301: hidden formatting for pipe macros DO NOT TOUCH | I301: hidden formatting for pipe macros DO NOT TOUCH | T301: hidden formatting for blank DO NOT TOUCH
A302: Diameter (in) = | E302: QCapacity (cfs) = | F302: =IF(OR(B302="",B303=""),"",IFERROR(MIN((SQRT(B303)/D304)*((B302/16)^(8/3)),VLOOKUP(B302,'PICK LISTS'!$E$44:$F$54,2,FALSE)),(SQRT(B303)/D304)*((B302/16)^(8/3)))) ->  | I302: Diameter (in) = | L302: QCapacity (cfs) = | N302: =IF(OR(J302="",J303=""),"",IFERROR(MIN((SQRT(J303)/K304)*((J302/16)^(8/3)),VLOOKUP(J302,'PICK LISTS'!$E$44:$F$54,2,FALSE)),(SQRT(J303)/K304)*((J302/16)^(8/3)))) ->  | O302: =IF(OR(N302="",N303=""),"",IF(N303>N302,"NOTE: Q10 > Qfull","Q10 < Qfull")) ->  | T302: Notes:
A303: Slope (ft/ft) = | E303: Q10pre (cfs) = | F303: =$E$16 -> 0 | I303: Slope (ft/ft) = | L303: Q10 Post (cfs) = | N303: =$K$16 -> 0
A304: Pipe Material = | B304: RCP | D304: =VLOOKUP(B304,'PICK LISTS'!$E$29:$F$33, 2,FALSE) -> 0.012 | I304: Pipe Material = | J304: RCP | K304: =VLOOKUP(J304,'PICK LISTS'!$E$29:$F$33, 2,FALSE) -> 0.012
A305: Notes: | I305: Notes:
I310: hidden formatting for same as pre const. ds rec pipe macro DO NOT TOUCH
K312: Qfull (cfs) = | L312: =F311 -> 0 | N312: =IF(OR(L312="",L313=""),"",IF(L313>L312,"NOTE: Q10 > Qfull","Q10 < Qfull")) -> 
K313: Q10 Post (cfs) = | L313: =IF($K$16=0,"",$K$16) -> 
A321: SOIL TYPE
A323: LINER TYPE
B327: =IF($I$30="N/A","N/A",IF(Soil_Type="Permanent Matting Product (stable)","User to Define",IF($J$30<>"","N/A",IF($I$30="Soil",$AD$41,IF($I$30="Non-Soil",$AD$43,""))))) -> 
B328: =IF($A$34="SOIL TYPE","N/A",IF(Soil_Type="Grass / Dense Veg. (no bare soil spots)","N/A",IF($J$30<>"",$AD$43,""))) -> 

Sheet USGS-5030 TAB TEMPLATE (hidden)
A1: TIP Project: | B1: =TIP_number_MAIN_tab -> 0 | K1: Date: | L1: =Date_MAIN_tab -> 00:00:00 | Z1: COLUMNS HOLDING CELLS BELOW TO BE HIDDEN (CELLS HOLD BACKGROUND DATA FOR MACROS AND CALCULATIONS) | BA1: COLUMNS HOLDING CELLS BELOW TO BE HIDDEN (CELLS HOLD BACKGROUND DATA FOR MACROS AND CALCULATIONS) | BY1: COLUMNS HOLDING CELLS BELOW TO BE HIDDEN (CELLS HOLD BACKGROUND DATA FOR MACROS AND CALCULATIONS) | CW1: COLUMNS HOLDING CELLS BELOW TO BE HIDDEN (CELLS HOLD BACKGROUND DATA FOR MACROS AND CALCULATIONS)
A2: County: | H2: PSH # OUTLET # | K2: Design Firm: | L2: =design_firm_MAIN_tab -> 0
A3: Description: | B3: =IF(project_description_MAIN_tab="","",project_description_MAIN_tab) ->  | H3: PSH # OUTLET # | K3: Designed By: | L3: =designer_MAIN_tab -> 0
F4: Input Alignment, Station, Offset Here | K4: Reviewed By:
A6: =MAIN!A37 -> Version 1.0 | B6: Outlet UID Number: | E6: =IF(TIP_number_MAIN_tab=0,"ENTER TIP OR PROJ #",AG30) -> ENTER TIP OR PROJ # | H6: Latitude: | K6: Longitude: | O6: Google Maps | AA6: PRE CONST. MANNING'S EQUATION OPEN CHANNEL | AM6: POST CONST. MANNING'S EQUATION OPEN CHANNEL
A8: PRE-CONSTRUCTION (USGS-5030 METHOD) | H8: POST-CONSTRUCTION (USGS-5030 METHOD) | N8: CHANGE | AA8: B (ft) | AB8: norm. depth (ft) | AC8: avg sideslope | AD8: S (ft/ft) | AE8: N val | AF8: A (sq.ft.) | AG8: P (ft.) | AH8: R (ft.) | AI8: Q (cfs) | AJ8: Vc (ft/s) | AK8: Q Compare Check: Make sure = 0 (set to 0 by changing y in data>what if> goal seek) | AM8: B (ft) | AN8: norm. depth (ft) | AO8: avg sideslope | AP8: S (ft/ft) | AQ8: N val | AR8: A (sq.ft.) | AS8: P (ft.) | AT8: R (ft.) | AU8: Q (cfs) | AV8: Vc (ft/s) | AW8: Q Compare Check: Make sure = 0 (set to 0 by changing y in data>what if> goal seek)
D10: Q2 = | F10: cfs | J10: Q2 = | L10: cfs | N10: Q2 = | O10: =IF(OR(q2post="",q2pre=""),"",(q2post/q2pre)-1) -> 
A11: DA (SQ. MI.) = | D11: V2 = | F11: ft./s | H11: DA (SQ. MI.) = | J11: V2 = | L11: ft./s | N11: V2 = | O11: =IF(OR(v2post=0,v2pre=0),"",(v2post/v2pre)-1) ->  | S11: Green = Calculated / up to date (color 210,255,210) | AA11: =Base_Width_Pre -> 0 | AB11: 1.472799103 | AC11: =(Side_Slope_Left_Pre+Side_Slope_Right_Pre)/2 -> 0 | AD11: =Slope_Pre -> 0 | AE11: =Roughness_Pre -> 0 | AF11: =AA11*AB11+AC11*AB11^2 -> 0 | AG11: =AA11+((AB11*Side_Slope_Left_Pre)^2+AB11^2)^0.5+((AB11*Side_Slope_Right_Pre)^2+AB11^2)^0.5 -> 2.945598206 | AH11: =AF11/AG11 -> 0 | AI11: =1.49/AE11*AF11*AH11^0.667*AD11^0.5 ->  | AJ11: =1.49/AE11*AH11^0.667*AD11^0.5 ->  | AK11: =AI11-q2pre ->  | AL11: =ROUND(AK11,1) ->  | AM11: =IF(Post_Const_Geometry_Selection="Geometry Same as Pre-Construction",Base_Width_Pre,Base_Width_Post) -> 0 | AN11: 1 | AO11: =IF(Post_Const_Geometry_Selection="Geometry Same as Pre-Construction",(Side_Slope_Left_Pre+Side_Slope_Right_Pre)/2,(Side_Slope_Left_Post+Side_Slope_Right_Post)/2) -> 0 | AP11: =IF(Post_Const_Geometry_Selection="Geometry Same as Pre-Construction",Slope_Pre,Slope_Post) -> 0 | AQ11: =IF(Post_Const_Geometry_Selection="Geometry Same as Pre-Construction",Roughness_Pre,Roughness_Post) -> 0 | AR11: =AM11*AN11+AO11*AN11^2 -> 0 | AS11: =IF(Post_Const_Geometry_Selection="Geometry Same as Pre-Construction",AM11+((AN11*Side_Slope_Left_Pre)^2+AN11^2)^0.5+((AN11*Side_Slope_Right_Pre)^2+AN11^2)^0.5,AM11+((AN11*Side_Slope_Left_Post)^2+AN11^2)^0.5+((AN11*Side_Slope_Right_Post)^2+AN11^2)^0.5) -> 2 | AT11: =AR11/AS11 -> 0 | AU11: =1.49/AQ11*AR11*AT11^0.667*AP11^0.5 ->  | AV11: =1.49/AQ11*AT11^0.667*AP11^0.5 ->  | AW11: =AU11-q2post ->  | AX11: =ROUND(AW11,1) -> 
A12: Hyd. Region = | D12: D2 = | F12: ft. | H12: Hyd. Region = | I12: =IF(B12="","",B12) ->  | J12: D2 = | L12: ft. | N12: D2 = | O12: =IF(OR(d2post=0,d2pre=0),"",(d2post/d2pre)-1) ->  | S12: Red = Calculated, incorrect, or not up to date (color 255,165,165) | AA12: =Base_Width_Pre -> 0 | AB12: 1.472799103 | AC12: =(Side_Slope_Left_Pre+Side_Slope_Right_Pre)/2 -> 0 | AD12: =Slope_Pre -> 0 | AE12: =Roughness_Pre -> 0 | AF12: =AA12*AB12+AC12*AB12^2 -> 0 | AG12: =AA12+((AB12*Side_Slope_Left_Pre)^2+AB12^2)^0.5+((AB12*Side_Slope_Right_Pre)^2+AB12^2)^0.5 -> 2.945598206 | AH12: =AF12/AG12 -> 0 | AI12: =1.49/AE12*AF12*AH12^0.667*AD12^0.5 ->  | AJ12: =1.49/AE12*AH12^0.667*AD12^0.5 ->  | AK12: =AI12-q2pre ->  | AL12: =ROUND(AK12,1) ->  | AM12: =IF(Post_Const_Geometry_Selection="Geometry Same as Pre-Construction",Base_Width_Pre,Base_Width_Post) -> 0 | AN12: 1 | AO12: =IF(Post_Const_Geometry_Selection="Geometry Same as Pre-Construction",(Side_Slope_Left_Pre+Side_Slope_Right_Pre)/2,(Side_Slope_Left_Post+Side_Slope_Right_Post)/2) -> 0 | AP12: =IF(Post_Const_Geometry_Selection="Geometry Same as Pre-Construction",Slope_Pre,Slope_Post) -> 0 | AQ12: =IF(Post_Const_Geometry_Selection="Geometry Same as Pre-Construction",Roughness_Pre,Roughness_Post) -> 0 | AR12: =AM12*AN12+AO12*AN12^2 -> 0 | AS12: =IF(Post_Const_Geometry_Selection="Geometry Same as Pre-Construction",AM12+((AN12*Side_Slope_Left_Pre)^2+AN12^2)^0.5+((AN12*Side_Slope_Right_Pre)^2+AN12^2)^0.5,AM12+((AN12*Side_Slope_Left_Post)^2+AN12^2)^0.5+((AN12*Side_Slope_Right_Post)^2+AN12^2)^0.5) -> 2 | AT12: =AR12/AS12 -> 0 | AU12: =1.49/AQ12*AR12*AT12^0.667*AP12^0.5 ->  | AV12: =1.49/AQ12*AT12^0.667*AP12^0.5 ->  | AW12: =AU12-q2post ->  | AX12: =ROUND(AW12,1) -> 
A13: % Imp. Area (Total) = | D13: Q5 = | F13: cfs | H13: % Imp. Area (Total) = | J13: Q5 = | L13: cfs | N13: Q5 = | O13: =IF(OR(q5post="",q5pre=""),"",(q5post/q5pre)-1) ->  | S13: light blue = user iput (cells unlocked) (color 190,240,240)
D14: V5 = | F14: ft./s | J14: V5 = | L14: ft./s | N14: V5 = | O14: =IF(OR(v5post=0,v5pre=0),"",(v5post/v5pre)-1) ->  | S14: Yellow = Warning / Caution (color 255,255,100) | AA14: =Base_Width_Pre -> 0 | AB14: 1.564723921 | AC14: =(Side_Slope_Left_Pre+Side_Slope_Right_Pre)/2 -> 0 | AD14: =Slope_Pre -> 0 | AE14: =Roughness_Pre -> 0 | AF14: =AA14*AB14+AC14*AB14^2 -> 0 | AG14: =AA14+((AB14*Side_Slope_Left_Pre)^2+AB14^2)^0.5+((AB14*Side_Slope_Right_Pre)^2+AB14^2)^0.5 -> 3.129447841 | AH14: =AF14/AG14 -> 0 | AI14: =1.49/AE14*AF14*AH14^0.667*AD14^0.5 ->  | AJ14: =1.49/AE14*AH14^0.667*AD14^0.5 ->  | AK14: =AI14-q5pre ->  | AL14: =ROUND(AK14,1) ->  | AM14: =IF(Post_Const_Geometry_Selection="Geometry Same as Pre-Construction",Base_Width_Pre,Base_Width_Post) -> 0 | AN14: 1 | AO14: =IF(Post_Const_Geometry_Selection="Geometry Same as Pre-Construction",(Side_Slope_Left_Pre+Side_Slope_Right_Pre)/2,(Side_Slope_Left_Post+Side_Slope_Right_Post)/2) -> 0 | AP14: =IF(Post_Const_Geometry_Selection="Geometry Same as Pre-Construction",Slope_Pre,Slope_Post) -> 0 | AQ14: =IF(Post_Const_Geometry_Selection="Geometry Same as Pre-Construction",Roughness_Pre,Roughness_Post) -> 0 | AR14: =AM14*AN14+AO14*AN14^2 -> 0 | AS14: =IF(Post_Const_Geometry_Selection="Geometry Same as Pre-Construction",AM14+((AN14*Side_Slope_Left_Pre)^2+AN14^2)^0.5+((AN14*Side_Slope_Right_Pre)^2+AN14^2)^0.5,AM14+((AN14*Side_Slope_Left_Post)^2+AN14^2)^0.5+((AN14*Side_Slope_Right_Post)^2+AN14^2)^0.5) -> 2 | AT14: =AR14/AS14 -> 0 | AU14: =1.49/AQ14*AR14*AT14^0.667*AP14^0.5 ->  | AV14: =1.49/AQ14*AT14^0.667*AP14^0.5 ->  | AW14: =AU14-q5post ->  | AX14: =ROUND(AW14,1) -> 
A15: DA imp in R/W = | D15: D5 = | F15: ft. | H15: DA imp in R/W = | J15: D5 = | L15: ft. | N15: D5 = | O15: =IF(OR(d5post=0,d5pre=0),"",(d5post/d5pre)-1) ->  | AA15: =Base_Width_Pre -> 0 | AB15: 1.564723921 | AC15: =(Side_Slope_Left_Pre+Side_Slope_Right_Pre)/2 -> 0 | AD15: =Slope_Pre -> 0 | AE15: =Roughness_Pre -> 0 | AF15: 0 | AG15: =AA15+((AB15*Side_Slope_Left_Pre)^2+AB15^2)^0.5+((AB15*Side_Slope_Right_Pre)^2+AB15^2)^0.5 -> 3.129447841 | AH15: 0 | AK15: =AI15-q5pre ->  | AM15: =IF(Post_Const_Geometry_Selection="Geometry Same as Pre-Construction",Base_Width_Pre,Base_Width_Post) -> 0 | AN15: 1 | AO15: =IF(Post_Const_Geometry_Selection="Geometry Same as Pre-Construction",(Side_Slope_Left_Pre+Side_Slope_Right_Pre)/2,(Side_Slope_Left_Post+Side_Slope_Right_Post)/2) -> 0 | AP15: =IF(Post_Const_Geometry_Selection="Geometry Same as Pre-Construction",Slope_Pre,Slope_Post) -> 0 | AQ15: =IF(Post_Const_Geometry_Selection="Geometry Same as Pre-Construction",Roughness_Pre,Roughness_Post) -> 0 | AR15: 0 | AS15: =IF(Post_Const_Geometry_Selection="Geometry Same as Pre-Construction",AM15+((AN15*Side_Slope_Left_Pre)^2+AN15^2)^0.5+((AN15*Side_Slope_Right_Pre)^2+AN15^2)^0.5,AM15+((AN15*Side_Slope_Left_Post)^2+AN15^2)^0.5+((AN15*Side_Slope_Right_Post)^2+AN15^2)^0.5) -> 2 | AT15: 0 | AW15: =AU15-q5post -> 
D16: Q10 = | F16: cfs | J16: Q10 = | L16: cfs | N16: Q10 = | O16: =IF(OR(q10post="",q10pre=""),"",(q10post/q10pre)-1) ->  | S16: User Notes (will not be printed) | AL16: 0
A17: % Imp. Area (NCDOT Contribution) | B17: =IF(OR(da_pre_imp=0,da_total_pre=0),"",(da_pre_imp/(da_total_pre*640))) ->  | D17: V10 = | F17: ft./s | H17: % Imp. Area (NCDOT Contribution) | I17: =IF(OR(da_post_imp=0,da_total_post=0),"",(da_post_imp/(da_total_post*640))) ->  | J17: V10 = | L17: ft./s | N17: V10 = | O17: =IF(OR(v10post=0,v10pre=0),"",(v10post/v10pre)-1) ->  | AA17: =Base_Width_Pre -> 0 | AB17: 1.621325459 | AC17: =(Side_Slope_Left_Pre+Side_Slope_Right_Pre)/2 -> 0 | AD17: =Slope_Pre -> 0 | AE17: =Roughness_Pre -> 0 | AF17: 0 | AG17: =AA17+((AB17*Side_Slope_Left_Pre)^2+AB17^2)^0.5+((AB17*Side_Slope_Right_Pre)^2+AB17^2)^0.5 -> 3.242650919 | AH17: 0 | AK17: =AI17-q10pre ->  | AM17: =IF(Post_Const_Geometry_Selection="Geometry Same as Pre-Construction",Base_Width_Pre,Base_Width_Post) -> 0 | AN17: 1 | AO17: =IF(Post_Const_Geometry_Selection="Geometry Same as Pre-Construction",(Side_Slope_Left_Pre+Side_Slope_Right_Pre)/2,(Side_Slope_Left_Post+Side_Slope_Right_Post)/2) -> 0 | AP17: =IF(Post_Const_Geometry_Selection="Geometry Same as Pre-Construction",Slope_Pre,Slope_Post) -> 0 | AQ17: =IF(Post_Const_Geometry_Selection="Geometry Same as Pre-Construction",Roughness_Pre,Roughness_Post) -> 0 | AR17: =AM17*AN17+AO17*AN17^2 -> 0 | AS17: =IF(Post_Const_Geometry_Selection="Geometry Same as Pre-Construction",AM17+((AN17*Side_Slope_Left_Pre)^2+AN17^2)^0.5+((AN17*Side_Slope_Right_Pre)^2+AN17^2)^0.5,AM17+((AN17*Side_Slope_Left_Post)^2+AN17^2)^0.5+((AN17*Side_Slope_Right_Post)^2+AN17^2)^0.5) -> 2 | AT17: =AR17/AS17 -> 0 | AU17: =1.49/AQ17*AR17*AT17^0.667*AP17^0.5 ->  | AV17: =1.49/AQ17*AT17^0.667*AP17^0.5 ->  | AW17: =AU17-q10post -> 
